Workbook

Sheet 10.2013 PARTIKA (hidden)
A1: SIA `VICI RESTAURANTS`
A2: Reģ.nr. 40103369245
C3: Preču kustības reģistrācijas žurnāls 22.07.2013. - 31.07.2013. struktūrvienībai CHARLIE PIZZA Lielirbes iela 29
B5: Datums | C5: PVZ | E5: PIEGĀDĀTĀJS | F5: Darījuma apraksts (piegāde, iegāde, izsniegšana, saņemšana, pārvietošana) | G5: PVZ norādītā preču kopējā vērtība | H5: PVN summa | I5: Summa ar PVN
C6: datums | D6: numurs | G6: (bez PVN) | H6: (ja tāda ir)
A7: 474 | B7: 2013.10.02 | C7: 2013.10.02 | D7: GEMO66882 | E7: GEMOSS SIA | F7: saņemšana | G7: 31.35 | H7: 6.58 | I7: =SUM(G7+H7) -> 37.93
A8: 475 | B8: 2013.10.02 | C8: 2013.10.02 | D8: AAR611245 | E8: LIETAS MD SIA | F8: saņemšana | G8: 0 | H8: 0 | I8: 0
A9: 476 | B9: 2013.10.02 | C9: 2013.10.02 | D9: MES NR 3577 | E9: MAŽEIKIU MESIŅE UAB | F9: saņemšana | G9: 32.84 | H9: 0 | I9: 32.84
A10: 477 | B10: 2013.10.03 | C10: 2013.10.03 | D10: AAR611775 | E10: LIETAS MD SIA | F10: saņemšana | G10: 29.66 | H10: 6.23 | I10: 35.89
A11: 478 | B11: 2013.10.03 | C11: 2013.10.03 | D11: RPK1662745 | E11: RĪGAS PIENA KOMBINĀTS AS | F11: saņemšana | G11: 25.26 | H11: 5.3 | I11: 30.56
A12: 479 | B12: 2013.10.03 | C12: 2013.10.03 | D12: ALP 160133 | E12: ALLFRESH PLUS SIA | F12: saņemšana | G12: 31.28 | H12: 6.57 | I12: 37.85
A13: 480 | B13: 2013.10.04 | C13: 2013.10.04 | D13: 3100161506 | E13: COCA-COLA HBC LATVIA SIA | F13: saņemšana | G13: 60.96 | H13: 12.81 | I13: 73.77
A14: 481 | B14: 2013.10.04 | C14: 2013.10.04 | D14: 3100161526 | E14: COCA-COLA HBC LATVIA SIA | F14: atgriešana | G14: -49.27 | H14: -10.35 | I14: -59.62
A15: 482 | B15: 2013.10.04 | C15: 2013.10.04 | D15: VLAT13/63517 | E15: VIČIŪNAI-LAT SIA | F15: saņemšana | G15: 59 | H15: 12.39 | I15: 71.39
A16: 483 | B16: 2013.10.04 | C16: 2013.10.04 | D16: AAR612471 | E16: LIETAS MD SIA | F16: saņemšana | G16: 30.85 | H16: 6.48 | I16: 37.33
A17: 484 | B17: 2013.10.04 | C17: 2013.10.04 | D17: VLAT13/63408 | E17: VIČIŪNAI-LAT SIA | F17: saņemšana | G17: 37.04 | H17: 7.78 | I17: 44.82
A18: 485 | B18: 2013.10.04 | C18: 2013.10.04 | D18: VNK000090643 | E18: VAINEKTA UAB | F18: saņemšana | G18: 60.36 | H18: 0 | I18: 60.36
A19: 486 | B19: 2013.10.04 | C19: 2013.10.04 | D19: MES NR 3582 | E19: MAŽEIKIU MESIŅE UAB | F19: saņemšana | G19: 29.22 | H19: 0 | I19: 29.22
A20: 487 | B20: 2013.10.05 | C20: 2013.10.05 | D20: FLS457917 | E20: FAZER LATVIJA SIA | F20: saņemšana | G20: 9.15 | H20: 1.92 | I20: 11.07
A21: 488 | B21: 2013.10.05 | C21: 2013.10.01 | D21: 108828 | E21: RIMI LATVIA SIA | F21: saņemšana | G21: 0.88 | H21: 0.19 | I21: 1.07
A22: 489 | B22: 2013.10.05 | C22: 2013.10.02 | D22: 348387 | E22: RIMI LATVIA SIA | F22: saņemšana | G22: 0.82 | H22: 0.17 | I22: 0.99
A23: 490 | B23: 2013.10.05 | C23: 2013.10.05 | D23: 252076 | E23: RIMI LATVIA SIA | F23: saņemšana | G23: 19.62 | H23: 4.12 | I23: 23.74
A24: 491 | B24: 2013.10.05 | C24: 2013.10.05 | D24: ALP 160313 | E24: ALLFRESH PLUS SIA | F24: saņemšana | G24: 42.84 | H24: 9 | I24: 51.84
A25: 492 | B25: 2013.10.05 | C25: 2013.10.05 | D25: 38038 | E25: RIMI LATVIA SIA | F25: saņemšana | G25: 10.86 | H25: 2.28 | I25: 13.14
A26: 493 | B26: 2013.10.06 | C26: 2013.10.06 | D26: 211304 | E26: RIMI LATVIA SIA | F26: saņemšana | G26: 16.98 | H26: 3.57 | I26: 20.55
A27: 494 | B27: 2013.10.06 | C27: 2013.10.06 | D27: 256777 | E27: RIMI LATVIA SIA | F27: saņemšana | G27: 0.98 | H27: 0.2 | I27: 1.18
A28: 495 | B28: 2013.10.06 | C28: 2013.10.06 | D28: 250174 | E28: RIMI LATVIA SIA | F28: saņemšana | G28: 1.6 | H28: 0.33 | I28: 1.93
A29: 496 | B29: 2013.10.07 | C29: 2013.10.07 | D29: 232124 | E29: RIMI LATVIA SIA | F29: saņemšana | G29: 10.27 | H29: 2.16 | I29: 12.43
A30: 497 | B30: 2013.10.07 | C30: 2013.10.07 | D30: RPK1668057 | E30: RĪGAS PIENA KOMBINĀTS AS | F30: saņemšana | G30: 93.87 | H30: 19.71 | I30: 113.58
A31: 498 | B31: 2013.10.07 | C31: 2013.10.07 | D31: AAR613858 | E31: LIETAS MD SIA | F31: saņemšana | G31: 31.96 | H31: 6.71 | I31: 38.67
A32: 499 | B32: 2013.10.07 | C32: 2013.10.07 | D32: STAB227025 | E32: SANITEX BALTIC DISTRIBUTION SIA | F32: saņemšana | G32: 26.22 | H32: 5.51 | I32: 31.73
A33: 500 | B33: 2013.10.07 | C33: 2013.10.07 | D33: SBAA328736 | E33: SANITEX BALTIC DISTRIBUTION SIA | F33: saņemšana | G33: 5.46 | H33: 1.15 | I33: 6.61
A34: 501 | B34: 2013.10.08 | C34: 2013.10.08 | D34: IBV13-028884 | E34: AS INTERBALTIJA AG | F34: saņemšana | G34: 28.02 | H34: 5.88 | I34: 33.9
A35: 502 | B35: 2013.10.08 | C35: 2013.10.08 | D35: IBV13-028886 | E35: AS INTERBALTIJA AG | F35: saņemšana | G35: 23.66 | H35: 4.97 | I35: 28.63
A36: 503 | B36: 2013.10.08 | C36: 2013.10.08 | D36: AAR614522 | E36: LIETAS MD SIA | F36: saņemšana | G36: 29.6 | H36: 6.22 | I36: 35.82
A37: 504 | B37: 2013.10.08 | C37: 2013.10.08 | D37: ALP160423 | E37: ALLFRESH PLUS SIA | F37: saņemšana | G37: 68.75 | H37: 14.44 | I37: 83.19
A38: 505 | B38: 2013.10.08 | C38: 2013.10.08 | D38: LV3RE00069565 | E38: REATON LTD | F38: saņemšana | G38: 35.9 | H38: 7.54 | I38: 43.44
A39: 506 | B39: 2013.10.08 | C39: 2013.10.06 | D39: AAR613287 | E39: LIETAS MD SIA | F39: saņemšana | G39: 34.51 | H39: 7.25 | I39: 41.76
A40: 507 | B40: 2013.10.11 | C40: 2013.10.01 | D40: RPK1659643 | E40: RĪGAS PIENA KOMBINĀTS AS | F40: saņemšana | G40: 47.09 | H40: 9.89 | I40: 56.98
A41: 508 | B41: 2013.10.11 | C41: 2013.10.01 | D41: 3100159026 | E41: COCA-COLA HBC LATVIA SIA | F41: saņemšana | G41: 91.44 | H41: 19.2 | I41: 110.64
A42: 509 | B42: 2013.10.11 | C42: 2013.10.01 | D42: BID 024572 | E42: NOWACO LATVIA SIA | F42: saņemšana | G42: 76.94 | H42: 16.16 | I42: 93.1
A43: 510 | B43: 2013.10.11 | C43: 2013.10.01 | D43: RPK1659995 | E43: RĪGAS PIENA KOMBINĀTS AS | F43: saņemšana | G43: 31.41 | H43: 6.6 | I43: 38.01
A44: 511 | B44: 2013.10.11 | C44: 2013.10.01 | D44: FLS453524 | E44: FAZER LATVIJA SIA | F44: saņemšana | G44: 4.76 | H44: 1 | I44: 5.76
A45: 512 | B45: 2013.10.11 | C45: 2013.10.01 | D45: VLAT13/62612 | E45: VIČIŪNAI-LAT SIA | F45: saņemšana | G45: 116.32 | H45: 24.43 | I45: 140.75
A46: 513 | B46: 2013.10.11 | C46: 2013.10.01 | D46: VLAT13/62586 | E46: VIČIŪNAI-LAT SIA | F46: saņemšana | G46: 30.84 | H46: 6.48 | I46: 37.32
A47: 514 | B47: 2013.10.11 | C47: 2013.10.01 | D47: ALP 159966 | E47: ALLFRESH PLUS SIA | F47: saņemšana | G47: 45.66 | H47: 9.59 | I47: 55.25
A48: 515 | B48: 2013.10.11 | C48: 2013.10.01 | D48: KDA 577303 | E48: AS KONIG DISTRIBUTION | F48: saņemšana | G48: 26.1 | H48: 5.48 | I48: 31.58
A49: 516 | B49: 2013.10.11 | C49: 2013.10.01 | D49: 2213146460 | E49: CIDO GRUPA SIA | F49: saņemšana | G49: 156.89 | H49: 32.95 | I49: 189.84
A50: 517 | B50: 2013.10.11 | C50: 2013.10.01 | D50: C 021238 | E50: CIDO GRUPA SIA | F50: atgriešana | G50: 0 | H50: 0 | I50: 0
A51: 518 | B51: 2013.10.11 | C51: 2013.10.07 | D51: LIV-13-PR-68728 | E51: LIVIKO SIA | F51: saņemšana | G51: 250.52 | H51: 52.61 | I51: 303.13
A52: 519 | B52: 2013.10.11 | C52: 2013.10.09 | D52: HP105540 | E52: HENKELL & CO. BALTIC SIA | F52: saņemšana | G52: 10.06 | H52: 2.11 | I52: 12.17
A53: 520 | B53: 2013.10.11 | C53: 2013.10.09 | D53: SER 132162 | E53: SERVAALI LATVIA SIA | F53: saņemšana | G53: 38.4 | H53: 8.06 | I53: 46.46
A54: 521 | B54: 2013.10.11 | C54: 2013.10.09 | D54: AAR615117 | E54: LIETAS MD SIA | F54: saņemšana | G54: 32.47 | H54: 6.82 | I54: 39.29
A55: 522 | B55: 2013.10.11 | C55: 2013.10.09 | D55: VLAT13/64318 | E55: VIČIŪNAI-LAT SIA | F55: saņemšana | G55: 341.04 | H55: 71.62 | I55: 412.66
A56: 523 | B56: 2013.10.11 | C56: 2013.10.09 | D56: VLAT13/64449 | E56: VIČIŪNAI-LAT SIA | F56: saņemšana | G56: 66.25 | H56: 13.91 | I56: 80.16
A57: 524 | B57: 2013.10.11 | C57: 2013.10.09 | D57: FLS461806 | E57: FAZER LATVIJA SIA | F57: saņemšana | G57: 3.88 | H57: 0.81 | I57: 4.69
A58: 525 | B58: 2013.10.11 | C58: 2013.10.09 | D58: 3100163649 | E58: COCA-COLA HBC LATVIA SIA | F58: atgriešana | G58: -37.9 | H58: -7.96 | I58: -45.86
A59: 526 | B59: 2013.10.11 | C59: 2013.10.09 | D59: 3100163637 | E59: COCA-COLA HBC LATVIA SIA | F59: saņemšana | G59: 91.44 | H59: 19.2 | I59: 110.64
A60: 527 | B60: 2013.10.11 | C60: 2013.10.09 | D60: MES NR 3599 | E60: MAŽEIKIU MESIŅE UAB | F60: saņemšana | G60: 55.77 | H60: 0 | I60: 55.77
A61: 528 | B61: 2013.10.11 | C61: 2013.10.11 | D61: MES NR 3605 | E61: MAŽEIKIU MESIŅE UAB | F61: saņemšana | G61: 72.94 | H61: 0 | I61: 72.94
A62: 529 | B62: 2013.10.11 | C62: 2013.10.11 | D62: SBAA333438 | E62: SANITEX BALTIC DISTRIBUTION SIA | F62: saņemšana | G62: 10.08 | H62: 2.12 | I62: 12.2
A63: 530 | B63: 2013.10.11 | C63: 2013.10.11 | D63: STAB232953 | E63: SANITEX BALTIC DISTRIBUTION SIA | F63: saņemšana | G63: 36.01 | H63: 7.56 | I63: 43.57
A64: 531 | B64: 2013.10.11 | C64: 2013.10.11 | D64: RPK1673839 | E64: RĪGAS PIENA KOMBINĀTS AS | F64: saņemšana | G64: 66.85 | H64: 14.04 | I64: 80.89
A65: 532 | B65: 2013.10.11 | C65: 2013.10.11 | D65: VNK000090882 | E65: UAB VAINNEKTA | F65: saņemšana | G65: 78.13 | H65: 0 | I65: 78.13
A66: 533 | B66: 2013.10.11 | C66: 2013.10.11 | D66: RPK1673685 | E66: RĪGAS PIENA KOMBINĀTS AS | F66: saņemšana | G66: 21.35 | H66: 4.48 | I66: 25.83
A67: 534 | B67: 2013.10.11 | C67: 2013.10.11 | D67: BAR 005261 | E67: BARGI SIA | F67: saņemšana | G67: 15.11 | H67: 3.17 | I67: 18.28
A68: 535 | B68: 2013.10.11 | C68: 2013.10.11 | D68: KDA 581609 | E68: AS KONIG DISTRIBUTION | F68: saņemšana | G68: 12.06 | H68: 2.53 | I68: 14.59
A69: 536 | B69: 2013.10.11 | C69: 2013.10.11 | D69: KDA 581610 | E69: AS KONIG DISTRIBUTION | F69: saņemšana | G69: 7.4 | H69: 1.55 | I69: 8.95
A70: 537 | B70: 2013.10.11 | C70: 2013.10.11 | D70: 2213152006 | E70: CIDO GRUPA SIA | F70: saņemšana | G70: 51.9 | H70: 10.9 | I70: 62.8
A71: 538 | B71: 2013.10.11 | C71: 2013.10.11 | D71: SDAA057384 | E71: SANITEX BALTIC DISTRIBUTION SIA | F71: saņemšana | G71: 1.48 | H71: 0.31 | I71: 1.79
A72: 539 | B72: 2013.10.11 | C72: 2013.10.11 | D72: AAR616332 | E72: LIETAS MD SIA | F72: saņemšana | G72: 29.5 | H72: 6.2 | I72: 35.7
A73: 540 | B73: 2013.10.11 | C73: 2013.10.11 | D73: AVD 894899 | E73: SIA SPI Distribution | F73: saņemšana | G73: 11.18 | H73: 2.35 | I73: 13.53
A74: 541 | B74: 2013.10.11 | C74: 2013.10.11 | D74: AVD 894904 | E74: SIA SPI Distribution | F74: saņemšana | G74: 19.52 | H74: 4.1 | I74: =SUM(G74+H74) -> 23.62
A75: 542 | B75: 2013.10.11 | C75: 2013.10.11 | D75: FLS463974 | E75: FAZER LATVIJA SIA | F75: saņemšana | G75: 15.09 | H75: 3.17 | I75: 18.26
A76: 543 | B76: 2013.10.11 | C76: 2013.10.11 | D76: ALP 160705 | E76: ALLFRESH PLUS SIA | F76: saņemšana | G76: 41.62 | H76: 8.74 | I76: 50.36
A77: 544 | B77: 2013.10.11 | C77: 2013.10.11 | D77: 2213151705 | E77: CIDO GRUPA SIA | F77: saņemšana | G77: 87.71 | H77: 18.42 | I77: 106.13
A78: 545 | B78: 2013.10.12 | C78: 2013.10.12 | D78: AAR616903 | E78: LIETAS MD SIA | F78: saņemšana | G78: 70.54 | H78: 14.81 | I78: 85.35
A79: 546 | B79: 2013.10.15 | C79: 2013.10.01 | D79: GEMO 65776 | E79: GEMOSS SIA | F79: saņemšana | G79: 33.76 | H79: 7.09 | I79: 40.85
A80: 547 | B80: 2013.10.15 | C80: 2013.10.11 | D80: C 021239 | E80: CIDO GRUPA SIA | F80: atgriešana | G80: 0 | H80: 0 | I80: 0
A81: 548 | B81: 2013.10.15 | C81: 2013.10.15 | D81: AAR 617591 | E81: LIETAS MD SIA | F81: saņemšana | G81: 26.04 | H81: 5.47 | I81: 31.51
A82: 549 | B82: 2013.10.15 | C82: 2013.10.15 | D82: AAR 618278 | E82: LIETAS MD SIA | F82: saņemšana | G82: 21.71 | H82: 4.56 | I82: 26.27
A83: 550 | B83: 2013.10.15 | C83: 2013.10.15 | D83: ALP 160874 | E83: ALLFRESH PLUS SIA | F83: saņemšana | G83: 27.67 | H83: 5.81 | I83: 33.48
A84: 551 | B84: 2013.10.15 | C84: 2013.10.15 | D84: STAB 235612 | E84: SANITEX BALTIC DISTRIBUTION SIA | F84: saņemšana | G84: 13.5 | H84: 2.84 | I84: 16.34
A85: 552 | B85: 2013.10.15 | C85: 2013.10.15 | D85: SBAA 336183 | E85: SANITEX BALTIC DISTRIBUTION SIA | F85: saņemšana | G85: 39.54 | H85: 8.3 | I85: 47.84
A86: 553 | B86: 2013.10.15 | C86: 2013.10.15 | D86: FLS 467885 | E86: FAZER LATVIJA SIA | F86: saņemšana | G86: 8.23 | H86: 1.73 | I86: 9.96
A87: 554 | B87: 2013.10.15 | C87: 2013.10.15 | D87: GEMO 71341 | E87: GEMOSS SIA | F87: saņemšana | G87: 19.33 | H87: 4.05 | I87: 23.38
A88: 555 | B88: 2013.10.15 | C88: 2013.10.15 | D88: SP 349912 | E88: SPILVA | F88: saņemšana | G88: 56.02 | H88: 11.76 | I88: 67.78
A89: 556 | B89: 2013.10.15 | C89: 2013.10.15 | D89: RPK 1678608 | E89: RĪGAS PIENA KOMBINĀTS AS | F89: saņemšana | G89: 65.62 | H89: 13.78 | I89: 79.4
A90: 557 | B90: 2013.10.15 | C90: 2013.10.01 | D90: VRG13 1054 | E90: SIA "VICI RESTAURANTS | F90: pārvietošana | G90: 34.29 | H90: 0 | I90: 34.29
A91: 558 | B91: 2013.10.15 | C91: 2013.10.08 | D91: VRG13 0081 | E91: SIA "VICI RESTAURANTS | F91: PICU KASTES | G91: 46.21 | H91: 0 | I91: 46.21
A92: 559 | B92: 2013.10.15 | C92: 2013.10.05 | D92: VRG13 3020 | E92: SIA "VICI RESTAURANTS | F92: izsniegšana | G92: 14.83 | H92: 0 | I92: 14.83
A93: 560 | B93: 2013.10.15 | C93: 2013.10.08 | D93: CEKS 147931 | E93: RIMI LATVIA SIA | F93: saņemšana | G93: 1.29 | H93: 0.27 | I93: 1.56
A94: 561 | B94: 2013.10.15 | C94: 2013.10.08 | D94: CEKS 232608 | E94: RIMI LATVIA SIA | F94: saņemšana | G94: 6.69 | H94: 1.41 | I94: 8.1
A95: 562 | B95: 2013.10.15 | C95: 2013.10.10 | D95: CEKS 353604 | E95: RIMI LATVIA SIA | F95: saņemšana | G95: 1.55 | H95: 0.33 | I95: 1.88
A96: 563 | B96: 2013.10.15 | C96: 2013.10.10 | D96: CEKS 169267 | E96: RIMI LATVIA SIA | F96: saņemšana | G96: 0.27 | H96: 0.06 | I96: 0.33
A97: 564 | B97: 2013.10.15 | C97: 2013.10.12 | D97: CEKS 355185 | E97: RIMI LATVIA SIA | F97: saņemšana | G97: 3.29 | H97: 0.69 | I97: 3.98
A98: 565 | B98: 2013.10.15 | C98: 2013.10.13 | D98: CEKS 356117 | E98: RIMI LATVIA SIA | F98: saņemšana | G98: 0.82 | H98: 0.17 | I98: 0.99
A99: 566 | B99: 2013.10.15 | C99: 2013.10.13 | D99: CEKS 353261 | E99: RIMI LATVIA SIA | F99: saņemšana | G99: 3.11 | H99: 0.65 | I99: 3.76
A100: 567 | B100: 2013.10.15 | C100: 2013.10.14 | D100: CEKS 261648 | E100: RIMI LATVIA SIA | F100: saņemšana | G100: 1.64 | H100: 0.34 | I100: 1.98
A101: 568 | B101: 2013.10.15 | C101: 2013.10.06 | D101: VRG13 1056 | E101: SIA "VICI RESTAURANTS | F101: pārvietošana | G101: 12.49 | H101: 0 | I101: 12.49
A102: 569 | B102: 2013.10.15 | C102: 2013.10.15 | D102: CEKS 235677 | E102: RIMI LATVIA SIA | F102: saņemšana | G102: 3.55 | H102: 0.74 | I102: 4.29
A103: 570 | B103: 2013.10.16 | C103: 2013.10.16 | D103: 2213153682 | E103: CIDO GRUPA SIA | F103: saņemšana | G103: 40.02 | H103: 8.4 | I103: 48.42
A104: 571 | B104: 2013.10.16 | C104: 2013.10.16 | D104: MES 3617 | E104: MAŽEIKIU MESIŅE UAB | F104: saņemšana | G104: 34.1 | H104: 0 | I104: 34.1
A105: 572 | B105: 2013.10.16 | C105: 2013.10.16 | D105: 3100167313 | E105: COCA-COLA HBC LATVIA SIA | F105: atgriešana | G105: -30.32 | H105: -6.37 | I105: -36.69
A106: 573 | B106: 2013.10.16 | C106: 2013.10.16 | D106: 310 0 1667320 | E106: COCA-COLA HBC LATVIA SIA | F106: saņemšana | G106: 66.66 | H106: 14 | I106: 80.66
A107: 574 | B107: 2013.10.16 | C107: 2013.10.16 | D107: VLAT13 65897 | E107: VIČIŪNAI-LAT SIA | F107: saņemšana | G107: 69.52 | H107: 14.6 | I107: 84.12
A108: 575 | B108: 2013.10.16 | C108: 2013.10.16 | D108: VLAT13 65853 | E108: VIČIŪNAI-LAT SIA | F108: saņemšana | G108: 220.96 | H108: 46.4 | I108: 267.36
A109: 576 | B109: 2013.10.16 | C109: 2013.10.16 | D109: AAR 618857 | E109: LIETAS MD SIA | F109: saņemšana | G109: 20.94 | H109: 4.4 | I109: 25.34
A110: 577 | B110: 2013.10.17 | C110: 2013.10.17 | D110: AAR619385 | E110: LIETAS MD SIA | F110: saņemšana | G110: 21.12 | H110: 4.44 | I110: 25.56
A111: 578 | B111: 2013.10.18 | C111: 2013.10.18 | D111: CEKS 259379 | E111: RIMI LATVIA SIA | F111: saņemšana | G111: 3.89 | H111: 0.82 | I111: 4.71
A112: 579 | B112: 2013.10.18 | C112: 2013.10.18 | D112: VNK 000091127 | E112: VAINEKTA UAB | F112: saņemšana | G112: 64.83 | H112: 0 | I112: 64.83
A113: 580 | B113: 2013.10.18 | C113: 2013.10.18 | D113: ALP 161140 | E113: ALLFRESH PLUS SIA | F113: saņemšana | G113: 32.55 | H113: 6.84 | I113: 39.39
A114: 581 | B114: 2013.10.18 | C114: 2013.10.18 | D114: AAR 620084 | E114: LIETAS MD SIA | F114: saņemšana | G114: 33.82 | H114: 7.1 | I114: 40.92
A115: 582 | B115: 2013.10.18 | C115: 2013.10.18 | D115: RPK 1683691 | E115: RĪGAS PIENA KOMBINĀTS AS | F115: saņemšana | G115: 74.4 | H115: 15.62 | I115: 90.02
A116: 583 | B116: 2013.10.18 | C116: 2013.10.18 | D116: VLAT13/66581 | E116: VIČIŪNAI-LAT SIA | F116: saņemšana | G116: 45.63 | H116: 9.58 | I116: 55.21
A117: 584 | B117: 2013.10.18 | C117: 2013.10.18 | D117: VLAT13/66480 | E117: VIČIŪNAI-LAT SIA | F117: saņemšana | G117: 329.8 | H117: 69.26 | I117: 399.06
A118: 585 | B118: 2013.10.18 | C118: 2013.10.18 | D118: RPK 16833474 | E118: RĪGAS PIENA KOMBINĀTS AS | F118: saņemšana | G118: 11.29 | H118: 2.37 | I118: 13.66
A119: 586 | B119: 2013.10.18 | C119: 2013.10.18 | D119: SBAA 339383 | E119: SANITEX BALTIC DISTRIBUTION SIA | F119: saņemšana | G119: 9.46 | H119: 1.99 | I119: =SUM(G119+H119) -> 11.45
A120: 587 | B120: 2013.10.18 | C120: 2013.10.18 | D120: SBAA 339384 | E120: SANITEX BALTIC DISTRIBUTION SIA | F120: saņemšana | G120: 1.35 | H120: 0.28 | I120: 1.63
A121: 588 | B121: 2013.10.18 | C121: 2013.10.18 | D121: STAB 240205 | E121: SANITEX BALTIC DISTRIBUTION SIA | F121: saņemšana | G121: 11.74 | H121: 2.47 | I121: 14.21
A122: 589 | B122: 2013.10.18 | C122: 2013.10.18 | D122: MES 3622 | E122: MAŽEIKIU MESIŅE UAB | F122: saņemšana | G122: 102.62 | H122: 0 | I122: 102.62
A123: 590 | B123: 2013.10.18 | C123: 2013.10.18 | D123: LV3RE00072178 | E123: REATON LTD | F123: saņemšana | G123: 23.88 | H123: 5.01 | I123: 28.89
A124: 591 | B124: 2013.10.18 | C124: 2013.10.18 | D124: FLS 471177 | E124: FAZER LATVIJA SIA | F124: saņemšana | G124: 14.41 | H124: 3.03 | I124: 17.44
A125: 592 | B125: 2013.10.18 | C125: 2013.10.18 | D125: KDA 584241 | E125: AS KONIG DISTRIBUTION | F125: saņemšana | G125: 1.7 | H125: 0.36 | I125: 2.06
A126: 593 | B126: 2013.10.18 | C126: 2013.10.18 | D126: KDA 584240 | E126: AS KONIG DISTRIBUTION | F126: saņemšana | G126: 6.98 | H126: 1.47 | I126: 8.45
A127: 594 | B127: 2013.10.18 | C127: 2013.10.18 | D127: 2213155151 | E127: CIDO GRUPA SIA | F127: saņemšana | G127: 150.64 | H127: 31.63 | I127: 182.27
A128: 595 | B128: 2013.10.19 | C128: 2013.10.19 | D128: AAR 620677 | E128: LIETAS MD SIA | F128: saņemšana | G128: 102.84 | H128: 21.6 | I128: 124.44
A129: 596 | B129: 2013.10.19 | C129: 2013.10.19 | D129: VRG13 1057 | E129: SIA "VICI RESTAURANTS | F129: pārvietošana | G129: 19.98 | H129: 0 | I129: 19.98
A130: 597 | B130: 2013.10.20 | C130: 2013.10.20 | D130: CEKS 265490 | E130: RIMI LATVIA SIA | F130: saņemšana | G130: 13.45 | H130: 2.83 | I130: 16.28
A131: 598 | B131: 2013.10.20 | C131: 2013.10.20 | D131: CEKS 237777 | E131: RIMI LATVIA SIA | F131: saņemšana | G131: 13.89 | H131: 2.92 | I131: 16.81
A132: 599 | B132: 2013.10.21 | C132: 2013.10.21 | D132: 3100169929 | E132: COCA-COLA HBC LATVIA SIA | F132: saņemšana | G132: 104.74 | H132: 21.99 | I132: 126.73
A133: 600 | B133: 2013.10.21 | C133: 2013.10.21 | D133: AAR621409 | E133: LIETAS MD SIA | F133: saņemšana | G133: 29.78 | H133: 6.25 | I133: 36.03
A134: 601 | B134: 2013.10.22 | C134: 2013.10.22 | D134: PRK1688046 | E134: RĪGAS PIENA KOMBINĀTS AS | F134: saņemšana | G134: 44.58 | H134: 9.36 | I134: 53.94
A135: 602 | B135: 2013.10.22 | C135: 2013.10.22 | D135: PRK1688917 | E135: RĪGAS PIENA KOMBINĀTS AS | F135: saņemšana | G135: 26.38 | H135: 5.54 | I135: 31.92
A136: 603 | B136: 2013.10.22 | C136: 2013.10.22 | D136: FLS475001 | E136: FAZER LATVIJA SIA | F136: saņemšana | G136: 6.8 | H136: 1.43 | I136: 8.23
A137: 604 | B137: 2013.10.22 | C137: 2013.10.22 | D137: STAB242973 | E137: SANITEX BALTIC DISTRIBUTION SIA | F137: saņemšana | G137: 46.5 | H137: 9.77 | I137: 56.27
A138: 605 | B138: 2013.10.22 | C138: 2013.10.22 | D138: SBAA341859 | E138: SANITEX BALTIC DISTRIBUTION SIA | F138: saņemšana | G138: 4.55 | H138: 0.96 | I138: =SUM(G138+H138) -> 5.51
A139: 606 | B139: 2013.10.22 | C139: 2013.10.22 | D139: ALP 161378 | E139: ALLFRESH PLUS SIA | F139: saņemšana | G139: 32.89 | H139: 6.91 | I139: 39.8
A140: 607 | B140: 2013.10.22 | C140: 2013.10.22 | D140: MR13 01594 | E140: MILTINUKO RECEPTAS UAB | F140: saņemšana | G140: 31.2 | H140: 0 | I140: 31.2
A141: 608 | B141: 2013.10.23 | C141: 2013.10.23 | D141: AAR622596 | E141: LIETAS MD SIA | F141: saņemšana | G141: 26.69 | H141: 5.6 | I141: 32.29
A142: 609 | B142: 2013.10.23 | C142: 2013.10.23 | D142: VLAT13/67393 | E142: VIČIŪNAI-LAT SIA | F142: saņemšana | G142: 81.07 | H142: 17.02 | I142: 98.09
A143: 610 | B143: 2013.10.23 | C143: 2013.10.23 | D143: VLAT13/67435 | E143: VIČIŪNAI-LAT SIA | F143: saņemšana | G143: 75.62 | H143: 15.88 | I143: 91.5
A144: 611 | B144: 2013.10.24 | C144: 2013.10.24 | D144: RPK1691411 | E144: RĪGAS PIENA KOMBINĀTS AS | F144: saņemšana | G144: 59.23 | H144: 12.44 | I144: 71.67
A145: 612 | B145: 2013.10.24 | C145: 2013.10.24 | D145: ALP 161534 | E145: ALLFRESH PLUS SIA | F145: saņemšana | G145: 25.54 | H145: 5.36 | I145: 30.9
A146: 613 | B146: 2013.10.24 | C146: 2013.10.24 | D146: AAR622998 | E146: LIETAS MD SIA | F146: saņemšana | G146: 15.94 | H146: 3.35 | I146: 19.29
A147: 614 | B147: 2013.10.24 | C147: 2013.10.24 | D147: KDA 586491 | E147: KONIG DISTRIBUTION SIA | F147: saņemšana | G147: 11.6 | H147: 2.44 | I147: 14.04
A148: 615 | B148: 2013.10.24 | C148: 2013.10.24 | D148: KDA 586490 | E148: KONIG DISTRIBUTION SIA | F148: saņemšana | G148: 13.19 | H148: 2.77 | I148: 15.96
A149: 616 | B149: 2013.10.24 | C149: 2013.10.24 | D149: EU13241844 | E149: EUGESTA un partneri SIA | F149: vienreireji trauki | G149: 0 | H149: 0 | I149: 0
A150: 617 | B150: 2013.10.24 | C150: 2013.10.24 | D150: EU13242344 | E150: EUGESTA un partneri SIA | F150: saņemšana | G150: 150.81 | H150: 31.67 | I150: 182.48
A151: 618 | B151: 2013.10.24 | C151: 2013.10.24 | D151: LV3RE0072253 | E151: REATON LTD | F151: saņemšana | G151: 40.21 | H151: 8.44 | I151: 48.65
A152: 619 | B152: 2013.10.24 | C152: 2013.10.24 | D152: MES NR 3633 | E152: MAŽEIKIU MESIŅE UAB | F152: saņemšana | G152: 208.12 | H152: 0 | I152: 208.12
A153: 620 | B153: 2013.10.24 | C153: 2013.10.24 | D153: BID 025803 | E153: NOWACO LATVIA SIA | F153: saņemšana | G153: 39.18 | H153: 8.23 | I153: 47.41
A154: 621 | B154: 2013.10.24 | C154: 2013.10.24 | D154: VNK000091350 | E154: VAINEKTA UAB | F154: saņemšana | G154: 81.69 | H154: 0 | I154: 81.69
A155: 622 | B155: 2013.10.24 | C155: 2013.10.24 | D155: GEMO0735847 | E155: GEMOSS SIA | F155: saņemšana | G155: 22.47 | H155: 4.72 | I155: 27.19
A156: 623 | B156: 2013.10.24 | C156: 2013.10.24 | D156: GEMO0735532 | E156: GEMOSS SIA | F156: saņemšana | G156: 14.59 | H156: 3.06 | I156: 17.65
A157: 624 | B157: 2013.10.24 | C157: 2013.10.24 | D157: DOR 0038333 | E157: DORENA UAB | F157: saņemšana | G157: 93.4 | H157: 0 | I157: 93.4
A158: 625 | B158: 2013.10.24 | C158: 2013.10.21 | D158: VRG13 1058 | E158: SIA "VICI RESTAURANTS | F158: pārvietošana | G158: 1.1 | H158: 0 | I158: 1.1
A159: 626 | B159: 2013.10.24 | C159: 2013.10.24 | D159: LEIP 13101697 | E159: LIEPURIN SIA | F159: saņemšana | G159: 15.1 | H159: 3.17 | I159: 18.27
A160: 627 | B160: 2013.10.25 | C160: 2013.10.25 | D160: MES 3642 | E160: MAŽEIKIU MESIŅE UAB | F160: saņemšana | G160: 121.65 | H160: 0 | I160: 121.65
A161: 628 | B161: 2013.10.25 | C161: 2013.10.25 | D161: 2213158491 | E161: CIDO GRUPA SIA | F161: saņemšana | G161: 141.2 | H161: 29.65 | I161: 170.85
A162: 629 | B162: 2013.10.25 | C162: 2013.10.25 | D162: SP 352957 | E162: SPILVA | F162: saņemšana | G162: 44.95 | H162: 9.44 | I162: 54.39
A163: 630 | B163: 2013.10.25 | C163: 2013.10.25 | D163: SDAA 058846 | E163: SANITEX BALTIC DISTRIBUTION SIA | F163: saņemšana | G163: 0.74 | H163: 0.16 | I163: 0.9
A164: 631 | B164: 2013.10.25 | C164: 2013.10.25 | D164: 3100172988 | E164: COCA-COLA HBC LATVIA SIA | F164: atgriešana | G164: -41.69 | H164: -8.75 | I164: -50.44
A165: 632 | B165: 2013.10.25 | C165: 2013.10.25 | D165: 3100172984 | E165: COCA-COLA HBC LATVIA SIA | F165: saņemšana | G165: 190.46 | H165: 40 | I165: 230.46
A166: 633 | B166: 2013.10.25 | C166: 2013.10.25 | D166: STAB 247554 | E166: SANITEX BALTIC DISTRIBUTION SIA | F166: saņemšana | G166: 27.83 | H166: 5.84 | I166: 33.67
A167: 634 | B167: 2013.10.25 | C167: 2013.10.25 | D167: VLAT13/68152 | E167: VIČIŪNAI-LAT SIA | F167: saņemšana | G167: 83.27 | H167: 17.49 | I167: 100.76
A168: 635 | B168: 2013.10.25 | C168: 2013.10.25 | D168: VLAT13/68041 | E168: VIČIŪNAI-LAT SIA | F168: saņemšana | G168: 331.92 | H168: 69.7 | I168: 401.62
A169: 636 | B169: 2013.10.25 | C169: 2013.10.25 | D169: AAR 623607 | E169: LIETAS MD SIA | F169: saņemšana | G169: 20.97 | H169: 4.4 | I169: 25.37
A170: 637 | B170: 2013.10.26 | C170: 2013.10.26 | D170: ALP 161656 | E170: ALLFRESH PLUS SIA | F170: saņemšana | G170: 69.65 | H170: 14.63 | I170: 84.28
A171: 638 | B171: 2013.10.26 | C171: 2013.10.26 | D171: AAR 624319 | E171: LIETAS MD SIA | F171: saņemšana | G171: 75.95 | H171: 15.95 | I171: 91.9
A172: 639 | B172: 2013.10.26 | C172: 2013.10.26 | D172: AAR 624272 | E172: LIETAS MD SIA | F172: saņemšana | G172: 40.39 | H172: 8.48 | I172: 48.87
A173: 640 | B173: 2013.10.26 | C173: 2013.10.26 | D173: FLS 479470 | E173: FAZER LATVIJA SIA | F173: saņemšana | G173: 12.04 | H173: 2.53 | I173: 14.57
A174: 641 | B174: 2013.10.26 | C174: 2013.10.26 | D174: RPK 1694281 | E174: RĪGAS PIENA KOMBINĀTS AS | F174: saņemšana | G174: 40.24 | H174: 8.45 | I174: 48.69
A175: 642 | B175: 2013.10.27 | C175: 2013.10.27 | D175: CEKS 366074 | E175: RIMI LATVIA SIA | F175: saņemšana | G175: 1.73 | H175: 0.36 | I175: 2.09
A176: 643 | B176: 2013.10.27 | C176: 2013.10.21 | D176: CEKS 260649 | E176: RIMI LATVIA SIA | F176: saņemšana | G176: 5.8 | H176: 1.22 | I176: 7.02
A177: 644 | B177: 2013.10.27 | C177: 2013.10.27 | D177: CEKS 366229 | E177: RIMI LATVIA SIA | F177: saņemšana | G177: 1.25 | H177: 0.26 | I177: 1.51
A178: 645 | B178: 2013.10.28 | C178: 2013.10.28 | D178: AAR624959 | E178: LIETAS MD SIA | F178: saņemšana | G178: 17.48 | H178: 3.67 | I178: 21.15
A179: 646 | B179: 2013.10.15 | C179: 2013.10.15 | D179: 235677 | E179: anulēts (dubulta ievade) | F179: saņemšana
A180: 647 | B180: 2013.10.18 | C180: 2013.10.18 | D180: 259379 | E180: anulēts (dubulta ievade) | F180: saņemšana
A181: 648 | B181: 2013.10.20 | C181: 2013.10.20 | D181: 265490 | E181: anulēts (dubulta ievade) | F181: saņemšana
A182: 649 | B182: 2013.10.20 | C182: 2013.10.20 | D182: 237777 | E182: anulēts (dubulta ievade) | F182: saņemšana
A183: 650 | B183: 2013.10.21 | C183: 2013.10.21 | D183: 260649 | E183: anulēts (dubulta ievade) | F183: saņemšana
A184: 651 | B184: 2013.10.27 | C184: 2013.10.27 | D184: 366229 | E184: anulēts (dubulta ievade) | F184: saņemšana
A185: 652 | B185: 2013.10.27 | C185: 2013.10.27 | D185: 366074 | E185: anulēts (dubulta ievade) | F185: saņemšana
A186: 653 | B186: 2013.10.29 | C186: 2013.10.29 | D186: CEKS 191140 | E186: RIMI LATVIA SIA | F186: saņemšana | G186: 2.08 | H186: 0.44 | I186: 2.52
A187: 654 | B187: 2013.10.28 | C187: 2013.10.28 | D187: GEMO 737219 | E187: GEMOSS SIA | F187: saņemšana | G187: 12.94 | H187: 2.72 | I187: 15.66
A188: 655 | B188: 2013.10.29 | C188: 2013.10.29 | D188: AVD 908003 | E188: SIA SPI Distribution | F188: saņemšana | G188: 27.72 | H188: 5.82 | I188: 33.54
A189: 657 | B189: 2013.10.29 | C189: 2013.10.29 | D189: RPK 1697177 | E189: RĪGAS PIENA KOMBINĀTS AS | F189: saņemšana | G189: 36.53 | H189: 7.67 | I189: 44.2
A190: 658 | B190: 2013.10.29 | C190: 2013.10.29 | D190: SBAA 347550 | E190: SANITEX BALTIC DISTRIBUTION SIA | F190: saņemšana | G190: 18.77 | H190: 3.94 | I190: 22.71
A191: 659 | B191: 2013.10.29 | C191: 2013.10.29 | D191: STAB 2050266 | E191: SANITEX BALTIC DISTRIBUTION SIA | F191: saņemšana | G191: 57.65 | H191: 12.11 | I191: 69.76
A192: 660 | B192: 2013.10.29 | C192: 2013.10.29 | D192: RE 0073239 | E192: REATON LTD | F192: saņemšana | G192: 27.52 | H192: 5.78 | I192: 33.3
A193: 661 | B193: 2013.10.29 | C193: 2013.1029 | D193: SER132291 | E193: SERVAALI LATVIA SIA | F193: saņemšana | G193: 72 | H193: 15.12 | I193: 87.12
A194: 662 | B194: 2013.10.29 | C194: 2013.10.29 | D194: VRG130089 | E194: SIA "VICI RESTAURANTS | F194: pārvietošana | G194: 6.84 | H194: 0 | I194: 6.84
A195: 663 | B195: 2013.10.29 | C195: 2013.10.29 | D195: LIV-13-PR-74665 | E195: LIVIKO SIA | F195: saņemšana | G195: 26.69 | H195: 5.6 | I195: 32.29
A196: 664 | B196: 2013.10.30 | C196: 2013-10-30 | D196: VRG | E196: SIA "VICI RESTAURANTS | F196: pārvietošana | G196: 4.44 | H196: 0 | I196: 4.44
A197: 665 | B197: 2013-10-30 | C197: 2013-10-30 | D197: MES3656 | E197: MAŽEIKIU MESIŅE UAB | F197: saņemšana | G197: 64.78 | H197: 0 | I197: 64.78
A198: 666 | B198: 2013-10-30 | C198: 2013-10-30 | D198: VLAT13/69215 | E198: VIČIŪNAI-LAT SIA | F198: saņemšana | G198: 248.74 | H198: 52.24 | I198: 300.98
A199: 667 | B199: 2013-10-30 | C199: 2013-10-30 | D199: VLAT13/69186 | E199: VIČIŪNAI-LAT SIA | F199: saņemšana | G199: 52.55 | H199: 11.04 | I199: 63.59
A200: 668 | B200: 2013-10-30 | C200: 2013-10-30 | D200: AAR626297 | E200: LIETAS MD SIA | F200: saņemšana | G200: 12.79 | H200: 2.69 | I200: 15.48
A201: 669 | B201: 2013-10-31 | C201: 2013-10-31 | D201: 2213160976 | E201: CIDO GRUPA SIA | F201: saņemšana | G201: 44.16 | H201: 9.27 | I201: 53.43
... 11 more rows

Sheet SAIMNIECIBA NOVEMBRIS2013 (hidden)
A1: Nr.p.k. | B1: Datums | C1: PVZ | E1: PIEGĀDĀTĀJS | F1: Darījuma apraksts (piegāde, iegāde, izsniegšana, saņemšana, pārvietošana) | G1: PVZ norādītā preču kopējā vērtība | H1: PVN summa | I1: Summa ar PVN
C2: datums | D2: numurs | G2: (bez PVN) | H2: (ja tāda ir)
A3: S1 | B3: 2013.11.04 | C3: 2013.11.04 | D3: BPS119177 | E3: BALTPAPIRS | F3: saņemšana | G3: 129.1 | H3: 26.39 | I3: =SUM(G3+H3) -> 155.49
A4: S2 | B4: 2013.11.05 | C4: 2013.11.05 | D4: VRG130094 | E4: SKUNU 19 | F4: pārvietošana | G4: 36.97 | H4: 0 | I4: =SUM(G4+H4) -> 36.97
A5: S3 | B5: 2013.11.04 | C5: 2013.11.04 | D5: GEMO740042 | E5: GEMOSS | F5: saņemšana | G5: 7.17 | H5: 1.51 | I5: 8.68 | J5: SUMMA
A6: S4 | B6: 2013.11.11 | C6: 2013.11.11 | D6: ULTRA131121 | E6: ULTRA SERVISS SIA | F6: saņemšana | G6: 9.96 | H6: 2.09 | I6: 12.05
A7: S5 | B7: 2013.11.08 | C7: 2013.11.08 | D7: ULTRA131116 | E7: ULTRA SERVISS SIA | F7: saņemšana | G7: 17.02 | H7: 3.57 | I7: 20.59 | L7: atgriešana
A8: S6 | B8: 2013.11.11 | C8: 2013.11.11 | D8: BPS119281 | E8: BALTPAPIRS | F8: saņemšana | G8: 28.47 | H8: 5.98 | I8: 34.45 | L8: izsniegšana
A9: S7 | B9: 2013.11.11 | C9: 2013.11.11 | D9: VRG131070 | E9: SKUNU 19 | F9: pārvietošana | G9: 79.31 | I9: 79.31 | L9: pārvietošana
A10: S8 | B10: 2013.11.09 | C10: 2013.11.09 | D10: GEMO745937 | E10: GEMOSS | F10: saņemšana | G10: 4.32 | H10: 0.91 | I10: 5.23 | L10: saņemšana
A11: S9 | B11: 2013.11.11 | C11: 2013.11.10 | D11: BPS119429 | E11: BALTPAPIRS | F11: saņemšana | G11: 36.96 | H11: 7.76 | I11: 44.72
A12: S10 | B12: 2013.11.29 | C12: 2013.11.29 | D12: GEMO 750035 | E12: GEMOSS | F12: saņemšana | G12: 1.25 | H12: 0.26 | I12: 1.51
A13: S11 | B13: 2013.11.29 | C13: 2013.11.29 | D13: TS 022392 | E13: TEHNOINFORM SERVISS SIA | F13: saņemšana | G13: 17.54 | H13: 3.68 | I13: 21.22
A14: S12 | B14: 2013.11.29 | C14: 2013.11.29 | D14: VRG13 3031 | E14: SIA "VICI RESTAURANTS | F14: saņemšana | G14: -1.27 | H14: 0 | I14: -1.27
A15: S13 | B15: 2013.11.06 | C15: 2013.11.06 | D15: 19919 | E15: CENU KLUBS | F15: saņemšana | G15: 2.48 | H15: 0.52 | I15: 3
A16: S14 | B16: 2013.11.19 | C16: 2013.11.19 | D16: 4275 | E16: JANIS ROZE | F16: saņemšana | G16: 1.6 | H16: 0.34 | I16: 1.94
A17: S15 | B17: 2013.11.13 | C17: 2013.11.13 | D17: 15202 | E17: DROGAS SIA | F17: saņemšana | G17: 1.23 | H17: 0.26 | I17: 1.49
A18: S16 | B18: 2013.11.07 | C18: 2013.11.07 | D18: 2901996 | E18: DROGAS SIA | F18: saņemšana | G18: 1.68 | H18: 0.35 | I18: 2.03
A19: S17 | B19: 2013.11.11 | C19: 2013.11.11 | D19: 2732000 | E19: DROGAS SIA | F19: saņemšana | G19: 1.15 | H19: 0.24 | I19: 1.39
A20: S18 | B20: 2013.11.01 | C20: 2013.11.01 | D20: 271990 | E20: DROGAS SIA | F20: saņemšana | G20: 5.02 | H20: 1.06 | I20: 6.08
A21: S19 | B21: 2013.11.04 | C21: 2013.11.04 | D21: 1331993 | E21: DROGAS SIA | F21: saņemšana | G21: 1.65 | H21: 0.35 | I21: 2
A22: S20 | B22: 2013.11.05 | C22: 2013.11.05 | D22: 1424 | E22: JANIS ROZE | F22: saņemšana | G22: 9.88 | H22: 2.07 | I22: 11.95
A23: S21 | B23: 2013.11.03 | C23: 2013.11.03 | D23: 709431 | E23: DEPO SIA | F23: saņemšana | G23: 4.37 | H23: 0.92 | I23: 5.29
A24: S22 | B24: 2013.11.20 | C24: 2013.11.20 | D24: 421773 | E24: CENU KLUBS | F24: saņemšana | G24: 2.88 | H24: 0.6 | I24: 3.48
A25: S23 | B25: 2013.11.28 | C25: 2013.11.28 | D25: 372017 | E25: DROGAS SIA | F25: saņemšana | G25: 2.98 | H25: 0.62 | I25: 3.6
A26: S66 | F26: saņemšana | I26: 0
A27: S67 | F27: saņemšana | I27: 0
A28: S68 | F28: saņemšana | I28: 0
A29: S69 | F29: saņemšana | I29: 0
A30: S70 | F30: saņemšana | I30: 0
A31: S71 | F31: saņemšana | I31: 0

Sheet 11.2013 (hidden)
B1: Datums | C1: PVZ | E1: PIEGĀDĀTĀJS | F1: Darījuma apraksts (piegāde, iegāde, izsniegšana, saņemšana, pārvietošana) | G1: PVZ norādītā preču kopējā vērtība | H1: PVN summa | I1: Summa ar PVN
C2: datums | D2: numurs | G2: (bez PVN) | H2: (ja tāda ir)
A3: 677 | B3: 2013.11.03 | C3: 2013.11.01 | D3: AAR627627 | E3: LIETAS MD SIA | F3: saņemšana | G3: 52.06 | H3: 10.93 | I3: =SUM(G3+H3) -> 62.99
A4: 678 | B4: 2013.10.05 | C4: 2013.11.01 | D4: VLAT13/69791 | E4: VIČIŪNAI-LAT SIA | F4: saņemšana | G4: 113.28 | H4: 23.79 | I4: 137.07
A5: 679 | B5: 2013.10.08 | C5: 2013.11.01 | D5: 2213161839 | E5: CIDO GRUPA SIA | F5: saņemšana | G5: 111.34 | H5: 23.38 | I5: 134.72 | M5: PICU KASTES
A6: 680 | B6: 2013.10.11 | C6: 2013.11.01 | D6: IBV13-031559 | E6: INTERBALTIJA AG | F6: saņemšana | G6: 23.66 | H6: 4.97 | I6: 28.63 | M6: atgriešana
A7: 681 | B7: 2013.10.11 | C7: 2013.11.01 | D7: STAB255323 | E7: SANITEX SIA | F7: saņemšana | G7: 27.5 | H7: 5.78 | I7: 33.28 | M7: izsniegšana
A8: 682 | B8: 2013.10.15 | C8: 2013.11.01 | D8: VRG131065 | F8: pārvietošana | G8: 14.14 | I8: 14.14 | M8: pārvietošana
A9: 683 | B9: 2013.10.18 | C9: 2013.11.01 | D9: ALP162027 | E9: ALLFRESH PLUS SIA | F9: saņemšana | G9: 24.27 | H9: 5.1 | I9: 29.37 | M9: saņemšana
A10: 684 | B10: 2013.10.22 | C10: 2013.11.01 | D10: FLS485392 | E10: FAZER LATVIJA SIA | F10: saņemšana | G10: 12.51 | H10: 2.63 | I10: 15.14 | M10: vienreireji trauki
A11: 685 | B11: 2013.10.24 | C11: 2013.11.01 | D11: VLAT13/69569 | E11: VIČIŪNAI-LAT SIA | F11: saņemšana | G11: 26.9 | H11: 5.65 | I11: 32.55 | M11: GEMOSS SIA
A12: 686 | B12: 2013.10.26 | C12: 2013.11.02 | D12: AAR628132 | E12: LIETAS MD SIA | F12: saņemšana | G12: 46.31 | H12: 9.73 | I12: 56.04 | M12: ALLFRESH PLUS SIA
A13: 687 | B13: 2013.10.08 | C13: 2013.11.02 | D13: ALP162064 | E13: ALLFRESH PLUS SIA | F13: saņemšana | G13: 49.06 | H13: 10.3 | I13: 59.36 | M13: AS KONIG DISTRIBUTION
A14: 688 | B14: 2013.10.08 | C14: 2013.11.03 | D14: AAR628259 | E14: LIETAS MD SIA | F14: saņemšana | G14: 26.6 | H14: 5.59 | I14: 32.19 | M14: BARGI SIA
A15: 689 | B15: 2013.10.11 | C15: 2013.11.04 | D15: RPK1704308 | E15: RĪGAS PIENA KOMBINĀTS AS | F15: saņemšana | G15: 37.84 | H15: 7.95 | I15: 45.79 | M15: BARGI SIA
A16: 690 | B16: 2013.10.11 | C16: 2013.11.04 | D16: RPK1703861 | E16: RĪGAS PIENA KOMBINĀTS AS | F16: saņemšana | G16: 32.63 | H16: 6.85 | I16: 39.48 | M16: CIDO GRUPA SIA
A17: 691 | B17: 2013.10.11 | C17: 2013.11.04 | D17: ALP162092 | E17: ALLFRESH PLUS SIA | F17: saņemšana | G17: 32.58 | H17: 6.84 | I17: 39.42 | M17: CIDO GRUPA SIA
A18: 692 | B18: 2013.10.18 | C18: 2013.11.04 | D18: AAR6287734 | E18: LIETAS MD SIA | F18: saņemšana | G18: 18.15 | H18: 3.81 | I18: =SUM(G18+H18) -> 21.96 | M18: COCA-COLA HBC LATVIA SIA
A19: 693 | B19: 2013.10.18 | C19: 2013.11.04 | D19: BID026278 | E19: NOWACO LATVIA SIA | F19: saņemšana | G19: 25.33 | H19: 5.32 | I19: 30.65 | M19: COCA-COLA HBC LATVIA SIA
A20: 694 | B20: 2013.10.11 | C20: 2013.11.04 | D20: VRG1003 | F20: pārvietošana | G20: 3.2 | H20: 0 | I20: 3.2 | M20: EUGESTA UN PARTNERI SIA
A21: 695 | B21: 2013.10.11 | C21: 2013.11.04 | D21: GEMO740045 | E21: GEMOSS SIA | F21: saņemšana | G21: 10.88 | H21: 2.28 | I21: 13.16 | M21: EUGESTA UN PARTNERI SIA
A22: 696 | B22: 2013.10.11 | C22: 2013.11.04 | D22: LIV-13-PR-75982 | E22: LIVIKO SIA | F22: saņemšana | G22: 2.37 | H22: 11.86 | I22: 14.23 | M22: FAZER LATVIJA SIA
A23: 697 | B23: 2013.10.11 | C23: 2013.11.04 | D23: VRG1003 | F23: pārvietošana | G23: 2.37 | H23: 0 | I23: 2.37 | M23: FAZER LATVIJA SIA
A24: 698 | B24: 2013.10.11 | C24: 2013.11.05 | D24: ALP162236 | E24: ALLFRESH PLUS SIA | F24: saņemšana | G24: 16.03 | H24: 3.37 | I24: 19.4 | M24: FJB LATVIA SIA
A25: 699 | B25: 2013.10.15 | C25: 2013.11.05 | D25: AAR629193 | E25: LIETAS MD SIA | F25: saņemšana | G25: 37.02 | H25: 7.77 | I25: 44.79 | M25: FJB LATVIA SIA
A26: 700 | B26: 2013.10.16 | C26: 2013.11.05 | D26: FLS489285 | E26: FAZER LATVIJA SIA | F26: saņemšana | G26: 6.52 | H26: 1.37 | I26: 7.89 | M26: INTERBALTIJA AG A/S
A27: 701 | B27: 2013.10.18 | C27: 2013.11.06 | D27: AAR630117 | E27: LIETAS MD SIA | F27: saņemšana | G27: 16.68 | H27: 0 | I27: 0 | M27: INTERBALTIJA AG A/S
A28: 702 | B28: 2013.10.25 | C28: 2013.11.06 | D28: VLAT13/70519 | E28: VIČIŪNAI-LAT SIA | F28: saņemšana | G28: 79.54 | H28: 16.7 | I28: 96.24 | M28: LIEPURIN SIA
A29: 703 | B29: 2013.10.04 | C29: 2013.11.06 | D29: VLAT13/70715 | E29: VIČIŪNAI-LAT SIA | F29: saņemšana | G29: 37.75 | H29: 7.93 | I29: 45.68 | M29: LIEPURIN SIA
A30: 704 | B30: 2013.10.04 | C30: 2013.11.06 | D30: MES3676 | E30: MAŽEIKIU MESIŅE | F30: saņemšana | G30: 89.75 | H30: 0 | I30: 89.75 | M30: LIETAS MD SIA
A31: 705 | B31: 2013.10.11 | C31: 2013.11.06 | D31: 2213163682 | E31: CIDO GRUPA SIA | F31: saņemšana | G31: 50.46 | H31: 10.6 | I31: 61.06 | M31: LIETAS MD SIA
A32: 706 | B32: 2013.10.11 | C32: 2013.11.06 | D32: RPK1707739 | E32: RĪGAS PIENA KOMBINĀTS AS | F32: saņemšana | G32: 30.38 | H32: 6.38 | I32: 36.76 | M32: MAŽEIKIU MESIŅE
A33: 707 | B33: 2013.10.11 | C33: 2013.11.06 | D33: 3100178596 | E33: COCA-COLA HBC LATVIA SIA | F33: saņemšana | G33: 47.62 | H33: 10 | I33: 57.62 | M33: MILTINUKO RECEPTAS UAB
A34: 708 | B34: 2013.10.16 | C34: 2013.11.06 | D34: BAR005369 | E34: BARGI SIA | F34: saņemšana | G34: 20.35 | H34: 4.27 | I34: 24.62 | M34: MILTINUKO RECEPTAS UAB
A35: 709 | B35: 2013.10.16 | C35: 2013.11.07 | D35: ALP162353 | E35: ALLFRESH PLUS SIA | F35: saņemšana | G35: 34.64 | H35: 7.27 | I35: 41.91 | M35: NOWACO LATVIA SIA
A36: 710 | B36: 2013.10.21 | C36: 2013.11.07 | D36: SBAA355586 | E36: SANITEX SIA | F36: saņemšana | G36: 2.73 | H36: 0.57 | I36: 3.3 | M36: REATON, LTD
A37: 711 | B37: 2013.10.25 | C37: 2013.11.07 | D37: STAB260248 | E37: SANITEX SIA | F37: saņemšana | G37: 27.25 | H37: 5.72 | I37: 32.97 | M37: REATON, LTD
A38: 712 | B38: 2013.10.25 | C38: 2013.11.07 | D38: VRG130094 | E38: SKUNU VIRTUVE | F38: pārvietošana | G38: 7.26 | H38: 0 | I38: 7.26 | M38: RIMI LATVIA SIA
A39: 713 | B39: 2013.10.24 | C39: 2013.11.07 | D39: RPK1709424 | E39: RĪGAS PIENA KOMBINĀTS AS | F39: saņemšana | G39: 33.96 | H39: 7.13 | I39: 41.09 | M39: RIMI LATVIA SIA
A40: 714 | B40: 2013.10.24 | C40: 2013.11.07 | D40: VLAT13/70842 | E40: VIČIŪNAI-LAT SIA | F40: saņemšana | G40: 10.5 | H40: 2.21 | I40: 12.71 | M40: RĪGAS PIENA KOMBINĀTS AS
A41: 715 | B41: 2013.10.24 | C41: 2013.11.07 | D41: KDA597790 | E41: AS KONIG DISTRIBUTION | F41: saņemšana | G41: 34.98 | H41: 7.35 | I41: 42.33 | M41: RĪGAS PIENA KOMBINĀTS AS
A42: 716 | B42: 2013.10.05 | C42: 2013.11.07 | D42: AAR630561 | E42: LIETAS MD SIA | F42: saņemšana | G42: 52.71 | H42: 11.07 | I42: 63.78 | M42: SANITEX BALTIC DISTRIBUTION SIA
A43: 717 | B43: 2013.10.11 | C43: 2013.11.07 | D43: VNK000091809 | E43: VAINEKTA UAB | F43: saņemšana | G43: 112.19 | H43: 0 | I43: 112.19 | M43: SANITEX BALTIC DISTRIBUTION SIA
A44: 718 | B44: 2013.10.11 | C44: 2013.11.07 | D44: LV3RE0075572 | E44: REATON, LTD | F44: saņemšana | G44: 20.6 | H44: 4.33 | I44: 24.93 | M44: SERVAALI LATVIA SIA
A45: 719 | B45: 2013.10.11 | C45: 2013.11.07 | D45: SBAA355587 | E45: SANITEX SIA | F45: saņemšana | G45: 4.04 | H45: 0.85 | I45: 4.89 | M45: SERVAALI LATVIA SIA
A46: 720 | B46: 2013.10.15 | C46: 2013.11.08 | D46: VLAT13/71087 | E46: VIČIŪNAI-LAT SIA | F46: saņemšana | G46: 69.09 | H46: 14.51 | I46: 83.6 | M46: SPI DISTRIBUTION SIA
A47: 721 | B47: 2013.10.18 | C47: 2013.11.08 | D47: VLAT13/71141 | E47: VIČIŪNAI-LAT SIA | F47: saņemšana | G47: 62.85 | H47: 13.2 | I47: 76.05 | M47: SPILVA SIA
A48: 722 | B48: 2013.10.22 | C48: 2013.11.08 | D48: FLS492616 | E48: FAZER LATVIJA SIA | F48: saņemšana | G48: 11.53 | H48: 2.42 | I48: 13.95 | M48: SPILVA SIA
A49: 723 | B49: 2013.10.26 | C49: 2013.11.08 | D49: SBAA356477 | E49: SANITEX SIA | F49: saņemšana | G49: 8.55 | H49: 1.8 | I49: 10.35 | M49: VAINEKTA UAB
A50: 724 | B50: 2013.10.02 | C50: 2013.11.08 | D50: VLAT13/71153 | E50: VIČIŪNAI-LAT SIA | F50: saņemšana | G50: 15.84 | H50: 3.33 | I50: 19.17 | M50: VAINEKTA UAB
A51: 725 | B51: 2013.10.15 | C51: 2013.11.08 | D51: ALP162434 | E51: ALLFRESH PLUS SIA | F51: saņemšana | G51: 28.86 | H51: 6.06 | I51: 34.92 | M51: VIČIŪNAI-LAT SIA
A52: 726 | B52: 2013.10.15 | C52: 2013.11.08 | D52: MES3683 | E52: MAŽEIKIU MESIŅE | F52: saņemšana | G52: 104.13 | H52: 0 | I52: 104.13 | M52: VIČIŪNAI-LAT SIA
A53: 727 | B53: 2013.10.24 | C53: 2013.11.08 | D53: AAR631512 | E53: LIETAS MD SIA | F53: saņemšana | G53: 47.92 | H53: 10.06 | I53: 57.98
A54: 728 | B54: 2013.10.24 | C54: 2013.11.08 | D54: 2213165084 | E54: CIDO GRUPA SIA | F54: saņemšana | G54: 41.4 | H54: 8.69 | I54: 50.09
A55: 729 | B55: 2013.10.11 | C55: 2013.11.09 | D55: VRG130097 | E55: SKUNU BARS | F55: pārvietošana | G55: 20.32 | H55: 0 | I55: 20.32
A56: 730 | B56: 2013.10.24 | C56: 2013.11.09 | D56: VRG130098 | E56: SKUNU VIRTUVE | F56: pārvietošana | G56: 22.8 | H56: 0 | I56: 22.8
A57: 731 | B57: 2013.10.24 | C57: 2013.11.09 | D57: RPK1712413 | E57: RĪGAS PIENA KOMBINĀTS AS | F57: saņemšana | G57: 50.94 | H57: 10.7 | I57: 61.64
A58: 732 | B58: 2013.10.24 | C58: 2013.11.09 | D58: AAR631983 | E58: LIETAS MD SIA | F58: saņemšana | G58: 57.89 | H58: 12.16 | I58: 70.05
A59: 733 | B59: 2013.10.02 | C59: 2013.11.09 | D59: ALP162487 | E59: ALLFRESH PLUS SIA | F59: saņemšana | G59: 26.24 | H59: 5.51 | I59: 31.75
A60: 734 | B60: 2013.10.03 | C60: 2013.11.11 | D60: LIV-13-PR-77835 | E60: LIVIKO SIA | F60: saņemšana | G60: 92.34 | H60: 19.39 | I60: 111.73
A61: 735 | B61: 2013.10.04 | C61: 2013.11.11 | D61: IBV13-032454 | E61: INTERBALTIJA AG | F61: saņemšana | G61: 12.16 | H61: 2.55 | I61: 14.71
A62: 736 | B62: 2013.10.07 | C62: 2013.11.11 | D62: IBV13-032455 | E62: INTERBALTIJA AG | F62: saņemšana | G62: 13.9 | H62: 2.92 | I62: 16.82
A63: 737 | B63: 2013.10.08 | C63: 2013.11.12 | D63: AAR632965 | E63: LIETAS MD SIA | F63: saņemšana | G63: 31.08 | H63: 6.53 | I63: 37.61
A64: 738 | B64: 2013.10.08 | C64: 2013.11.12 | D64: AAR632762 | E64: LIETAS MD SIA | F64: saņemšana | G64: 24.78 | H64: 5.2 | I64: 29.98
A65: 739 | B65: 2013.10.11 | C65: 2013.11.12 | D65: RPK1715898 | E65: RĪGAS PIENA KOMBINĀTS AS | F65: saņemšana | G65: 51.9 | H65: 10.9 | I65: 62.8
A66: 740 | B66: 2013.10.11 | C66: 2013.11.12 | D66: 2213166396 | E66: CIDO GRUPA SIA | F66: saņemšana | G66: 270.52 | H66: 56.81 | I66: 327.33
A67: 741 | B67: 2013.10.12 | C67: 2013.11.12 | D67: SBAA358962 | E67: SANITEX SIA | F67: saņemšana | G67: 14.08 | H67: 2.96 | I67: 17.04
A68: 742 | B68: 2013.10.15 | C68: 2013.11.12 | D68: STAB264570 | E68: SANITEX SIA | F68: saņemšana | G68: 21.27 | H68: 4.47 | I68: 25.74
A69: 743 | B69: 2013.10.15 | C69: 2013.11.12 | D69: RPK1715726 | E69: RĪGAS PIENA KOMBINĀTS AS | F69: saņemšana | G69: 21.35 | H69: 4.48 | I69: 25.83
A70: 744 | B70: 2013.10.16 | C70: 2013.11.12 | D70: ALP162677 | E70: ALLFRESH PLUS SIA | F70: saņemšana | G70: 34.45 | H70: 7.23 | I70: 41.68
A71: 745 | B71: 2013.10.17 | C71: 2013.11.12 | D71: SER132381 | E71: SERVAALI LATVIA SIA | F71: saņemšana | G71: 55.2 | H71: 11.59 | I71: 66.79
A72: 746 | B72: 2013.10.18 | C72: 2013.11.13 | D72: 3100182703 | E72: COCA-COLA HBC LATVIA SIA | F72: saņemšana | G72: 66.65 | H72: 14 | I72: 80.65
A73: 747 | B73: 2013.10.19 | C73: 2013.11.13 | D73: MES3696 | E73: MAŽEIKIU MESIŅE | F73: saņemšana | G73: 81.81 | H73: 0 | I73: 81.81
A74: 748 | B74: 2013.10.21 | C74: 2013.11.13 | D74: AAR634009 | E74: LIETAS MD SIA | F74: saņemšana | G74: 35.15 | H74: 7.38 | I74: 42.53
A75: 749 | B75: 2013.10.23 | C75: 2013.11.13 | D75: SBAA359974 | E75: SANITEX SIA | F75: saņemšana | G75: 6.11 | H75: 1.28 | I75: 7.39
A76: 750 | B76: 2013.10.24 | C76: 2013.11.13 | D76: FLS497480 | E76: FAZER LATVIJA SIA | F76: saņemšana | G76: 8.71 | H76: 1.83 | I76: 10.54
A77: 751 | B77: 2013.10.25 | C77: 2013.11.13 | D77: VLAT/1372373 | E77: VIČIŪNAI-LAT SIA | F77: saņemšana | G77: 22.08 | H77: 4.64 | I77: 26.72
A78: 752 | B78: 2013.10.26 | C78: 2013.11.13 | D78: VLAT13/72372 | E78: VIČIŪNAI-LAT SIA | F78: saņemšana | G78: 134.92 | H78: 28.33 | I78: 163.25
A79: 753 | B79: 2013.10.26 | C79: 2013.11.13 | D79: VLAT13/72275 | E79: VIČIŪNAI-LAT SIA | F79: saņemšana | G79: 74.35 | H79: 15.61 | I79: 89.96
A80: 754 | B80: 2013.10.11 | C80: 2013.11.13 | D80: SP357276 | E80: SPILVA SIA | F80: saņemšana | G80: 46.5 | H80: 9.77 | I80: 56.27
A81: 755 | B81: 2013.10.02 | C81: 2013.11.13 | D81: HP105963 | E81: HENKEL CO BALTC SIA | F81: saņemšana | G81: 19.76 | H81: 4.15 | I81: 23.91
A82: 756 | B82: 2013.10.04 | C82: 2013.11.14 | D82: ALP162789 | E82: ALLFRESH PLUS SIA | F82: saņemšana | G82: 18.31 | H82: 3.85 | I82: =SUM(G82+H82) -> 22.16
A83: 757 | B83: 2013.10.11 | C83: 2013.11.15 | D83: 3100184808 | E83: COCA-COLA HBC LATVIA SIA | F83: saņemšana | G83: 142.84 | H83: 30 | I83: 172.84
A84: 758 | B84: 2013.10.11 | C84: 2013.11.15 | D84: STAB269176 | E84: SANITEX SIA | F84: saņemšana | G84: 32.86 | H84: 6.9 | I84: 39.76
A85: 759 | B85: 2013.10.16 | C85: 2013.11.17 | D85: SBAA362536 | E85: SANITEX SIA | F85: saņemšana | G85: 4.99 | H85: 1.05 | I85: 6.04
A86: 760 | B86: 2013.10.18 | C86: 2013.11.18 | D86: MES3701 | E86: MAŽEIKIU MESIŅE | F86: saņemšana | G86: 141.78 | H86: 0 | I86: 141.78
A87: 761 | B87: 2013.10.24 | C87: 2013.11.19 | D87: VNK000092034 | E87: VAINEKTA UAB | F87: saņemšana | G87: 43.05 | H87: 0 | I87: 43.05
A88: 762 | B88: 2013.10.25 | C88: 2013.11.15 | D88: RPK1720926 | E88: RĪGAS PIENA KOMBINĀTS AS | F88: saņemšana | G88: 38.93 | H88: 8.18 | I88: 47.11
A89: 763 | B89: 2013.10.22 | C89: 2013.11.15 | D89: VLAT13/73127 | E89: VIČIŪNAI-LAT SIA | F89: saņemšana | G89: 151.38 | H89: 31.79 | I89: 183.17
A90: 764 | B90: 2013.10.11 | C90: 2013.11.15 | D90: VLAT13/73120 | E90: VIČIŪNAI-LAT SIA | F90: saņemšana | G90: 13.44 | H90: 2.82 | I90: 16.26
A91: 765 | B91: 2013.10.24 | C91: 2013.11.15 | D91: VLAT13/72862 | E91: VIČIŪNAI-LAT SIA | F91: saņemšana | G91: 7.5 | H91: 1.58 | I91: 9.08
A92: 766 | B92: 2013.10.08 | C92: 2013.11.15 | D92: VLAT13/72854 | E92: VIČIŪNAI-LAT SIA | F92: saņemšana | G92: 19.2 | H92: 4.03 | I92: 23.23
A93: 767 | B93: 2013.10.18 | C93: 2013.11.15 | D93: AAR635255 | E93: LIETAS MD SIA | F93: saņemšana | G93: 42.4 | H93: 8.9 | I93: 51.3
A94: 768 | B94: 2013.10.24 | C94: 2013.11.15 | D94: GEMO744759 | E94: GEMOSS SIA | F94: saņemšana | G94: 22 | H94: 4.62 | I94: 26.62
A95: 769 | B95: 2013.10.11 | C95: 2013.11.16 | D95: AAR635754 | E95: LIETAS MD SIA | F95: saņemšana | G95: 76.21 | H95: 16 | I95: 92.21
A96: 770 | B96: 2013.10.11 | C96: 2013.11.18 | D96: ALP162976 | E96: ALLFRESH PLUS SIA | F96: saņemšana | G96: 48.8 | H96: 10.25 | I96: 59.05
A97: 771 | B97: 2013.10.11 | C97: 2013.11.18 | D97: RPK1723601 | E97: RĪGAS PIENA KOMBINĀTS AS | F97: saņemšana | G97: 37.13 | H97: 7.8 | I97: 44.93
A98: 772 | B98: 2013.10.15 | C98: 2013.11.18 | D98: RPK1723463 | E98: RĪGAS PIENA KOMBINĀTS AS | F98: saņemšana | G98: 10.06 | H98: 2.11 | I98: 12.17
A99: 773 | B99: 2013.10.18 | C99: 2013.11.19 | D99: 2213169571 | E99: CIDO GRUPA SIA | F99: saņemšana | G99: 165.65 | H99: 34.79 | I99: 200.44
A100: 774 | B100: 2013.10.18 | C100: 2013.11.19 | D100: FLS503444 | E100: FAZER LATVIJA SIA | F100: saņemšana | G100: 7.97 | H100: 1.67 | I100: 9.64
A101: 775 | B101: 2013.10.22 | C101: 2013.11.19 | D101: AAR636935 | E101: LIETAS MD SIA | F101: saņemšana | G101: 24.58 | H101: 5.16 | I101: 29.74
A102: 776 | B102: 2013.10.22 | C102: 2013.11.20 | D102: RPK1726481 | E102: RĪGAS PIENA KOMBINĀTS AS | F102: saņemšana | G102: 27.95 | H102: 5.87 | I102: 33.82
A103: 777 | B103: 2013.10.24 | C103: 2013.11.21 | D103: VNK000092302 | E103: VAINEKTA UAB | F103: saņemšana | G103: 124.58 | H103: 0 | I103: 124.58
A104: 778 | B104: 2013.10.26 | C104: 2013.11.21 | D104: SER132447 | E104: SERVAALI LATVIA SIA | F104: saņemšana | G104: 38.4 | H104: 8.06 | I104: 46.46
A105: 779 | B105: 2013.10.05 | C105: 2013.11.21 | D105: KDA599496 | E105: AS KONIG DISTRIBUTION | F105: saņemšana | G105: 11.7 | H105: 2.46 | I105: 14.16
A106: 780 | B106: 2013.10.05 | C106: 2013.11.21 | D106: KDA599495 | E106: AS KONIG DISTRIBUTION | F106: saņemšana | G106: 6.53 | H106: 1.37 | I106: 7.9
A107: 781 | B107: 2013.10.05 | C107: 2013.11.21 | D107: VLAT13/74234 | E107: VIČIŪNAI-LAT SIA | F107: saņemšana | G107: 47.45 | H107: 9.96 | I107: 57.41
A108: 782 | B108: 2013.10.05 | C108: 2013.11.21 | D108: VLAT13/74313 | E108: VIČIŪNAI-LAT SIA | F108: saņemšana | G108: 178.88 | H108: 37.56 | I108: 216.44
A109: 783 | B109: 2013.10.06 | C109: 2013.11.21 | D109: IBV13-033411 | E109: INTERBALTIJA AG | F109: saņemšana | G109: 47.32 | H109: 9.94 | I109: 57.26
A110: 784 | B110: 2013.10.06 | C110: 2013.11.20 | D110: BAR005428 | E110: BARGI SIA | F110: saņemšana | G110: 12.09 | H110: 2.54 | I110: 14.63
A111: 785 | B111: 2013.10.06 | C111: 2013.11.20 | D111: AVD923911 | E111: SPI DISTRIBUTION SIA | F111: saņemšana | G111: 11.45 | H111: 2.4 | I111: 13.85
A112: 786 | B112: 2013.10.07 | C112: 2013.11.20 | D112: 3100185920 | E112: COCA-COLA HBC LATVIA SIA | F112: saņemšana | G112: 75.8 | H112: 15.92 | I112: 91.72
A113: 787 | B113: 2013.10.15 | C113: 2013.11.20 | D113: RPK1726352 | E113: RĪGAS PIENA KOMBINĀTS AS | F113: saņemšana | G113: 11.29 | H113: 2.37 | I113: 13.66
A114: 788 | B114: 2013.10.15 | C114: 2013.11.20 | D114: STAB272218 | E114: SANITEX SIA | F114: saņemšana | G114: 10.21 | H114: 2.14 | I114: 12.35
A115: 789 | B115: 2013.10.15 | C115: 2013.11.20 | D115: AAR637770 | E115: LIETAS MD SIA | F115: saņemšana | G115: 15.67 | H115: 3.29 | I115: 18.96
A116: 790 | B116: 2013.10.15 | C116: 2013.11.20 | D116: LIV-13-PR-79824 | E116: LIVIKO SIA | F116: saņemšana | G116: 27.9 | H116: 5.86 | I116: 33.76
A117: 791 | B117: 2013.10.15 | C117: 2013.11.19 | D117: GEMO745935 | E117: GEMOSS SIA | F117: saņemšana | G117: 13.93 | H117: 2.93 | I117: 16.86
A118: 792 | B118: 2013.10.15 | C118: 2013.11.21 | D118: HP106055 | E118: HENKEL CO BALTC SIA | F118: saņemšana | G118: 26.11 | H118: 5.48 | I118: 31.59
A119: 793 | B119: 2013.10.15 | C119: 2013.11.22 | D119: AAR638971 | E119: LIETAS MD SIA | F119: saņemšana | G119: 37.82 | H119: 7.94 | I119: 45.76
A120: 794 | B120: 2013.10.15 | C120: 2013.11.22 | D120: ALP163228 | E120: ALLFRESH PLUS SIA | F120: saņemšana | G120: 16.45 | H120: 3.45 | I120: 19.9
A121: 795 | B121: 2013.10.15 | C121: 2013.11.22 | D121: STAB276711 | E121: SANITEX SIA | F121: saņemšana | G121: 18.77 | H121: 3.94 | I121: 22.71
A122: 796 | B122: 2013.10.18 | C122: 2013.11.22 | D122: VLAT13/74562 | E122: VIČIŪNAI-LAT SIA | F122: saņemšana | G122: 40.6 | H122: 8.53 | I122: 49.13
A123: 797 | B123: 2013.10.20 | C123: 2013.10.22 | D123: VLAT13/74578 | E123: VIČIŪNAI-LAT SIA | F123: saņemšana | G123: 9.3 | H123: 1.95 | I123: 11.25
A124: 798 | B124: 2013.10.20 | C124: 2013.10.20 | D124: MES3715 | E124: MAŽEIKIU MESIŅE | F124: saņemšana | G124: 57.02 | H124: 0 | I124: 57.02
A125: 799 | B125: 2013.11.27 | C125: 2013.10.27 | D125: 2213173618 | E125: CIDO GRUPA SIA | F125: saņemšana | G125: 86.72 | H125: 18.21 | I125: =SUM(G125+H125) -> 104.93
A126: 800 | B126: 2013.11.27 | C126: 2013.10.27 | D126: AVD 929363 | E126: SPI DISTRIBUTION SIA | F126: saņemšana | G126: 15.8 | H126: 3.32 | I126: =SUM(G126+H126) -> 19.12
A127: 801 | B127: 2013.11.27 | C127: 2013.10.27 | D127: MES 3732 | E127: MAŽEIKIU MESIŅE | F127: saņemšana | G127: 97 | H127: 0 | I127: 97
A128: 802 | B128: 2013.11.27 | C128: 2013.10.27 | D128: BID 027541 | E128: NOWACO LATVIA SIA | F128: saņemšana | G128: 21.47 | H128: 4.51 | I128: 25.98
A129: 803 | B129: 2013.11.27 | C129: 2013.10.27 | D129: LIV13PR 82055 | E129: LIVIKO SIA | F129: saņemšana | G129: 38.79 | H129: 8.15 | I129: 46.94
A130: 804 | B130: 2013.11.27 | C130: 2013.10.27 | D130: VLAT13/75535 | E130: VIČIŪNAI-LAT SIA | F130: saņemšana | G130: 170 | H130: 35.7 | I130: 205.7
A131: 805 | B131: 2013.11.27 | C131: 2013.10.27 | D131: VLAT13/75515 | E131: VIČIŪNAI-LAT SIA | F131: saņemšana | G131: 51.31 | H131: 10.78 | I131: 62.09
A132: 806 | B132: 2013.11.27 | C132: 2013.10.27 | D132: GEMO 748771 | E132: GEMOSS SIA | F132: saņemšana | G132: 4.68 | H132: 0.98 | I132: 5.66
A133: 807 | B133: 2013.11.27 | C133: 2013.10.27 | D133: GEMO 748770 | E133: GEMOSS SIA | F133: saņemšana | G133: 27.7 | H133: 5.82 | I133: 33.52
A134: 808 | B134: 2013.11.27 | C134: 2013.10.27 | D134: STAB 281006 | E134: SANITEX SIA | F134: saņemšana | G134: 34.31 | H134: 7.21 | I134: 41.52
A135: 809 | B135: 2013.11.27 | C135: 2013.10.26 | D135: VRG13 1080 | E135: SIA "VICI RESTAURANTS | F135: pārvietošana | G135: 6.25 | H135: 0 | I135: 6.25
A136: 810 | B136: 2013.11.27 | C136: 2013.10.26 | D136: ALP 163480 | E136: ALLFRESH PLUS SIA | F136: saņemšana | G136: 23.43 | H136: 4.92 | I136: 28.35
A137: 811 | B137: 2013.11.27 | C137: 2013.10.26 | D137: FLS 10447 | E137: FAZER LATVIJA SIA | F137: saņemšana | G137: 11.62 | H137: 2.44 | I137: 14.06
A138: 812 | B138: 2013.11.27 | C138: 2013.10.26 | D138: AAR 640985 | E138: LIETAS MD SIA | F138: saņemšana | G138: 16.89 | H138: 3.55 | I138: 20.44
A139: 813 | B139: 2013.11.27 | C139: 2013.10.26 | D139: RPK 1744553 | E139: RĪGAS PIENA KOMBINĀTS AS | F139: saņemšana | G139: 52.35 | H139: 10.99 | I139: 63.34
A140: 814 | B140: 2013.11.27 | C140: 2013.10.25 | D140: AAR 640295 | E140: LIETAS MD SIA | F140: saņemšana | G140: 17.55 | H140: 3.69 | I140: 21.24
A141: 815 | B141: 2013.11.27 | C141: 2013.10.23 | D141: ALP 163307 | E141: ALLFRESH PLUS SIA | F141: saņemšana | G141: 23.59 | H141: 4.95 | I141: 28.54
A142: 816 | B142: 2013.11.27 | C142: 2013.10.23 | D142: FLS 507658 | E142: FAZER LATVIJA SIA | F142: saņemšana | G142: 5.29 | H142: 1.11 | I142: 6.4
A143: 817 | B143: 2013.11.27 | C143: 2013.10.23 | D143: AAR 639588 | E143: LIETAS MD SIA | F143: saņemšana | G143: 59.07 | H143: 12.4 | I143: 71.47
A144: 818 | B144: 2013.11.27 | C144: 2013.10.23 | D144: RPK 1731048 | E144: LIETAS MD SIA | F144: saņemšana | G144: 16.32 | H144: 3.43 | I144: 19.75
A145: 819 | B145: 2013.11.27 | C145: 2013.10.23 | D145: RPK 1731161 | E145: RĪGAS PIENA KOMBINĀTS AS | F145: saņemšana | G145: 53.24 | H145: 11.18 | I145: 64.42
A146: 820 | B146: 2013.11.27 | C146: 2013.11.18 | D146: VRG13 0102 | E146: SIA "VICI RESTAURANTS | F146: pārvietošana | G146: 30.32 | H146: 0 | I146: 30.32
A147: 821 | B147: 2013.11.27 | C147: 2013.11.22 | D147: VRG13 1079 | E147: SIA "VICI RESTAURANTS | F147: pārvietošana | G147: 4.49 | H147: 0 | I147: 4.49
A148: 822 | B148: 2013.11.27 | C148: 2013.11.18 | D148: VRG13 3026 | E148: SIA "VICI RESTAURANTS | F148: izsniegšana | G148: -25.75 | H148: 0 | I148: -25.75
A149: 823 | B149: 2013.11.27 | C149: 2013.11.15 | D149: MES 3701 | E149: MAŽEIKIU MESIŅE | F149: saņemšana | G149: 141.78 | H149: 0 | I149: 141.78
A150: 824 | B150: 2013.11.27 | C150: 2013.11.27 | D150: VRG13 3030 | E150: SIA "VICI RESTAURANTS | F150: izsniegšana | G150: -5.75 | H150: 0 | I150: -5.75
A151: 825 | B151: 2013.11.28 | C151: 2013.11.28 | D151: VRG13 0105 | E151: SIA "VICI RESTAURANTS | F151: pārvietošana | G151: 19.6 | H151: 0 | I151: 19.6
A152: 826 | B152: 2013.11.28 | C152: 2013.11.28 | D152: ALP 163609 | E152: ALLFRESH PLUS SIA | F152: saņemšana | G152: 12.4 | H152: 2.6 | I152: 15
A153: 827 | B153: 2013.11.28 | C153: 2013.11.28 | D153: STAB 282455 | E153: SANITEX SIA | F153: saņemšana | G153: 5.48 | H153: 1.15 | I153: 6.63
A154: 828 | B154: 2013.11.28 | C154: 2013.11.28 | D154: KDA 602868 | E154: AS KONIG DISTRIBUTION | F154: saņemšana | G154: 17.6 | H154: 3.7 | I154: 21.3
A155: 829 | B155: 2013.11.28 | C155: 2013.11.28 | D155: AAR 642086 | E155: LIETAS MD SIA | F155: saņemšana | G155: 39.13 | H155: 8.22 | I155: 47.35
A156: 830 | B156: 2013.11.28 | C156: 2013.11.28 | D156: VLAT13/76017 | E156: VIČIŪNAI-LAT SIA | F156: saņemšana | G156: 23.98 | H156: 5.04 | I156: 29.02
A157: 831 | B157: 2013.11.29 | C157: 2013.11.29 | D157: GEMO 750035 | E157: GEMOSS SIA | F157: vienreireji trauki | G157: 11.98 | H157: 2.52 | I157: 14.5
A158: 832 | B158: 2013.11.29 | C158: 2013.11.29 | D158: STAB 284086 | E158: SANITEX SIA | F158: saņemšana | G158: 26.96 | H158: 5.66 | I158: 32.62
A159: 833 | B159: 2013.11.29 | C159: 2013.11.29 | D159: AAR 642686 | E159: LIETAS MD SIA | F159: saņemšana | G159: 51.8 | H159: 10.88 | I159: 62.68
A160: 834 | B160: 2013.11.29 | C160: 2013.11.29 | D160: VLAT13/76342 | E160: VIČIŪNAI-LAT SIA | F160: saņemšana | G160: 6.9 | H160: 1.45 | I160: 8.35
A161: 835 | B161: 2013.11.29 | C161: 2013.11.29 | D161: VLAT13/76336 | E161: VIČIŪNAI-LAT SIA | F161: saņemšana | G161: 34.94 | H161: 7.34 | I161: 42.28
A162: 836 | B162: 2013.11.29 | C162: 2013.11.29 | D162: VNK 000092537 | E162: VAINEKTA UAB | F162: saņemšana | G162: 46.72 | H162: 0 | I162: 46.72
A163: 837 | B163: 2013.11.29 | C163: 2013.11.29 | D163: SP 361594 | E163: SPILVA SIA | F163: saņemšana | G163: 41.26 | H163: 8.66 | I163: 49.92
A164: 838 | B164: 2013.11.29 | C164: 2013.11.29 | D164: ALP 163675 | E164: ALLFRESH PLUS SIA | F164: saņemšana | G164: 18.85 | H164: 3.96 | I164: 22.81
A165: 839 | B165: 2013.11.29 | C165: 2013.11.29 | D165: VLAT13/76323 | E165: VIČIŪNAI-LAT SIA | F165: saņemšana | G165: 12.1 | H165: 2.54 | I165: 14.64
A166: 840 | B166: 2013.11.29 | C166: 2013.11.29 | D166: MES 3739 | E166: MAŽEIKIU MESIŅE | F166: saņemšana | G166: 50.67 | H166: 0 | I166: 50.67
A167: 841 | B167: 2013.11.30 | C167: 2013.11.30 | D167: RPK1750456 | E167: RĪGAS PIENA KOMBINĀTS AS | F167: saņemšana | G167: 61.57 | H167: 12.93 | I167: 74.5
A168: 842 | B168: 2013.11.30 | C168: 2013.11.30 | D168: ALP163782 | E168: ALLFRESH PLUS SIA | F168: saņemšana | G168: 40.65 | H168: 8.54 | I168: 49.19
A169: 843 | B169: 2013.11.30 | C169: 2013.11.30 | D169: AAR643352 | E169: LIETAS MD SIA | F169: saņemšana | G169: 33.47 | H169: 7.03 | I169: 40.5
A170: 844 | B170: 2013.1130 | C170: 2013.11.30 | D170: FLS14741 | E170: FAZER LATVIJA SIA | F170: saņemšana | G170: 9.49 | H170: 1.99 | I170: 11.48
A171: 845 | B171: 2013.11.25 | C171: 2013.11.25 | D171: 3365 | E171: JANIS ROZE | F171: saņemšana | G171: 0.45 | H171: 0.09 | I171: 0.54
A172: 846 | B172: 2013.1128 | C172: 2013.11.28 | D172: 161587 | E172: RIMI Latvia SIA | F172: saņemšana | G172: 1.14 | H172: 0.24 | I172: 1.38
A173: 847 | B173: 2013.1125 | C173: 2013.11.25 | D173: 377750 | E173: RIMI Latvia SIA | F173: saņemšana | G173: 0.77 | H173: 0.16 | I173: 0.93
A174: 848 | B174: 2013.11.25 | C174: 2013.11.25 | D174: 387606 | E174: RIMI Latvia SIA | F174: saņemšana | G174: 1.56 | H174: 0.33 | I174: 1.89
A175: 849 | B175: 2013.11.24 | C175: 2013.11.24 | D175: 275995 | E175: RIMI Latvia SIA | F175: saņemšana | G175: 2.84 | H175: 0.6 | I175: 3.44
A176: 850 | B176: 2013.11.05 | C176: 2013.11.05 | D176: 8049 | E176: ALLFRESH PLUS SIA | F176: saņemšana | G176: 7.44 | H176: 1.56 | I176: =SUM(G176+H176) -> 9
A177: 851 | B177: 2013.11.23 | C177: 2013.11.23 | D177: 22012 | E177: DROGAS SIA | F177: saņemšana | G177: 3.09 | H177: 0.65 | I177: 3.74
A178: 852 | B178: 2013.11.24 | C178: 2013.11.24 | D178: 286183 | E178: RIMI Latvia SIA | F178: saņemšana | G178: 4.67 | H178: 0.98 | I178: 5.65
A179: 853 | B179: 2013.11.08 | C179: 2013.11.08 | D179: 376387 | E179: RIMI Latvia SIA | F179: saņemšana | G179: 4.92 | H179: 1.03 | I179: 5.95
A180: 854 | B180: 2013.11.08 | C180: 2013.11.08 | D180: 376027 | E180: RIMI Latvia SIA | F180: saņemšana | G180: 1.04 | H180: 0.22 | I180: 1.26
A181: 855 | B181: 2013.11.07 | C181: 2013.11.07 | D181: 277271 | E181: RIMI Latvia SIA | F181: saņemšana | G181: 2.26 | H181: 0.48 | I181: 2.74
A182: 856 | B182: 2013.11.06 | C182: 2013.11.06 | D182: 113947 | E182: RIMI Latvia SIA | F182: saņemšana | G182: 1.31 | H182: 0.27 | I182: 1.58
A183: 857 | B183: 2013.11.15 | C183: 2013.11.15 | D183: 236194 | E183: RIMI Latvia SIA | F183: saņemšana | G183: 0.35 | H183: 0.07 | I183: 0.42
A184: 858 | B184: 2013.11.15 | C184: 2013.11.15 | D184: 236195 | E184: RIMI Latvia SIA | F184: saņemšana | G184: 1.36 | H184: 0.28 | I184: 1.64
A185: 859 | B185: 2013.11.17 | C185: 2013.11.17 | D185: 157548 | E185: RIMI Latvia SIA | F185: saņemšana | G185: 3.15 | H185: 0.66 | I185: 3.81
A186: 860 | B186: 2013.11.17 | C186: 2013.11.17 | D186: 238501 | E186: RIMI Latvia SIA | F186: saņemšana | G186: 1.63 | H186: 0.34 | I186: 1.97
A187: 861 | B187: 2013.11.18 | C187: 2013.11.18 | D187: 283326 | E187: RIMI Latvia SIA | F187: saņemšana | G187: 2.26 | H187: 0.47 | I187: 2.73
A188: 862 | B188: 2013.11.16 | C188: 2013.11.16 | D188: 233133 | E188: RIMI Latvia SIA | F188: saņemšana | G188: 4.89 | H188: 1.03 | I188: 5.92
A189: 863 | B189: 2013.11.18 | C189: 2013.11.18 | D189: 1401998 | E189: PALINK SIA | F189: saņemšana | G189: 2.28 | H189: 0.48 | I189: 2.76
A190: 864 | B190: 2013.11.06 | C190: 2013.11.06 | D190: 264325 | E190: RIMI Latvia SIA | F190: saņemšana | G190: 1.34 | H190: 0.28 | I190: 1.62
A191: 865 | B191: 2013.11.04 | C191: 2013.11.04 | D191: 371772 | E191: RIMI Latvia SIA | F191: saņemšana | G191: 0.82 | H191: 0.17 | I191: 0.99
A192: 866 | B192: 2013.11.05 | C192: 2013.11.05 | D192: 276226 | E192: RIMI Latvia SIA | F192: saņemšana | G192: 2.08 | H192: 0.44 | I192: 2.52
A193: 867 | B193: 2013.11.30 | C193: 2013.11.30 | D193: RPK1750388 | E193: RĪGAS PIENA KOMBINĀTS AS | F193: saņemšana | G193: 21.35 | H193: 4.48 | I193: 25.83
A194: 868 | B194: 2013.11.03 | C194: 2013.11.03 | D194: 370889 | E194: RIMI Latvia SIA | F194: saņemšana | G194: 3.61 | H194: 0.76 | I194: 4.37
A195: 869 | B195: 2013.11.02 | C195: 2013.11.02 | D195: 247315 | E195: RIMI Latvia SIA | F195: saņemšana | G195: 6.17 | H195: 1.3 | I195: 7.47
A196: 870 | B196: 2013.11.11 | C196: 2013.11.11 | D196: 193144 | E196: RIMI Latvia SIA | F196: saņemšana | G196: 0.4 | H196: 0.08 | I196: 0.48
A197: 871 | B197: 2013.11.11 | C197: 2013.11.11 | D197: 236603 | E197: RIMI Latvia SIA | F197: saņemšana | G197: 0.86 | H197: 0.18 | I197: 1.04
A198: 872 | B198: 2013.11.10 | C198: 2013.11.10 | D198: 376594 | E198: RIMI Latvia SIA | F198: saņemšana | G198: 2.81 | H198: 0.59 | I198: 3.4
A199: 873 | B199: 2013.11.10 | C199: 2013.11.10 | D199: 377350 | E199: RIMI Latvia SIA | F199: saņemšana | G199: 3.79 | H199: 0.8 | I199: 4.59
A200: 874 | B200: 2013.11.06 | C200: 2013.11.06 | D200: 114081 | E200: RIMI Latvia SIA | F200: saņemšana | G200: 1.56 | H200: 0.33 | I200: 1.89
... 9 more rows

Sheet 0610 (hidden)
A1: Nr. p.k. | B1: Ieraksta datums | C1: Pavadzīmes | E1: Pavadzīmē norādītais darījumu partneris | F1: Darījuma apraksts | G1: Pavadzīmē norādītā preču kopējā vērtība | H1: PVN | I1: Kopējā summa
F2: (piegāde, iegāde, izsniegšana, saņemšana, pārvietošana) | G2: (bez PVN) | H2: summa
C3: izrakstīšanas datums | D3: numurs | H3: (ja tāda ir) | J3: F ailē | K3: skaidrojums
A4: 1 | B4: 2010,06,02 | C4: 2010,06,02 | D4: CCL 057567 | E4: COCA-COLA | F4: atgriešana | G4: 68.22 | H4: =AVERAGE(G4*0.21) -> 14.33 | I4: =SUM(G4+H4) -> 82.55 | J4: saņemšana | K4: no piegadātajiem
A5: 2 | B5: 2010,06,09 | C5: 2010,06,09 | D5: CA 80122028 | E5: CESU ALUS | F5: atgriešana | G5: 0 | H5: 0 | I5: 0 | J5: pārvietošana | K5: no picērijām saņemts
A6: 3 | B6: 2010,06,09 | C6: 2010,06,09 | D6: CA 80122034 | E6: CESU ALUS | F6: atgriešana | G6: 8.4 | H6: 1.76 | I6: 10.16 | J6: atgriešana | K6: piegādātājiem
A7: 4 | B7: 2010,06,16 | C7: 2010,06,16 | D7: CCL 066127 | E7: COCA-COLA | F7: atgriešana | G7: 34.11 | H7: 7.16 | I7: 41.27 | J7: izsniegšana | K7: uz picērijām parvietots
A8: 5 | B8: 2010,06,19 | C8: 2010,06,19 | D8: CA 80133492 | E8: CESU ALUS | F8: atgriešana | G8: 3.6 | H8: 0.76 | I8: 4.36 | J8: picu kastes | K8: Picu kastes
A9: 6 | B9: 2010,06,30 | C9: 2010,06,30 | D9: CA 80138873 | E9: CESU ALUS | F9: atgriešana | G9: 3.6 | H9: 0.76 | I9: 4.36
A10: 7 | B10: 2010,06,30 | C10: 2010,06,30 | D10: ALS 006230 | E10: PIEBALGAS | F10: atgriešana | G10: 6.4 | H10: 1.34 | I10: 7.74
A11: 8 | B11: 2010,06,30 | C11: 2010,06,30 | D11: CCL 073607 | E11: COCA-COLA | F11: atgriešana | G11: 37.9 | H11: 7.96 | I11: 45.86
A12: 9 | G12: =SUM(G4:G11) -> 162.23 | H12: =SUM(H4:H11) -> 34.07 | I12: =SUM(I4:I11) -> 196.3
A13: 10 | B13: 2010,06,02 | C13: 2010,06,02 | D13: EP400099 | E13: KURZEMES EIROPICA | F13: izsniegšana | G13: 6.39 | H13: 1.34 | I13: =SUM(G13+H13) -> 7.73
A14: 11 | B14: 2010,06,04 | C14: 2010,06,04 | D14: EP 400100 | E14: KURZEMES EIROPICA | F14: izsniegšana | G14: 2.44 | H14: =AVERAGE(G14*0.21) -> 0.51 | I14: =SUM(G14+H14) -> 2.95
A15: 12 | B15: 2010,06,09 | C15: 2010,06,09 | D15: EP 400101 | E15: KURZEMES EIROPICA | F15: izsniegšana | G15: 12.31 | H15: =AVERAGE(G15*0.21) -> 2.59 | I15: =SUM(G15+H15) -> 14.9
A16: 13 | B16: 2010,06,18 | C16: 2010,06,18 | D16: EP 400104 | E16: KURZEMES EIROPICA | F16: izsniegšana | G16: 5.78 | H16: 1.21 | I16: 7
A17: 14 | B17: 2010,06,21 | C17: 2010,06,21 | D17: EP 400106 | E17: KURZEMES EIROPICA | F17: izsniegšana | G17: 6.94 | H17: =AVERAGE(G17*0.21) -> 1.46 | I17: =SUM(G17+H17) -> 8.4
A18: 15 | B18: 2010,06,21 | C18: 2010,06,21 | D18: EP 400105 | E18: SLOKAS EIROPICA | F18: izsniegšana | G18: 11.94 | H18: 2.5 | I18: 14.44
A19: 16 | B19: 2010,06,25 | C19: 2010,06,25 | D19: EP 400107 | E19: SLOKAS EIROPICA | F19: izsniegšana | G19: 4.62 | H19: =AVERAGE(G19*0.21) -> 0.97 | I19: 5.59 | K19: store-house | L19: starpība
A20: 17 | B20: 2010,06,25 | C20: 2010,06,25 | D20: EP 400108 | E20: SLOKAS EIROPICA | F20: izsniegšana | G20: 12.83 | H20: 2.7 | I20: 15.53
A21: 18 | B21: 2010,06,30 | C21: 2010,06,30 | D21: EP 400109 | E21: KURZEMES EIROPICA | F21: izsniegšana | G21: 1.65 | H21: =AVERAGE(G21*0.21) -> 0.35 | I21: 2
A22: 19 | B22: 2010,06,30 | C22: 2010,06,30 | D22: EP 400111 | E22: KURZEMES EIROPICA | F22: izsniegšana | G22: 2.07 | H22: =AVERAGE(G22*0.21) -> 0.43 | I22: 2.5
A23: 20 | B23: 2010,06,15 | C23: 2010,06,15 | D23: EP 400102 | E23: KURZEMES EIROPICA | F23: izsniegšana | G23: 4.46 | H23: 0.93 | I23: 5.39
A24: 21 | B24: 2010,06,15 | C24: 2010,06,15 | D24: EP 400103 | E24: SLOKAS EIROPICA | F24: izsniegšana | G24: 0.84 | H24: 0.17 | I24: 1.01
A25: 22 | G25: =SUM(G13:G24) -> 72.27 | H25: =SUM(H13:H24) -> 15.16 | I25: =SUM(I13:I24) -> 87.44 | K25: 72.56 | L25: =SUM(K25-G25) -> 0.29
A26: 23 | B26: 2010,06,04 | C26: 2010,06,04 | D26: EP 500137 | E26: KURZEMES EIROPICA | F26: pārvietošana | G26: 8.78 | H26: =AVERAGE(G26*0.21) -> 1.84 | I26: =SUM(G26+H26) -> 10.62
A27: 24 | B27: 2010,06,08 | C27: 2010,06,08 | D27: EP 300095 | E27: SLOKAS EIROPICA | F27: pārvietošana | G27: 9.84 | H27: =AVERAGE(G27*0.21) -> 2.07 | I27: 11.91
A28: 25 | B28: 2010,06,10 | C28: 2010,06,10 | D28: EP 500138 | E28: KURZEMES EIROPICA | F28: pārvietošana | G28: 20.8 | H28: =AVERAGE(G28*0.21) -> 4.37 | I28: 25.17
A29: 26 | B29: 2010,06,11 | C29: 2010,06,11 | D29: EP 500141 | E29: KURZEMES EIROPICA | F29: pārvietošana | G29: 9.74 | H29: 1.31 | I29: 11.06
A30: 27 | B30: 2010,06,11 | C30: 2010,06,11 | D30: EP 100063 | E30: DEGLAVA EIROPICA | F30: pārvietošana | G30: 2.13 | H30: 0 | I30: 2.13
A31: 28 | B31: 2010,06,14 | C31: 2010,06,14 | D31: EP 300098 | E31: SLOKAS EIROPICA | F31: pārvietošana | G31: 5.14 | H31: 1.07 | I31: 6.21
A32: 29 | B32: 2010,06,15 | C32: 2010,06,15 | D32: EP 500142 | E32: KURZEMES EIROPICA | F32: pārvietošana | G32: 0.73 | H32: 0.16 | I32: 0.87
A33: 30 | B33: 2010,06,16 | C33: 2010,06,16 | D33: EP 500144 | E33: KURZEMES EIROPICA | F33: pārvietošana | G33: 10.7 | H33: =AVERAGE(G33*0.21) -> 2.25 | I33: 12.95
A34: 31 | B34: 2010,06,16 | C34: 2010,06,16 | D34: EP 300102 | E34: SLOKAS EIROPICA | F34: pārvietošana | G34: 17.06 | H34: 3.58 | I34: 20.21
A35: 32 | B35: 2010,06,18 | C35: 2010,06,18 | D35: EP 300105 | E35: SLOKAS EIROPICA | F35: pārvietošana | G35: 3.91 | H35: 0.82 | I35: 4.73
A36: 33 | B36: 2010,06,18 | C36: 2014.0618 | D36: EP 300107 | E36: SLOKAS EIROPICA | F36: pārvietošana | G36: 2.75 | H36: 0.58 | I36: 3.33
A37: 34 | B37: 2010,06,18 | C37: 2015.0618 | D37: EP 300108 | E37: SLOKAS EIROPICA | F37: pārvietošana | G37: 20.7 | H37: 4.35 | I37: 25.05
A38: 35 | B38: 2010,06,21 | C38: 2010,06,21 | D38: EP 500146 | E38: KURZEMES EIROPICA | F38: pārvietošana | G38: 7.62 | H38: 1.6 | I38: 9.22
A39: 36 | B39: 2010,06,22 | C39: 2010,06,22 | D39: EP 500148 | E39: KURZEMES EIROPICA | F39: pārvietošana | G39: 6.7 | H39: 0 | I39: 6.7
A40: 37 | B40: 2010,06,25 | C40: 2010,06,25 | D40: EP 500150 | E40: KURZEMES EIROPICA | F40: pārvietošana | G40: 39.49 | H40: 7.62 | I40: 47.09
A41: 38 | B41: 2010,06,25 | C41: 2010,06,25 | D41: EP 300110 | E41: SLOKAS EIROPICA | F41: pārvietošana | G41: 20.7 | H41: =AVERAGE(G41*0.21) -> 4.35 | I41: 25.05
A42: 39 | B42: 2010,06,25 | C42: 2010,06,25 | D42: EP 300110 | E42: SLOKAS EIROPICA | F42: pārvietošana | G42: 6.13 | H42: =AVERAGE(G42*0.21) -> 1.29 | I42: 7.42
A43: 40 | B43: 2010,06,29 | C43: 2010,06,29 | D43: EP 500154 | E43: KURZEMES EIROPICA | F43: pārvietošana | G43: 6.15 | H43: 0.26 | I43: 7.45
A44: 41 | B44: 2010,06,24 | C44: 2010,06,24 | D44: EP 500149 | E44: KURZEMES EIROPICA | F44: pārvietošana | G44: 13.04 | H44: =AVERAGE(G44*0.21) -> 2.74 | I44: =SUM(G44+H44) -> 15.78
A45: 42 | B45: 2010,06,29 | C45: 2010,06,29 | D45: EP 300115 | E45: SLOKAS EIROPICA | F45: pārvietošana | G45: 5.62 | H45: =AVERAGE(G45*0.21) -> 1.18 | I45: 6.8
A46: 43 | B46: 2010,06,29 | C46: 2010,06,29 | D46: EP 300114 | E46: SLOKAS EIROPICA | F46: pārvietošana | G46: 22.93 | H46: 4.81 | I46: 27.74
A47: 44 | G47: =SUM(G26:G46) -> 240.66 | H47: =SUM(H26:H46) -> 46.25 | I47: =SUM(I26:I46) -> 287.49 | K47: =240.28 -> 240.28 | L47: =SUM(K47-G47) -> -0.38
A48: 45 | B48: 2010,06,01 | C48: 2010,06,01 | D48: RPK 159531 | E48: RPK | F48: saņemšana | G48: 24.73 | H48: =AVERAGE(G48*0.21) -> 5.19 | I48: =SUM(G48+H48) -> 29.92
A49: 46 | B49: 2010,06,01 | C49: 2010,06,01 | D49: GEM 415883 | E49: GEMOSS | F49: saņemšana | H49: 1.12 | I49: 6.45
A50: 47 | B50: 2010,06,01 | C50: 2010,06,01 | D50: FOR 084897 | E50: FOREVERS | F50: saņemšana | G50: 18.01 | H50: 3.78 | I50: 21.79
A51: 48 | B51: 2010,06,01 | C51: 2010,06,01 | D51: FOR 084888 | E51: FOREVERS | F51: saņemšana | G51: 5.93 | H51: 1.25 | I51: 7.18
A52: 49 | B52: 2010,06,01 | C52: 2010,06,01 | D52: CEKS 523570 | E52: MAXIMA | F52: saņemšana | G52: 2.36 | H52: 0.5 | I52: 2.86
A53: 50 | B53: 2010,06,01 | C53: 2010,06,01 | D53: SP 036823 | E53: SPILVA | F53: saņemšana | G53: 22.17 | H53: 4.66 | I53: 26.83
A54: 51 | B54: 2010,06,01 | C54: 2010,06,01 | D54: STAA 105491 | E54: KARSTEN | F54: saņemšana | G54: 10.92 | H54: 2.29 | I54: 13.21
A55: 52 | B55: 2010,06,01 | C55: 2010,06,01 | D55: CEKS 492665 | E55: MAXIMA | F55: saņemšana | G55: 0.98 | H55: 0.2 | I55: 1.18
A56: 53 | B56: 2010,06,01 | C56: 2010,06,01 | D56: CEKS 364582 | E56: MAXIMA | F56: saņemšana | G56: 0.49 | H56: =AVERAGE(G56*0.21) -> 0.1 | I56: =SUM(G56+H56) -> 0.59
A57: 54 | B57: 2010,06,01 | C57: 2010,06,01 | D57: MILRE10,0042 | E57: MULTINUKO | F57: saņemšana | G57: 4.68 | H57: 0 | I57: 4.68
A58: 55 | B58: 2010,06,02 | C58: 2010,06,02 | D58: RPK 160850 | E58: RPK | F58: saņemšana | G58: 18.81 | H58: =AVERAGE(G58*0.21) -> 3.95 | I58: 22.76
A59: 56 | B59: 2010,06,02 | C59: 2010,06,02 | D59: N 013433 | E59: NADLAT | F59: saņemšana | G59: 11.9 | H59: 2.5 | I59: 14.4
A60: 57 | B60: 2010,06,02 | C60: 2010,06,02 | D60: POT 101402 | E60: RODA POT | F60: saņemšana | G60: 3.89 | H60: 0.82 | I60: 4.71
A61: 58 | B61: 2010,06,02 | C61: 2010,06,02 | D61: FOR 085478 | E61: FOREVERS | F61: saņemšana | G61: 12.21 | H61: 2.56 | I61: 14.77
A62: 59 | B62: 2010,06,02 | C62: 2010,06,02 | D62: AAR 030944 | E62: LIETAS MD | F62: saņemšana | G62: 11.05 | H62: 2.32 | I62: 13.37
A63: 60 | B63: 2010,06,02 | C63: 2010,06,02 | D63: CCL 057566 | E63: COCA-COLA | F63: saņemšana | G63: 46.06 | H63: 9.67 | I63: 55.73
A64: 61 | B64: 2010,06,02 | C64: 2010,06,02 | D64: CEKS 364820 | E64: MAXIMA | F64: saņemšana | G64: 0.61 | H64: 0.13 | I64: 0.74
A65: 62 | B65: 2010,06,02 | C65: 2010,06,02 | D65: ALTUS 001383 | E65: ALTUS | F65: saņemšana | G65: 58.51 | H65: 12.29 | I65: 70.8
A66: 63 | B66: 2010,06,03 | C66: 2010,06,03 | D66: TL10 3467 | E66: TRIKATA | F66: saņemšana | G66: 74 | H66: 15.54 | I66: 89.54
A67: 64 | B67: 2010,06,03 | C67: 2010,06,03 | D67: MP 038087 | E67: MOBIL+ | F67: saņemšana | G67: 19.57 | H67: 4.11 | I67: 23.68
A68: 65 | B68: 2010,06,03 | C68: 2010,06,03 | D68: BIO 0009032 | E68: BIOVELA | F68: saņemšana | G68: 26.04 | H68: 5.47 | I68: 31.51
A69: 66 | B69: 2010,06,03 | C69: 2010,06,03 | D69: ALP002006 | E69: ARKON PL | F69: saņemšana | G69: 9.96 | H69: 2.09 | I69: 12.05
A70: 67 | B70: 2010,06,03 | C70: 2010,06,03 | D70: CEKS 360049 | E70: MAXIMA | F70: saņemšana | G70: 0.4 | H70: 0.09 | I70: 0.49
A71: 68 | B71: 2010,06,03 | C71: 2010,06,03 | D71: CEKS 383924 | E71: MAXIMA | F71: saņemšana | G71: 0.54 | H71: =AVERAGE(G71*0.21) -> 0.11 | I71: =SUM(G71+H71) -> 0.65
A72: 69 | B72: 2010,06,04 | C72: 2010,06,04 | D72: POT 101423 | E72: RODA POT | F72: saņemšana | G72: 8.73 | H72: 1.83 | I72: 10.56
A73: 70 | B73: 2010,06,04 | C73: 2010,06,04 | D73: AAR 031543 | E73: LIETAS MD | F73: saņemšana | G73: 20.54 | H73: 4.31 | I73: 24.85
A74: 71 | B74: 2010,06,04 | C74: 2010,06,04 | D74: STAA 108672 | E74: KARSTEN | F74: saņemšana | G74: 14.07 | H74: 2.95 | I74: 17.02
A75: 72 | B75: 2010,06,04 | C75: 2010,06,04 | D75: ALS 005108 | E75: PIEBALGAS | F75: saņemšana | G75: 18.52 | H75: 3.89 | I75: 22.41
A76: 73 | B76: 2010,06,04 | C76: 2010,06,04 | D76: CCL 059207 | E76: COCA-COLA | F76: saņemšana | G76: 45.41 | H76: 9.54 | I76: 54.95
A77: 74 | B77: 2010,06,04 | C77: 2010,06,04 | D77: CEKS 377221 | E77: MAXIMA | F77: saņemšana | G77: 0.77 | H77: 0.16 | I77: 0.93
A78: 75 | B78: 2010,06,04 | C78: 2010,06,04 | D78: OSM 015883 | E78: OSAMA | F78: saņemšana | G78: 36.34 | H78: 7.63 | I78: 43.97
A79: 76 | B79: 2010,06,04 | C79: 2010,06,04 | D79: FML 220031 | E79: FAZER MAIZNICA | F79: saņemšana | G79: 3.75 | H79: 0.79 | I79: 4.54
A80: 77 | B80: 2010,06,05 | C80: 2010,06,05 | D80: BIO 0009152 | E80: BIOVELA | F80: saņemšana | G80: 26.56 | H80: 5.58 | I80: 32.14
A81: 78 | B81: 2010,06,05 | C81: 2010,06,05 | D81: RPK 165282 | E81: RPK | F81: saņemšana | G81: 20.1 | H81: =AVERAGE(G81*0.21) -> 4.22 | I81: =SUM(G81+H81) -> 24.32
A82: 79 | B82: 2010,06,05 | C82: 2010,06,05 | D82: CA 80119631 | E82: CESU ALUS | F82: saņemšana | G82: 38.26 | H82: 8.03 | I82: 46.29
A83: 80 | B83: 2010,06,05 | C83: 2010,06,05 | D83: O3 143070 | E83: VENDEN | F83: saņemšana | G83: 4.22 | H83: 0.89 | I83: 5.11
A84: 81 | B84: 2010,06,05 | C84: 2010,06,05 | D84: RPK 165096 | E84: RPK | F84: saņemšana | G84: 10.17 | H84: 2.14 | I84: 12.31
A85: 82 | B85: 2010,06,05 | C85: 2010,06,05 | D85: SA 1030398 | E85: PREMIA FFL | F85: saņemšana | G85: 20.76 | H85: 4.36 | I85: 25.12
A86: 83 | B86: 2010,06,05 | C86: 2010,06,05 | D86: ALP 002037 | E86: ARKON PL | F86: saņemšana | G86: 10.95 | H86: 2.3 | I86: 13.25
A87: 84 | B87: 2010,06,05 | C87: 2010,06,05 | D87: CEKS 477102 | E87: MAXIMA | F87: saņemšana | G87: 0.56 | H87: 0.12 | I87: 0.68
A88: 85 | B88: 2010,06,06 | C88: 2010,06,06 | D88: CEKS 328280 | E88: MAXIMA | F88: saņemšana | G88: 0.56 | H88: 0.12 | I88: 0.68
A89: 86 | B89: 2010,06,06 | C89: 2010,06,06 | D89: CEKS 366037 | E89: MAXIMA | F89: saņemšana | G89: 0.66 | H89: 0.14 | I89: 0.8
A90: 87 | B90: 2010,06,06 | C90: 2010,06,06 | D90: CEKS 525809 | E90: MAXIMA | F90: saņemšana | G90: 0.65 | H90: 0.14 | I90: 0.79
A91: 88 | B91: 2010,06,07 | C91: 2010,06,07 | D91: AAR 0322184 | E91: LIETAS MD | F91: saņemšana | G91: 11.35 | H91: 2.38 | I91: 13.73
A92: 89 | B92: 2010,06,08 | C92: 2010,06,08 | D92: SBAA 000401 | E92: KARSTEN | F92: saņemšana | G92: 7.32 | H92: 1.54 | I92: 8.86
A93: 90 | B93: 2010,06,08 | C93: 2010,06,08 | D93: BIO 0009295 | E93: BIOVELA | F93: saņemšana | G93: 26.27 | H93: 5.52 | I93: 31.79
A94: 91 | B94: 2010,06,08 | C94: 2010,06,08 | D94: LMP 023340 | E94: MUIZAS PIENS | F94: saņemšana | G94: 29.75 | H94: 6.25 | I94: 36
A95: 92 | B95: 2010,06,08 | C95: 2010,06,08 | D95: FOR 087348 | E95: FOREVERS | F95: saņemšana | G95: 28.38 | H95: 5.96 | I95: 34.34
A96: 93 | B96: 2010,06,08 | C96: 2010,06,08 | D96: RPK 168094 | E96: RPK | F96: saņemšana | G96: 11.2 | H96: 2.35 | I96: 13.55
A97: 94 | B97: 2010,06,08 | C97: 2010,06,08 | D97: ALP 002062 | E97: ARKON PL | F97: saņemšana | G97: 11.7 | H97: 2.46 | I97: 14.16
A98: 95 | B98: 2010,06,08 | C98: 2010,06,08 | D98: FML 223023 | E98: FAZER MAIZNICA | F98: saņemšana | G98: 2.96 | H98: 0.62 | I98: 3.58
A99: 96 | B99: 2010,06,09 | C99: 2010,06,09 | D99: POT 101446 | E99: RODA POT | F99: saņemšana | G99: 5.42 | H99: 1.14 | I99: 6.56
A100: 97 | B100: 2010,06,09 | C100: 2010,06,07 | D100: POT 101492 | E100: RODA POT | F100: saņemšana | G100: 3.31 | H100: 0.7 | I100: 4.01
A101: 98 | B101: 2010,06,09 | C101: 2010,06,09 | D101: CA 80122042 | E101: CESU ALUS | F101: saņemšana | G101: 20.7 | H101: 4.35 | I101: 25.05
A102: 99 | B102: 2010,06,09 | C102: 2010,06,09 | D102: CA 80122054 | E102: CESU ALUS | F102: saņemšana | G102: 6 | H102: 1.26 | I102: 7.26
A103: 100 | B103: 2010,06,09 | C103: 2010,06,09 | D103: CEKS 366872 | E103: MAXIMA | F103: saņemšana | G103: 0.51 | H103: 0.11 | I103: 0.62
A104: 101 | B104: 2010,06,09 | C104: 2010,06,09 | D104: CEKS 543301 | E104: MAXIMA | F104: saņemšana | G104: 1.41 | H104: 0.3 | I104: 1.71
A105: 102 | B105: 2010,06,10 | C105: 2010,06,10 | D105: SP 039381 | E105: SPILVA | F105: saņemšana | G105: 21.48 | H105: 4.51 | I105: 25.99
A106: 103 | B106: 2010,06,10 | C106: 2010,06,10 | D106: ALS 005387 | E106: PIEBALGAS | F106: saņemšana | G106: 30.52 | H106: 6.41 | I106: =SUM(G106+H106) -> 36.93
A107: 104 | B107: 2010,06,10 | C107: 2010,06,10 | D107: AAR 03311 | E107: LIETAS MD | F107: saņemšana | G107: 16.96 | H107: 3.56 | I107: 20.52
A108: 105 | B108: 2010,06,10 | C108: 2010,06,10 | D108: TL10 3686 | E108: TRIKATA | F108: saņemšana | G108: 55.5 | H108: 11.66 | I108: 67.16
A109: 106 | B109: 2010,06,11 | C109: 2010,06,10 | D109: ALP 002088 | E109: ARKON PL | F109: saņemšana | G109: 12.47 | H109: 2.62 | I109: 15.09
A110: 107 | B110: 2010,06,11 | C110: 2010,06,11 | D110: FOR 088556 | E110: FOREVERS | F110: saņemšana | G110: 17.59 | H110: 3.69 | I110: 21.28
A111: 108 | B111: 2010,06,11 | C111: 2010,06,11 | D111: VALDO10 047721 | E111: VOLDEMARS | F111: saņemšana | G111: 10.14 | H111: 2.13 | I111: 12.27
A112: 109 | B112: 2010,06,11 | C112: 2010,06,11 | D112: AAR 109278 | E112: LIETAS MD | F112: saņemšana | G112: 19.51 | H112: 4.1 | I112: 23.61
A113: 110 | B113: 2010,06,11 | C113: 2010,06,11 | D113: STAA 113791 | E113: KARSTEN | F113: saņemšana | G113: 48.14 | H113: 10.11 | I113: 58.25
A114: 111 | B114: 2010,06,11 | C114: 2010,06,11 | D114: STAA 113792 | E114: KARSTEN | F114: saņemšana | G114: 7.51 | H114: =AVERAGE(G114*0.21) -> 1.58 | I114: =SUM(G114+H114) -> 9.09
A115: 112 | B115: 2010,06,11 | C115: 2010,06,11 | D115: VNK 000053069 | E115: VAINEKTA | F115: saņemšana | G115: 40.21 | H115: 0 | I115: 40.21
A116: 113 | B116: 2010,06,11 | C116: 2010,06,11 | D116: TRA10 074062 | E116: TRANSKO | F116: saņemšana | G116: 30.74 | H116: 6.45 | I116: 37.19
A117: 114 | B117: 2010,06,11 | C117: 2010,06,11 | D117: POT 101460 | E117: RODA POT | F117: saņemšana | G117: 5.79 | H117: =AVERAGE(G117*0.21) -> 1.22 | I117: 7.01
A118: 115 | B118: 2010,06,11 | C118: 2010,06,11 | D118: CCL 063428 | E118: COCA-COLA | F118: saņemšana | G118: 44.36 | H118: =AVERAGE(G118*0.21) -> 9.32 | I118: 53.68
A119: 116 | B119: 2010,06,11 | C119: 2010,06,11 | D119: RPK 172271 | E119: RPK | F119: saņemšana | G119: 26.27 | H119: =AVERAGE(G119*0.21) -> 5.52 | I119: 31.79
A120: 117 | B120: 2010,06,11 | C120: 2010,06,11 | D120: TRA10074061 | E120: TRANSKO | F120: saņemšana | G120: 3.92 | H120: =AVERAGE(G120*0.21) -> 0.82 | I120: 4.74
A121: 118 | B121: 2010,06,11 | C121: 2010,06,11 | D121: CEKS 362879 | E121: MAXIMA | F121: saņemšana | G121: 0.59 | H121: 0.13 | I121: 0.72
A122: 119 | B122: 2010,06,11 | C122: 2010,06,11 | D122: CEKS 387128 | E122: MAXIMA | F122: saņemšana | G122: 1.49 | H122: =AVERAGE(G122*0.21) -> 0.31 | I122: 1.8
A123: 120 | B123: 2010,06,12 | C123: 2010,06,12 | D123: FML 224562 | E123: FAZER MAIZNICA | F123: saņemšana | G123: 5.03 | H123: =AVERAGE(G123*0.21) -> 1.06 | I123: 6.09
A124: 121 | B124: 2010,06,13 | C124: 2010,06,13 | D124: CEKS 435696 | E124: MAXIMA | F124: saņemšana | G124: 1.17 | H124: 0.24 | I124: 1.41
A125: 122 | B125: 2010,06,14 | C125: 2010,06,14 | D125: RPK 174782 | E125: RPK | F125: saņemšana | G125: 9.98 | H125: =AVERAGE(G125*0.21) -> 2.1 | I125: 12.08
A126: 123 | B126: 2010,06,14 | C126: 2010,06,14 | D126: AAR 034277 | E126: LIETAS MD | F126: saņemšana | G126: 19.44 | H126: 4.08 | I126: 23.52
A127: 124 | B127: 2010,06,14 | C127: 2010,06,14 | D127: CCL 064056 | E127: COCA-COLA | F127: saņemšana | G127: 36.32 | H127: 7.63 | I127: 43.95
A128: 125 | B128: 2010,06,14 | C128: 2010,06,14 | D128: FOR 101234 | E128: FOREVERS | F128: saņemšana | G128: 15.61 | H128: 3.28 | I128: 18.89
A129: 126 | B129: 2010,06,14 | C129: 2010,06,14 | D129: ALP 002146 | E129: ARKON PL | F129: saņemšana | G129: 17.41 | H129: 3.66 | I129: 21.07
A130: 127 | B130: 2010,06,14 | C130: 2010,06,14 | D130: CEKS 387850 | E130: MAXIMA | F130: saņemšana | G130: 0.32 | H130: 0.07 | I130: 0.39
A131: 128 | B131: 2010,06,14 | C131: 2010,06,14 | D131: POT 10478 | E131: RODA POT | F131: saņemšana | G131: 5.42 | H131: 1.14 | I131: 6.56
A132: 129 | B132: 2010,06,14 | C132: 2010,06,14 | D132: EP 000088 | E132: NOLIKTAVA | F132: picu kastes | G132: 35 | H132: 7.35 | I132: 42.35
A133: 130 | B133: 2010,06,14 | C133: 2010,06,14 | D133: CEKS 380085 | E133: MAXIMA | F133: saņemšana | G133: 0.32 | H133: 0.07 | I133: 0.39
A134: 131 | B134: 2010,06,14 | C134: 2010,06,14 | D134: CEKS 497683 | E134: MAXIMA | F134: saņemšana | G134: 0.96 | H134: 0.2 | I134: 1.16
A135: 132 | B135: 2010,06,15 | C135: 2010,06,15 | D135: CCL 065017 | E135: COCA-COLA | F135: saņemšana | G135: 5.3 | H135: 1.11 | I135: 6.41
A136: 133 | B136: 2010,06,15 | C136: 2010,06,15 | D136: KDA 064123 | E136: KONIG | F136: saņemšana | G136: 32.51 | H136: 6.83 | I136: 39.34
A137: 134 | B137: 2010,06,15 | C137: 2010,06,15 | D137: CEKS 498192 | E137: MAXIMA | F137: saņemšana | G137: 0.32 | H137: 0.07 | I137: 0.39
A138: 135 | B138: 2010,06,15 | C138: 2010,06,15 | D138: LVO 00002958 | E138: BALT-HELLIN | F138: saņemšana | G138: 8.9 | H138: 1.87 | I138: 10.77
A139: 136 | B139: 2010,06,15 | C139: 2010,06,15 | D139: STAA 116050 | E139: KARSTEN | F139: saņemšana | G139: 22.19 | H139: 4.66 | I139: 26.85
A140: 137 | B140: 2010,06,15 | C140: 2010,06,15 | D140: RPK 176230 | E140: RPK | F140: saņemšana | G140: 20.13 | H140: 4.23 | I140: 24.36
A141: 138
A142: 139
A143: 140 | B143: 2010,06,15 | C143: 2010,06,15 | D143: SP 040584 | E143: SPILVA | F143: saņemšana | G143: 19.46 | H143: =AVERAGE(G143*0.21) -> 4.09 | I143: 23.55
A144: 141 | B144: 2010,06,16 | C144: 2010,06,16 | D144: CEKS 326021 | E144: MAXIMA | F144: saņemšana | G144: 0.49 | H144: =AVERAGE(G144*0.21) -> 0.1 | I144: 0.59
A145: 142 | B145: 2010,06,16 | C145: 2010,06,16 | D145: ALP 02180 | E145: ARKON PL | F145: saņemšana | G145: 15.12 | H145: 3.17 | I145: 18.29
A146: 143 | B146: 2010,06,16 | C146: 2010,06,16 | D146: AAR 034909 | E146: LIETAS MD | F146: saņemšana | G146: 24.02 | H146: =AVERAGE(G146*0.21) -> 5.04 | I146: 29.06
A147: 144 | B147: 2010,06,16 | C147: 2010,06,16 | D147: FOR 102129 | E147: FOREVERS | F147: saņemšana | G147: 28.12 | H147: =AVERAGE(G147*0.21) -> 5.91 | I147: =SUM(G147+H147) -> 34.03
A148: 145 | B148: 2010,06,16 | C148: 2010,06,16 | D148: CCL 066128 | E148: COCA-COLA | F148: saņemšana | G148: 36.33 | H148: =AVERAGE(G148*0.21) -> 7.63 | I148: 43.96
A149: 146 | B149: 2010,06,16 | C149: 2010,06,16 | D149: POT 101496 | E149: RODA POT | F149: saņemšana | G149: 1.65 | H149: =AVERAGE(G149*0.21) -> 0.35 | I149: 2
A150: 147 | B150: 2010,06,16 | C150: 2010,06,16 | D150: AVD 089766 | E150: AD@D | F150: saņemšana | G150: 12.73 | H150: =AVERAGE(G150*0.21) -> 2.67 | I150: 15.4
A151: 148 | B151: 2010,06,16 | C151: 2010,06,16 | D151: CEKS 436745 | E151: MAXIMA | F151: saņemšana | G151: 0.6 | H151: 0.12 | I151: 0.72
A152: 149 | B152: 2010,06,17 | C152: 2010,06,17 | D152: RPK 179332 | E152: RPK | F152: saņemšana | G152: 19.38 | H152: =AVERAGE(G152*0.21) -> 4.07 | I152: 23.45
A153: 150 | B153: 2010,06,17 | C153: 2010,06,17 | D153: ALP 002199 | E153: ARKON PL | F153: saņemšana | G153: 11.17 | H153: 2.35 | I153: 13.52
A154: 151 | B154: 2010,06,17 | C154: 2010,06,17 | D154: TL10 03901 | E154: TRIKATA | F154: saņemšana | G154: 74 | H154: 15.54 | I154: 89.54
A155: 152 | B155: 2010,06,17 | C155: 2010,06,17 | D155: ALS 005753 | E155: PIEBALGAS | F155: saņemšana | G155: 37.04 | H155: 7.78 | I155: 44.82
A156: 153 | B156: 2010,06,17 | C156: 2010,06,17 | D156: BIO 00009862 | E156: BIOVELA | F156: saņemšana | G156: 35.91 | H156: 7.54 | I156: 43.45
A157: 154 | B157: 2010,06,18 | C157: 2010,06,18 | D157: VALDO10 0051538 | E157: VOLDEMARS | F157: saņemšana | G157: 17.28 | H157: 3.63 | I157: 20.91
A158: 155 | B158: 2010,06,18 | C158: 2010,06,18 | D158: FOR 102946 | E158: FOREVERS | F158: saņemšana | G158: 3.88 | H158: 0.81 | I158: 4.69
A159: 156 | B159: 2010,06,18 | C159: 2010,06,18 | D159: ALP 002216 | E159: ARKON PL | F159: saņemšana | G159: 6.12 | H159: 1.29 | I159: 7.41
A160: 157 | B160: 2010,06,18 | C160: 2010,06,18 | D160: SA 1033072 | E160: PREMIA FFL | F160: saņemšana | G160: 23.33 | H160: 4.9 | I160: 28.23
A161: 158 | B161: 2010,06,18 | C161: 2010,06,18 | D161: CEKS 389274 | E161: MAXIMA | F161: saņemšana | G161: 0.42 | H161: 0.09 | I161: 0.51
A162: 159 | B162: 2010,06,18 | C162: 2010,06,18 | D162: MILRE10,0045 | E162: MILTINUKO | F162: saņemšana | G162: 4.68 | H162: 0 | I162: 4.68
A163: 160 | B163: 2010,06,18 | C163: 2010,06,18 | D163: FML 231105 | E163: FAZER MAIZNICA | F163: saņemšana | G163: 4.17 | H163: =AVERAGE(G163*0.21) -> 0.88 | I163: 5.05
A164: 161 | B164: 2010,06,18 | C164: 2010.0618 | D164: CEKS 499394 | E164: MAXIMA | F164: saņemšana | G164: 0.43 | H164: 0.09 | I164: 0.52
A165: 162 | B165: 2010,06,18 | C165: 2011.0618 | D165: OSM 017683 | E165: OSAMA | F165: saņemšana | G165: 17.57 | H165: 3.69 | I165: 21.26
A166: 163 | B166: 2010,06,18 | C166: 2012.0618 | D166: OSM 017726 | E166: OSAMA | F166: saņemšana | G166: 10.32 | H166: 2.17 | I166: 12.49
A167: 164 | B167: 2010,06,18 | C167: 2013.0618 | D167: CEKS 37005 | E167: MAXIMA | F167: saņemšana | G167: 1.8 | H167: 0.38 | I167: 2.18
A168: 165 | B168: 2010,06,19 | C168: 2010,06,19 | D168: RPK 182350 | E168: RPR | F168: saņemšana | G168: 7.58 | H168: 1.59 | I168: 9.17
A169: 166 | B169: 2010,06,19 | C169: 2010,06,19 | D169: AAR 035778 | E169: LIETAS MD | F169: saņemšana | G169: 22.17 | H169: 4.66 | I169: 26.83
A170: 167 | B170: 2010,06,19 | C170: 2010,06,19 | D170: POT 101525 | E170: RODA POT | F170: saņemšana | G170: 6.25 | H170: 1.31 | I170: 7.56
A171: 168 | B171: 2010,06,19 | C171: 2010,06,19 | D171: CA 80133501 | E171: CESU ALUS | F171: saņemšana | G171: 15.66 | H171: 3.29 | I171: 18.95
A172: 169 | B172: 2010,06,19 | C172: 2010,06,19 | D172: CEKS 389494 | E172: MAXIMA | F172: saņemšana | G172: 1.13 | H172: 0.24 | I172: 1.37
A173: 170 | B173: 2010,06,20 | C173: 2010,06,20 | D173: CEKS 500166 | E173: MAXIMA | F173: saņemšana | G173: 0.65 | H173: 0.14 | I173: 0.79
A174: 171 | B174: 2010,06,21 | C174: 2010,06,21 | D174: AAR 036120 | E174: LIETAS MD | F174: saņemšana | G174: 17.73 | H174: 3.72 | I174: 21.45
A175: 172 | B175: 2010,06,21 | C175: 2010,06,21 | D175: CCL 069203 | E175: COCA-COLA | F175: saņemšana | G175: 65.27 | H175: 13.71 | I175: 78.98
A176: 173 | B176: 2010,06,21 | C176: 2010,06,21 | D176: POT 101543 | E176: RODA POT | F176: saņemšana | G176: 6.16 | H176: 1.29 | I176: 7.45
A177: 174 | B177: 2010,06,21 | C177: 2010,06,21 | D177: CEKS 374711 | E177: MAXIMA | F177: saņemšana | G177: 0.75 | H177: 0.16 | I177: 0.91
A178: 175 | B178: 2010,06,21 | C178: 2010,06,21 | D178: ALTUS 001559 | E178: ALTUS | F178: saņemšana | G178: 58.51 | H178: 12.29 | I178: 70.8
A179: 176 | B179: 2010,06,21 | C179: 2010,06,21 | D179: ALP 002263 | E179: ARKON PL | F179: saņemšana | G179: 10.95 | H179: 2.3 | I179: 13.25
A180: 177 | B180: 2010,06,21 | C180: 2010,06,21 | D180: OSM 017781 | E180: OSAMA | F180: saņemšana | G180: 55.63 | H180: 11.68 | I180: =SUM(G180+H180) -> 67.31
A181: 178 | B181: 2010,06,22 | C181: 2010,06,22 | D181: MRNO16100 | E181: MARNO | F181: saņemšana | G181: 11.06 | H181: =AVERAGE(G181*0.21) -> 2.32 | I181: 13.38
A182: 179 | B182: 2010,06,22 | C182: 2010,06,22 | D182: MP 043114 | E182: MOBIL+ | F182: saņemšana | G182: 21.4 | H182: =AVERAGE(G182*0.21) -> 4.49 | I182: 25.89
A183: 180 | B183: 2010,06,22 | C183: 2010,06,22 | D183: RPK 185136 | E183: RPK | F183: saņemšana | G183: 32.81 | H183: =AVERAGE(G183*0.21) -> 6.89 | I183: 39.7
A184: 181 | B184: 2010,06,22 | C184: 2010,06,22 | D184: BIO 0010145 | E184: BIOVELA | F184: saņemšana | G184: 21.68 | H184: =AVERAGE(G184*0.21) -> 4.55 | I184: 26.23
A185: 182 | B185: 2010,06,22 | C185: 2010,06,22 | D185: STAA 122277 | E185: KARSTEN | F185: saņemšana | G185: 20.26 | H185: =AVERAGE(G185*0.21) -> 4.25 | I185: 24.51
A186: 183 | B186: 2010,06,22 | C186: 2010,06,22 | D186: CEKS 500748 | E186: MAXIMA | F186: saņemšana | G186: 1.64 | H186: 0.35 | I186: 1.99
A187: 184 | B187: 2010,06,22 | C187: 2010,06,22 | D187: LEU 010103 | E187: LEBENS | F187: saņemšana | G187: 15.84 | H187: 3.33 | I187: 19.17
A188: 185 | B188: 2010,06,22 | C188: 2010,06,22 | D188: FOR 104061 | E188: FOREVERS | F188: saņemšana | G188: 25.9 | H188: =AVERAGE(G188*0.21) -> 5.44 | I188: =SUM(G188+H188) -> 31.34
A189: 186 | B189: 2010,06,22 | C189: 2010,06,22 | D189: TL10 4087 | E189: TRIKATA | F189: saņemšana | G189: 37 | H189: =AVERAGE(G189*0.21) -> 7.77 | I189: 44.77
A190: 187 | B190: 2010,06,22 | C190: 2010,06,22 | D190: CEKS 500825 | E190: MAXIMA | F190: saņemšana | G190: 0.4 | H190: 0.09 | I190: 0.49
A191: 188 | B191: 2010,06,22 | C191: 2010,06,22 | D191: RPK 184874 | E191: RPK | F191: saņemšana | G191: 10.17 | H191: =AVERAGE(G191*0.21) -> 2.14 | I191: 12.31
A192: 189 | B192: 2010,06,22 | C192: 2010,06,22 | D192: SP 042640 | E192: SPILVA | F192: saņemšana | G192: 15.4 | H192: 3.23 | I192: 18.63
A193: 190 | B193: 2010,06,22 | C193: 2010,06,22 | D193: ALP 002286 | E193: ARKON PL | F193: saņemšana | G193: 13.1 | H193: 2.75 | I193: 15.85
A194: 191 | B194: 2010,06,22 | C194: 2010,06,22 | D194: AAR 036786 | E194: LIETAS MD | F194: saņemšana | G194: 25.78 | H194: 5.41 | I194: 31.19
A195: 192 | B195: 2010,06,23 | C195: 2010,06,23 | D195: VLAT 10/1766 | E195: VICUNAI | F195: saņemšana | G195: 23.46 | H195: 4.93 | I195: 28.39
A196: 193 | B196: 2010,06,23 | C196: 2010,06,23 | D196: POT 101555 | E196: RODA POT | F196: saņemšana | G196: 4.22 | H196: 0.89 | I196: 5.11
A197: 194 | B197: 2010,06,23 | C197: 2010,06,23 | D197: CA 80136066 | E197: CESU ALUS | F197: saņemšana | G197: 31.2 | H197: 6.55 | I197: 37.75
A198: 195 | B198: 2010,06,23 | C198: 2010,06,23 | D198: LMP 025680 | E198: MUIZAS PIENS | F198: saņemšana | G198: 24.08 | H198: 5.06 | I198: 29.14
A199: 196 | B199: 2010,06,23 | C199: 2010,06,23 | D199: FML 235038 | E199: FAZER MAIZNICA | F199: saņemšana | G199: 3.32 | H199: 0.7 | I199: 4.02
A200: 197 | B200: 2010,06,24 | C200: 2010,06,24 | D200: CEKS 346060 | E200: MAXIMA | F200: saņemšana | G200: 2.94 | H200: 0.62 | I200: 3.56
... 86 more rows

Sheet 07.2013. (hidden)
A1: SIA `VICI RESTAURANTS`
A2: Reģ.nr. 40103369245
C3: Preču kustības reģistrācijas žurnāls 22.07.2013. - 31.07.2013. struktūrvienībai CHARLIE PIZZA Lielirbes iela 29
A5: Nr.p.k. | B5: Datums | C5: PVZ | E5: PIEGĀDĀTĀJS | F5: Darījuma apraksts (piegāde, iegāde, izsniegšana, saņemšana, pārvietošana) | G5: PVZ norādītā preču kopējā vērtība | H5: PVN summa | I5: Summa ar PVN
C6: datums | D6: numurs | G6: (bez PVN) | H6: (ja tāda ir)
A7: 1 | B7: 2013.07.24 | C7: 2013.07.24 | D7: VRG 13 1045 | E7: SIA "VICI RESTAURANTS | F7: pārvietošana | G7: 56.04 | H7: 0 | I7: 54.15
A8: 2 | B8: 2013.07.22 | C8: 2013.07.22 | D8: MES3372 | E8: MAŽEIKIU MESIŅE | F8: saņemšana | G8: 158.05 | H8: 0 | I8: =SUM(G8+H8) -> 158.05
A9: 3 | B9: 2013.07.22 | C9: 2013.07.22 | D9: AVD830585 | E9: SPI DISTRIBUTION SIA | F9: saņemšana | G9: 9.76 | H9: 2.05 | I9: 11.81
A10: 4 | B10: 2013.07.22 | C10: 2013.07.22 | D10: ALP155280 | E10: ALLFRESH PLUS SIA | F10: saņemšana | G10: 39.54 | H10: 8.3 | I10: 47.84
A11: 5 | B11: 2013.07.22 | C11: 2013.07.22 | D11: BID020838 | E11: NOWACO LATVIA SIA | F11: saņemšana | G11: 35.16 | H11: 7.38 | I11: 42.54
A12: 6 | B12: 2013.07.22 | C12: 2013.07.22 | D12: AAR569117 | E12: LIETAS MD SIA | F12: saņemšana | G12: 145.05 | H12: 30.46 | I12: 175.51
A13: 7 | B13: 2013.07.22 | C13: 2013.07.22 | D13: LIV-13-PR-49231 | E13: LIVIKO SIA | F13: saņemšana | G13: 506.26 | H13: 106.31 | I13: 612.57
A14: 8 | B14: 2013.07.22 | C14: 2013.07.22 | D14: AVD830587 | E14: SPI DISTRIBUTION SIA | F14: saņemšana | G14: 37.74 | H14: 7.93 | I14: 45.67
A15: 9 | B15: 2013.07.22 | C15: 2013.07.22 | D15: GEMO435219 | E15: GEMOSS SIA | F15: saņemšana | G15: 28.49 | H15: 5.98 | I15: 34.47
A16: 10 | B16: 2013.07.22 | C16: 2013.07.22 | D16: GEMO435135 | E16: GEMOSS SIA | F16: saņemšana | G16: 50.4 | H16: 10.58 | I16: 60.98
A17: 11 | B17: 2013.07.22 | C17: 2013.07.22 | D17: FLS380310 | E17: FAZER LATVIJA SIA | F17: saņemšana | G17: 18.47 | H17: 3.88 | I17: 22.35
A18: 12 | B18: 2013.07.22 | C18: 2013.07.22 | D18: KDA541313 | E18: KONIG DISTRIBUTION AS | F18: saņemšana | G18: 16.22 | H18: 3.41 | I18: 19.63
A19: 13 | B19: 2013.07.22 | C19: 2013.07.22 | D19: KDA541310 | E19: KONIG DISTRIBUTION AS | F19: saņemšana | G19: 15.3 | H19: 3.21 | I19: 18.51
A20: 14 | B20: 2013.07.22 | C20: 2013.07.22 | D20: EU13209887 | E20: EUGESTA UN PARTNERI SIA | F20: saņemšana | G20: 70.31 | H20: 14.77 | I20: 85.08
A21: 15 | B21: 2013.07.23 | C21: 2013.07.23 | D21: ALP155386 | E21: ALLFRESH PLUS SIA | F21: saņemšana | G21: 45.47 | H21: 9.55 | I21: 55.02
A22: 16 | B22: 2013.07.23 | C22: 2013.07.23 | D22: VLAT13/46167 | E22: VIČIŪNAI-LAT SIA | F22: saņemšana | G22: 204.62 | H22: 42.97 | I22: 247.59
A23: 17 | B23: 2013.07.23 | C23: 2013.07.23 | D23: VLAT13/46111 | E23: VIČIŪNAI-LAT SIA | F23: saņemšana | G23: 160.87 | H23: 33.78 | I23: 194.65
A24: 18 | B24: 2013.07.23 | C24: 2013.07.23 | D24: EU13230644 | E24: EUGESTA UN PARTNERI SIA | F24: saņemšana | G24: 70.31 | H24: 14.77 | I24: 85.08
A25: 19 | B25: 2013.07.23 | C25: 2013.07.23 | D25: IBV13-020646 | E25: INTERBALTIJA AG A/S | F25: saņemšana | G25: 14.43 | H25: 3.03 | I25: 17.46
A26: 20 | B26: 2013.07.23 | C26: 2013.07.23 | D26: IBV13-020657 | E26: INTERBALTIJA AG A/S | F26: saņemšana | G26: 52.92 | H26: 11.11 | I26: 64.03
A27: 21 | B27: 2013.07.23 | C27: 2013.07.23 | D27: IBV13-020659 | E27: INTERBALTIJA AG A/S | F27: saņemšana | G27: 23.66 | H27: 4.97 | I27: 28.63
A28: 22 | B28: 2013.07.23 | C28: 2013.07.23 | D28: SP329397 | E28: SPILVA SIA | F28: saņemšana | G28: 63.37 | H28: 13.31 | I28: 76.68
A29: 23 | B29: 2013.07.23 | C29: 2013.07.23 | D29: LIEP13071556 | E29: LIEPURIN SIA | F29: saņemšana | G29: 15.1 | H29: 3.17 | I29: 18.27
A30: 24 | B30: 2013.07.23 | C30: 2013.07.23 | D30: 2213107371 | E30: CIDO GRUPA SIA | F30: saņemšana | G30: 404.61 | H30: 84.97 | I30: 489.58
A31: 25 | B31: 2013.07.23 | C31: 2013.07.23 | D31: 3100111388 | E31: COCA-COLA HBC LATVIA SIA | F31: saņemšana | G31: 132.38 | H31: 27.8 | I31: 160.18
A32: 26 | B32: 2013.07.23 | C32: 2013.07.23 | D32: BAR004960 | E32: BARGI SIA | F32: saņemšana | G32: 54.82 | H32: 11.51 | I32: 66.33
A33: 27 | B33: 2013.07.23 | C33: 2013.07.23 | D33: SER131526 | E33: SERVAALI LATVIA SIA | F33: saņemšana | G33: 118.8 | H33: 24.95 | I33: 143.75
A34: 28 | B34: 2013.07.23 | C34: 2013.07.23 | D34: SBAA273076 | E34: SANITEX BALTIC DISTRIBUTION SIA | F34: saņemšana | G34: 11.48 | H34: 2.41 | I34: 13.89
A35: 29 | B35: 2013.07.23 | C35: 2013.07.23 | D35: STAB149998 | E35: SANITEX BALTIC DISTRIBUTION SIA | F35: saņemšana | G35: 163.33 | H35: 34.3 | I35: 197.63
A36: 30 | B36: 2013.07.23 | C36: 2013.07.23 | D36: STAB150435 | E36: SANITEX BALTIC DISTRIBUTION SIA | F36: saņemšana | G36: 26.14 | H36: 5.49 | I36: 31.63
A37: 31 | B37: 2013.07.24 | C37: 2013.07.24 | D37: VLAT13/46422 | E37: VIČIŪNAI-LAT SIA | F37: saņemšana | G37: 201.54 | H37: 42.32 | I37: 243.86
A38: 32 | B38: 2013.07.24 | C38: 2013.07.24 | D38: PRK1556506 | E38: RĪGAS PIENA KOMBINĀTS AS | F38: saņemšana | G38: 32.63 | H38: 6.85 | I38: 39.48
A39: 33 | B39: 2013.07.24 | C39: 2013.07.24 | D39: HB016235 | E39: HENKELL&CO BALTIC SIA | F39: saņemšana | G39: 52.62 | H39: 11.05 | I39: 63.67
A40: 34 | B40: 2013.07.24 | C40: 2013.07.24 | D40: AAR570552 | E40: LIETAS MD SIA | F40: saņemšana | G40: 72.78 | H40: 15.28 | I40: =SUM(G40+H40) -> 88.06
A41: 35 | B41: 2013.07.24 | C41: 2013.07.24 | D41: FJBLV96 | E41: FJB LATVIA SIA | F41: saņemšana | G41: 142.37 | H41: 29.9 | I41: 172.27
A42: 36 | B42: 2013.07.24 | C42: 2013.07.24 | D42: ALP155443 | E42: ALLFRESH PLUS SIA | F42: saņemšana | G42: 33.93 | H42: 7.13 | I42: 41.06
A43: 37 | B43: 2013.07.24 | C43: 2013.07.24 | D43: MES3382 | E43: MAŽEIKIU MESIŅE | F43: saņemšana | G43: 51.73 | H43: 0 | I43: 51.73
A44: 38 | B44: 2013.07.25 | C44: 2013.07.25 | D44: RPK1556820 | E44: RĪGAS PIENA KOMBINĀTS AS | F44: saņemšana | G44: 65.36 | H44: 13.73 | I44: 79.09
A45: 39 | B45: 2013.07.25 | C45: 2013.07.25 | D45: AAR570952 | E45: LIETAS MD SIA | F45: saņemšana | G45: 32.84 | H45: 6.9 | I45: 39.74
A46: 40 | B46: 2013.07.25 | C46: 2013.07.25 | D46: STAB153379 | E46: SANITEX BALTIC DISTRIBUTION SIA | F46: saņemšana | G46: 11.64 | H46: 2.44 | I46: 14.08
A47: 41 | B47: 2013.07.25 | C47: 2013.07.25 | D47: ALP155560 | E47: ALLFRESH PLUS SIA | F47: saņemšana | G47: 30.8 | H47: 6.47 | I47: 37.27
A48: 42 | B48: 2013.07.25 | C48: 2013.07.25 | D48: VLAT13/46785 | E48: VIČIŪNAI-LAT SIA | F48: saņemšana | G48: 31.68 | H48: 6.65 | I48: 38.33
A49: 43 | B49: 2013.07.25 | C49: 2013.07.25 | D49: VLAT13/46701 | E49: VIČIŪNAI-LAT SIA | F49: saņemšana | G49: 11.6 | H49: 2.44 | I49: 14.04
A50: 44 | B50: 2013.07.25 | C50: 2013.07.25 | D50: VLAT13/46714 | E50: VIČIŪNAI-LAT SIA | F50: saņemšana | G50: 14.22 | H50: 2.99 | I50: 17.21
A51: 45 | B51: 2013.07.25 | C51: 2013.07.25 | D51: KDA543051 | E51: KONIG DISTRIBUTION AS | F51: saņemšana | G51: 3.7 | H51: 0.78 | I51: 4.48
A52: 46 | B52: 2013.07.25 | C52: 2013.07.25 | D52: KDA543050 | E52: KONIG DISTRIBUTION AS | F52: saņemšana | G52: 10.13 | H52: 2.13 | I52: 12.26
A53: 47 | B53: 2013.07.25 | C53: 2013.07.25 | D53: GEMO436919 | E53: GEMOSS SIA | F53: saņemšana | G53: 7.92 | H53: 1.66 | I53: 9.58
A54: 48 | B54: 2013.07.25 | C54: 2013.07.25 | D54: FLS383720 | E54: FAZER LATVIJA SIA | F54: saņemšana | G54: 10.2 | H54: 2.14 | I54: 12.34
A55: 49 | B55: 2013.07.26 | C55: 2013.07.26 | D55: 2213109847 | E55: CIDO GRUPA SIA | F55: saņemšana | G55: 112.78 | H55: 23.68 | I55: 136.46
A56: 50 | B56: 2013.07.26 | C56: 2013.07.26 | D56: RPK 560232 | E56: RĪGAS PIENA KOMBINĀTS AS | F56: saņemšana | G56: 104.72 | H56: 21.99 | I56: 126.71
A57: 51 | B57: 2013.07.27 | C57: 2013.07.31 | D57: VRG 13 3002 | E57: SIA "VICI RESTAURANTS | F57: izsniegšana | G57: -336.37 | H57: 0 | I57: -336.37
A58: 52 | B58: 2013.07.26 | C58: 2013.07.26 | D58: GEMO 437400 | E58: GEMOSS SIA | F58: saņemšana | G58: 4.2 | H58: 0.88 | I58: 5.08
A59: 53 | B59: 2013.07.26 | C59: 2013.07.26 | D59: AAR571977 | E59: LIETAS MD SIA | F59: saņemšana | G59: 16.72 | H59: 3.51 | I59: 20.23
A60: 54 | B60: 2013.07.26 | C60: 2013.07.23 | D60: BID020922 | E60: NOWACO LATVIA SIA | F60: saņemšana | G60: 6.75 | H60: 1.42 | I60: 8.17
A61: 55 | B61: 2013.07.26 | C61: 2013.07.23 | D61: AVD830819 | E61: SPI DISTRIBUTION SIA | F61: saņemšana | G61: 9.76 | H61: 2.05 | I61: 11.81
A62: 56 | B62: 2013.07.26 | C62: 2013.07.23 | D62: AVD830818 | E62: SPI DISTRIBUTION SIA | F62: saņemšana | G62: 46.36 | H62: 9.74 | I62: 56.1
A63: 57 | B63: 2013.07.26 | C63: 2013.07.25 | D63: MR1301048 | E63: MILTINUKO RECEPTAS UAB | F63: saņemšana | G63: 15.6 | H63: 0 | I63: 15.6
A64: 58 | B64: 2013.07.23 | C64: 2013.07.23 | D64: VRG 130058 | E64: SIA "VICI RESTAURANTS | F64: saņemšana | G64: 534.49 | H64: 0 | I64: 534.49
A65: 60 | B65: 2013.07.26 | C65: 2013.07.26 | D65: 3100114529 | E65: COCA-COLA HBC LATVIA SIA | F65: atgriešana | G65: -3.79 | H65: -0.8 | I65: -4.59
A66: 61 | B66: 2013.07.26 | C66: 2013.07.26 | D66: 3100114543 | E66: COCA-COLA HBC LATVIA SIA | F66: saņemšana | G66: 50.8 | H66: 10.67 | I66: 61.47
A67: 62 | B67: 2013.07.26 | C67: 2013.07.26 | D67: FLS384611 | E67: FAZER LATVIJA SIA | F67: saņemšana | G67: 5.82 | H67: 1.22 | I67: 7.04
A68: 63 | B68: 2013.07.26 | C68: 2013.07.26 | D68: AAR571975 | E68: LIETAS MD SIA | F68: saņemšana | G68: 5.93 | H68: 1.25 | I68: 7.18
A69: 64 | B69: 2013.07.26 | C69: 2013.07.26 | D69: VNK000088251 | E69: VAINEKTA UAB | F69: saņemšana | G69: 38.91 | H69: 0 | I69: 38.91
A70: 65 | B70: 2013.07.26 | C70: 2013.07.26 | D70: LV3RE00051176 | E70: REATON, LTD | F70: saņemšana | G70: 25.15 | H70: 5.28 | I70: 30.43
A71: 66 | B71: 2013.07.26 | C71: 2013.07.26 | D71: MES3389 | E71: MAŽEIKIU MESIŅE | F71: saņemšana | G71: 83.01 | H71: 0 | I71: =SUM(G71+H71) -> 83.01
A72: 67 | B72: 2013.07.26 | C72: 2013.07.26 | D72: VLAT13/47158 | E72: VIČIŪNAI-LAT SIA | F72: saņemšana | G72: 55.32 | H72: 11.62 | I72: 66.94
A73: 68 | B73: 2013.07.26 | C73: 2013.07.26 | D73: VLAT13/47138 | E73: VIČIŪNAI-LAT SIA | F73: saņemšana | G73: 196.87 | H73: 41.34 | I73: 238.21
A74: 69 | B74: 2013.07.27 | C74: 2013.07.27 | D74: VLAT13/47426 | E74: VIČIŪNAI-LAT SIA | F74: saņemšana | G74: 240.27 | H74: 50.46 | I74: 290.73
A75: 70 | B75: 2013.07.27 | C75: 2013.07.27 | D75: VLAT13/47427 | E75: VIČIŪNAI-LAT SIA | F75: saņemšana | G75: 4.1 | H75: 0.86 | I75: 4.96
A76: 71 | B76: 2013.07.27 | C76: 2013.07.27 | D76: AAR572710 | E76: LIETAS MD SIA | F76: saņemšana | G76: 84.82 | H76: 17.81 | I76: 102.63
A77: 72 | B77: 2013.07.23 | C77: 2013.07.23 | D77: VRG 130059 | E77: SIA "VICI RESTAURANTS | F77: pārvietošana | G77: 44.67 | H77: 0 | I77: 44.67
A78: 73 | B78: 2013.07.29 | C78: 2013.07.29 | D78: FLS387531 | E78: FAZER LATVIJA SIA | F78: saņemšana | G78: 7.2 | H78: 1.51 | I78: 8.71
A79: 74 | B79: 2013.07.29 | C79: 2013.07.29 | D79: AAR573493 | E79: LIETAS MD SIA | F79: saņemšana | G79: 32 | H79: 6.72 | I79: 38.72
A80: 75 | B80: 2013.07.29 | C80: 2013.07.29 | D80: MES3395 | E80: MAŽEIKIU MESIŅE | F80: saņemšana | G80: 39.42 | H80: 0 | I80: 39.42
A81: 76 | B81: 2013.07.30 | C81: 2013.07.30 | D81: AAR574222 | E81: LIETAS MD SIA | F81: saņemšana | G81: 14.54 | H81: 3.05 | I81: 17.59
A82: 77 | B82: 2013.07.30 | C82: 2013.07.30 | D82: KDA545158 | E82: KONIG DISTRIBUTION AS | F82: saņemšana | G82: 7.4 | H82: 1.55 | I82: 8.95
A83: 78 | B83: 2013.07.30 | C83: 2013.07.30 | D83: FLS388736 | E83: FAZER LATVIJA SIA | F83: saņemšana | G83: 6.88 | H83: 1.44 | I83: 8.32
A84: 79 | B84: 2013.07.30 | C84: 2013.07.22 | D84: SBAA271925 | E84: SANITEX BALTIC DISTRIBUTION SIA | F84: saņemšana | G84: 2.37 | H84: 0.5 | I84: 2.87
A85: 80 | B85: 2013.07.30 | C85: 2013.07.22 | D85: SBAA271793 | E85: SANITEX BALTIC DISTRIBUTION SIA | F85: saņemšana | G85: 11.38 | H85: 2.39 | I85: 13.77
A86: 81 | B86: 2013.07.30 | C86: 2013.07.30 | D86: ceks213764 | E86: RIMI LATVIA SIA | F86: saņemšana | G86: 4.69 | H86: 0.99 | I86: 5.68
A87: 82 | B87: 2013.07.30 | C87: 2013.07.30 | D87: SLP155853 | E87: ALLFRESH PLUS SIA | F87: saņemšana | G87: 30.51 | H87: 6.41 | I87: 36.92
A88: 83 | B88: 2013.07.31 | C88: 2013.07.31 | D88: 221311244 | E88: CIDO GRUPA SIA | F88: saņemšana | G88: 94.56 | H88: 19.86 | I88: 114.42
A89: 84 | B89: 2013.07.31 | C89: 2013.07.31 | D89: VLAT13 48049 | E89: VIČIŪNAI-LAT SIA | F89: saņemšana | G89: 66.56 | H89: 13.98 | I89: 80.54
A90: 85 | B90: 2013.07.31 | C90: 2013.07.31 | D90: VLAT13 47906 | E90: VIČIŪNAI-LAT SIA | F90: saņemšana | G90: 79.24 | H90: 16.64 | I90: 95.88
A91: 86 | B91: 2013.07.31 | C91: 2013.07.31 | D91: AAR 574827 | E91: LIETAS MD SIA | F91: saņemšana | G91: 39.84 | H91: 8.37 | I91: 48.21
A92: 87 | B92: 2013.07.31 | C92: 2013.07.31 | D92: SP 331422 | E92: SPILVA SIA | F92: saņemšana | G92: 45.74 | H92: 9.61 | I92: 55.35
A93: 88 | B93: 2013.07.31 | C93: 2013.07.31 | D93: RPK 1568047 | E93: RĪGAS PIENA KOMBINĀTS AS | F93: saņemšana | G93: 21.35 | H93: 4.48 | I93: 25.83
A94: 89 | B94: 2013.07.31 | C94: 2013.07.31 | D94: RPK 1567520 | E94: RĪGAS PIENA KOMBINĀTS AS | F94: saņemšana | G94: 36.23 | H94: 7.61 | I94: 43.84
A95: 90 | B95: 2013.07.31 | C95: 2013.07.31 | D95: 3100117280 | E95: COCA-COLA HBC LATVIA SIA | F95: saņemšana | G95: 91.44 | H95: 19.2 | I95: 110.64
A96: 91 | B96: 2013.07.31 | C96: 2013.07.31 | D96: VRG13055 | E96: SIA "VICI RESTAURANTS | F96: pārvietošana | G96: 1.41 | H96: 0 | I96: 1.41
A97: 92 | B97: 2013.07.31 | C97: 2013.07.31 | D97: SER 131602 | E97: SERVAALI LATVIA SIA | F97: saņemšana | G97: 72 | H97: 15.12 | I97: 87.12
A98: 93 | B98: 2013.07.31 | C98: 2013.07.31 | D98: MES 3400 | E98: MAŽEIKIU MESIŅE | F98: saņemšana | G98: 80.25 | H98: 0 | I98: 80.25
A99: 94 | B99: 2013.07.25 | C99: 2013.07.30 | D99: DOR 0036974 | E99: UAB DORENA | F99: saņemšana | G99: 81.56 | H99: 0 | I99: 81.56
A100: 95 | B100: 2013.07.29 | C100: 2013.07.31 | D100: VRG13 0053 | E100: SIA "VICI RESTAURANTS | F100: pārvietošana | G100: 3.84 | H100: 0 | I100: 3.84
A101: 96 | B101: 2013.07.22 | C101: 2013.07.31 | D101: ČEKS 0347403 | E101: AS PRISMA LATVIJA | F101: saņemšana | G101: 0.89 | H101: 0.19 | I101: =SUM(G101+H101) -> 1.08
A102: 97 | B102: 2013.07.23 | C102: 2013.07.31 | D102: ČEKS 291868 | E102: RIMI LATVIA SIA | F102: saņemšana | G102: 7.83 | H102: 1.65 | I102: =SUM(G102+H102) -> 9.48
A103: 98 | B103: 2013.07.23 | C103: 2013.07.31 | D103: ČEKS 186271 | E103: RIMI LATVIA SIA | F103: saņemšana | G103: 1.53 | H103: 0.32 | I103: 1.85
A104: 99 | B104: 2013.07.23 | C104: 2013.07.31 | D104: ČEKS 207305 | E104: RIMI LATVIA SIA | F104: saņemšana | G104: 4.17 | H104: 0.87 | I104: 5.04
A105: 100 | B105: 2013.07.23 | C105: 2013.07.31 | D105: ČEKS 291712 | E105: RIMI LATVIA SIA | F105: saņemšana | G105: 3.7 | H105: 0.78 | I105: 4.48
A106: 101 | B106: 2013.07.28 | C106: 2013.07.31 | D106: ČEKS 178816 | E106: RIMI LATVIA SIA | F106: saņemšana | G106: 3.44 | H106: 0.72 | I106: 4.16
A107: 102 | B107: 2013.07.28 | C107: 2013.07.31 | D107: ČEKS 223914 | E107: RIMI LATVIA SIA | F107: saņemšana | G107: 7.26 | H107: 1.52 | I107: 8.78
A108: 102/1 | B108: 2013.07.30 | C108: 2013.07.30 | D108: VRG1 SPICE | E108: SIA "VICI RESTAURANTS | F108: izsniegšana | G108: -3.76 | H108: 0 | I108: -3.76
A109: 102/2 | B109: 2013.07.31 | C109: 2013.07.31 | D109: VRG13 0056 | E109: SIA "VICI RESTAURANTS | F109: pārvietošana | G109: 26.62 | H109: 0 | I109: 26.62
E110: Kopā | G110: =SUM(G7:G109) -> 5835.77 | H110: =SUM(H7:H109) -> 1041.67 | I110: =SUM(I7:I109) -> 6875.55
A114: Pārbaudīja: ________________________________ | E114: / N.Andrijevska
A117: Ar gramatvedības uzskaites datiem saskaņots: _________________________________________ | F117: / D.Kravale
G118: Datums: __________________

Sheet 07.2013.Saimnieciba (hidden)
A1: Nr.p.k. | B1: Datums | C1: PVZ | E1: PIEGĀDĀTĀJS | F1: Darījuma apraksts (piegāde, iegāde, izsniegšana, saņemšana, pārvietošana) | G1: PVZ norādītā preču kopējā vērtība | H1: PVN summa | I1: Summa ar PVN
C2: datums | D2: numurs | G2: (bez PVN) | H2: (ja tāda ir)
B3: 2013.07.18 | C3: 2013.07.18 | D3: GEMO433942 | E3: GEMOSS SIA | F3: saņemšana | G3: 36.21 | H3: 7.6 | I3: =SUM(G3+H3) -> 43.81
A4: 1S | B4: 2013.07.22 | C4: 2013.07.22 | D4: GEMO435760 | E4: GEMOSS SIA | F4: saņemšana | G4: 16.74 | H4: 3.52 | I4: =SUM(G4+H4) -> 20.26 | L4: atgriešana
A5: 2S | B5: 2013.07.22 | C5: 2013.07.22 | D5: TS020231 | E5: TEHNOINFORM SERVISS SIA | F5: saņemšana | G5: 12.95 | H5: 2.72 | I5: =SUM(G5+H5) -> 15.67 | L5: izsniegšana
A6: 3S | B6: 2013.07.22 | C6: 2013.07.22 | D6: BPS117725 | E6: BALTPAPĪRS SIA | F6: saņemšana | G6: 130.89 | H6: 27.25 | I6: =SUM(G6+H6) -> 158.14 | L6: pārvietošana
A7: 4S | B7: 2013.07.22 | C7: 2013.07.22 | D7: PK116291 | E7: PIREKA SIA | F7: saņemšana | G7: 178.59 | H7: 37.5 | I7: =SUM(G7+H7) -> 216.09 | J7: MAZGA'SANAS LĪDZEKLI | L7: saņemšana
A8: 5S | B8: 2013.07.22 | C8: 2013.07.22 | D8: GEMO435136 | E8: GEMOSS SIA | F8: saņemšana | G8: 25.81 | H8: 6.22 | I8: 32.03 | J8: SALV, ...
A9: 6S | B9: 2013.07.22 | C9: 2013.07.22 | D9: EU13209882 | E9: EUGESTA UN PARTNERI SIA | F9: saņemšana | G9: 20.93 | H9: 4.4 | I9: 25.33 | J9: KAFIJAS APARATA TIRĪSANAS PULVERIS
A10: 7S | B10: 2013.07.22 | C10: 2013.07.22 | D10: EU13209886 | E10: EUGESTA UN PARTNERI SIA | F10: saņemšana | G10: 0 | H10: 0 | I10: 0 | J10: LAVAZZ TRAUKI
A11: 8S | B11: 2013.07.22 | C11: 2013.07.22 | D11: EU13209888 | E11: EUGESTA UN PARTNERI SIA | F11: saņemšana | G11: 0 | H11: 0 | I11: 0 | J11: VIENREIZĒJI
A12: 9S | B12: 2013.07.22 | C12: 2013.07.22 | D12: UCS004096 | E12: UCS SIA | F12: saņemšana | G12: 3324.74 | H12: 698.2 | I12: 4022.94
A13: 10S | B13: 2013.07.22 | C13: 2013.07.22 | D13: EU13230642 | E13: EUGESTA UN PARTNERI SIA | F13: saņemšana | G13: 3.75 | H13: 0.79 | I13: 4.54
A14: 11S | B14: 2013.07.23 | C14: 2013.07.23 | D14: AA0098127 | E14: ATEA UAB | F14: saņemšana | G14: 523.78 | I14: 523.78
A15: 12S | B15: 2013.07.23 | C15: 2013.07.23 | D15: BPS117758 | E15: BALTPAPĪRS SIA | F15: saņemšana | G15: 14.95 | H15: 3.14 | I15: 18.09
A16: 13S | B16: 2013.07.24 | C16: 2013.07.24 | D16: FJBLV96 | E16: FJB LATVIA SIA | F16: saņemšana | G16: 854.4 | H16: 179.42 | I16: 1033.82
A17: 14S | B17: 2013.07.25 | C17: 2013.07.22 | D17: GEMO436840 | E17: GEMOSS SIA | F17: saņemšana | G17: 17.82 | H17: 3.74 | I17: 21.56 | K17: EUR | L17: 932.84 | M17: 0.72804
A18: 15S | B18: 2013.07.25 | C18: 2013.07.22 | D18: GEMO435570 | E18: GEMOSS SIA | F18: saņemšana | G18: 11.23 | H18: 2.36 | I18: =SUM(G18+H18) -> 13.59 | K18: LV | L18: =L17*0.702804 -> 655.6036834
A19: 16S | B19: 2013.07.25 | C19: 2013.07.23 | D19: 23072013 | E19: SVARU LĪNIJA | F19: saņemšana | G19: 587 | H19: 123.27 | I19: 710.27 | J19: SVĀRI | K19: LV | L19: =L17*M17 -> 679.1448336
A20: 17S | B20: 2013.07.26 | C20: 2013.07.26 | D20: GEMO 437402 | E20: GEMOSS SIA | F20: saņemšana | G20: 3.27 | H20: 0.69 | I20: =SUM(G20+H20) -> 3.96
A21: 17S | B21: 2013.07.26 | C21: 2013.07.22 | D21: KAS-0015606 | E21: ARKIETE UAB | F21: saņemšana | G21: 368.99 | I21: 368.99
A22: 18S | B22: 2013.07.26 | C22: 2013.07.22 | D22: VPP0007526 | E22: ARKIETE UAB | F22: saņemšana | G22: 1520.46 | I22: 1520.46
A23: 19S | B23: 2013.07.26 | C23: 2013.07.22 | D23: KAS-0015598 | E23: ARKIETE UAB | F23: saņemšana | G23: 2902.85 | I23: 2902.85
A24: 20S | B24: 2013.07.26 | C24: 2013.07.22 | D24: KAS-0015597 | E24: ARKIETE UAB | F24: saņemšana | G24: 2344.47 | I24: 2344.47
A25: 21S | B25: 2013.07.26 | C25: 2013.07.22 | D25: KAS-0015605 | E25: ARKIETE UAB | F25: saņemšana | G25: 655.6 | I25: 655.6
A26: 22S | B26: 2013.07.31 | C26: 2013.07.31 | D26: VRG13 0056 | E26: SIA "VICI RESTAURANTS | F26: pārvietošana | G26: 26.62 | I26: =SUM(G26+H26) -> 26.62
A27: 23S | B27: 2013-07-19 | C27: 2013.07.31 | D27: ČEKS 82/0241 | E27: SIA FESKO | F27: saņemšana | G27: 15.7 | H27: 3.3 | I27: 19 | J27: SIA "VICI RESTAURANTS ZĪMOGI
A28: 24S | B28: 2013-07-20 | C28: 2013.07.31 | D28: ČEKS 271/653 | E28: YUSK LINNEN N FURNITURE | F28: saņemšana | G28: 8.91 | H28: 1.87 | I28: 10.78 | J28: DRĒBJU PAKARAMAIS,PAKARAMIE
A29: 25S | B29: 2013-07-20 | C29: 2013.07.31 | D29: ČEKS 1035587 | E29: SIA MAXIMA LATVIJA | F29: saņemšana | G29: 1.45 | H29: 0.31 | I29: 1.76
A30: 26S | B30: 2013-07-20 | C30: 2013.07.31 | D30: ČEKS 0321124 | E30: DEPO DIY SIA | F30: saņemšana | G30: 32.03 | H30: 6.73 | I30: 38.76
A31: 27S | B31: 2013-07-21 | C31: 2013.07.31 | D31: ČEKS 499360 | E31: CENUKLUBS.LV | F31: saņemšana | G31: 29.59 | H31: 6.21 | I31: 35.8
A32: 28S | B32: 2013-07-22 | C32: 2013.07.31 | D32: ČEKS 0877596 | E32: GRAMATA NAMS VALTER UN RAPA | F32: saņemšana | G32: 3.2 | H32: 0.67 | I32: 3.87
A33: 29S | B33: 2013-07-22 | C33: 2013.07.31 | D33: ČEKS 01156 | E33: SIA GLOBUSS | F33: saņemšana | G33: 9.88 | H33: 2.08 | I33: 11.96
A34: 30S | B34: 2013-07-22 | C34: 2013.07.31 | D34: ČEKS 373643 | E34: CENUKLUBS.LV | F34: saņemšana | G34: 18.32 | H34: 3.85 | I34: 22.17
A35: 31S | B35: 2013-07-23 | C35: 2013.07.31 | D35: ČEKS 302377 | E35: SIA JĀNIS ROZE | F35: saņemšana | G35: 0.89 | H35: 0.19 | I35: 1.08
A36: 32S | B36: 2013-07-22 | C36: 2013.07.31 | D36: ČEKS 0877694 | E36: GRAMATA NAMS VALTER UN RAPA | F36: saņemšana | G36: 0.81 | H36: 0.17 | I36: 0.98
A37: 33S | B37: 2013-07-24 | C37: 2013.07.31 | D37: ČEKS 00016105 | E37: COPY PRO | F37: saņemšana | G37: 8.52 | H37: 1.79 | I37: 10.31
A38: 34S | B38: 2013-07-24 | C38: 2013.07.31 | D38: ČEKS 407014 | E38: SIA JĀNIS ROZE | F38: saņemšana | G38: 1.63 | H38: 0.34 | I38: 1.97
A39: 35S | B39: 2013-07-23 | C39: 2013.07.31 | D39: ČEKS 433/1889 | E39: YUSK LINNEN N FURNITURE | F39: saņemšana | G39: 0.57 | H39: 0.12 | I39: 0.69
A40: 36S | B40: 2013-07-23 | C40: 2013.07.31 | D40: ČEKS 96/657 | E40: YUSK LINNEN N FURNITURE | F40: saņemšana | G40: 16.52 | H40: 3.47 | I40: 19.99
A41: 37S | B41: 2013-07-24 | C41: 2013.07.31 | D41: ČEKS 0456299 | E41: BENU APTEKA | F41: saņemšana | G41: 9.59 | H41: 1.79 | I41: 11.38 | J41: ZALES
A42: 38S | B42: 2013-07-25 | C42: 2013.07.31 | D42: ČEKS 407094 | E42: SIA JĀNIS ROZE | F42: saņemšana | G42: 14.88 | H42: 3.12 | I42: 18
A43: 39S | B43: 2013-07-26 | C43: 2013.07.31 | D43: ČEKS 5025748 | E43: ATSLEGU CENTRS | F43: saņemšana | G43: 3.31 | H43: 0.69 | I43: 4 | J43: ATSLEGAS
A44: 40S | B44: 2013-07-25 | C44: 2013.07.31 | D44: SANG 678648 | E44: SANGAIDA | F44: saņemšana | G44: 78.18 | H44: 0 | I44: 78.18
A45: 41S | B45: 2013-07-23 | C45: 2013.07.31 | D45: UCS 004096 | E45: UCS SIA | F45: saņemšana | G45: 37.5 | H45: 7.88 | I45: 45.38
A46: 42S | B46: 2013-07-23 | C46: 2013.07.31 | D46: VRG 130060 | E46: SIA "VICI RESTAURANTS | F46: pārvietošana | G46: 16.93 | H46: 0 | I46: 16.93
F47: saņemšana | I47: 0
F48: saņemšana | I48: 0
F49: saņemšana | I49: 0
F50: saņemšana | I50: 0
F51: saņemšana | I51: 0
F52: saņemšana | I52: 0
F53: saņemšana | I53: 0
F54: saņemšana | I54: 0
F55: saņemšana | I55: 0
F56: saņemšana | I56: 0
F57: saņemšana | I57: 0
F58: saņemšana | I58: 0
F59: saņemšana | I59: 0
F60: saņemšana | I60: 0
F61: saņemšana | I61: 0
F62: saņemšana | I62: 0
F63: saņemšana | I63: 0
F64: saņemšana | I64: 0
F65: saņemšana | I65: 0
F66: saņemšana | I66: 0
F67: saņemšana | I67: 0
F68: saņemšana | I68: 0
F69: saņemšana | I69: 0
F70: saņemšana | I70: 0
F71: saņemšana | I71: 0
F72: saņemšana | I72: 0
F73: saņemšana | I73: 0
F74: saņemšana | I74: 0
F75: saņemšana | I75: 0
F76: saņemšana | I76: 0
F77: saņemšana | I77: 0
F78: saņemšana | I78: 0
F79: saņemšana | I79: 0
F80: saņemšana | I80: 0
F81: saņemšana | I81: 0
F82: saņemšana | I82: 0
F83: saņemšana | I83: 0
F84: saņemšana | I84: 0
F85: saņemšana | I85: 0
F86: saņemšana | I86: 0
F87: saņemšana | I87: 0
F88: saņemšana | I88: 0
F89: saņemšana | I89: 0
F90: saņemšana | I90: =SUM(G90+H90) -> 0
F91: saņemšana | I91: 0
F92: saņemšana | I92: 0
F93: saņemšana | I93: 0
F94: saņemšana | I94: 0
F95: saņemšana | I95: 0
F96: saņemšana | I96: 0
F97: saņemšana | I97: 0
F98: saņemšana | I98: 0
F99: saņemšana | I99: 0
F100: saņemšana | I100: 0
F101: saņemšana | I101: 0
F102: saņemšana | I102: 0
F103: saņemšana | I103: 0
F104: saņemšana | I104: 0
F105: saņemšana | I105: 0
F106: saņemšana | I106: 0
F107: saņemšana | I107: 0

Sheet 08.2013 (hidden)
A1: SIA `VICI RESTAURANTS`
A2: Reģ.nr. 40103369245
C3: Preču kustības reģistrācijas žurnāls 22.07.2013. - 31.07.2013. struktūrvienībai CHARLIE PIZZA Lielirbes iela 29
B5: Datums | C5: PVZ | E5: PIEGĀDĀTĀJS | F5: Darījuma apraksts (piegāde, iegāde, izsniegšana, saņemšana, pārvietošana) | G5: PVZ norādītā preču kopējā vērtība | H5: PVN summa | I5: Summa ar PVN
C6: datums | D6: numurs | G6: (bez PVN) | H6: (ja tāda ir)
A7: 103 | B7: 2013.08.01 | C7: 2013.08.01 | D7: LV3RE0052748 | E7: REATON, LTD | F7: saņemšana | G7: 19.28 | H7: 4.05 | I7: =SUM(G7+H7) -> 23.33
A8: 104 | B8: 2013.08.01 | C8: 2013.08.01 | D8: RPK 1569573 | E8: RĪGAS PIENA KOMBINĀTS AS | F8: saņemšana | G8: 38.05 | H8: 7.99 | I8: 46.04
A9: 105 | B9: 2013.08.01 | C9: 2013.08.01 | D9: GEMO 439920 | E9: GEMOSS SIA | F9: saņemšana | G9: 21.96 | H9: 4.61 | I9: 26.57
A10: 106 | B10: 2013.08.01 | C10: 2013.08.01 | D10: AAR 575552 | E10: LIETAS MD SIA | F10: saņemšana | G10: 24.14 | H10: 5.07 | I10: 29.21
A11: 107 | B11: 2013.08.01 | C11: 2013.08.01 | D11: FLS 390867 | E11: FAZER LATVIJA SIA | F11: saņemšana | G11: 4.82 | H11: 1.01 | I11: 5.83
A12: 108 | B12: 2013.08.01 | C12: 2013.08.01 | D12: STAB 161478 | E12: SANITEX BALTIC DISTRIBUTION SIA | F12: saņemšana | G12: 20.42 | H12: 4.29 | I12: 24.71
A13: 109 | B13: 2013.08.01 | C13: 2013.08.01 | D13: ALP 156000 | E13: ALLFRESH PLUS SIA | F13: saņemšana | G13: 24.51 | H13: 5.15 | I13: 29.66
A14: 110 | B14: 2013.08.02 | C14: 2013.08.02 | D14: 2213114231 | E14: CIDO GRUPA SIA | F14: saņemšana | G14: 85.91 | H14: 18.04 | I14: 103.95
A15: 111 | B15: 2013.08.02 | C15: 2013.08.02 | D15: FLS391831 | E15: FAZER LATVIJA SIA | F15: saņemšana | G15: 4.28 | H15: 0.9 | I15: 5.18
A16: 112 | B16: 2013.08.02 | C16: 2013.08.02 | D16: 3100119975 | E16: COCA-COLA HBC LATVIA SIA | F16: atgriešana | G16: -34.11 | H16: -7.16 | I16: -41.27
A17: 113 | B17: 2013.08.02 | C17: 2013.08.05 | D17: VRG13 3001 | E17: SIA "VICI RESTAURANTS | F17: pārvietošana | G17: -3.73 | H17: 0 | I17: -3.73
A18: 114 | B18: 2013.08.02 | C18: 2013.08.02 | D18: 3100119976 | E18: COCA-COLA HBC LATVIA SIA | F18: saņemšana | G18: 91.44 | H18: 19.2 | I18: 110.64
A19: 115 | B19: 2013.08.02 | C19: 2013.08.02 | D19: VNK000088478 | E19: UAB VAINEKTA | F19: saņemšana | G19: 61.85 | H19: 0 | I19: 61.85
A20: 116 | B20: 2013.08.02 | C20: 2013.08.02 | D20: AAR576156 | E20: LIETAS MD SIA | F20: saņemšana | G20: 58.69 | H20: 12.32 | I20: 71.01
A21: 117 | B21: 2013.08.02 | C21: 2013.08.02 | D21: MES3405 | E21: MAŽEIKIU MESIŅE | F21: saņemšana | G21: 94.32 | H21: 0 | I21: 94.32
A22: 118 | B22: 2013.08.03 | C22: 2013.08.03 | D22: RPK1573217 | E22: RĪGAS PIENA KOMBINĀTS AS | F22: saņemšana | G22: 54.46 | H22: 11.44 | I22: 65.9
A23: 119 | B23: 2013.08.03 | C23: 2013.08.03 | D23: FLS393604 | E23: FAZER LATVIJA SIA | F23: saņemšana | G23: 8.64 | H23: 1.81 | I23: 10.45
A24: 120 | B24: 2013.08.03 | C24: 2013.08.03 | D24: AAR577000 | E24: LIETAS MD SIA | F24: saņemšana | G24: 40.36 | H24: 8.48 | I24: 48.84
A25: 121 | B25: 2013.08.03 | C25: 2013.08.03 | D25: RPK1572954 | E25: RĪGAS PIENA KOMBINĀTS AS | F25: saņemšana | G25: 16.32 | H25: 3.43 | I25: 19.75
A26: 122 | B26: 2013.08.05 | C26: 2013.08.05 | D26: SBAA281631 | E26: SANITEX BALTIC DISTRIBUTION SIA | F26: saņemšana | G26: 1.82 | H26: 0.38 | I26: 2.2
A27: 123 | B27: 2013.08.05 | C27: 2013.08.05 | D27: STAB163014 | E27: SANITEX BALTIC DISTRIBUTION SIA | F27: saņemšana | G27: 30.98 | H27: 6.51 | I27: 37.49
A28: 124 | B28: 2013.08.05 | C28: 2013.08.05 | D28: MES3410 | E28: MAŽEIKIU MESIŅE | F28: saņemšana | G28: 49.18 | H28: 0 | I28: 49.18
A29: 125 | B29: 2013.08.05 | C29: 2013.08.05 | D29: ALP156256 | E29: ALLFRESH PLUS SIA | F29: saņemšana | G29: 35.97 | H29: 7.55 | I29: 43.52
A30: 126 | B30: 2013.08.06 | C30: 2013.08.06 | D30: AAR 578428 | E30: LIETAS MD SIA | F30: saņemšana | G30: 18.4 | H30: 3.86 | I30: 22.26
A31: 127 | B31: 2013.08.06 | C31: 2013.08.06 | D31: ALP 156286 | E31: ALLFRESH PLUS SIA | F31: saņemšana | G31: 26.2 | H31: 5.5 | I31: 31.7
A32: 128 | B32: 2013.08.06 | C32: 2013.08.06 | D32: 2213115841 | E32: CIDO GRUPA SIA | F32: saņemšana | G32: 71.64 | H32: 15.04 | I32: 86.68
A33: 129 | B33: 2013.08.07 | C33: 2013.08.07 | D33: LV3RE00054313 | E33: RETON, LTD | F33: saņemšana | G33: 19.28 | H33: 4.05 | I33: =SUM(G33+H33) -> 23.33
A34: 130 | B34: 2013.08.07 | C34: 2013.08.07 | D34: BID021649 | E34: NOWACO LATVIA SIA | F34: saņemšana | G34: 26.7 | H34: 5.61 | I34: 32.31
A35: 131 | B35: 2013.08.07 | C35: 2013.08.07 | D35: EU13239051 | E35: EUGESTA UN PARTNERI SIA | F35: saņemšana | G35: 10.19 | H35: 2.14 | I35: 12.33
A36: 132 | B36: 2013.08.07 | C36: 2013.08.07 | D36: STAB166008 | E36: SANTEX BALTIC DISTRIBUTION SIA | F36: saņemšana | G36: 33.3 | H36: 6.99 | I36: 40.29
A37: 133 | B37: 2013.08.07 | C37: 2013.08.07 | D37: SBAA283301 | E37: SANTEX BALTIC DISTRIBUTION SIA | F37: saņemšana | G37: 1.35 | H37: 0.28 | I37: 1.63
A38: 134 | B38: 2013.08.07 | C38: 2013.08.07 | D38: SBAA283300 | E38: SANTEX BALTIC DISTRIBUTION SIA | F38: saņemšana | G38: 3.64 | H38: 0.76 | I38: 4.4
A39: 135 | B39: 2013.08.07 | C39: 2013.08.07 | D39: SBAA283298 | E39: SANTEX BALTIC DISTRIBUTION SIA | F39: saņemšana | G39: 51.61 | H39: 10.84 | I39: 62.45
A40: 136 | B40: 2013.08.07 | C40: 2013.08.07 | D40: SBAA283299 | E40: SANTEX BALTIC DISTRIBUTION SIA | F40: saņemšana | G40: 2.7 | H40: 0.57 | I40: 3.27
A41: 137 | B41: 2013.08.07 | C41: 2013.08.07 | D41: KDA548574 | E41: AS KONIG DISTRIBUTION | F41: saņemšana | G41: 7.9 | H41: 1.66 | I41: 9.56
A42: 138 | B42: 2013.08.07 | C42: 2013.08.07 | D42: KDA548575 | E42: AS KONIG DISTRIBUTION | F42: saņemšana | G42: 6.08 | H42: 1.28 | I42: 7.36
A43: 139 | B43: 2013.08.07 | C43: 2013.08.07 | D43: ALP156366 | E43: ALLFRESH PLUS SIA | F43: saņemšana | G43: 11.36 | H43: 2.39 | I43: 13.75
A44: 140 | B44: 2013.08.08 | C44: 2013.08.08 | D44: FLS 398576 | E44: FAZER LATVIJA SIA | F44: saņemšana | G44: 4.35 | H44: 0.91 | I44: 5.26
A45: 141 | B45: 2013.08.08 | C45: 2013.08.08 | D45: RPK 1580856 | E45: RĪGAS PIENA KOMBINĀTS AS | F45: saņemšana | G45: 37.64 | H45: 7.9 | I45: 45.54
A46: 142 | B46: 2013.08.08 | C46: 2013.08.08 | D46: VLAT13 49969 | E46: VIČIŪNAI-LAT SIA | F46: saņemšana | G46: 185.43 | H46: 38.94 | I46: 224.37
A47: 143 | B47: 2013.08.08 | C47: 2013.08.08 | D47: VLAT13 50019 | E47: VIČIŪNAI-LAT SIA | F47: saņemšana | G47: 38.44 | H47: 8.07 | I47: 46.51
A48: 144 | B48: 2013.08.08 | C48: 2013.08.08 | D48: AAR579876 | E48: LiETAS MD SIA | F48: saņemšana | G48: 43.71 | H48: 9.18 | I48: 52.89
A49: 145 | B49: 2013.08.08 | C49: 2013.08.08 | D49: IBV13-022863 | E49: INTERBALTIJA AG A/S | F49: saņemšana | G49: 23.66 | H49: 4.97 | I49: 28.63
A50: 147 | B50: 2013.08.08 | C50: 2013.08.03 | D50: VRG 13 0061 | E50: SIA "VICI RESTAURANTS | F50: saņemšana | G50: 12.91 | H50: 0 | I50: 12.91
A51: 151 | B51: 2013.08.09 | C51: 2013.08.09 | D51: MESNR3430 | E51: MAŽEIKIU MESIŅE | F51: saņemšana | G51: 50.21 | H51: 0 | I51: 50.21
B52: 2013.08.09 | C52: 2013.08.03 | D52: VRG13 0064 | E52: SIA "VICI RESTAURANTS | F52: saņemšana | G52: 8.3 | H52: 0 | I52: 8.3
A53: 153 | B53: 2013.08.09 | C53: 2013.08.09 | D53: LIV13PR 54293 | E53: LIVIKO SIA | F53: saņemšana | G53: 35.87 | H53: 7.53 | I53: 43.4
A54: 154 | B54: 2013.08.09 | C54: 2013.08.09 | D54: 3100125038 | E54: COCA-COLA HBC LATVIA SIA | F54: atgriešana | G54: -53.06 | H54: -11.14 | I54: -64.2
A55: 155 | B55: 2013.08.09 | C55: 2013.08.09 | D55: 3100125077 | E55: COCA-COLA HBC LATVIA SIA | F55: saņemšana | G55: 97.18 | H55: 20.4 | I55: 117.58
A56: 156 | B56: 2013.08.09 | C56: 2013.08.09 | D56: VNK 000088736 | E56: VAINEKTA UAB | F56: saņemšana | G56: 58.92 | H56: 0 | I56: 58.92
A57: 157 | B57: 2013.08.09 | C57: 2013.08.09 | D57: 22131186980 | E57: CIDO GRUPA SIA | F57: saņemšana | G57: 50.46 | H57: 10.6 | I57: 61.06
A58: 158 | B58: 2013.08.09 | C58: 2013.08.09 | D58: AAR 580505 | E58: LIETAS MD SIA | F58: saņemšana | G58: 31.33 | H58: 6.58 | I58: 37.91
A59: 159 | B59: 2013.08.10 | C59: 2013.08.10 | D59: RPK 1584756 | E59: RĪGAS PIENA KOMBINĀTS AS | F59: saņemšana | G59: 71.47 | H59: 15.01 | I59: 86.48
A60: 160 | B60: 2013.08.10 | C60: 2013.08.10 | D60: FLS 400362 | E60: FAZER LATVIJA SIA | F60: saņemšana | G60: 7.21 | H60: 1.51 | I60: 8.72
A61: 161 | B61: 2013.08.10 | C61: 2013.08.10 | D61: ALP 156612 | E61: ALLFRESH PLUS SIA | F61: saņemšana | G61: 40.95 | H61: 8.6 | I61: 49.55
A62: 162 | B62: 2013.08.10 | C62: 2013.08.10 | D62: AAR 581227 | E62: LIETAS MD SIA | F62: saņemšana | G62: 55.72 | H62: 11.7 | I62: 67.42
A63: 163 | B63: 2013.08.10 | C63: 2013.08.10 | D63: RPK 1584708 | E63: RĪGAS PIENA KOMBINĀTS AS | F63: saņemšana | G63: 21.35 | H63: 4.48 | I63: 25.83
A64: 164 | B64: 2013.08.12 | C64: 2013.08.12 | D64: GEMO 45428 | E64: GEMOSS SIA | F64: saņemšana | G64: 16.11 | H64: 3.38 | I64: 19.49
A65: 165 | B65: 2013.08.12 | C65: 2013.08.12 | D65: VRG 13 0062 | E65: SIA "VICI RESTAURANTS | F65: pārvietošana | G65: 0 | H65: 0 | I65: 0
A66: 166 | B66: 2013.08.12 | C66: 2013.08.12 | D66: SDAA 049815 | E66: SANITEX BALTIC DISTRIBUTION SIA | F66: saņemšana | G66: 0.74 | H66: 0.16 | I66: 0.9
A67: 167 | B67: 2013.08.12 | C67: 2013.08.12 | D67: VRG 133005 | E67: SIA "VICI RESTAURANTS | F67: izsniegšana | G67: -12.35 | H67: 0 | I67: -12.35
A68: 168 | B68: 2013.08.12 | C68: 2013.08.12 | D68: STAB170925 | E68: SANITEX BALTIC DISTRIBUTION SIA | F68: saņemšana | G68: 12.66 | H68: 2.66 | I68: 15.32
A69: 169 | B69: 2013.08.12 | C69: 2013.08.12 | D69: VRG130064 | E69: SIA "VICI RESTAURANTS | F69: pārvietošana | G69: 2.01 | H69: 0 | I69: 2.01
A70: 170 | B70: 2013.08.13 | C70: 2013.08.13 | D70: SBAA 287735 | E70: SANITEX BALTIC DISTRIBUTION SIA | F70: saņemšana | G70: 5.42 | H70: 1.14 | I70: 6.56
A71: 171 | B71: 2013.08.13 | C71: 2013.08.13 | D71: VRG133006 | E71: SIA "VICI RESTAURANTS | F71: izsniegšana | G71: -26.9 | H71: 0 | I71: -26.9
A72: 172 | B72: 2013.08.13 | C72: 2013.08.13 | D72: ALP 156783 | E72: ALLFRESH PLUS SIA | F72: saņemšana | G72: 14.37 | H72: 3.02 | I72: 17.39
A73: 173 | B73: 2013.08.13 | C73: 2013.08.13 | D73: CEKS 307648 | E73: RIMI LATVIA SIA | F73: saņemšana | G73: 1.63 | H73: 0.34 | I73: 1.97
A74: 174 | B74: 2013.08.13 | C74: 2013.08.13 | D74: AAR 582683 | E74: LIETAS MD SIA | F74: saņemšana | G74: 1.86 | H74: 0.39 | I74: =SUM(G74+H74) -> 2.25
A75: 175 | B75: 2013.08.13 | C75: 2013.08.13 | D75: RPK 588353 | E75: RĪGAS PIENA KOMBINĀTS AS | F75: saņemšana | G75: 38.73 | H75: 8.13 | I75: 46.86
A76: 176 | B76: 2013.08.13 | C76: 2013.08.13 | D76: FLS 403062 | E76: FAZER LATVIJA SIA | F76: saņemšana | G76: 4.82 | H76: 1.01 | I76: 5.83
A77: 177 | B77: 2013.08.13 | C77: 2013.08.13 | D77: KDA 554014 | E77: KONIG DISTRIBUTION AS | F77: saņemšana | G77: 7.59 | H77: 1.59 | I77: 9.18
A78: 178 | B78: 2013.08.13 | C78: 2013.08.13 | D78: KDA 554013 | E78: KONIG DISTRIBUTION AS | F78: saņemšana | G78: 7.65 | H78: 1.61 | I78: 9.26
A79: 179 | B79: 2013.08.13 | C79: 2013.08.13 | D79: GEMO 46228 | E79: GEMOSS SIA | F79: saņemšana | G79: 13.73 | H79: 2.88 | I79: 16.61
A80: 180 | B80: 2013.08.13 | C80: 2013.08.13 | D80: 2213120113 | E80: CIDO GRUPA SIA | F80: saņemšana | G80: 117.99 | H80: 24.78 | I80: 142.77
A81: 181 | B81: 2013.08.13 | C81: 2013.08.13 | D81: C 021235 | E81: CIDO GRUPA SIA | F81: saņemšana | G81: 0 | H81: 0 | I81: 0
A82: 182 | B82: 2013.08.13 | C82: 2013.08.13 | D82: STAB 172766 | E82: SANITEX BALTIC DISTRIBUTION SIA | F82: saņemšana | G82: 48.58 | H82: 10.2 | I82: 58.78
A83: 183 | B83: 2013.08.13 | C83: 2013.08.13 | D83: LV3RE 00055848 | E83: REATON, LTD | F83: saņemšana | G83: 29.43 | H83: 6.18 | I83: 35.61
A84: 184 | B84: 2013.08.13 | C84: 2013.08.13 | D84: VRG 13 0062 | E84: SIA "VICI RESTAURANTS | F84: pārvietošana | G84: 6.51 | H84: 0 | I84: 6.51
A85: 185 | B85: 2013.08.14 | C85: 2013.08.14 | D85: VRG 13 3007 | E85: SIA "VICI RESTAURANTS | F85: izsniegšana | G85: -3.3 | H85: 0 | I85: -3.3
A86: 186 | B86: 2013.08.14 | C86: 2013.08.14 | D86: AAR 583332 | E86: LIETAS MD SIA | F86: saņemšana | G86: 39.89 | H86: 8.38 | I86: 48.27
A87: 187 | B87: 2013.08.14 | C87: 2013.08.14 | D87: VLAT13 51251 | E87: VIČIŪNAI-LAT SIA | F87: saņemšana | G87: 121.08 | H87: 25.43 | I87: 146.51
A88: 188 | B88: 2013.08.14 | C88: 2013.08.14 | D88: VLAT13 51334 | E88: VIČIŪNAI-LAT SIA | F88: saņemšana | G88: 66.97 | H88: 14.06 | I88: 81.03
A89: 189 | B89: 2013.08.14 | C89: 2013.08.14 | D89: SER 131734 | E89: SERVAALI | F89: saņemšana | G89: 74.4 | H89: 15.62 | I89: 90.02
A90: 190 | B90: 2013.08.14 | C90: 2013.08.14 | D90: ALP 156820 | E90: ALLFRESH PLUS SIA | F90: saņemšana | G90: 15.72 | H90: 3.3 | I90: 19.02
A91: 191 | B91: 2013.08.14 | C91: 2013.08.14 | D91: 3100128790 | E91: COCA-COLA HBC LATVIA SIA | F91: saņemšana | G91: 127.66 | H91: 26.81 | I91: 154.47
A92: 192 | B92: 2013.08.14 | C92: 2013.08.14 | D92: 3100128769 | E92: COCA-COLA HBC LATVIA SIA | F92: atgriešana | G92: -30.32 | H92: -6.37 | I92: -36.69
A93: 193 | B93: 2013.08.14 | C93: 2013.08.14 | D93: MES 3441 | E93: MAŽEIKIU MESIŅE | F93: saņemšana | G93: 44.91 | H93: 0 | I93: 44.91
A94: 194 | B94: 2013.08.15 | C94: 2013.08.15 | D94: ALP 156941 | E94: ALLFRESH PLUS SIA | F94: saņemšana | G94: 26.44 | H94: 5.55 | I94: 31.99
A95: 195 | B95: 2013.08.15 | C95: 2013.08.15 | D95: AAR 583987 | E95: LIETAS MD SIA | F95: saņemšana | G95: 19.65 | H95: 4.13 | I95: 23.78
A96: 196 | B96: 2013.08.15 | C96: 2013.08.15 | D96: RPK 1591780 | E96: RĪGAS PIENA KOMBINĀTS AS | F96: saņemšana | G96: 21.08 | H96: 4.43 | I96: 25.51
A97: 197 | B97: 2013.08.15 | C97: 2013.08.15 | D97: VRG 13 3008 | E97: SIA "VICI RESTAURANTS | F97: izsniegšana | G97: -4.76 | H97: 0 | I97: -4.76
A98: 198 | B98: 2013.08.16 | C98: 2013.08.16 | D98: MES 3448 | E98: MAŽEIKIU MESIŅE | F98: saņemšana | G98: 92.52 | H98: 0 | I98: 92.52
A99: 199 | B99: 2013.08.16 | C99: 2013.08.16 | D99: 2213122907 | E99: CIDO GRUPA SIA | F99: saņemšana | G99: 57.9 | H99: 12.16 | I99: 70.06
A100: 200 | B100: 2013.08.16 | C100: 2013.08.16 | D100: STAB 175875 | E100: SANITEX BALTIC DISTRIBUTION SIA | F100: saņemšana | G100: 22.41 | H100: 4.71 | I100: 27.12
A101: 201 | B101: 2013.08.16 | C101: 2013.08.16 | D101: STAB 175876 | E101: SANITEX BALTIC DISTRIBUTION SIA | F101: saņemšana | G101: 12.4 | H101: 2.6 | I101: 15
A102: 202 | B102: 2013.08.16 | C102: 2013.08.16 | D102: VNK 000088991 | E102: VAINEKTA UAB | F102: saņemšana | G102: 81.29 | H102: 0 | I102: 81.29
A103: 203 | B103: 2013.08.16 | C103: 2013.08.16 | D103: AAR 584875 | E103: LIETAS MD SIA | F103: saņemšana | G103: 47.97 | H103: 10.07 | I103: 58.04
A104: 204 | B104: 2013.08.17 | C104: 2013.08.17 | D104: ALP 157088 | E104: ALLFRESH PLUS SIA | F104: saņemšana | G104: 42.19 | H104: 8.86 | I104: 51.05
A105: 205 | B105: 2013.08.17 | C105: 2013.08.17 | D105: AAR 585429 | E105: LIETAS MD SIA | F105: saņemšana | G105: 48.96 | H105: 10.28 | I105: 59.24
A106: 206 | B106: 2013.08.17 | C106: 2013.08.17 | D106: FLS 407459 | E106: FAZER LATVIJA SIA | F106: saņemšana | G106: 10.09 | H106: 2.12 | I106: 12.21
A107: 207 | B107: 2013.08.17 | C107: 2013.08.17 | D107: RPK 1595060 | E107: RĪGAS PIENA KOMBINĀTS AS | F107: saņemšana | G107: 53.75 | H107: 11.29 | I107: 65.04
A108: 208 | B108: 2013.08.17 | C108: 2013.08.17 | D108: RPK 1594890 | E108: RĪGAS PIENA KOMBINĀTS AS | F108: saņemšana | G108: 32.63 | H108: 6.85 | I108: 39.48
A109: 209 | B109: 2013.08.17 | C109: 2013.08.17 | D109: VLAT1352171 | E109: VIČIŪNAI-LAT SIA | F109: saņemšana | G109: 28.6 | H109: 6.01 | I109: 34.61
A110: 210 | B110: 2013.08.17 | C110: 2013.08.17 | D110: VLAT 13 52255 | E110: VIČIŪNAI-LAT SIA | F110: saņemšana | G110: 10.5 | H110: 2.21 | I110: 12.71
A111: 211 | B111: 2013.08.17 | C111: 2013.08.16 | D111: CEKS67894 | E111: RIMI LATVIA SIA | F111: saņemšana | G111: 5.54 | H111: 1.16 | I111: 6.7
A112: 212 | B112: 2013.08.17 | C112: 2013.08.17 | D112: VRG 13 3010 | E112: SIA "VICI RESTAURANTS | F112: izsniegšana | G112: -0.88 | H112: 0 | I112: -0.88
A113: 213 | B113: 2013.08.18 | C113: 2013.08.18 | D113: CEKS 225246 | E113: RIMI LATVIA SIA | F113: saņemšana | G113: 3.57 | H113: 0.75 | I113: 4.32
A114: 214 | B114: 2013.08.19 | C114: 2013.08.19 | D114: VRG13 0066 | E114: SIA "VICI RESTAURANTS | F114: pārvietošana | G114: 3.34 | H114: 0 | I114: 3.34
A115: 215 | B115: 2013.08.19 | C115: 2013.08.19 | D115: FLS 408864 | E115: FAZER LATVIJA SIA | F115: saņemšana | G115: 6.72 | H115: 1.41 | I115: 8.13
A116: 216 | B116: 2013.08.19 | C116: 2013.08.19 | D116: RPK 1596437 | E116: RĪGAS PIENA KOMBINĀTS AS | F116: saņemšana | G116: 21.14 | H116: 4.44 | I116: 25.58
A117: 217 | B117: 2013.08.19 | C117: 2013.08.19 | D117: ALP 157146 | E117: ALLFRESH PLUS SIA | F117: saņemšana | G117: 18.65 | H117: 3.92 | I117: 22.57
A118: 218 | B118: 2013.08.19 | C118: 2013.08.19 | D118: AAR 586192 | E118: LIETAS MD SIA | F118: saņemšana | G118: 30.66 | H118: 6.44 | I118: 37.1
A119: 219 | B119: 2013.08.20 | C119: 2013.08.20 | D119: SBAA 292528 | E119: SANITEX BALTIC DISTRIBUTION SIA | F119: saņemšana | G119: 55.3 | H119: 11.61 | I119: 66.91
A120: 220 | B120: 2013.08.20 | C120: 2013.08.20 | D120: CEKS 226832 | E120: RIMI LATVIA SIA | F120: saņemšana | G120: 6.23 | H120: 1.31 | I120: 7.54
A121: 221 | B121: 2013.08.20 | C121: 2013.08.20 | D121: CEKS 234420 | E121: RIMI LATVIA SIA | F121: saņemšana | G121: 1.57 | H121: 0.33 | I121: 1.9
A122: 222 | B122: 2013.08.20 | C122: 2013.08.20 | D122: CEKS 314049 | E122: RIMI LATVIA SIA | F122: saņemšana | G122: 2.57 | H122: 0.54 | I122: 3.11
A123: 223 | B123: 2013.08.21 | C123: 2013.08.20 | D123: LV3RE00058076 | E123: REATON, LTD | F123: saņemšana | G123: 25.83 | H123: 5.42 | I123: 31.25
A124: 224 | B124: 2013.08.21 | C124: 2013.08.21 | D124: LIV13PR57280 | E124: LIVIKO SIA | F124: saņemšana | G124: 69.71 | H124: 14.64 | I124: 84.35
A125: 225 | B125: 2013.08.21 | C125: 2013.08.21 | D125: 2213125139 | E125: CIDO GRUPA SIA | F125: saņemšana | G125: 20.7 | H125: 4.35 | I125: 25.05
A126: 226 | B126: 2013.08.21 | C126: 2013.08.21 | D126: 2213125138 | E126: CIDO GRUPA SIA | F126: saņemšana | G126: 107.56 | H126: 22.59 | I126: 130.15
A127: 227 | B127: 2013.08.21 | C127: 2013.08.21 | D127: MES3458 | E127: MAŽEIKIU MESIŅE | F127: saņemšana | G127: 77.51 | I127: 77.51
A128: 228 | B128: 2013.08.21 | C128: 2013.08.21 | D128: STAB180069 | E128: SANITEX BALTIC DISTRIBUTION SIA | F128: saņemšana | G128: 54.5 | H128: 11.45 | I128: 65.95
A129: 229 | B129: 2013.08.21 | C129: 2013.08.21 | D129: ALP157336 | E129: ALLFRESH PLUS SIA | F129: saņemšana | G129: 43.16 | H129: 9.06 | I129: 52.22
A130: 230 | B130: 2013.08.21 | C130: 2013.08.21 | D130: FLS411421 | E130: FAZER LATVIJA SIA | F130: saņemšana | G130: 4.33 | H130: 0.91 | I130: 5.24
A131: 231 | B131: 2013.08.21 | C131: 2013.08.21 | D131: KDA557617 | E131: KONIG DISTRIBUTION AS | F131: saņemšana | G131: 3.73 | H131: 0.78 | I131: 4.51
A132: 232 | B132: 2013.08.21 | C132: 2013.08.21 | D132: KDA557618 | E132: KONIG DISTRIBUTION AS | F132: saņemšana | G132: 18.85 | H132: 3.96 | I132: 22.81
A133: 233 | B133: 2013.08.21 | C133: 2013.08.21 | D133: AAR587455 | E133: LIETAS MD SIA | F133: saņemšana | G133: 48.56 | H133: 10.2 | I133: 58.76
A134: 234 | B134: 2013.08.21 | C134: 2013.08.21 | D134: RPK1599756 | E134: RĪGAS PIENA KOMBINĀTS AS | F134: saņemšana | G134: 25.78 | H134: 5.41 | I134: 31.19
A135: 235 | B135: 2013.08.22 | C135: 2013.08.21 | D135: CEKS 314538 | E135: RIMI LATVIA SIA | F135: saņemšana | G135: 1.07 | H135: 0.22 | I135: 1.29
A136: 236 | B136: 2013.08.22 | C136: 2013.08.22 | D136: AAR588195 | E136: LIETAS MD SIA | F136: saņemšana | G136: 42.49 | H136: 8.92 | I136: 51.41
A137: 237 | B137: 2013.08.22 | C137: 2013.08.22 | D137: VLAT13/53243 | E137: VIČIŪNAI-LAT SIA | F137: saņemšana | G137: 127.4 | H137: 26.75 | I137: 154.15
A138: 238 | B138: 2013.08.22 | C138: 2013.08.22 | D138: VLAT13/53218 | E138: VIČIŪNAI-LAT SIA | F138: saņemšana | G138: 333.62 | H138: 70.06 | I138: =SUM(G138+H138) -> 403.68
A139: 239 | B139: 2013.08.22 | C139: 2013.08.22 | D139: VLAT13/53233 | E139: VIČIŪNAI-LAT SIA | F139: saņemšana | G139: 189.54 | H139: 39.8 | I139: 229.34
A140: 240 | B140: 2013.08.22 | C140: 2013.08.22 | D140: 3100135068 | E140: COCA-COLA HBC LATVIA SIA | F140: saņemšana | G140: 101.6 | H140: 21.34 | I140: 122.94
A141: 241 | B141: 2013.08.22 | C141: 2013.08.22 | D141: 3100135077 | E141: COCA-COLA HBC LATVIA SIA | F141: atgriešana | G141: -49.27 | H141: -10.35 | I141: -59.62
A142: 242 | B142: 2013.08.22 | C142: 2013.08.22 | D142: ALP157385 | E142: ALLFRESH PLUS SIA | F142: saņemšana | G142: 30.35 | H142: 36.72 | I142: 67.07
A143: 243 | B143: 2013.08.22 | C143: 2013.08.22 | D143: ČEKS315830 | E143: RIMI LATVIA SIA | F143: saņemšana | G143: 3.06 | H143: 0.64 | I143: 3.7
A144: 244 | B144: 2013.08.22 | C144: 2013.08.22 | D144: IBV13-024413 | E144: AS INTERBALTIJA AG | F144: saņemšana | G144: 23.66 | H144: 4.97 | I144: 28.63
A145: 245 | B145: 2013.08.22 | C145: 2013.08.22 | D145: GEMO50733 | E145: GEMOSS SIA | F145: saņemšana | G145: 37.16 | H145: 7.8 | I145: 44.96
A146: 246 | B146: 2013.08.23 | C146: 2013.08.23 | D146: AAR588854 | E146: LIETAS MD SIA | F146: saņemšana | G146: 56.08 | H146: 11.78 | I146: 67.86
A147: 247 | B147: 2013.08.23 | C147: 2013.08.23 | D147: RPK1603567 | E147: AS RIGAS PIENA KOMBINÁTS | F147: saņemšana | G147: 27.6 | H147: 5.8 | I147: 33.4
A148: 248 | B148: 2013.08.23 | C148: 2013.08.23 | D148: SBAA295197 | E148: SANITEX BALTIC DISTRIBUTION SIA | F148: saņemšana | G148: 5.9 | H148: 1.24 | I148: 7.14
A149: 249 | B149: 2013.08.23 | C149: 2013.08.23 | D149: STSB183049 | E149: SANITEX BALTIC DISTRIBUTION SIA | F149: saņemšana | G149: 3.45 | H149: 0.72 | I149: 4.17
A150: 250 | B150: 2013.08.23 | C150: 2013.08.23 | D150: STAB183048 | E150: SANITEX BALTIC DISTRIBUTION SIA | F150: saņemšana | G150: 44.81 | H150: 9.41 | I150: 54.22
A151: 251 | B151: 2013.08.23 | C151: 2013.08.23 | D151: RPK1603702 | E151: AS RIGAS PIENA KOMBINÁTS | F151: saņemšana | G151: 87.67 | H151: =G151*0.21 -> 18.41 | I151: =G151+H151 -> 106.08
A152: 252 | B152: 2013.08.23 | C152: 2013.08.23 | D152: SP337366 | E152: SIA SPILVA | F152: saņemšana | G152: 54.26 | H152: 11.39 | I152: 65.65
A153: 253 | B153: 2013.08.23 | C153: 2013.08.23 | D153: VNK000089189 | E153: UAB VAINEKTA | F153: saņemšana | G153: 68.52 | H153: 0 | I153: 68.52
A154: 254 | B154: 2013.08.23 | C154: 2013.08.23 | D154: SDAA 051699 | E154: SANITEX BALTIC DISTRIBUTION SIA | F154: saņemšana | G154: 0.74 | H154: 0.16 | I154: =SUM(G154+H154) -> 0.9
A155: 255 | B155: 2013.08.24 | C155: 2013.08.24 | D155: RPK 1605480 | E155: AS RIGAS PIENA KOMBINÁTS | F155: saņemšana | G155: 28.4 | H155: =G155*0.21 -> 5.96 | I155: =G155+H155 -> 34.36
A156: 256 | B156: 2013.08.24 | C156: 2013.08.24 | D156: VLAT13 53924 | E156: VIČIŪNAI-LAT SIA | F156: saņemšana | G156: 29.08 | H156: 6.11 | I156: =SUM(G156+H156) -> 35.19
A157: 257 | B157: 2013.08.24 | C157: 2013.08.24 | D157: FLS 414745 | E157: FAZER LATVIJA SIA | F157: saņemšana | G157: 9.6 | H157: 2.02 | I157: 11.62
A158: 258 | B158: 2013.08.24 | C158: 2013.08.24 | D158: ALP 157551 | E158: ALLFRESH PLUS SIA | F158: saņemšana | G158: 48.01 | H158: 10.08 | I158: 58.09
A159: 259 | B159: 2013.08.24 | C159: 2013.08.24 | D159: AAR 589616 | E159: LIETAS MD SIA | F159: saņemšana | G159: 22.5 | H159: 4.73 | I159: 27.23
A160: 260 | B160: 2013.08.24 | C160: 2013.08.22 | D160: LV3RE00058810 | E160: REATON, LTD | F160: saņemšana | G160: 20.6 | H160: 4.33 | I160: 24.93
A161: 261 | B161: 2013.08.24 | C161: 2013.08.23 | D161: MES 3461 | E161: MAŽEIKIU MESIŅE | F161: saņemšana | G161: 97.7 | H161: 0 | I161: 97.7
A162: 262 | B162: 2013.08.24 | C162: 2013.08.22 | D162: VRG 13 3013 | E162: SIA "VICI RESTAURANTS | F162: izsniegšana | G162: -26.34 | H162: 0 | I162: -26.34
A163: 263 | B163: 2013.08.24 | C163: 2013.08.19 | D163: VRG 13 3011 | E163: SIA "VICI RESTAURANTS | F163: izsniegšana | G163: -35.92 | H163: 0 | I163: -35.92
A164: 264 | B164: 2013.08.24 | C164: 2013.08.19 | D164: VRG 13 3012 | E164: SIA "VICI RESTAURANTS | F164: izsniegšana | G164: -2.17 | H164: 0 | I164: -2.17
A165: 265 | B165: 2013.08.26 | C165: 2013.08.26 | D165: MES 3471 | E165: MAŽEIKIU MESIŅE | F165: saņemšana | G165: 74.48 | H165: 0 | I165: 74.48
A166: 266 | B166: 2013.08.26 | C166: 2013.08.26 | D166: AAR 591057 | E166: LIETAS MD SIA | F166: saņemšana | G166: 23.68 | H166: 4.97 | I166: 28.65
A167: 267 | B167: 2013.08.26 | C167: 2013.08.26 | D167: FLS 417454 | E167: FAZER LATVIJA SIA | F167: saņemšana | G167: 6.26 | H167: 1.31 | I167: 7.57
A168: 268 | B168: 2013.08.26 | C168: 2013.08.25 | D168: CEKS 202813 | E168: RIMI LATVIA SIA | F168: saņemšana | G168: 1.47 | H168: 0.31 | I168: 1.78
A169: 269 | B169: 2013.08.28 | C169: 2013.08.28 | D169: CEKS 218439 | E169: RIMI LATVIA SIA | F169: saņemšana | G169: 2.55 | H169: 0.53 | I169: =SUM(G169+H169) -> 3.08
A170: 270 | B170: 2013.08.28 | C170: 2013.08.28 | D170: 2213129114 | E170: CIDO GRUPA SIA | F170: saņemšana | G170: 67.14 | H170: 14.1 | I170: 81.24
A171: 271 | B171: 2013.08.28 | C171: 2013.08.28 | D171: RPK 160551 | E171: AS RIGAS PIENA KOMBINÁTS | F171: saņemšana | G171: 25.19 | H171: 5.29 | I171: 30.48
A172: 272 | B172: 2013.08.28 | C172: 2013.08.28 | D172: EU 13280632 | E172: EUGESTA UN PARTNERI SIA | F172: saņemšana | G172: 70.31 | H172: 14.77 | I172: 85.08
A173: 273 | B173: 2013.08.28 | C173: 2013.08.28 | D173: LV3RE 00059938 | E173: REATON, LTD | F173: saņemšana | G173: 13.47 | H173: 2.83 | I173: 16.3
A174: 274 | B174: 2013.08.28 | C174: 2013.08.28 | D174: VLAT13 54597 | E174: VIČIŪNAI-LAT SIA | F174: saņemšana | G174: 166.48 | H174: 34.96 | I174: 201.44
A175: 275 | B175: 2013.08.28 | C175: 2013.08.28 | D175: VLAT13 54668 | E175: VIČIŪNAI-LAT SIA | F175: saņemšana | G175: 133 | H175: 27.93 | I175: 160.93
A176: 276 | B176: 2013.08.29 | C176: 2013.08.29 | D176: ALP 157846 | E176: ALLFRESH PLUS SIA | F176: saņemšana | G176: 38.37 | H176: 8.06 | I176: 46.43
A177: 277 | B177: 2013.08.29 | C177: 2013.08.29 | D177: AAR 592242 | E177: LIETAS MD SIA | F177: saņemšana | G177: 58.6 | H177: 12.91 | I177: 71.51
A178: 278 | B178: 2013.08.29 | C178: 2013.08.28 | D178: VRG13 0071 | E178: SIA "VICI RESTAURANTS | F178: pārvietošana | G178: 7.4 | H178: 0 | I178: 7.4
A179: 279 | B179: 2013.08.29 | C179: 2013.08.29 | D179: 3100139895 | E179: COCA-COLA HBC LATVIA SIA | F179: saņemšana | G179: 142.24 | H179: 29.87 | I179: 172.11
A180: 280 | B180: 2013.08.29 | C180: 2013.08.29 | D180: 3100139910 | E180: COCA-COLA HBC LATVIA SIA | F180: atgriešana | G180: -41.69 | H180: -8.75 | I180: -50.44
A181: 281 | B181: 2013.08.30 | C181: 2013.08.30 | D181: 2213130908 | E181: SIA CIDO GRUPA | F181: saņemšana | G181: 86.72 | H181: 18.21 | I181: 104.93
A182: 282 | B182: 2013.08.30 | C182: 2013.08.30 | D182: FLS420642 | E182: FAZER LATVIJA SIA | F182: saņemšana | G182: 11.54 | H182: 2.42 | I182: 13.96
A183: 283 | B183: 2013.08.30 | C183: 2013.08.30 | D183: RPK1614004 | E183: AS RIGAS PIENA KOMBINÁTS | F183: saņemšana | G183: 67.79 | H183: 14.24 | I183: 82.03
A184: 284 | B184: 2013.08.30 | C184: 2013.08.30 | D184: RPK1613888 | E184: AS RIGAS PIENA KOMBINÁTS | F184: saņemšana | G184: 32.63 | H184: 6.85 | I184: 39.48
A185: 285 | B185: 2013.08.30 | C185: 2013.08.30 | D185: STAB190475 | E185: SANTEX BALTIC DISTRIBUTION SIA | F185: saņemšana | G185: 18.61 | H185: 3.91 | I185: 22.52
A186: 286 | B186: 2013.08.30 | C186: 2013.08.30 | D186: SBAA300065 | E186: SANTEX BALTIC DISTRIBUTION SIA | F186: saņemšana | G186: 1.35 | H186: 0.28 | I186: 1.63
A187: 287 | B187: 2013.08.30 | C187: 2013.08.30 | D187: ALP157892 | E187: SIA ALLEFRESH PLUS | F187: saņemšana | G187: 35.63 | H187: 7.48 | I187: 43.11
A188: 288 | B188: 2013.08.30 | C188: 2013.08.30 | D188: AAR592866 | E188: LIETAS MD SIA | F188: saņemšana | G188: 118.98 | H188: 24.99 | I188: =SUM(G188+H188) -> 143.97
A189: 289 | B189: 2013.08.30 | C189: 2013.08.30 | D189: VNK000089449 | E189: UAB VAINEKTA | F189: saņemšana | G189: 91.81 | H189: 0 | I189: 91.81
A190: 290 | B190: 2013.08.30 | C190: 2013.08.30 | D190: MES3490 | E190: UAB MAŽEIKIU MESINE | F190: saņemšana | G190: 95.91 | H190: 0 | I190: 95.91
A191: 290/1 | B191: 2013.08.31 | C191: 2013.08.31 | D191: VRG130093 | E191: SIA "VICI RESTAURANTS | F191: pārvietošana | G191: 9.51 | H191: 0 | I191: 9.51
A192: 290/2 | B192: 2013.08.31 | C192: 2013.08.31 | D192: VRG1333026 | E192: SIA "VICI RESTAURANTS | F192: izsniegšana | G192: -271.97 | H192: 0 | I192: -271.97
A193: 290/3 | B193: 2013.08.31 | C193: 2013.08.31 | D193: VRG133027 | E193: SIA "VICI RESTAURANTS | F193: izsniegšana | G193: -49.88 | H193: 0 | I193: -49.88
E195: Kopā | G195: =SUM(G7:G194) -> 6286.55 | H195: =SUM(H7:H194) -> 1214.41 | I195: =SUM(I7:I194) -> 7500.96
G197: =G195+388.22 -> 6674.77
A199: Pārbaudīja: ________________________________ | E199: / N.Andrijevska
A202: Ar gramatvedības uzskaites datiem saskaņots: _________________________________________ | F202: / D.Kravale
G203: Datums: __________________

Sheet 08.2013 Saimnieciba (hidden)
A1: Nr.p.k. | B1: Datums | C1: PVZ | E1: PIEGĀDĀTĀJS | F1: Darījuma apraksts (piegāde, iegāde, izsniegšana, saņemšana, pārvietošana) | G1: PVZ norādītā preču kopējā vērtība | H1: PVN summa | I1: Summa ar PVN
C2: datums | D2: numurs | G2: (bez PVN) | H2: (ja tāda ir)
A3: S43 | B3: 2013.08.06 | C3: 2013.08.06 | D3: TR 221 3115841 | E3: CIDO GRUPA SIA | F3: saņemšana | G3: 0.36 | H3: 0.08 | I3: =SUM(G3+H3) -> 0.44
A4: S44 | B4: 2013.08.06 | C4: 2013.08.06 | D4: GEMO 441644 | E4: GEMOSS | F4: saņemšana | G4: 5.51 | H4: 1.16 | I4: =SUM(G4+H4) -> 6.67
A5: S45 | B5: 2013.08.06 | C5: 2013.08.01 | D5: VRG 13 3003 | E5: SIA "VICI RESTAURANTS | F5: izsniegšana | G5: 7.75 | H5: 0 | I5: 7.75 | J5: SUMMA
A6: S46 | B6: 2013.08.06 | C6: 2013.08.01 | D6: VRG 13 3004 | E6: SIA "VICI RESTAURANTS | F6: izsniegšana | G6: 0 | H6: 0 | I6: 0
A7: S47 | B7: 2013.08.06 | C7: 2013.08.01 | D7: TR HENKELL | E7: HENKELL UN CO BALTIK | F7: saņemšana | G7: 0 | H7: 0 | I7: 0 | L7: atgriešana
A8: S48 | B8: 2013.08.06 | C8: 2013.08.06 | D8: SP10600 | E8: SIA ALAN LTD | F8: saņemšana | G8: 19.28 | H8: 4.05 | I8: 23.33 | L8: izsniegšana
A9: S49 | B9: 2013.08.12 | C9: 2013.08.12 | D9: VRG 13 0061 | E9: SIA "VICI RESTAURANTS | F9: pārvietošana | G9: 12.91 | H9: 0 | I9: 12.91 | L9: pārvietošana
A10: S50 | B10: 2013.08.12 | C10: 2013.08.12 | D10: CEKS 61/677 | E10: YUSK LINNEN N FURNITURE | F10: saņemšana | G10: 0.65 | H10: 0.14 | I10: 0.79 | L10: saņemšana
A11: S51 | B11: 2013.08.13 | C11: 2013.08.13 | D11: GEMO 46216 | E11: GEMOSS | F11: saņemšana | G11: 2.97 | H11: 0.62 | I11: 3.59
A12: S52 | B12: 2013.08.15 | C12: 2013.08.15 | D12: VRG 13 3009 | E12: SIA "VICI RESTAURANTS | F12: izsniegšana | G12: 58.86 | I12: 58.86
A13: S53 | B13: 2013.08.17 | C13: 2013.08.17 | D13: CEKS 224744 | E13: RIMI LATVIA SIA | F13: saņemšana | G13: 1.56 | H13: 0.33 | I13: 1.89
A14: S54 | B14: 2013.08.17 | C14: 2013.08.17 | D14: CEKS 0072956 | E14: DEPO DIY SIA | F14: saņemšana | G14: 5.43 | H14: 1.14 | I14: 6.57
A15: S55 | B15: 2013.08.19 | C15: 2013.08.19 | D15: VRG13 0067 | E15: SIA "VICI RESTAURANTS | F15: pārvietošana | G15: 6.74 | H15: 0 | I15: 6.74
A16: S56 | B16: 2013.08.20 | C16: 2013.08.20 | D16: CEKS 189/1917 | E16: DROGAS SIA | F16: saņemšana | G16: 1.31 | H16: 0.28 | I16: 1.59
A17: S57 | B17: 2013.08.20 | C17: 2013.08.20 | D17: ULTRA130853 | E17: ULTRA SERVISS SIA | F17: saņemšana | G17: 12.4 | H17: 2.6 | I17: 15
A18: S58 | B18: 2013.08.23 | C18: 2013.08.23 | D18: CEKS 229066 | E18: RIMI LATVIA SIA | F18: saņemšana | G18: 1.2 | H18: 0.25 | I18: 1.45
A19: S59 | B19: 2013.08.24 | C19: 2013.08.24 | D19: CEKS 144125 | E19: RIMI LATVIA SIA | F19: saņemšana | G19: 0.82 | H19: 0.17 | I19: 0.99
A20: S60 | B20: 2013.08.24 | C20: 2013.08.22 | D20: VRG 13 3014 | E20: SIA "VICI RESTAURANTS | F20: izsniegšana | G20: 266.93 | H20: 0 | I20: 266.93
A21: S61 | B21: 2013.08.24 | C21: 2013.08.23 | D21: VRG 13 0069 | E21: SIA "VICI RESTAURANTS | F21: pārvietošana | G21: 4.39 | H21: 0 | I21: 4.39
A22: S62 | B22: 2013.08.26 | C22: 2013.08.26 | D22: UCS 004205 | E22: UCS | F22: saņemšana | G22: 28 | H22: 5.88 | I22: 33.88
A23: S63 | B23: 2013.08.26 | C23: 2013.08.13 | D23: VRG 13009 | E23: SIA "VICI RESTAURANTS | F23: izsniegšana | G23: 300.29 | H23: 0 | I23: 300.29
A24: S64 | B24: 2013.08.26 | C24: 2013.08.23 | D24: GEMO 51479 | E24: GEMOSS | F24: saņemšana | G24: 4.63 | H24: 0.97 | I24: 5.6
A25: S65 | B25: 2013.08.26 | C25: 2013.08.23 | D25: BPS 118193 | E25: BALTPAPIRS | F25: saņemšana | G25: 96.54 | H25: 20.27 | I25: 116.81
A26: S66 | F26: saņemšana | I26: 0
A27: S67 | F27: saņemšana | I27: 0
A28: S68 | F28: saņemšana | I28: 0
A29: S69 | F29: saņemšana | I29: 0
A30: S70 | F30: saņemšana | I30: 0
A31: S71 | F31: saņemšana | I31: 0

Sheet 09.2013 (hidden)
A1: SIA `VICI RESTAURANTS`
A2: Reģ.nr. 40103369245
C3: Preču kustības reģistrācijas žurnāls 22.07.2013. - 31.07.2013. struktūrvienībai CHARLIE PIZZA Lielirbes iela 29
B5: Datums | C5: PVZ | E5: PIEGĀDĀTĀJS | F5: Darījuma apraksts (piegāde, iegāde, izsniegšana, saņemšana, pārvietošana) | G5: PVZ norādītā preču kopējā vērtība | H5: PVN summa | I5: Summa ar PVN
C6: datums | D6: numurs | G6: (bez PVN) | H6: (ja tāda ir)
A7: 291 | B7: 2013.09.02 | C7: 2013.09.02 | D7: CEKS 238420 | E7: RIMI LATVIA SIA | F7: saņemšana | G7: 1.21 | H7: 0.25 | I7: =SUM(G7+H7) -> 1.46
A8: 292 | B8: 2013.09.02 | C8: 2013.09.02 | D8: VRG13 0074 | E8: SIA "VICI RESTAURANTS | F8: pārvietošana | G8: 3.42 | H8: 0 | I8: 3.42
A9: 293 | B9: 2013.09.03 | C9: 2013.09.03 | D9: AAR 594883 | E9: LIETAS MD SIA | F9: saņemšana | G9: 34.36 | H9: 7.22 | I9: 41.58
A10: 294 | B10: 2013.09.03 | C10: 2013.09.03 | D10: STAB 193420 | E10: SANITEX BALTIC DISTRIBUTION SIA | F10: saņemšana | G10: 16.93 | H10: 3.56 | I10: 20.49
A11: 295 | B11: 2013.09.03 | C11: 2013.09.03 | D11: SBAA302257 | E11: SANITEX BALTIC DISTRIBUTION SIA | F11: saņemšana | G11: 5.46 | H11: 1.15 | I11: 6.61
A12: 296 | B12: 2013.09.03 | C12: 2013.09.03 | D12: CEKS 328454 | E12: RIMI LATVIA SIA | F12: saņemšana | G12: 1.98 | H12: 0.41 | I12: 2.39
A13: 297 | B13: 2013.09.04 | C13: 2013.09.04 | D13: LV3RE0061635 | E13: LTD REATON | F13: saņemšana | G13: 16.23 | H13: 3.41 | I13: 19.64
A14: 298 | B14: 2013.09.04 | C14: 2013.09.04 | D14: RPK1621655 | E14: AS RĪGAS PIENA KOMBINĀTS | F14: saņemšana | G14: 10.06 | H14: 2.11 | I14: 12.17
A15: 299 | B15: 2013.09.04 | C15: 2013.09.04 | D15: EU13284258 | E15: EUGESTA UN PARTNERI SIA | F15: saņemšana | G15: 70.31 | H15: 14.77 | I15: 85.08
A16: 300 | B16: 2013.09.13 | C16: 2013.09.13 | D16: VRG 3016 | E16: SIA "VICI RESTAURANTS | F16: izsniegšana | G16: 13.19 | H16: 0 | I16: 13.19
A17: 301 | B17: 2013.09.04 | C17: 2013.09.04 | D17: FLS425960 | E17: FAZER LATVIJA SIA | F17: saņemšana | G17: 5.8 | H17: 1.22 | I17: 7.02
A18: 302 | B18: 2013.09.04 | C18: 2013.09.04 | D18: 211543 | E18: SIA CIDO GRUPA | F18: saņemšana | G18: 128.72 | H18: 27.03 | I18: 155.75
A19: 303 | B19: 2013.09.04 | C19: 2013.09.04 | D19: RPK1620759 | E19: AS RĪGAS PIENA KOMBINĀTS | F19: saņemšana | G19: 58.12 | H19: 12.21 | I19: 70.33
A20: 304 | B20: 2013.09.04 | C20: 2013.09.04 | D20: AAR595436 | E20: LIETAS MD SIA | F20: saņemšana | G20: 19.8 | H20: 4.16 | I20: 23.96
A21: 305 | B21: 2013.09.04 | C21: 2013.09.04 | D21: KDA593505 | E21: AS KONIG DISTRIBUTION | F21: saņemšana | G21: 7.4 | H21: 1.55 | I21: 8.95
A22: 306 | B22: 2013.09.04 | C22: 2013.09.04 | D22: KDA563506 | E22: AS KONIG DISTRIBUTION | F22: saņemšana | G22: 7.65 | H22: 1.61 | I22: 9.26
A23: 307 | B23: 2013.09.04 | C23: 2013.09.04 | D23: GEMO55471 | E23: GEMOSS SIA | F23: saņemšana | G23: 36.92 | H23: 7.75 | I23: 44.67
A24: 308 | B24: 2013.09.04 | C24: 2013.09.04 | D24: MESNR3503 | E24: MAŽEIKIU MESIŅE | F24: saņemšana | G24: 64.69 | H24: 0 | I24: 64.69
A25: 309 | B25: 2013.09.04 | C25: 2013.09.04 | D25: ALP 158204 | E25: ALLFRESH PLUS SIA | F25: saņemšana | G25: 44.34 | H25: 9.31 | I25: 53.65
A26: 310 | B26: 2013.09.04 | C26: 2013.09.04 | D26: C 021236 | E26: CIDO GRUPA SIA | F26: atgriešana | G26: 0 | H26: 0 | I26: 0
A27: 311 | B27: 2013.09.05 | C27: 2013.09.05 | D27: 3100144277 | E27: SIA COCA-COLA HBC LATVIA | F27: saņemšana | G27: 146.96 | H27: 30.86 | I27: 177.82
A28: 312 | B28: 2013.09.05 | C28: 2013.09.05 | D28: 3100144284 | E28: SIA COCA-COLA HBC LATVIA | F28: atgriešana | G28: -45.48 | H28: -9.55 | I28: -55.03
A29: 313 | B29: 2013.09.05 | C29: 2013.09.05 | D29: AAR596143 | E29: LIETAS MD SIA | F29: saņemšana | G29: 0 | H29: 0 | I29: 0
A30: 314 | B30: 2013.09.05 | C30: 2013.09.05 | D30: IBV13-025604 | E30: AS INTERBALTIJA AG | F30: saņemšana | G30: 35.49 | H30: 7.45 | I30: 42.94
A31: 315 | B31: 2013.09.05 | C31: 2013.09.05 | D31: 131917 | E31: SERVAALI | F31: saņemšana | G31: 38.4 | H31: 8.06 | I31: 46.46
A32: 316 | B32: 2013.09.05 | C32: 2013.09.05 | D32: FLS426990 | E32: FAZER LATVIJA SIA | F32: saņemšana | G32: 2.37 | H32: 0.5 | I32: 2.87
A33: 317 | B33: 2013.09.05 | C33: 2013.09.05 | D33: ALP158307 | E33: ALLFRESH PLUS SIA | F33: saņemšana | G33: 6.29 | H33: 1.32 | I33: 7.61
A34: 318 | B34: 2013.09.05 | C34: 2013.09.05 | D34: VLAT13/56644 | E34: VIČIŪNAI-LAT SIA | F34: saņemšana | G34: 143.82 | H34: 30.2 | I34: 174.02
A35: 319 | B35: 2013.09.05 | C35: 2013.09.05 | D35: VLAT13/56674 | E35: VIČIŪNAI-LAT SIA | F35: saņemšana | G35: 55.39 | H35: 11.63 | I35: 67.02
A36: 320 | B36: 2013.09.05 | C36: 2013.09.05 | D36: MR13 01296 | E36: MILTINUKO RECEPTAS UAB | F36: saņemšana | G36: 23.4 | H36: 0 | I36: 23.4
A37: 321 | B37: 2013.09.05 | C37: 2013.09.05 | D37: VRG13 0076 | E37: SIA "VICI RESTAURANTS | F37: pārvietošana | G37: 23.24 | H37: 0 | I37: 23.24
A38: 322 | B38: 2013.09.06 | C38: 2013.09.06 | D38: VRG13 3015 | E38: SIA "VICI RESTAURANTS | F38: izsniegšana | G38: 13.45 | H38: 0 | I38: 13.45
A39: 323 | B39: 2013.09.06 | C39: 2013.09.06 | D39: EA753226 | E39: SPILVA SIA | F39: saņemšana | G39: 54.26 | H39: 11.39 | I39: 65.65
A40: 324 | B40: 2013.09.06 | C40: 2013.09.06 | D40: STAB197436 | E40: SANITEX BALTIC DISTRIBUTION SIA | F40: saņemšana | G40: 30.49 | H40: 6.4 | I40: 36.89
A41: 325 | B41: 2013.09.06 | C41: 2013.09.06 | D41: ALP158391 | E41: ALLFRESH PLUS SIA | F41: saņemšana | G41: 19.54 | H41: 4.1 | I41: 23.64
A42: 326 | B42: 2013.09.06 | C42: 2013.09.06 | D42: AAR596775 | E42: LIETAS MD SIA | F42: saņemšana | G42: 27.97 | H42: 5.87 | I42: 33.84
A43: 327 | B43: 2013.09.06 | C43: 2013.09.06 | D43: 3509 | E43: UAB MAŽEIKIU MESINE | F43: saņemšana | G43: 72.14 | H43: 0 | I43: 72.14
A44: 328 | B44: 2013.09.06 | C44: 2013.09.06 | D44: VNK000089735 | E44: UAB VAINEKTA | F44: saņemšana | G44: 84.33 | H44: 0 | I44: 84.33
A45: 329 | B45: 2013.09.07 | C45: 2013.09.07 | D45: FLS429195 | E45: FAZER LATVIJA SIA | F45: saņemšana | G45: 8.21 | H45: 1.72 | I45: 9.93
A46: 330 | B46: 2013.09.07 | C46: 2013.09.07 | D46: RPK1625939 | E46: AS RĪGAS PIENA KOMBINĀTS | F46: saņemšana | G46: 21.73 | H46: 4.56 | I46: 26.29
A47: 331 | B47: 2013.09.07 | C47: 2013.09.07 | D47: RPK1626642 | E47: AS RĪGAS PIENA KOMBINĀTS | F47: saņemšana | G47: 26.38 | H47: 5.54 | I47: 31.92
A48: 332 | B48: 2013.09.07 | C48: 2013.09.07 | D48: AAR597494 | E48: LIETAS MD SIA | F48: saņemšana | G48: 50.86 | H48: 10.68 | I48: 61.54
A49: 333 | B49: 2013.09.07 | C49: 2013.09.07 | D49: ALP158476 | E49: ALLFRESH PLUS SIA | F49: saņemšana | G49: 34.02 | H49: 7.14 | I49: 41.16
A50: 334 | B50: 2013.09.09 | C50: 2013.09.09 | D50: RPK 1627697 | E50: anulēts | F50: saņemšana | I50: 0
A51: 335 | B51: 2013.09.09 | C51: 2013.09.09 | D51: CEKS 326903 | E51: RIMI LATVIA SIA | F51: saņemšana | G51: 0.54 | H51: 0.11 | I51: 0.65
A52: 336 | B52: 2013.09.09 | C52: 2013.09.09 | D52: AAR598218 | E52: LIETAS MD SIA | F52: saņemšana | G52: 26.98 | H52: 5.67 | I52: 32.65
A53: 337 | B53: 2013.09.09 | C53: 2013.09.09 | D53: LIV-13-PR-61601 | E53: LIVIKO SIA | F53: saņemšana | G53: 34.64 | H53: 7.27 | I53: 41.91
A54: 338 | B54: 2013.09.09 | C54: 2013.09.09 | D54: LV3RE0062963 | E54: REATON | F54: saņemšana | G54: 4.49 | H54: 0.94 | I54: 5.43
A55: 339 | B55: 2013.09.09 | C55: 2013.09.09 | D55: GEMO57730 | E55: GEMOSS SIA | F55: saņemšana | G55: 8.14 | H55: 1.71 | I55: 9.85
A56: 340 | B56: 2013.09.09 | C56: 2013.09.09 | D56: GEMO57731 | E56: GEMOSS SIA | F56: saņemšana | G56: 4.26 | H56: 0.89 | I56: 5.15
A57: 341 | B57: 2013.09.09 | C57: 2013.09.09 | D57: RPK1628652 | E57: AS RĪGAS PIENA KOMBINĀTS | F57: saņemšana | G57: 30.69 | H57: 6.44 | I57: 37.13
A58: 342 | B58: 2013.09.10 | C58: 2013.09.10 | D58: ALP 158633 | E58: ALLFRESH PLUS SIA | F58: saņemšana | G58: 10.2 | H58: 2.14 | I58: 12.34
A59: 343 | B59: 2013.09.10 | C59: 2013.09.10 | D59: AAR598891 | E59: LIETAS MD SIA | F59: saņemšana | G59: 16.24 | H59: 3.41 | I59: 19.65
A60: 344 | B60: 2013.09.10 | C60: 2013.09.10 | D60: KDA 565913 | E60: KONIG Distribution | F60: saņemšana | G60: 9.85 | H60: 2.07 | I60: 11.92
A61: 345 | B61: 2013.09.10 | C61: 2013.09.10 | D61: KDA 565912 | E61: KONIG Distribution | F61: saņemšana | G61: 3.7 | H61: 0.78 | I61: 4.48
A62: 346 | B62: 2013.09.10 | C62: 2013.09.10 | D62: SER 131951 | E62: SERVAALI | F62: saņemšana | G62: 33.6 | H62: 7.06 | I62: 40.66
A63: 347 | B63: 2013.09.10 | C63: 2013.09.10 | D63: VLAT13/57580 | E63: VIČIŪNAI-LAT SIA | F63: saņemšana | G63: 41.92 | H63: 8.8 | I63: 50.72
A64: 348 | B64: 2013.09.10 | C64: 2013.09.10 | D64: C 591686 | E64: CIDO GRUPA SIA | F64: saņemšana | G64: 124.31 | H64: 26.11 | I64: 150.42
A65: 349 | B65: 2013.09.10 | C65: 2013.09.10 | D65: RPK1629680 | E65: AS RĪGAS PIENA KOMBINĀTS | F65: saņemšana | G65: 32.15 | H65: 6.75 | I65: 38.9
A66: 350 | B66: 2013.09.11 | C66: 2013.09.11 | D66: AAR 599622 | E66: LIETAS MD SIA | F66: saņemšana | G66: 12.2 | H66: 2.56 | I66: 14.76
A67: 351 | B67: 2013.09.11 | C67: 2013.09.11 | D67: VLAT13/57955 | E67: VIČIŪNAI-LAT SIA | F67: saņemšana | G67: 81.34 | H67: 17.08 | I67: 98.42
A68: 352 | B68: 2013.09.11 | C68: 2013.09.11 | D68: VLAT13/57864 | E68: VIČIŪNAI-LAT SIA | F68: saņemšana | G68: 286.76 | H68: 60.22 | I68: 346.98
A69: 353 | B69: 2013.09.11 | C69: 2013.09.11 | D69: MES NR3524 | E69: MAŽEIKIU MESIŅE | F69: saņemšana | G69: 75.45 | H69: 0 | I69: 75.45
A70: 354 | B70: 2013.09.11 | C70: 2013.09.11 | D70: 3100147544 | E70: SIA COCA-COLA HBC LATVIA | F70: atgriešana | G70: -26.53 | H70: -5.57 | I70: -32.1
A71: 355 | B71: 2013.09.11 | C71: 2013.09.11 | D71: 3100147553 | E71: SIA COCA-COLA HBC LATVIA | F71: saņemšana | G71: 71.12 | H71: 14.93 | I71: 86.05
A72: 356 | B72: 2013.09.11 | C72: 2013.09.11 | D72: LV3RE00063684 | E72: REATON | F72: saņemšana | G72: 20.6 | H72: 4.33 | I72: 24.93
A73: 357 | B73: 2013.09.11 | C73: 2013.09.11 | D73: HP105191 | E73: HENKELL & Co. Baltic SIA | F73: saņemšana | G73: 8.8 | H73: 1.85 | I73: 10.65
A74: 358 | B74: 2013.09.12 | C74: 2013.09.12 | D74: BID 023672 | E74: NOWACO LATVIA SIA | F74: saņemšana | G74: 24.65 | H74: 5.18 | I74: =SUM(G74+H74) -> 29.83
A75: 359 | B75: 2013.09.12 | C75: 2013.09.12 | D75: ALP 158789 | E75: ALLFRESH PLUS SIA | F75: saņemšana | G75: 25.16 | H75: 5.28 | I75: 30.44
A76: 360 | B76: 2013.09.14 | C76: 2013.09.14 | D76: 1328236 | E76: PALINK, SIA | F76: saņemšana | G76: 10.68 | H76: 2.24 | I76: 12.92
A77: 361 | B77: 2013.09.15 | C77: 2013.09.12 | D77: LV300035661 | E77: BALT-HELLIN SIA | F77: saņemšana | G77: 6.44 | H77: 1.35 | I77: 7.79
A78: 362 | B78: 2013.09.13 | C78: 2013.09.13 | D78: AAR600905 | E78: LIETAS MD SIA | F78: saņemšana | G78: 66.23 | H78: 13.91 | I78: 80.14
A79: 363 | B79: 2013.09.13 | C79: 2013.09.13 | D79: RPK1634659 | E79: AS RĪGAS PIENA KOMBINĀTS | F79: saņemšana | G79: 42.51 | H79: 8.93 | I79: 51.44
A80: 364 | B80: 2013.09.13 | C80: 2013.09.13 | D80: VNK000089955 | E80: UAB VAINEKTA | F80: saņemšana | G80: 49.58 | H80: 0 | I80: 49.58
A81: 365 | B81: 2013.09.13 | C81: 2013.09.13 | D81: STAB204626 | E81: SANITEX BALTIC DISTRIBUTION SIA | F81: saņemšana | G81: 30.52 | H81: 6.41 | I81: 36.93
A82: 366 | B82: 2013.09.13 | C82: 2013.09.13 | D82: SBAA311015 | E82: SANITEX BALTIC DISTRIBUTION SIA | F82: saņemšana | G82: 20.61 | H82: 4.33 | I82: 24.94
A83: 367 | B83: 2013.09.13 | C83: 2013.09.13 | D83: FLS435315 | E83: FAZER LATVIJA SIA | F83: saņemšana | G83: 9.13 | H83: 1.92 | I83: 11.05
A84: 368 | B84: 2013.09.13 | C84: 2013.09.13 | D84: RPK1635205 | E84: AS RĪGAS PIENA KOMBINĀTS | F84: saņemšana | G84: 11.29 | H84: 2.37 | I84: 13.66
A85: 369 | B85: 2013.09.15 | C85: 2013.09.15 | D85: FLS437106 | E85: FAZER LATVIJA SIA | F85: saņemšana | G85: 10.13 | H85: 2.13 | I85: 12.26
A86: 370 | B86: 2013.09.15 | C86: 2013.09.15 | D86: AAR601666 | E86: LIETAS MD SIA | F86: saņemšana | G86: 46.02 | H86: 9.66 | I86: 55.68
A87: 371 | B87: 2013.09.20 | C87: 2013.09.20 | D87: MES 3544 | E87: MAŽEIKIU MESIŅE | F87: saņemšana | G87: 101.53 | H87: 0 | I87: 101.53
A88: 372 | B88: 2013.09.16 | C88: 2013.09.16 | D88: RPK1638220 | E88: AS RĪGAS PIENA KOMBINĀTS | F88: saņemšana | G88: 49.25 | H88: 10.34 | I88: 59.59
A89: 373 | B89: 2013.09.16 | C89: 2013.09.16 | D89: ALP 158963 | E89: ALLFRESH PLUS SIA | F89: saņemšana | G89: 56.03 | H89: 11.77 | I89: 67.8
A90: 374 | B90: 2013.09.16 | C90: 2013.09.16 | D90: GEMO60620 | E90: GEMOSS SIA | F90: saņemšana | G90: 39.75 | H90: 8.35 | I90: 48.1
A91: 375 | B91: 2013.09.17 | C91: 2013.09.13 | D91: MES 3530 | E91: MAŽEIKIU MESIŅE | F91: saņemšana | G91: 69.87 | H91: 0 | I91: 69.87
A92: 376 | B92: 2013.09.17 | C92: 2013.09.17 | D92: RPK1640080 | E92: AS RĪGAS PIENA KOMBINĀTS | F92: saņemšana | G92: 28.23 | H92: 5.93 | I92: 34.16
A93: 377 | B93: 2013.09.17 | C93: 2013.09.17 | D93: C 593533 | E93: CIDO GRUPA SIA | F93: saņemšana | G93: 139.8 | H93: 29.36 | I93: 169.16
A94: 378 | B94: 2013.09.17 | C94: 2013.09.17 | D94: LV3RE00064622 | E94: REATON | F94: saņemšana | G94: 10.96 | H94: 2.3 | I94: 13.26
A95: 379 | B95: 2013.09.17 | C95: 2013.09.17 | D95: VLAT13/59064 | E95: VIČIŪNAI-LAT SIA | F95: saņemšana | G95: 207.68 | H95: 43.61 | I95: 251.29
A96: 380 | B96: 2013.09.17 | C96: 2013.09.17 | D96: VLAT13/59260 | E96: VIČIŪNAI-LAT SIA | F96: saņemšana | G96: 23.6 | H96: 4.96 | I96: 28.56
A97: 381 | B97: 2013.09.17 | C97: 2013.09.17 | D97: KDA 568832 | E97: AS KONIG DISTRIBUTION | F97: saņemšana | G97: 13.73 | H97: 2.88 | I97: 16.61
A98: 382 | B98: 2013.09.17 | C98: 2013.09.17 | D98: KDA 568831 | E98: AS KONIG DISTRIBUTION | F98: saņemšana | G98: 11.6 | H98: 2.44 | I98: 14.04
A99: 383 | B99: 2013.09.17 | C99: 2013.09.17 | D99: RPK1640055 | E99: AS RĪGAS PIENA KOMBINĀTS | F99: saņemšana | G99: 22.57 | H99: 4.74 | I99: 27.31
A100: 384 | B100: 2013.09.17 | C100: 2013.09.17 | D100: SBAA313230 | E100: SANITEX BALTIC DISTRIBUTION SIA | F100: saņemšana | G100: 3.64 | H100: 0.76 | I100: 4.4
A101: 385 | B101: 2013.09.17 | C101: 2013.09.17 | D101: STAB207376 | E101: SANITEX BALTIC DISTRIBUTION SIA | F101: saņemšana | G101: 58.22 | H101: 12.23 | I101: 70.45
A102: 386 | B102: 2013.09.17 | C102: 2013.09.17 | D102: SBAA313231 | E102: SANITEX BALTIC DISTRIBUTION SIA | F102: saņemšana | G102: 2.7 | H102: 0.57 | I102: 3.27
A103: 387 | B103: 2013.09.17 | C103: 2013.09.17 | D103: AAR602849 | E103: LIETAS MD SIA | F103: saņemšana | G103: 27.7 | H103: 5.82 | I103: 33.52
A104: 388 | B104: 2013.09.30 | C104: 2013.09.20 | D104: VRG13 0078 | E104: SIA "VICI RESTAURANTS | F104: pārvietošana | G104: 20.32 | H104: 0 | I104: 20.32
A105: 389 | B105: 2013.09.17 | C105: 2013.09.17 | D105: LV3-00035798 | E105: BALT-HELLIN SIA | F105: saņemšana | G105: 6.44 | H105: 1.35 | I105: 7.79
A106: 390 | B106: 2013.09.18 | C106: 2013.09.18 | D106: AAR603540 | E106: LIETAS MD SIA | F106: saņemšana | G106: 16.89 | H106: 3.55 | I106: 20.44
A107: 391 | B107: 2013.09.18 | C107: 2013.09.18 | D107: VLAT13/59645 | E107: VIČIŪNAI-LAT SIA | F107: saņemšana | G107: 16.88 | H107: 3.54 | I107: 20.42
A108: 392 | B108: 2013.09.18 | C108: 2013.09.18 | D108: VLAT13/59630 | E108: VIČIŪNAI-LAT SIA | F108: saņemšana | G108: 221.98 | H108: 46.62 | I108: 268.6
A109: 393 | B109: 2013.09.19 | C109: 2013.09.19 | D109: RPK1643871 | E109: AS RĪGAS PIENA KOMBINĀTS | F109: saņemšana | G109: 41.22 | H109: 8.66 | I109: 49.88
A110: 394 | B110: 2013.09.19 | C110: 2013.09.19 | D110: ALP 159207 | E110: ALLFRESH PLUS SIA | F110: saņemšana | G110: 36.19 | H110: 7.6 | I110: 43.79
A111: 395 | B111: 2013.09.19 | C111: 2013.09.19 | D111: AAR604101 | E111: LIETAS MD SIA | F111: saņemšana | G111: 36.06 | H111: 7.57 | I111: 43.63
A112: 396 | B112: 2013.09.20 | C112: 2013.09.20 | D112: ALP159299 | E112: ALLFRESH PLUS SIA | F112: saņemšana | G112: 53.46 | H112: 11.23 | I112: 64.69
A113: 397 | B113: 2013.09.20 | C113: 2013.09.20 | D113: VNK000090175 | E113: UAB VAINEKTA | F113: saņemšana | G113: 111.3 | H113: 0 | I113: 111.3
A114: 398 | B114: 2013.09.20 | C114: 2013.09.20 | D114: EU13213661 | E114: EUGESTA UN PARTNERI SIA | F114: saņemšana | G114: 161 | H114: 33.81 | I114: 194.81
A115: 399 | B115: 2013.09.20 | C115: 2013.09.20 | D115: SP 344511 | E115: SPILVA SIA | F115: saņemšana | G115: 76.61 | H115: 16.09 | I115: 92.7
A116: 400 | B116: 2013.09.20 | C116: 2013.09.20 | D116: BAR 005165 | E116: BARGI SIA | F116: saņemšana | G116: 21.4 | H116: 4.49 | I116: 25.89
A117: 401 | B117: 2013.09.20 | C117: 2013.09.20 | D117: RPK1645107 | E117: AS RĪGAS PIENA KOMBINĀTS | F117: saņemšana | G117: 62.96 | H117: 13.22 | I117: 76.18
A118: 402 | B118: 2013.09.20 | C118: 2013.09.20 | D118: FLS442542 | E118: FAZER LATVIJA SIA | F118: saņemšana | G118: 11.51 | H118: 2.42 | I118: 13.93
A119: 403 | B119: 2013.09.23 | C119: 2013.09.23 | D119: DOR-0037941 | E119: UAB DORENA | F119: saņemšana | G119: 71.91 | H119: 0 | I119: =SUM(G119+H119) -> 71.91
A120: 404 | B120: 2013.09.23 | C120: 2013.09.23 | D120: SDAA055526 | E120: SANITEX BALTIC DISTRIBUTION SIA | F120: saņemšana | G120: 1.48 | H120: 0.31 | I120: 1.79
A121: 405 | B121: 2013.09.23 | C121: 2013.09.23 | D121: AAR606172 | E121: LIETAS MD SIA | F121: saņemšana | G121: 30.05 | H121: 6.31 | I121: 36.36
A122: 406 | B122: 2013.09.23 | C122: 2013.09.23 | D122: STAB212639 | E122: SANITEX BALTIC DISTRIBUTION SIA | F122: saņemšana | G122: 9.08 | H122: 1.91 | I122: 10.99
A123: 407 | B123: 2013.09.23 | C123: 2013.09.23 | D123: SBAA317504 | E123: SANITEX BALTIC DISTRIBUTION SIA | F123: saņemšana | G123: 6.69 | H123: 1.4 | I123: 8.09
A124: 408 | B124: 2013.09.23 | C124: 2013.09.23 | D124: MES3548 | E124: MAŽEIKIU MESINE UAB | F124: saņemšana | G124: 55.93 | H124: 0 | I124: 55.93
A125: 409 | B125: 2013.09.24 | C125: 2013.09.24 | D125: AAR606884 | E125: LIETAS MD SIA | F125: saņemšana | G125: 42.94 | H125: 9.02 | I125: 51.96
A126: 410 | B126: 2013.09.24 | C126: 2013.09.24 | D126: FLS446320 | E126: FAZER LATVIJA SIA | F126: saņemšana | G126: 6.72 | H126: 1.41 | I126: 8.13
A127: 411 | B127: 2013.09.24 | C127: 2013.09.24 | D127: KDA574488 | E127: AS KONIG DISTRIBUTION | F127: saņemšana | G127: 3.7 | H127: 0.78 | I127: 4.48
A128: 412 | B128: 2013.09.24 | C128: 2013.09.24 | D128: KDA574489 | E128: AS KONIG DISTRIBUTION | F128: saņemšana | G128: 7.67 | H128: 1.61 | I128: 9.28
A129: 413 | B129: 2013.09.24 | C129: 2013.09.24 | D129: EU13215068 | E129: EUGESTA UN PARTNERI SIA | F129: saņemšana | G129: 70.31 | H129: 14.77 | I129: 85.08
A130: 414 | B130: 2013.09.24 | C130: 2013.09.24 | D130: SBAA318965 | E130: SANITEX BALTIC DISTRIBUTION SIA | F130: saņemšana | G130: 3.64 | H130: 0.76 | I130: 4.4
A131: 415 | B131: 2013.09.24 | C131: 2013.09.24 | D131: SBAA318966 | E131: SANITEX BALTIC DISTRIBUTION SIA | F131: saņemšana | G131: 2.7 | H131: 0.57 | I131: 3.27
A132: 416 | B132: 2013.09.24 | C132: 2013.09.24 | D132: SBAB213927 | E132: SANITEX BALTIC DISTRIBUTION SIA | F132: saņemšana | G132: 14.46 | H132: 3.04 | I132: 17.5
A133: 417 | B133: 2013.09.24 | C133: 2013.09.21 | D133: CEKS 244822 | E133: RIMI LATVIA SIA | F133: saņemšana | G133: 0.25 | H133: 0.05 | I133: 0.3
A134: 418 | B134: 2013.09.24 | C134: 2013.09.16 | D134: CEKS 243597 | E134: RIMI LATVIA SIA | F134: saņemšana | G134: 6.5 | H134: 1.37 | I134: 7.87
A135: 419 | B135: 2013.09.24 | C135: 2013.09.15 | D135: CEKS 243889 | E135: RIMI LATVIA SIA | F135: saņemšana | G135: 0.53 | H135: 0.11 | I135: 0.64
A136: 420 | B136: 2013.09.24 | C136: 2013.09.20 | D136: CEKS 226787 | E136: RIMI LATVIA SIA | F136: saņemšana | G136: 3.3 | H136: 0.69 | I136: 3.99
A137: 421 | B137: 2013.09.24 | C137: 2013.09.12 | D137: CEKS 143767 | E137: RIMI LATVIA SIA | F137: saņemšana | G137: 2.07 | H137: 0.43 | I137: 2.5
A138: 422 | B138: 2013.09.24 | C138: 2013.09.11 | D138: CEKS 201422 | E138: RIMI LATVIA SIA | F138: saņemšana | G138: 3.2 | H138: 0.67 | I138: =SUM(G138+H138) -> 3.87
A139: 423 | B139: 2013.09.24 | C139: 2013.09.15 | D139: CEKS 225265 | E139: RIMI LATVIA SIA | F139: saņemšana | G139: 9.53 | H139: 2 | I139: 11.53
A140: 424 | B140: 2013.09.24 | C140: 2013.09.23 | D140: CEKS 206652 | E140: RIMI LATVIA SIA | F140: saņemšana | G140: 6.95 | H140: 1.46 | I140: 8.41
A141: 425 | B141: 2013.09.24 | D141: CEKS215744 | E141: RIMI LATVIA SIA | F141: saņemšana | G141: 3.74 | H141: 0.79 | I141: 4.53
A142: 426 | B142: 2013.09.24 | C142: 2013.09.24 | D142: VLAT13/60921 | E142: VIČIŪNAI-LAT SIA | F142: saņemšana | G142: 168.81 | H142: 35.45 | I142: 204.26
A143: 427 | B143: 2013.09.24 | C143: 2013.09.24 | D143: VLAT 13/60964 | E143: VIČIŪNAI-LAT SIA | F143: saņemšana | G143: 31.74 | H143: 6.67 | I143: 38.41
A144: 428 | B144: 2013.09.24 | C144: 2013.09.24 | D144: RPK 1650304 | E144: AS RĪGAS PIENA KOMBINĀTS | F144: saņemšana | G144: 21.1 | H144: 4.43 | I144: 25.53
A145: 429 | B145: 2013.09.24 | C145: 2013.09.24 | D145: 2213143180 | E145: CIDO GRUPA SIA | F145: saņemšana | G145: 169.88 | H145: 35.67 | I145: 205.55
A146: 430 | B146: 2013.09.24 | C146: 2013.09.22 | D146: AAR 605586 | E146: LIETAS MD SIA | F146: saņemšana | G146: 36.48 | H146: 7.66 | I146: 44.14
A147: 431 | B147: 2013.09.24 | C147: 2013.09.21 | D147: AAR 605483 | E147: LIETAS MD SIA | F147: saņemšana | G147: 61.06 | H147: 12.82 | I147: 73.88
A148: 432 | B148: 2013.09.24 | C148: 2013.09.21 | D148: VLAT1360091 | E148: VIČIŪNAI-LAT SIA | F148: saņemšana | G148: 55.39 | H148: 11.63 | I148: 67.02
A149: 433 | B149: 2013.09.24 | C149: 2013.09.24 | D149: C 021237 | E149: CIDO GRUPA SIA | F149: atgriešana | G149: 0 | H149: 0 | I149: 0
A150: 434 | B150: 2013.09.24 | C150: 2013.09.18 | D150: MES 3538 | E150: MAŽEIKIU MESIŅE | F150: saņemšana | G150: 185.48 | H150: 0 | I150: 185.48
A151: 435 | B151: VRG13 3017 | C151: 2013.09.03 | D151: VRG13 3017 | E151: SIA "VICI RESTAURANTS | F151: izsniegšana | G151: -5.46 | H151: 0 | I151: =SUM(G151+H151) -> -5.46
A152: 436 | B152: 2013.09.25 | C152: 2013.09.25 | D152: LV 00066725 | E152: REATON | F152: saņemšana | G152: 27.25 | H152: 5.72 | I152: 32.97
A153: 437 | B153: 2013.09.25 | C153: 2013.09.25 | D153: MES 3560 | E153: MAŽEIKIU MESIŅE | F153: saņemšana | G153: 62.87 | H153: 0 | I153: 62.87
A154: 438 | B154: 2013.09.25 | C154: 2013.09.25 | D154: 3100155724 | E154: COCA-COLA | F154: saņemšana | G154: 91.44 | H154: 19.2 | I154: 110.64
A155: 439 | B155: 2013.09.25 | C155: 2013.09.25 | D155: 310055714 | E155: COCA-COLA | F155: atgriešana | G155: -53.06 | H155: -11.14 | I155: -64.2
A156: 440 | B156: 2013.09.25 | C156: 2013.09.25 | D156: ALP 159579 | E156: ALLFRESH PLUS SIA | F156: saņemšana | G156: 30.55 | H156: 6.42 | I156: 36.97
A157: 441 | B157: 2013.09.25 | C157: 2013.09.25 | D157: SER 1320264 | E157: SERVAALI | F157: saņemšana | G157: 55.2 | H157: 11.59 | I157: 66.79
A158: 442 | B158: 2013.09.25 | C158: 2013.09.25 | D158: BID 024314 | E158: NOWACO LATVIA SIA | F158: saņemšana | G158: 15.96 | H158: 3.35 | I158: 19.31
A159: 443 | B159: 2013.09.26 | C159: 2013.09.26 | D159: AAR 608024 | E159: LIETAS MD SIA | F159: saņemšana | G159: 38.01 | H159: 7.98 | I159: 45.99
A160: 444 | B160: 2013.09.26 | C160: 2013.09.26 | D160: IBV13 027969 | E160: INTERBALTIJA AG SIA | F160: saņemšana | G160: 25.1 | H160: 5.27 | I160: 30.37
A161: 445 | B161: 2013.09.26 | C161: 2013.09.26 | D161: IBV13 027970 | E161: INTERBALTIJA AG SIA | F161: saņemšana | G161: 23.66 | H161: 4.97 | I161: 28.63
A162: 446 | B162: 2013.09.26 | C162: 2013.09.26 | D162: LIV13PR 66670 | E162: LIVIKO SIA | F162: saņemšana | G162: 56.52 | H162: 11.87 | I162: 68.39
A163: 447 | B163: 2013.09.26 | C163: 2013.09.26 | D163: LV3RE0067323 | E163: REATON | F163: saņemšana | G163: 10.49 | H163: 2.2 | I163: 12.69
A164: 448 | B164: 2013.09.27 | C164: 2013.09.27 | D164: FLS 449667 | E164: FAZER LATVIJA SIA | F164: saņemšana | G164: 8.23 | H164: 1.73 | I164: 9.96
A165: 449 | B165: 2013.09.27 | C165: 2013.09.27 | D165: AAR 608738 | E165: LIETAS MD SIA | F165: saņemšana | G165: 16.15 | H165: 3.39 | I165: 19.54
A166: 450 | B166: 2013.09.27 | C166: 2013.09.27 | D166: RPK 1654888 | E166: AS RĪGAS PIENA KOMBINĀTS | F166: saņemšana | G166: 58.51 | H166: 12.29 | I166: 70.8
A167: 451 | B167: 2013.09.27 | C167: 2013.09.27 | D167: VLAT13 61827 | E167: VIČIŪNAI-LAT SIA | F167: saņemšana | G167: 275.15 | H167: 57.78 | I167: 332.93
A168: 452 | B168: 2013.09.27 | C168: 2013.09.27 | D168: VLAT13 61977 | E168: VIČIŪNAI-LAT SIA | F168: saņemšana | G168: 40.22 | H168: 8.45 | I168: 48.67
A169: 453 | B169: 2013.09.27 | C169: 2013.09.27 | D169: MES 3565 | E169: MAŽEIKIU MESIŅE | F169: saņemšana | G169: 91.16 | H169: 0 | I169: 91.16
A170: 454 | B170: 2013.09.27 | C170: 2013.09.27 | D170: ALP 159760 | E170: ALLFRESH PLUS SIA | F170: saņemšana | G170: 45.45 | H170: 9.54 | I170: 54.99
A171: 455 | B171: 2013.09.27 | C171: 2013.09.27 | D171: VNK 000090425 | E171: UAB VAINEKTA | F171: saņemšana | G171: 48.88 | H171: 0 | I171: 48.88
A172: 456 | B172: 2013.09.27 | C172: 2013.09.27 | D172: RPK 1655294 | E172: AS RĪGAS PIENA KOMBINĀTS | F172: saņemšana | G172: 22.57 | H172: 4.74 | I172: 27.31
A173: 457 | B173: 2013.09.29 | C173: 2013.09.29 | D173: AAR 609471 | E173: LIETAS MD SIA | F173: saņemšana | G173: 50.67 | H173: 10.64 | I173: 61.31
A174: 458 | B174: 2013.09.29 | C174: 2013.09.29 | D174: FLS 451502 | E174: FAZER LATVIJA SIA | F174: saņemšana | G174: 11.24 | H174: 2.36 | I174: 13.6
A175: 459 | B175: 2013.09.29 | C175: 2013.09.28 | D175: AAR 609340 | E175: LIETAS MD SIA | F175: saņemšana | G175: 45.27 | H175: 9.51 | I175: 54.78
A176: 460 | B176: 2013.09.30 | C176: 2013.09.30 | D176: STAB 1909 | E176: SANITEX BALTIC DISTRIBUTION SIA | F176: saņemšana | G176: 42.74 | H176: 8.98 | I176: 51.72
A177: 461 | B177: 2013.09.30 | C177: 2013.09.30 | D177: MES 3571 | E177: MAŽEIKIU MESIŅE | F177: saņemšana | G177: 27.04 | H177: 0 | I177: 27.04
A178: 462 | B178: 2013.09.30 | C178: 2013.09.13 | D178: VRG 0078 | E178: SIA "VICI RESTAURANTS | F178: pārvietošana | G178: 20.54 | H178: 0 | I178: 20.54
A179: 463 | B179: 2013.09.30 | C179: 2013.09.28 | D179: CEKS 145167 | E179: anulēts (dubulta ievade) | F179: saņemšana | I179: 0
A180: 464 | B180: 2013.09.30 | C180: 2013.09.28 | D180: CEKS 346399 | E180: RIMI LATVIA SIA | F180: saņemšana | G180: 3.36 | H180: 0.7 | I180: 4.06
A181: 465 | B181: 2013.09.30 | C181: 2013.09.26 | D181: CEKS 344622 | E181: RIMI LATVIA SIA | F181: saņemšana | G181: 2.45 | H181: 0.52 | I181: 2.97
A182: 466 | B182: 2013.09.30 | C182: 2013.09.27 | D182: CEKS 340737 | E182: RIMI LATVIA SIA | F182: saņemšana | G182: 0.81 | H182: 0.17 | I182: 0.98
A183: 467 | B183: 2013.09.30 | C183: 2013.09.30 | D183: HP 105402 | E183: HENKELL & Co. Baltic SIA | F183: saņemšana | G183: 44.83 | H183: 9.41 | I183: 54.24
A184: 468 | B184: 2013.09.30 | C184: 2013.09.30 | D184: AAR 609995 | E184: LIETAS MD SIA | F184: saņemšana | G184: 25.11 | H184: 5.27 | I184: 30.38
A185: 469 | B185: 2013.09.30 | C185: 2013.09.30 | D185: CEKS 247995 | E185: RIMI LATVIA SIA | F185: saņemšana | G185: 4.64 | H185: 0.97 | I185: 5.61
A186: 470 | B186: 2013.09.30 | C186: 2013.09.30 | D186: CEKS 233994 | E186: RIMI LATVIA SIA | F186: saņemšana | G186: 5.43 | H186: 1.14 | I186: 6.57
A187: 471 | B187: 2013.09.30 | C187: 2013.09.30 | D187: VRG13 3018 | E187: SIA "VICI RESTAURANTS | F187: izsniegšana | G187: 24.48 | H187: 0 | I187: 24.48
A188: 472 | B188: 2013.09.23 | C188: 2013.09.12 | D188: 201422 | E188: anulēts (dubulta ievade) | F188: saņemšana | I188: 0
A189: 473 | B189: 2013.09.30 | C189: 2013.09.15 | D189: 206652 | E189: anulēts (dubulta ievade) | F189: saņemšana | I189: 0
A190: 473/1 | B190: 2013.09.31 | C190: 2013.09.28 | D190: CEKS 145167 | E190: RIMI LATVIA SIA | F190: saņemšana | G190: 3.13 | H190: 0.66 | I190: 3.79
E191: Kopā | G191: =SUM(G7:G190) -> 6835.21 | H191: =SUM(H7:H190) -> 1160.53 | I191: =SUM(I7:I190) -> 7995.74
A195: Pārbaudīja: ________________________________ | E195: /
A198: Ar gramatvedības uzskaites datiem saskaņots: _________________________________________ | F198: / D.Kravale
G199: Datums: __________________

Sheet Compatibility Report (hidden)
B1: Compatibility Report for pr.kustuba 2013.xls
B2: Run on 2013.09.12 16:48
B4: The following features in this workbook are not supported by earlier versions of Excel. These features may be lost or degraded when you save this workbook in an earlier file format.
B6: Minor loss of fidelity | E6: # of occurrences
B8: Some cells or styles in this workbook contain formatting that is not supported by the selected file format. These formats will be converted to the closest format available. | E8: 6

Sheet 09.2013 Saimnieciba (hidden)
A1: Nr.p.k. | B1: Datums | C1: PVZ | E1: PIEGĀDĀTĀJS | F1: Darījuma apraksts (piegāde, iegāde, izsniegšana, saņemšana, pārvietošana) | G1: PVZ norādītā preču kopējā vērtība | H1: PVN summa | I1: Summa ar PVN
C2: datums | D2: numurs | G2: (bez PVN) | H2: (ja tāda ir)
A4: S44 | B4: 2013.09.23 | C4: 2013.09.15 | D4: 242184 | E4: RIMI LATVIA SIA | F4: saņemšana | G4: 1.52 | H4: 0.32 | I4: =G4+H4 -> 1.84 | J4: S-HAUS IR
A5: S45 | B5: 2013.09.17 | C5: 2013.09.17 | D5: LV3-00035797 | E5: BALT-HELLIN SIA | F5: saņemšana | G5: 25.48 | H5: 5.35 | I5: 30.83 | J5: S-HAUS IR
A6: S47 | B6: 2013.09.23 | C6: 2013.09.18 | D6: 204988 | E6: RIMI LATVIA SIA | F6: saņemšana | G6: 2.21 | H6: 0.46 | I6: 2.67 | J6: S-HAUS IR
A7: S51 | B7: 2013.09.23 | C7: 2013.09.16 | D7: 336204 | E7: RIMI LATVIA SIA | F7: saņemšana | G7: 0.64 | H7: 0.14 | I7: 0.78 | J7: S-HAUS IR
A8: S52 | B8: 2013.09.23 | C8: 2013.09.16 | D8: 24/1944 | E8: DROGAS | F8: saņemšana | G8: 1.57 | H8: 0.33 | I8: 1.9 | J8: S-HAUS IR
A9: S53 | B9: 2013.09.23 | C9: 2013.09.18 | D9: 314466 | E9: SIA A APTIEKA | F9: saņemšana | G9: 3.04 | H9: 0.37 | I9: 3.41 | J9: Zale
A10: S54 | B10: 2013.09.24 | C10: 2013.09.14 | D10: CEKS 0905068 | E10: VALTER UN RAPA SIA | F10: saņemšana | G10: 1.96 | H10: 0.41 | I10: 2.37 | J10: Iz.lente
A11: S55 | B11: 2013.09.23 | C11: 2013.09.23 | D11: 11/1951 | E11: DROGAS | F11: saņemšana | G11: 5.77 | H11: 1.21 | I11: 6.98 | J11: S-HAUS IR
A12: S56 | B12: 2013.09.06 | C12: 2013.09.06 | D12: CEKS 406281 | E12: CENUKLUBS | F12: saņemšana | G12: 2.31 | H12: 0.49 | I12: 2.8 | J12: Iz.lente
A13: S58 | B13: 2013.09.30 | C13: 2013.09.30 | D13: 247994 | E13: RIMI LATVIA SIA | F13: saņemšana | G13: 3.43 | H13: 0.72 | I13: =G13+H13 -> 4.15 | J13: S-HAUS IR
A14: S59 | B14: 2013.09.26 | C14: 2013.09.26 | D14: CEKS 3/1954 | E14: DROGAS | F14: saņemšana | G14: 0.96 | H14: 0.2 | I14: 1.16 | J14: S-HAUS IR
A15: S60 | B15: 2013.09.23 | C15: 2013.09.11 | D15: 48/5105 | E15: ATSLEGU CENTRS | F15: saņemšana | G15: 3.64 | H15: 0.76 | I15: 4.4 | J15: Atslegas
A16: S61 | B16: 2013.09.23 | C16: 2013.09.12 | D16: 208418 | E16: RIMI LATVIA SIA | F16: saņemšana | G16: 2.21 | H16: 0.46 | I16: 2.67 | J16: S-HAUS IR
A17: S62 | B17: 2013.09.23 | C17: 2013.09.21 | D17: 140358 | E17: RIMI LATVIA SIA | F17: saņemšana | G17: 3.6 | H17: 0.75 | I17: 4.35 | J17: S-HAUS IR
A18: S63 | B18: 2013.09.04 | C18: 2013.09.04 | D18: EU13283857 | E18: EUGESTA UN PARTNERI SIA | F18: saņemšana | G18: 2.72 | H18: 0.57 | I18: 3.29 | J18: S-HAUS IR
A19: S64 | B19: 2013-09-30 | C19: 2013.09.09 | D19: GEMO 57730 | E19: GEMOSS SIA | F19: saņemšana | G19: 3.91 | H19: 0.82 | I19: =G19+H19 -> 4.73 | J19: S-HAUS IR
A20: S65 | B20: 2013.09.24 | C20: 2013.09.24 | D20: TS 021339 | E20: TEHNOINFORMSERVIS | F20: saņemšana | G20: 31.01 | H20: 6.51 | I20: 37.52 | J20: S-HAUS IR
A21: S66 | B21: 2013.09.24 | C21: 2013.09.24 | D21: PK 117318 | E21: PIREKA SIA | F21: saņemšana | G21: 38.88 | H21: 8.16 | I21: 47.04 | J21: S-HAUS IR
A22: S67 | B22: 2013.09.24 | C22: 2013.09.20 | D22: EU 13213662 | E22: EUGESTA UN PARTNERI SIA | F22: saņemšana | G22: 0 | H22: 0 | I22: 0 | J22: S-HAUS IR
A23: S68 | B23: 2013.09.24 | C23: 2013.09.16 | D23: GEMO 606119 | E23: GEMOSS SIA | F23: saņemšana | G23: 13.26 | H23: 2.78 | I23: 16.04 | J23: S-HAUS IR
A24: S69 | B24: 2013.09.24 | C24: 2013.09.16 | D24: PK117178 | E24: SIA PIREKA | F24: saņemšana | G24: 51.1 | H24: 10.73 | I24: 61.83 | J24: S-HAUS IR
A25: S70 | B25: 2013.09.24 | C25: 2013.09.06 | D25: CEKS 314141 | E25: SIA JANIS ROZE | F25: saņemšana | G25: 1.6 | H25: 0.34 | I25: 1.94 | J25: Kases gramata
A26: S72 | B26: 2013.09.24 | C26: 2013.09.05 | D26: CEKS 416962 | E26: SIA JANIS ROZE | F26: saņemšana | G26: 1.63 | H26: 0.34 | I26: 1.97 | J26: Skotc 2-puses
A27: S73 | B27: 2013.09.29 | C27: 2013.09.29 | D27: CEKS 346569 | E27: RIMI LATVIA SIA | F27: saņemšana | G27: 1.26 | H27: 0.26 | I27: 1.52 | J27: S-HAUS IR
A28: S74 | B28: 2013.09.29 | C28: 2013.09.29 | D28: CEKS 6/1957 | E28: DROGAS | F28: saņemšana | G28: 1.42 | H28: 0.3 | I28: 1.72 | J28: S-HAUS IR
A29: S75 | B29: 2013.09.29 | C29: 2013.09.27 | D29: CEKS 251514 | E29: RIMI LATVIA SIA | F29: saņemšana | G29: 3.19 | H29: 0.67 | I29: 3.86 | J29: S-HAUS IR
A30: S76 | B30: 2013-09-30 | C30: 2013-09-30 | D30: VRG13 1055 | E30: VICI RESTAURANTS | F30: pārvietošana | G30: 2.99 | H30: 0 | I30: 2.99 | J30: S-HAUS IR
A31: S77 | B31: 2013.09.30 | C31: 2013.09.28 | D31: CEKS 145167 | E31: RIMI LATVIA SIA | F31: saņemšana | G31: 0.74 | H31: 0.15 | I31: =G31+H31 -> 0.89 | J31: S-HAUS IR
B38: 2013.09.08 | C38: 2013.09.08 | D38: 905068 | E38: SIA JANIS ROZE | F38: saņemšana | G38: 1.94 | H38: 0.41 | I38: =G38+H38 -> 2.35 | J38: nv ceka nav s-hausa ?????

Sheet 10.2013 SAIMNIECIBAS (hidden)
B1: Datums | C1: PVZ | E1: PIEGĀDĀTĀJS | F1: Darījuma apraksts (piegāde, iegāde, izsniegšana, saņemšana, pārvietošana) | G1: PVZ norādītā preču kopējā vērtība | H1: PVN summa | I1: Summa ar PVN
C2: datums | D2: numurs | G2: (bez PVN) | H2: (ja tāda ir)
A3: S78 | B3: 2013.10.01 | C3: 2013.10.01 | D3: GEMO 065777 | E3: GEMOSS SIA | F3: saņemšana | G3: 6.48 | H3: 1.36 | I3: 7.84 | J3: S-HAUS IR
A4: S79 | B4: 2013.10.02 | C4: 2013.10.02 | D4: 348386 | E4: RIMI LATVIA SIA | F4: saņemšana | G4: 1.94 | H4: 0.41 | I4: =SUM(G4+H4) -> 2.35 | J4: S-HAUS IR
A5: S80 | B5: 2013.10.02 | C5: 2013.10.02 | D5: 344599 | E5: RIMI LATVIA SIA | F5: saņemšana | G5: 0.74 | H5: 0.15 | I5: 0.89 | J5: S-HAUS IR
A6: S81 | B6: 2013.10.03 | C6: 2013.10.03 | D6: 345070 | E6: RIMI LATVIA SIA | F6: saņemšana | G6: 0.98 | H6: 0.2 | I6: 1.18 | J6: S-HAUS IR
A7: S82 | B7: 2013.10.04 | C7: 2013.10.04 | D7: 345832 | E7: RIMI LATVIA SIA | F7: saņemšana | G7: 1.46 | H7: 0.31 | I7: 1.77 | J7: S-HAUS IR | M7: atgriešana
A8: S83 | B8: 2013.10.05 | C8: 2013.10.05 | D8: 100106 | E8: CENUKLUBS SIA | F8: saņemšana | G8: 3.83 | H8: 0.8 | I8: 4.63 | J8: S-HAUS IR | M8: izsniegšana
A9: S84 | B9: 2013.10.06 | C9: 2013.10.06 | D9: 54/1964 | E9: DROGAS SIA | F9: saņemšana | G9: 3.3 | H9: 0.69 | I9: 3.99 | J9: S-HAUS IR | M9: pārvietošana
A10: S85 | B10: 2013.10.09 | C10: 2013.10.09 | D10: SRC-302743 | E10: BRIO SRC | F10: saņemšana | G10: 24 | H10: 5.04 | I10: 29.04 | J10: S-HAUS IR | M10: saņemšana
A11: S86 | B11: 2013.10.15 | C11: 2013.10.10 | D11: CEKS 190/1969 | E11: DROGAS SIA | F11: saņemšana | G11: 2.2 | H11: 0.46 | I11: 2.66 | J11: S-HAUS IR
A12: S87 | B12: 2013.10.15 | C12: 2013.10.11 | D12: CEKS 148458 | E12: RIMI LATVIA SIA | F12: saņemšana | G12: 1.82 | H12: 0.38 | I12: 2.2 | J12: S-HAUS IR | M12: GEMOSS SIA
A13: S88 | B13: 2013.10.15 | C13: 2013.10.14 | D13: CEKS 261759 | E13: RIMI LATVIA SIA | F13: saņemšana | G13: 3.29 | H13: 0.69 | I13: 3.98 | J13: S-HAUS IR | M13: MAŽEIKIU MESIŅE
A14: S89 | B14: 2013.10.15 | C14: 2013.10.15 | D14: CEKS 354357 | E14: RIMI LATVIA SIA | F14: saņemšana | G14: 1.47 | H14: 0.31 | I14: 1.78 | J14: S-HAUS IR | M14: AS KONIG DISTRIBUTION
A15: S90 | B15: 2013.10.15 | C15: 2013.10.15 | D15: S GEMO 71341 | E15: GEMOSS SIA | F15: saņemšana | G15: 4.5 | H15: 0.95 | I15: 5.45 | J15: S-HAUS IR | M15: SPI DISTRIBUTION SIA
A16: S91 | B16: 2013.10.16 | C16: 2013.10.16 | D16: CEKS 2/731 | E16: JUSK LINNEN N FURNITURE | F16: saņemšana | G16: 0.74 | H16: 0.15 | I16: 0.89 | J16: S-HAUS IR | M16: ALLFRESH PLUS SIA
A17: S92 | B17: 2013.10.16 | C17: 2013.10.16 | D17: 2213153682 | E17: CIDO GRUPA SIA | F17: saņemšana | G17: 0.96 | H17: 0.2 | I17: 1.16 | J17: S-HAUS IR | M17: NOWACO LATVIA SIA
A18: S93 | B18: 2013.10.17 | C18: 2013.10.17 | D18: TS 021768 | E18: TEHNOINFORM SERVISS SIA | F18: saņemšana | G18: 16.15 | H18: 3.39 | I18: 19.54 | J18: S-HAUS IR | M18: LIETAS MD SIA
A19: S94 | B19: 2013.10.17 | C19: 2013.10.17 | D19: GEMO72491 | E19: GEMOSS SIA | F19: saņemšana | G19: 14.18 | H19: 2.98 | I19: 17.16 | J19: S-HAUS IR | M19: FAZER LATVIJA SIA
A20: S95 | B20: 2013.10.17 | C20: 2013.10.17 | D20: PK117691 | E20: SIA PIREKA | F20: saņemšana | G20: 56.17 | H20: 11.8 | I20: 67.97 | J20: S-HAUS IR | M20: EUGESTA UN PARTNERI SIA
A21: S96 | B21: 2013.10.18 | C21: 2013.10.18 | D21: CEKS 243/74 | E21: JUSK LINNEN N FURNITURE | F21: saņemšana | G21: 15.79 | H21: 3.32 | I21: =SUM(G21+H21) -> 19.11 | J21: S-HAUS IR | M21: VIČIŪNAI-LAT SIA
A22: S97 | B22: 2013.10.18 | C22: 2013.10.18 | D22: CEKS 00014351 | E22: TIGER SHOP SIA | F22: saņemšana | G22: 2.48 | H22: 0.52 | I22: =SUM(G22+H22) -> 3 | J22: S-HAUS IR | M22: INTERBALTIJA AG A/S
A23: S98 | B23: 2013.10.18 | C23: 2013.10.18 | D23: BPS 118966 | E23: BALTPAPIRS SIA | F23: saņemšana | G23: 92.95 | H23: 19.16 | I23: =SUM(G23+H23) -> 112.11 | J23: S-HAUS IR | M23: SPILVA SIA
A24: S99 | B24: 2013.10.24 | C24: 2013.10.24 | D24: VRG13 3021 | E24: SIA "VICI RESTAURANTS | F24: izsniegšana | G24: 12.6 | H24: 0 | I24: =SUM(G24+H24) -> 12.6 | J24: S-HAUS IR | M24: LIEPURIN SIA
A25: S100 | B25: 2013.10.24 | C25: 2013.10.24 | D25: CEKS 04993137 | E25: PRISMA LATVIJA | F25: saņemšana | G25: 0.18 | H25: 0.22 | I25: 0.4 | J25: Kríts skolas | M25: CIDO GRUPA SIA
A26: S101 | B26: 2013.10.25 | C26: 2013.10.25 | D26: DROGAS 2560/1983 | E26: DROGAS SIA | F26: saņemšana | G26: 2.25 | H26: 0.47 | I26: 2.72 | J26: S-HAUS IR | M26: COCA-COLA HBC LATVIA SIA
A27: S102 | B27: 2013.10.25 | C27: 2013.10.25 | D27: CEKS 188 | E27: JANIS ROZE | F27: saņemšana | G27: 0.37 | H27: 0.08 | I27: 0.45 | J27: Klade 48 lap. | M27: BARGI SIA
A28: S103 | B28: 2013.10.26 | C28: 2013.10.26 | D28: CEKS 120 | E28: JANIS ROZE | F28: saņemšana | G28: 1.6 | H28: 0.34 | I28: 1.94 | J28: Kases gramata | M28: SERVAALI LATVIA SIA
A29: S104 | B29: 2013.10.26 | C29: 2013.10.26 | D29: CEKS 366230 | E29: RIMI LATVIA SIA | F29: saņemšana | G29: 0.57 | H29: 0.12 | I29: 0.69 | J29: S-HAUS IR | M29: SANITEX BALTIC DISTRIBUTION SIA
A30: S105 | B30: 2013.10.09 | C30: 2013.10.09 | D30: 405312 | E30: CENUKLUBS SIA | F30: saņemšana | G30: 3.54 | H30: 0.74 | I30: 4.28 | M30: RĪGAS PIENA KOMBINĀTS AS
A31: S106 | B31: 2013.10.16 | C31: 2013.10.16 | D31: 2/731 | E31: JUSK LINNEN N FURNITURE | F31: saņemšana | G31: 0.74 | H31: 0.15 | I31: 0.89 | M31: FJB LATVIA SIA
A32: S107 | B32: 2013.10.18 | C32: 2013.10.18 | D32: 243/741 | E32: JUSK LINNEN N FURNITURE | F32: saņemšana | G32: 15.79 | H32: 3.32 | I32: 19.11 | M32: MILTINUKO RECEPTAS UAB
A33: S108 | B33: 2013.10.18 | C33: 2013.10.18 | D33: 14351 | E33: TIGER SHOP SIA | F33: saņemšana | G33: 2.48 | H33: 0.52 | I33: 3 | M33: VAINEKTA UAB
A34: S109 | B34: 2013.10.20 | C34: 2013.10.20 | D34: 33/735 | E34: JUSK LINNEN N FURNITURE | F34: saņemšana | G34: 2.76 | H34: 0.58 | I34: 3.34 | M34: REATON, LTD
A35: S110 | B35: 2013.10.25 | C35: 2013.10.25 | D35: 188 | E35: JANIS ROZE | F35: saņemšana | G35: 0.37 | H35: 0.08 | I35: 0.45 | M35: RIMI LATVIA SIA
A36: S111 | B36: 2013.10.25 | C36: 2013.10.25 | D36: 260/1983 | E36: DROGAS SIA | F36: saņemšana | G36: 2.25 | H36: 0.47 | I36: 2.72 | M36: LIETAS MD SIA
A37: S112 | B37: 2013.10.27 | C37: 2013.10.27 | D37: 366230 | E37: RIMI LATVIA SIA | F37: saņemšana | G37: 0.57 | H37: 0.12 | I37: 0.69 | M37: FAZER LATVIJA SIA
A38: S113 | B38: 2013.10.28 | C38: 2013.10.28 | D38: GEMO 737221 | E38: GEMOSS SIA | F38: saņemšana | G38: 15.16 | H38: 3.18 | I38: 18.34 | M38: EUGESTA UN PARTNERI SIA
A39: S114 | B39: 2013.10.29 | C39: 2013.10.29 | D39: VRG131063 | E39: pārvietošana | F39: pārvietošana | G39: 29.98 | I39: 29.98 | M39: VIČIŪNAI-LAT SIA
A40: S115 | B40: 2013.10.29 | F40: saņemšana | I40: 0 | M40: INTERBALTIJA AG A/S
A41: S116 | B41: 2013.10.31 | F41: saņemšana | I41: 0 | M41: SPILVA SIA
A42: S117 | F42: saņemšana | I42: 0 | M42: LIEPURIN SIA
A43: S118 | F43: saņemšana | I43: 0 | M43: CIDO GRUPA SIA
A44: S119 | F44: saņemšana | I44: 0 | M44: COCA-COLA HBC LATVIA SIA
A45: S120 | F45: saņemšana | I45: 0 | M45: BARGI SIA
A46: S121 | F46: saņemšana | I46: 0 | M46: SERVAALI LATVIA SIA
F47: saņemšana | I47: 0
F48: saņemšana | I48: 0 | M48: SANITEX BALTIC DISTRIBUTION SIA
F49: saņemšana | I49: 0 | M49: RĪGAS PIENA KOMBINĀTS AS
F50: saņemšana | I50: 0 | M50: FJB LATVIA SIA
F51: saņemšana | I51: 0 | M51: MILTINUKO RECEPTAS UAB
F52: saņemšana | I52: 0 | M52: VAINEKTA UAB
F53: saņemšana | I53: 0 | M53: REATON, LTD
F54: saņemšana | I54: 0 | M54: RIMI LATVIA SIA
F55: saņemšana | I55: 0
F56: saņemšana | I56: 0
F57: saņemšana | I57: 0
F58: saņemšana | I58: 0
F59: saņemšana | I59: 0
F60: saņemšana | I60: 0
F61: saņemšana | I61: 0
F62: saņemšana | I62: 0
F63: saņemšana | I63: 0
F64: saņemšana | I64: 0
F65: saņemšana | I65: 0
F66: saņemšana | I66: 0
F67: saņemšana | I67: 0
F68: saņemšana | I68: 0
F69: saņemšana | I69: 0
F70: saņemšana | I70: 0
F71: saņemšana | I71: =SUM(G71+H71) -> 0
F72: saņemšana | I72: 0
F73: saņemšana | I73: 0
F74: saņemšana | I74: 0
F75: saņemšana | I75: 0
F76: saņemšana | I76: 0
F77: saņemšana | I77: 0
F78: saņemšana | I78: 0
F79: saņemšana | I79: 0
F80: saņemšana | I80: 0
F81: saņemšana | I81: 0
F82: saņemšana | I82: 0
F83: saņemšana | I83: 0
F84: saņemšana | I84: 0
F85: saņemšana | I85: 0
F86: saņemšana | I86: 0
F87: saņemšana | I87: 0
F88: saņemšana | I88: 0
F89: saņemšana | I89: 0
F90: saņemšana | I90: 0
F91: saņemšana | I91: 0
F92: saņemšana | I92: 0
F93: saņemšana | I93: 0
F94: saņemšana | I94: 0
F95: saņemšana | I95: 0
F96: saņemšana | I96: 0
F97: saņemšana | I97: 0
F98: saņemšana | I98: 0
F99: saņemšana | I99: 0
F100: saņemšana | I100: 0
F101: saņemšana | I101: 0
F102: saņemšana | I102: 0
F103: saņemšana | I103: 0
F104: saņemšana | I104: 0
F105: saņemšana | I105: 0
F106: saņemšana | I106: 0
F107: saņemšana | I107: 0
F108: saņemšana | I108: 0
F109: saņemšana | I109: 0
F110: saņemšana | I110: 0 | J110: 158.36 | K110: 0.702804
F111: saņemšana | I111: 0
F112: saņemšana | I112: 0
F113: saņemšana | I113: 0
F114: saņemšana | I114: 0
F115: saņemšana | I115: 0
F116: saņemšana | I116: =SUM(G116+H116) -> 0 | J116: 102.32 | K116: 0.702804
F117: saņemšana | I117: 0
F118: saņemšana | I118: 0
F119: saņemšana | I119: 0
F120: saņemšana | I120: 0
F121: saņemšana | I121: 0 | J121: 79.58 | K121: 0.702804
F122: saņemšana | I122: 0
F123: saņemšana | I123: 0
F124: saņemšana | I124: 0
F125: saņemšana | I125: 0
F126: saņemšana | I126: 0
F127: saņemšana | I127: 0
F128: saņemšana | I128: 0
F129: saņemšana | I129: 0
F130: saņemšana | I130: 0
F131: saņemšana | I131: 0
F132: saņemšana | I132: 0
F133: saņemšana | I133: 0
F134: saņemšana | I134: 0
F135: saņemšana | I135: =SUM(G135+H135) -> 0
F136: saņemšana | I136: 0
F137: saņemšana | I137: 0
F138: saņemšana | I138: 0
F139: saņemšana | I139: 0
F140: saņemšana | I140: 0
F141: saņemšana | I141: 0
F142: saņemšana | I142: 0
F143: saņemšana | I143: 0
F144: saņemšana | I144: 0
F145: saņemšana | I145: 0
F146: saņemšana | I146: 0
F147: saņemšana | I147: 0
F148: saņemšana | I148: 0
F149: saņemšana | I149: 0
F150: saņemšana | I150: 0
F151: saņemšana | I151: 0
F152: saņemšana | I152: 0
F153: saņemšana | I153: 0
F154: saņemšana | I154: 0
F155: saņemšana | I155: 0
F156: saņemšana | I156: 0
F157: saņemšana | I157: 0
F158: saņemšana | I158: 0
F159: saņemšana | I159: 0
F160: saņemšana | I160: 0
F161: saņemšana | I161: 0
F162: saņemšana | I162: 0
F163: saņemšana | I163: 0
F164: saņemšana | I164: 0
F165: saņemšana | I165: 0
F166: saņemšana | I166: 0
F167: saņemšana | I167: 0
F168: saņemšana | I168: 0
F169: saņemšana | I169: 0
F170: saņemšana | I170: 0
F171: saņemšana | I171: 0
F172: saņemšana | I172: 0
F173: saņemšana | I173: 0
F174: saņemšana | I174: 0
F175: saņemšana | I175: 0
F176: saņemšana | I176: 3.79
F177: saņemšana | I177: 0
F178: saņemšana | I178: 0
F179: saņemšana | I179: 0
F180: saņemšana | I180: 0
F181: saņemšana | I181: 0
F182: saņemšana | I182: 0
F183: saņemšana | I183: 0
F184: saņemšana | I184: 0
F185: saņemšana | I185: 0
F186: saņemšana | I186: 0
F187: saņemšana | I187: 0
F188: saņemšana | I188: 0
F189: saņemšana | I189: 0
F190: saņemšana | I190: 0
F191: saņemšana | I191: 0
F192: saņemšana | I192: 0
F193: saņemšana | I193: 0
F194: saņemšana | I194: 0
F195: saņemšana | I195: 0
F196: saņemšana | I196: 0
F197: saņemšana | I197: 0
F198: saņemšana | I198: 0
F199: saņemšana | I199: =SUM(G199+H199) -> 0
F200: saņemšana | I200: 0
... 22 more rows

Sheet Sheet1 (hidden)
B1: Datums | C1: PVZ | E1: PIEGĀDĀTĀJS | F1: Darījuma apraksts (piegāde, iegāde, izsniegšana, saņemšana, pārvietošana) | G1: PVZ norādītā preču kopējā vērtība | H1: PVN summa | I1: Summa ar PVN
C2: datums | D2: numurs | G2: (bez PVN) | H2: (ja tāda ir)
A3: 479 | B3: 2013.10.03 | C3: 2013.10.03 | D3: ALP 160133 | E3: ALLFRESH PLUS SIA | F3: saņemšana | G3: 31.28 | H3: 6.57 | I3: =SUM(G3+H3) -> 37.85
A4: 491 | B4: 2013.10.05 | C4: 2013.10.05 | D4: ALP 160313 | E4: ALLFRESH PLUS SIA | F4: saņemšana | G4: 42.84 | H4: 9 | I4: 51.84
A5: 504 | B5: 2013.10.08 | C5: 2013.10.08 | D5: ALP160423 | E5: ALLFRESH PLUS SIA | F5: saņemšana | G5: 68.75 | H5: 14.44 | I5: 83.19 | M5: PICU KASTES
A6: 514 | B6: 2013.10.11 | C6: 2013.10.01 | D6: ALP 159966 | E6: ALLFRESH PLUS SIA | F6: saņemšana | G6: 45.66 | H6: 9.59 | I6: 55.25 | M6: atgriešana
A7: 543 | B7: 2013.10.11 | C7: 2013.10.11 | D7: ALP 160705 | E7: ALLFRESH PLUS SIA | F7: saņemšana | G7: 41.62 | H7: 8.74 | I7: 50.36 | M7: izsniegšana
A8: 550 | B8: 2013.10.15 | C8: 2013.10.15 | D8: ALP 160874 | E8: ALLFRESH PLUS SIA | F8: saņemšana | G8: 27.67 | H8: 5.81 | I8: 33.48 | M8: pārvietošana
A9: 580 | B9: 2013.10.18 | C9: 2013.10.18 | D9: ALP 161140 | E9: ALLFRESH PLUS SIA | F9: saņemšana | G9: 32.55 | H9: 6.84 | I9: 39.39 | M9: saņemšana
A10: 606 | B10: 2013.10.22 | C10: 2013.10.22 | D10: ALP 161378 | E10: ALLFRESH PLUS SIA | F10: saņemšana | G10: 32.89 | H10: 6.91 | I10: 39.8 | M10: vienreireji trauki
A11: 612 | B11: 2013.10.24 | C11: 2013.10.24 | D11: ALP 161534 | E11: ALLFRESH PLUS SIA | F11: saņemšana | G11: 25.54 | H11: 5.36 | I11: 30.9 | M11: GEMOSS SIA
A12: 637 | B12: 2013.10.26 | C12: 2013.10.26 | D12: ALP 161656 | E12: ALLFRESH PLUS SIA | F12: saņemšana | G12: 69.65 | H12: 14.63 | I12: 84.28 | M12: ALLFRESH PLUS SIA
A13: 501 | B13: 2013.10.08 | C13: 2013.10.08 | D13: IBV13-028884 | E13: AS INTERBALTIJA AG | F13: saņemšana | G13: 28.02 | H13: 5.88 | I13: 33.9 | M13: AS KONIG DISTRIBUTION
A14: 502 | B14: 2013.10.08 | C14: 2013.10.08 | D14: IBV13-028886 | E14: AS INTERBALTIJA AG | F14: saņemšana | G14: 23.66 | H14: 4.97 | I14: 28.63 | M14: BARGI SIA
A15: 515 | B15: 2013.10.11 | C15: 2013.10.01 | D15: KDA 577303 | E15: AS KONIG DISTRIBUTION | F15: saņemšana | G15: 26.1 | H15: 5.48 | I15: 31.58 | M15: BARGI SIA
A16: 535 | B16: 2013.10.11 | C16: 2013.10.11 | D16: KDA 581609 | E16: AS KONIG DISTRIBUTION | F16: saņemšana | G16: 12.06 | H16: 2.53 | I16: 14.59 | M16: CIDO GRUPA SIA
A17: 536 | B17: 2013.10.11 | C17: 2013.10.11 | D17: KDA 581610 | E17: AS KONIG DISTRIBUTION | F17: saņemšana | G17: 7.4 | H17: 1.55 | I17: 8.59 | M17: CIDO GRUPA SIA
A18: 592 | B18: 2013.10.18 | C18: 2013.10.18 | D18: KDA 584241 | E18: AS KONIG DISTRIBUTION | F18: saņemšana | G18: 1.7 | H18: 0.36 | I18: =SUM(G18+H18) -> 2.06 | M18: COCA-COLA HBC LATVIA SIA
A19: 593 | B19: 2013.10.18 | C19: 2013.10.18 | D19: KDA 584240 | E19: AS KONIG DISTRIBUTION | F19: saņemšana | G19: 6.98 | H19: 1.47 | I19: 8.45 | M19: COCA-COLA HBC LATVIA SIA
A20: 534 | B20: 2013.10.11 | C20: 2013.10.11 | D20: BAR 005261 | E20: BARGI SIA | F20: saņemšana | G20: 15.11 | H20: 3.17 | I20: 18.28 | M20: EUGESTA UN PARTNERI SIA
A21: 516 | B21: 2013.10.11 | C21: 2013.10.01 | D21: 2213146460 | E21: CIDO GRUPA SIA | F21: saņemšana | G21: 156.89 | H21: 32.95 | I21: 189.84 | M21: EUGESTA UN PARTNERI SIA
A22: 517 | B22: 2013.10.11 | C22: 2013.10.01 | D22: C 021238 | E22: CIDO GRUPA SIA | F22: atgriešana | G22: 0 | H22: 0 | I22: 0 | M22: FAZER LATVIJA SIA
A23: 537 | B23: 2013.10.11 | C23: 2013.10.11 | D23: 2213152006 | E23: CIDO GRUPA SIA | F23: saņemšana | G23: 51.9 | H23: 10.9 | I23: 62.8 | M23: FAZER LATVIJA SIA
A24: 544 | B24: 2013.10.11 | C24: 2013.10.11 | D24: 2213151705 | E24: CIDO GRUPA SIA | F24: saņemšana | G24: 87.71 | H24: 18.42 | I24: 106.13 | M24: FJB LATVIA SIA
A25: 547 | B25: 2013.10.15 | C25: 2013.10.11 | D25: C 021239 | E25: CIDO GRUPA SIA | F25: atgriešana | G25: 0 | H25: 0 | I25: 0 | M25: FJB LATVIA SIA
A26: 570 | B26: 2013.10.16 | C26: 2013.10.16 | D26: 2213153682 | E26: CIDO GRUPA SIA | F26: saņemšana | G26: 40.02 | H26: 8.4 | I26: 48.42 | M26: INTERBALTIJA AG A/S
A27: 594 | B27: 2013.10.18 | C27: 2013.10.18 | D27: 2213155151 | E27: CIDO GRUPA SIA | F27: saņemšana | G27: 150.64 | H27: 31.63 | I27: 182.27 | M27: INTERBALTIJA AG A/S
A28: 628 | B28: 2013.10.25 | C28: 2013.10.25 | D28: 2213158491 | E28: CIDO GRUPA SIA | F28: saņemšana | G28: 141.2 | H28: 29.65 | I28: 170.85 | M28: LIEPURIN SIA
A29: 480 | B29: 2013.10.04 | C29: 2013.10.04 | D29: 3100161506 | E29: COCA-COLA HBC LATVIA SIA | F29: saņemšana | G29: 60.96 | H29: 12.81 | I29: 73.77 | M29: LIEPURIN SIA
A30: 481 | B30: 2013.10.04 | C30: 2013.10.04 | D30: 3100161526 | E30: COCA-COLA HBC LATVIA SIA | F30: atgriešana | G30: -49.27 | H30: -10.35 | I30: -59.62 | M30: LIETAS MD SIA
A31: 508 | B31: 2013.10.11 | C31: 2013.10.01 | D31: 3100159026 | E31: COCA-COLA HBC LATVIA SIA | F31: saņemšana | G31: 91.44 | H31: 19.2 | I31: 110.64 | M31: LIETAS MD SIA
A32: 525 | B32: 2013.10.11 | C32: 2013.10.09 | D32: 3100163649 | E32: COCA-COLA HBC LATVIA SIA | F32: atgriešana | G32: -37.9 | H32: -7.96 | I32: -45.86 | M32: MAŽEIKIU MESIŅE
A33: 526 | B33: 2013.10.11 | C33: 2013.10.09 | D33: 3100163637 | E33: COCA-COLA HBC LATVIA SIA | F33: saņemšana | G33: 91.44 | H33: 19.2 | I33: 110.64 | M33: MILTINUKO RECEPTAS UAB
A34: 572 | B34: 2013.10.16 | C34: 2013.10.16 | D34: 3100167313 | E34: COCA-COLA HBC LATVIA SIA | F34: atgriešana | G34: -30.32 | H34: -6.37 | I34: -36.69 | M34: MILTINUKO RECEPTAS UAB
A35: 573 | B35: 2013.10.16 | C35: 2013.10.16 | D35: 310 0 1667320 | E35: COCA-COLA HBC LATVIA SIA | F35: saņemšana | G35: 66.66 | H35: 14 | I35: 80.66 | M35: NOWACO LATVIA SIA
A36: 599 | B36: 2013.10.21 | C36: 2013.10.21 | D36: 3100169929 | E36: COCA-COLA HBC LATVIA SIA | F36: saņemšana | G36: 104.74 | H36: 21.99 | I36: 126.73 | M36: REATON, LTD
A37: 631 | B37: 2013.10.25 | C37: 2013.10.25 | D37: 3100172988 | E37: COCA-COLA HBC LATVIA SIA | F37: atgriešana | G37: -41.69 | H37: -8.75 | I37: -50.44 | M37: REATON, LTD
A38: 632 | B38: 2013.10.25 | C38: 2013.10.25 | D38: 3100172984 | E38: COCA-COLA HBC LATVIA SIA | F38: saņemšana | G38: 190.46 | H38: 40 | I38: 230.46 | M38: RIMI LATVIA SIA
A39: 624 | B39: 2013.10.24 | C39: 2013.10.24 | D39: DOR 0038333 | E39: DORENA UAB | F39: saņemšana | G39: 93.4 | H39: 0 | I39: 93.4 | M39: RIMI LATVIA SIA
A40: 616 | B40: 2013.10.24 | C40: 2013.10.24 | D40: EU13241844 | E40: EUGESTA | F40: vienreireji trauki | G40: 0 | H40: 0 | I40: 0 | M40: RĪGAS PIENA KOMBINĀTS AS
A41: 617 | B41: 2013.10.24 | C41: 2013.10.24 | D41: EU13242344 | E41: EUGESTA | F41: saņemšana | G41: 150.81 | H41: 31.67 | I41: 182.48 | M41: RĪGAS PIENA KOMBINĀTS AS
A42: 487 | B42: 2013.10.05 | C42: 2013.10.05 | D42: FLS457917 | E42: FAZER LATVIJA SIA | F42: saņemšana | G42: 9.15 | H42: 1.92 | I42: 11.07 | M42: SANITEX BALTIC DISTRIBUTION SIA
A43: 511 | B43: 2013.10.11 | C43: 2013.10.01 | D43: FLS453524 | E43: FAZER LATVIJA SIA | F43: saņemšana | G43: 4.76 | H43: 1 | I43: 5.76 | M43: SANITEX BALTIC DISTRIBUTION SIA
A44: 524 | B44: 2013.10.11 | C44: 2013.10.09 | D44: FLS461806 | E44: FAZER LATVIJA SIA | F44: saņemšana | G44: 3.88 | H44: 0.81 | I44: 4.69 | M44: SERVAALI LATVIA SIA
A45: 542 | B45: 2013.10.11 | C45: 2013.10.11 | D45: FLS463974 | E45: FAZER LATVIJA SIA | F45: saņemšana | G45: 15.09 | H45: 3.17 | I45: 18.26 | M45: SERVAALI LATVIA SIA
A46: 553 | B46: 2013.10.15 | C46: 2013.10.15 | D46: FLS 467885 | E46: FAZER LATVIJA SIA | F46: saņemšana | G46: 8.23 | H46: 1.73 | I46: 9.96 | M46: SPI DISTRIBUTION SIA
A47: 591 | B47: 2013.10.18 | C47: 2013.10.18 | D47: FLS 471177 | E47: FAZER LATVIJA SIA | F47: saņemšana | G47: 14.41 | H47: 3.03 | I47: 17.44 | M47: SPILVA SIA
A48: 603 | B48: 2013.10.22 | C48: 2013.10.22 | D48: FLS475001 | E48: FAZER LATVIJA SIA | F48: saņemšana | G48: 6.8 | H48: 1.43 | I48: 8.23 | M48: SPILVA SIA
A49: 640 | B49: 2013.10.26 | C49: 2013.10.26 | D49: FLS 479470 | E49: FAZER LATVIJA SIA | F49: saņemšana | G49: 12.04 | H49: 2.53 | I49: 14.57 | M49: VAINEKTA UAB
A50: 474 | B50: 2013.10.02 | C50: 2013.10.02 | D50: GEMO66882 | E50: GEMOSS SIA | F50: saņemšana | G50: 31.35 | H50: 6.58 | I50: =SUM(G50+H50) -> 37.93 | M50: VAINEKTA UAB
A51: 546 | B51: 2013.10.15 | C51: 2013.10.01 | D51: GEMO 65776 | E51: GEMOSS SIA | F51: saņemšana | G51: 33.76 | H51: 7.09 | I51: 40.85 | M51: VIČIŪNAI-LAT SIA
A52: 554 | B52: 2013.10.15 | C52: 2013.10.15 | D52: GEMO 71341 | E52: GEMOSS SIA | F52: saņemšana | G52: 19.33 | H52: 4.05 | I52: 23.38 | M52: VIČIŪNAI-LAT SIA
A53: 622 | B53: 2013.10.24 | C53: 2013.10.24 | D53: GEMO0735847 | E53: GEMOSS SIA | F53: saņemšana | G53: 22.47 | H53: 4.72 | I53: 27.19
A54: 623 | B54: 2013.10.24 | C54: 2013.10.24 | D54: GEMO0735532 | E54: GEMOSS SIA | F54: saņemšana | G54: 14.59 | H54: 3.06 | I54: 17.65
A55: 519 | B55: 2013.10.11 | C55: 2013.10.09 | D55: HP105540 | E55: HENKELL & CO. BALTIC SIA | F55: saņemšana | G55: 10.06 | H55: 2.11 | I55: 12.17
A56: 614 | B56: 2013.10.24 | C56: 2013.10.24 | D56: KDA 586491 | E56: KONIG | F56: saņemšana | G56: 11.6 | H56: 2.44 | I56: 14.04
A57: 615 | B57: 2013.10.24 | C57: 2013.10.24 | D57: KDA 586490 | E57: KONIG | F57: saņemšana | G57: 13.19 | H57: 2.77 | I57: 15.96
A58: 626 | B58: 2013.10.24 | C58: 2013.10.24 | D58: LEIP 13101697 | E58: LIEPURIN SIA | F58: saņemšana | G58: 15.1 | H58: 3.17 | I58: 18.27
A59: 475 | B59: 2013.10.02 | C59: 2013.10.02 | D59: AAR611245 | E59: LIETAS MD SIA | F59: saņemšana | G59: 0 | H59: 0 | I59: 0
A60: 477 | B60: 2013.10.03 | C60: 2013.10.03 | D60: AAR611775 | E60: LIETAS MD SIA | F60: saņemšana | G60: 29.66 | H60: 6.23 | I60: 35.89
A61: 483 | B61: 2013.10.04 | C61: 2013.10.04 | D61: AAR612471 | E61: LIETAS MD SIA | F61: saņemšana | G61: 30.85 | H61: 6.48 | I61: 37.33
A62: 498 | B62: 2013.10.07 | C62: 2013.10.07 | D62: AAR613858 | E62: LIETAS MD SIA | F62: saņemšana | G62: 31.96 | H62: 6.71 | I62: 38.67
A63: 503 | B63: 2013.10.08 | C63: 2013.10.08 | D63: AAR614522 | E63: LIETAS MD SIA | F63: saņemšana | G63: 29.6 | H63: 6.22 | I63: 35.82
A64: 506 | B64: 2013.10.08 | C64: 2013.10.06 | D64: AAR613287 | E64: LIETAS MD SIA | F64: saņemšana | G64: 34.51 | H64: 7.25 | I64: 41.76
A65: 521 | B65: 2013.10.11 | C65: 2013.10.09 | D65: AAR615117 | E65: LIETAS MD SIA | F65: saņemšana | G65: 32.47 | H65: 6.82 | I65: 39.29
A66: 539 | B66: 2013.10.11 | C66: 2013.10.11 | D66: AAR616332 | E66: LIETAS MD SIA | F66: saņemšana | G66: 29.5 | H66: 6.2 | I66: 35.7
A67: 545 | B67: 2013.10.12 | C67: 2013.10.12 | D67: AAR616903 | E67: LIETAS MD SIA | F67: saņemšana | G67: 70.54 | H67: 14.81 | I67: 85.35
A68: 548 | B68: 2013.10.15 | C68: 2013.10.15 | D68: AAR 617591 | E68: LIETAS MD SIA | F68: saņemšana | G68: 26.04 | H68: 5.47 | I68: 31.51
A69: 549 | B69: 2013.10.15 | C69: 2013.10.15 | D69: AAR 618278 | E69: LIETAS MD SIA | F69: saņemšana | G69: 21.71 | H69: 4.56 | I69: 26.27
A70: 576 | B70: 2013.10.16 | C70: 2013.10.16 | D70: AAR 618857 | E70: LIETAS MD SIA | F70: saņemšana | G70: 20.94 | H70: 4.4 | I70: 25.34
A71: 577 | B71: 2013.10.17 | C71: 2013.10.17 | D71: AAR619385 | E71: LIETAS MD SIA | F71: saņemšana | G71: 21.12 | H71: 4.44 | I71: 25.56
A72: 581 | B72: 2013.10.18 | C72: 2013.10.18 | D72: AAR 620084 | E72: LIETAS MD SIA | F72: saņemšana | G72: 33.82 | H72: 7.1 | I72: 40.92
A73: 595 | B73: 2013.10.19 | C73: 2013.10.19 | D73: AAR 620677 | E73: LIETAS MD SIA | F73: saņemšana | G73: 102.84 | H73: 21.6 | I73: 124.44
A74: 600 | B74: 2013.10.21 | C74: 2013.10.21 | D74: AAR621409 | E74: LIETAS MD SIA | F74: saņemšana | G74: 29.78 | H74: 6.25 | I74: 36.03
A75: 608 | B75: 2013.10.23 | C75: 2013.10.23 | D75: AAR622596 | E75: LIETAS MD SIA | F75: saņemšana | G75: 26.69 | H75: 5.6 | I75: 32.29
A76: 613 | B76: 2013.10.24 | C76: 2013.10.24 | D76: AAR622998 | E76: LIETAS MD SIA | F76: saņemšana | G76: 15.94 | H76: 3.35 | I76: 19.29
A77: 636 | B77: 2013.10.25 | C77: 2013.10.25 | D77: AAR 623607 | E77: LIETAS MD SIA | F77: saņemšana | G77: 20.97 | H77: 4.4 | I77: 25.37
A78: 638 | B78: 2013.10.26 | C78: 2013.10.26 | D78: AAR 624319 | E78: LIETAS MD SIA | F78: saņemšana | G78: 75.95 | H78: 15.95 | I78: 91.9
A79: 639 | B79: 2013.10.26 | C79: 2013.10.26 | D79: AAR 624272 | E79: LIETAS MD SIA | F79: saņemšana | G79: 40.39 | H79: 8.48 | I79: 48.87
A80: 518 | B80: 2013.10.11 | C80: 2013.10.07 | D80: LIV-13-PR-68728 | E80: LIVIKO SIA | F80: saņemšana | G80: 250.52 | H80: 52.61 | I80: 303.13
A81: 476 | B81: 2013.10.02 | C81: 2013.10.02 | D81: MES NR 3577 | E81: MAŽEIKIU MESIŅE | F81: saņemšana | G81: 32.84 | H81: 0 | I81: 32.84
A82: 486 | B82: 2013.10.04 | C82: 2013.10.04 | D82: MES NR 3582 | E82: MAŽEIKIU MESIŅE | F82: saņemšana | G82: 29.22 | H82: 0 | I82: =SUM(G82+H82) -> 29.22
A83: 527 | B83: 2013.10.11 | C83: 2013.10.09 | D83: MES NR 3599 | E83: MAŽEIKIU MESIŅE | F83: saņemšana | G83: 55.78 | H83: 0 | I83: 55.78
A84: 528 | B84: 2013.10.11 | C84: 2013.10.11 | D84: MES NR 3605 | E84: MAŽEIKIU MESIŅE | F84: saņemšana | G84: 72.94 | H84: 0 | I84: 72.94
A85: 571 | B85: 2013.10.16 | C85: 2013.10.16 | D85: MES 3617 | E85: MAŽEIKIU MESIŅE | F85: saņemšana | G85: 34.1 | H85: 0 | I85: 34.1
A86: 589 | B86: 2013.10.18 | C86: 2013.10.18 | D86: MES 3622 | E86: MAŽEIKIU MESIŅE | F86: saņemšana | G86: 102.75 | H86: 0 | I86: 102.75
A87: 619 | B87: 2013.10.24 | C87: 2013.10.24 | D87: MES NR 3633 | E87: MAŽEIKIU MESIŅE | F87: saņemšana | G87: 208.1 | H87: 0 | I87: 208.1
A88: 627 | B88: 2013.10.25 | C88: 2013.10.25 | D88: MES 3642 | E88: MAŽEIKIU MESIŅE | F88: saņemšana | G88: 121.65 | H88: 0 | I88: 121.65
A89: 607 | B89: 2013.10.22 | C89: 2013.10.22 | D89: MR13 01594 | E89: MILTINUKO RECEPTAS | F89: saņemšana | G89: 31.2 | H89: 0 | I89: 31.2
A90: 509 | B90: 2013.10.11 | C90: 2013.10.01 | D90: BID 024572 | E90: NOWACO LATVIA SIA | F90: saņemšana | G90: 76.94 | H90: 16.16 | I90: 93.1
A91: 620 | B91: 2013.10.24 | C91: 2013.10.24 | D91: BID 025803 | E91: NOWACO LATVIA SIA | F91: saņemšana | G91: 55.75 | H91: 11.71 | I91: 67.46
A92: 505 | B92: 2013.10.08 | C92: 2013.10.08 | D92: LV3RE00069565 | E92: REATON LTD | F92: saņemšana | G92: 35.9 | H92: 7.54 | I92: 43.44
A93: 590 | B93: 2013.10.18 | C93: 2013.10.18 | D93: LV3RE00072178 | E93: REATON LTD | F93: saņemšana | G93: 23.88 | H93: 5.01 | I93: 28.89
A94: 618 | B94: 2013.10.24 | C94: 2013.10.24 | D94: LV3RE0072253 | E94: REATON LTD | F94: saņemšana | G94: 40.21 | H94: 8.44 | I94: 48.65
A95: 510 | B95: 2013.10.11 | C95: 2013.10.01 | D95: RPK1659995 | E95: RIGAS PIENA KOMBINATS | F95: saņemšana | G95: 31.41 | H95: 6.6 | I95: 38.01
A96: 531 | B96: 2013.10.11 | C96: 2013.10.11 | D96: RPK1673839 | E96: RIGAS PIENA KOMBINATS | F96: saņemšana | G96: 66.85 | H96: 14.04 | I96: 80.89
A97: 533 | B97: 2013.10.11 | C97: 2013.10.11 | D97: RPK1673685 | E97: RIGAS PIENA KOMBINATS | F97: saņemšana | G97: 21.35 | H97: 4.48 | I97: 25.83
A98: 556 | B98: 2013.10.15 | C98: 2013.10.15 | D98: RPK 1678608 | E98: RIGAS PIENA KOMBINATS | F98: saņemšana | G98: 65.62 | H98: 13.78 | I98: 79.4
A99: 582 | B99: 2013.10.18 | C99: 2013.10.18 | D99: RPK 1683691 | E99: RIGAS PIENA KOMBINATS | F99: saņemšana | G99: 74.4 | H99: 15.62 | I99: 90.02 | J99: TR ,96
A100: 585 | B100: 2013.10.18 | C100: 2013.10.18 | D100: RPK 16833474 | E100: RIGAS PIENA KOMBINATS | F100: saņemšana | G100: 11.29 | H100: 2.37 | I100: 13.66
A101: 601 | B101: 2013.10.22 | C101: 2013.10.22 | D101: PRK1688046 | E101: RIGAS PIENA KOMBINATS | F101: saņemšana | G101: 44.58 | H101: 9.36 | I101: 53.94
A102: 602 | B102: 2013.10.22 | C102: 2013.10.22 | D102: PRK1688917 | E102: RIGAS PIENA KOMBINATS | F102: saņemšana | G102: 26.38 | H102: 5.54 | I102: 31.92
A103: 611 | B103: 2013.10.24 | C103: 2013.10.24 | D103: RPK1691411 | E103: RIGAS PIENA KOMBINATS | F103: saņemšana | G103: 59.23 | H103: 12.44 | I103: 71.67
A104: 641 | B104: 2013.10.26 | C104: 2013.10.26 | D104: RPK 1694281 | E104: RIGAS PIENA KOMBINATS | F104: saņemšana | G104: 40.24 | H104: 8.45 | I104: 48.69
A105: 488 | B105: 2013.10.05 | C105: 2013.10.01 | D105: 108828 | E105: RIMI LATVIA SIA | F105: saņemšana | G105: 0.88 | H105: 0.19 | I105: 1.07
A106: 489 | B106: 2013.10.05 | C106: 2013.10.02 | D106: 348387 | E106: RIMI LATVIA SIA | F106: saņemšana | G106: 0.82 | H106: 0.17 | I106: 0.99
A107: 490 | B107: 2013.10.05 | C107: 2013.10.05 | D107: 252076 | E107: RIMI LATVIA SIA | F107: saņemšana | G107: 19.62 | H107: 4.12 | I107: 23.74
A108: 492 | B108: 2013.10.05 | C108: 2013.10.05 | D108: 38038 | E108: RIMI LATVIA SIA | F108: saņemšana | G108: 10.86 | H108: 2.28 | I108: 13.14
A109: 493 | B109: 2013.10.06 | C109: 2013.10.06 | D109: 211304 | E109: RIMI LATVIA SIA | F109: saņemšana | G109: 16.98 | H109: 3.57 | I109: 20.55
A110: 494 | B110: 2013.10.06 | C110: 2013.10.06 | D110: 256777 | E110: RIMI LATVIA SIA | F110: saņemšana | G110: 0.98 | H110: 0.2 | I110: 1.18
A111: 495 | B111: 2013.10.06 | C111: 2013.10.06 | D111: 250174 | E111: RIMI LATVIA SIA | F111: saņemšana | G111: 1.6 | H111: 0.33 | I111: 1.93
A112: 496 | B112: 2013.10.07 | C112: 2013.10.07 | D112: 232124 | E112: RIMI LATVIA SIA | F112: saņemšana | G112: 10.27 | H112: 2.16 | I112: 12.43
A113: 560 | B113: 2013.10.15 | C113: 2013.10.08 | D113: CEKS 147931 | E113: RIMI LATVIA SIA | F113: saņemšana | G113: 1.29 | H113: 0.27 | I113: 1.56
A114: 561 | B114: 2013.10.15 | C114: 2013.10.08 | D114: CEKS 232608 | E114: RIMI LATVIA SIA | F114: saņemšana | G114: 6.69 | H114: 1.41 | I114: =SUM(G114+H114) -> 8.1
A115: 562 | B115: 2013.10.15 | C115: 2013.10.10 | D115: CEKS 353604 | E115: RIMI LATVIA SIA | F115: saņemšana | G115: 1.55 | H115: 0.33 | I115: 1.88
A116: 563 | B116: 2013.10.15 | C116: 2013.10.10 | D116: CEKS 169267 | E116: RIMI LATVIA SIA | F116: saņemšana | G116: 0.27 | H116: 0.06 | I116: 0.33
A117: 564 | B117: 2013.10.15 | C117: 2013.10.12 | D117: CEKS 355185 | E117: RIMI LATVIA SIA | F117: saņemšana | G117: 3.29 | H117: 0.69 | I117: 3.98
A118: 565 | B118: 2013.10.15 | C118: 2013.10.13 | D118: CEKS 356117 | E118: RIMI LATVIA SIA | F118: saņemšana | G118: 0.82 | H118: 0.17 | I118: 0.99
A119: 566 | B119: 2013.10.15 | C119: 2013.10.13 | D119: CEKS 353261 | E119: RIMI LATVIA SIA | F119: saņemšana | G119: 3.11 | H119: 0.65 | I119: 3.76
A120: 567 | B120: 2013.10.15 | C120: 2013.10.14 | D120: CEKS 261648 | E120: RIMI LATVIA SIA | F120: saņemšana | G120: 1.64 | H120: 0.34 | I120: 1.98
A121: 569 | B121: 2013.10.15 | C121: 2013.10.15 | D121: CEKS 235677 | E121: RIMI LATVIA SIA | F121: saņemšana | G121: 3.55 | H121: 0.74 | I121: 4.29
A122: 578 | B122: 2013.10.18 | C122: 2013.10.18 | D122: CEKS 259379 | E122: RIMI LATVIA SIA | F122: saņemšana | G122: 3.89 | H122: 0.82 | I122: 4.71
A123: 597 | B123: 2013.10.20 | C123: 2013.10.20 | D123: CEKS 265490 | E123: RIMI LATVIA SIA | F123: saņemšana | G123: 13.45 | H123: 2.83 | I123: 16.28
A124: 598 | B124: 2013.10.20 | C124: 2013.10.20 | D124: CEKS 237777 | E124: RIMI LATVIA SIA | F124: saņemšana | G124: 13.89 | H124: 2.92 | I124: 16.81
A125: 642 | B125: 2013.10.26 | C125: 2013.10.26 | D125: CEKS 366074 | E125: RIMI LATVIA SIA | F125: saņemšana | G125: 1.73 | H125: 0.36 | I125: 2.09
A126: 478 | B126: 2013.10.03 | C126: 2013.10.03 | D126: RPK1662745 | E126: RIGAS PIENA KOMBINATS | F126: saņemšana | G126: 25.26 | H126: 5.3 | I126: 30.56
A127: 497 | B127: 2013.10.07 | C127: 2013.10.07 | D127: RPK1668057 | E127: RIGAS PIENA KOMBINATS | F127: saņemšana | G127: 93.87 | H127: 19.71 | I127: 113.58
A128: 507 | B128: 2013.10.11 | C128: 2013.10.01 | D128: RPK1659643 | E128: RIGAS PIENA KOMBINATS | F128: saņemšana | G128: 47.09 | H128: 9.89 | I128: 56.98
A129: 499 | B129: 2013.10.07 | C129: 2013.10.07 | D129: STAB227025 | E129: SANITEX BALTIC DISTRIBUTION SIA | F129: saņemšana | G129: 26.22 | H129: 5.51 | I129: 31.73
A130: 500 | B130: 2013.10.07 | C130: 2013.10.07 | D130: SBAA328736 | E130: SANITEX BALTIC DISTRIBUTION SIA | F130: saņemšana | G130: 5.46 | H130: 1.15 | I130: 6.61
A131: 529 | B131: 2013.10.11 | C131: 2013.10.11 | D131: SBAA333438 | E131: SANITEX BALTIC DISTRIBUTION SIA | F131: saņemšana | G131: 10.08 | H131: 2.12 | I131: 12.2
A132: 530 | B132: 2013.10.11 | C132: 2013.10.11 | D132: STAB232953 | E132: SANITEX BALTIC DISTRIBUTION SIA | F132: saņemšana | G132: 36.01 | H132: 7.56 | I132: 43.57
A133: 538 | B133: 2013.10.11 | C133: 2013.10.11 | D133: SDAA057384 | E133: SANITEX BALTIC DISTRIBUTION SIA | F133: saņemšana | G133: 1.48 | H133: 0.31 | I133: 1.79
A134: 551 | B134: 2013.10.15 | C134: 2013.10.15 | D134: STAB 235612 | E134: SANITEX BALTIC DISTRIBUTION SIA | F134: saņemšana | G134: 13.5 | H134: 2.84 | I134: 16.34
A135: 552 | B135: 2013.10.15 | C135: 2013.10.15 | D135: SBAA 336183 | E135: SANITEX BALTIC DISTRIBUTION SIA | F135: saņemšana | G135: 39.54 | H135: 8.3 | I135: 47.84
A136: 586 | B136: 2013.10.18 | C136: 2013.10.18 | D136: SBAA 339383 | E136: SANITEX BALTIC DISTRIBUTION SIA | F136: saņemšana | G136: 9.46 | H136: 1.99 | I136: 11.45 | J136: 44.4 | K136: EURO
A137: 587 | B137: 2013.10.18 | C137: 2013.10.18 | D137: SBAA 339384 | E137: SANITEX BALTIC DISTRIBUTION SIA | F137: saņemšana | G137: 1.35 | H137: 0.28 | I137: 1.63
A138: 588 | B138: 2013.10.18 | C138: 2013.10.18 | D138: STAB 240205 | E138: SANITEX BALTIC DISTRIBUTION SIA | F138: saņemšana | G138: 11.74 | H138: 2.47 | I138: 14.21
A139: 604 | B139: 2013.10.22 | C139: 2013.10.22 | D139: STAB242973 | E139: SANITEX BALTIC DISTRIBUTION SIA | F139: saņemšana | G139: 46.5 | H139: 9.77 | I139: 56.27
A140: 605 | B140: 2013.10.22 | C140: 2013.10.22 | D140: SBAA341859 | E140: SANITEX BALTIC DISTRIBUTION SIA | F140: saņemšana | G140: 4.55 | H140: 0.96 | I140: 5.51
A141: 630 | B141: 2013.10.25 | C141: 2013.10.25 | D141: SDAA 058846 | E141: SANITEX BALTIC DISTRIBUTION SIA | F141: saņemšana | G141: 0.74 | H141: 0.16 | I141: 0.9
A142: 633 | B142: 2013.10.25 | C142: 2013.10.25 | D142: STAB 247554 | E142: SANITEX BALTIC DISTRIBUTION SIA | F142: saņemšana | G142: 27.83 | H142: 5.84 | I142: 33.67
A143: 520 | B143: 2013.10.11 | C143: 2013.10.09 | D143: SER 132162 | E143: SERVAALI LATVIA SIA | F143: saņemšana | G143: 38.4 | H143: 8.06 | I143: 46.46
A144: 557 | B144: 2013.10.15 | C144: 2013.10.01 | D144: VRG13 1054 | E144: SIA "VICI RESTAURANTS | F144: pārvietošana | G144: 34.29 | H144: 0 | I144: 34.29
A145: 558 | B145: 2013.10.15 | C145: 2013.10.08 | D145: VRG13 0081 | E145: SIA "VICI RESTAURANTS | F145: PICU KASTES | G145: 46.21 | H145: 0 | I145: 46.21
A146: 559 | B146: 2013.10.15 | C146: 2013.10.05 | D146: VRG13 3020 | E146: SIA "VICI RESTAURANTS | F146: izsniegšana | G146: 14.83 | H146: 0 | I146: =SUM(G146+H146) -> 14.83
A147: 568 | B147: 2013.10.15 | C147: 2013.10.06 | D147: VRG13 1056 | E147: SIA "VICI RESTAURANTS | F147: pārvietošana | G147: 12.49 | H147: 0 | I147: 12.49
A148: 596 | B148: 2013.10.19 | C148: 2013.10.19 | D148: VRG13 1057 | E148: SIA "VICI RESTAURANTS | F148: pārvietošana | G148: 19.98 | H148: 0 | I148: 19.98
A149: 625 | B149: 2013.10.24 | C149: 2013.10.21 | D149: VRG13 1058 | E149: SIA "VICI RESTAURANTS | F149: pārvietošana | G149: 1.1 | H149: 0 | I149: 1.1
A150: 540 | B150: 2013.10.11 | C150: 2013.10.11 | D150: AVD 894899 | E150: SPI DISTRIBUTION | F150: saņemšana | G150: 11.18 | H150: 2.35 | I150: 13.53
A151: 541 | B151: 2013.10.11 | C151: 2013.10.11 | D151: AVD 894904 | E151: SPI DISTRIBUTION | F151: saņemšana | G151: 19.52 | H151: 4.1 | I151: 23.62
A152: 555 | B152: 2013.10.15 | C152: 2013.10.15 | D152: SP 349912 | E152: SPILVA | F152: saņemšana | G152: 56.02 | H152: 11.76 | I152: 67.78
A153: 629 | B153: 2013.10.25 | C153: 2013.10.25 | D153: SP 352957 | E153: SPILVA | F153: saņemšana | G153: 44.95 | H153: 9.44 | I153: 54.39
A154: 532 | B154: 2013.10.11 | C154: 2013.10.11 | D154: VNK000090882 | E154: VAINNEKTA UAB | F154: saņemšana | G154: 78.13 | H154: 0 | I154: 78.13
A155: 485 | B155: 2013.10.04 | C155: 2013.10.04 | D155: VNK000090643 | E155: VAINEKTA UAB | F155: saņemšana | G155: 60.36 | H155: 0 | I155: 60.36
A156: 579 | B156: 2013.10.18 | C156: 2013.10.18 | D156: VNK 000091127 | E156: VAINEKTA UAB | F156: saņemšana | G156: 64.83 | H156: 0 | I156: 64.83
A157: 621 | B157: 2013.10.24 | C157: 2013.10.24 | D157: VNK000091350 | E157: VAINEKTA UAB | F157: saņemšana | G157: 81.7 | H157: 0 | I157: 81.7
A158: 482 | B158: 2013.10.04 | C158: 2013.10.04 | D158: VLAT13/63517 | E158: VIČIŪNAI-LAT SIA | F158: saņemšana | G158: 59 | H158: 12.39 | I158: 71.39
A159: 484 | B159: 2013.10.04 | C159: 2013.10.04 | D159: VLAT13/63408 | E159: VIČIŪNAI-LAT SIA | F159: saņemšana | G159: 37.04 | H159: 7.78 | I159: 44.82
A160: 512 | B160: 2013.10.11 | C160: 2013.10.01 | D160: VLAT13/62612 | E160: VIČIŪNAI-LAT SIA | F160: saņemšana | G160: 116.32 | H160: 24.43 | I160: 140.75
A161: 513 | B161: 2013.10.11 | C161: 2013.10.01 | D161: VLAT13/62586 | E161: VIČIŪNAI-LAT SIA | F161: saņemšana | G161: 30.84 | H161: 6.48 | I161: 37.32
A162: 522 | B162: 2013.10.11 | C162: 2013.10.09 | D162: VLAT13/64318 | E162: VIČIŪNAI-LAT SIA | F162: saņemšana | G162: 341.04 | H162: 71.62 | I162: 412.66
A163: 523 | B163: 2013.10.11 | C163: 2013.10.09 | D163: VLAT13/64449 | E163: VIČIŪNAI-LAT SIA | F163: saņemšana | G163: 66.25 | H163: 13.91 | I163: 80.16
A164: 574 | B164: 2013.10.16 | C164: 2013.10.16 | D164: VLAT13 65897 | E164: VIČIŪNAI-LAT SIA | F164: saņemšana | G164: 69.52 | H164: 14.6 | I164: 84.12
A165: 575 | B165: 2013.10.16 | C165: 2013.10.16 | D165: VLAT13 65853 | E165: VIČIŪNAI-LAT SIA | F165: saņemšana | G165: 220.96 | H165: 46.4 | I165: 267.36
A166: 583 | B166: 2013.10.18 | C166: 2013.10.18 | D166: VLAT13/66581 | E166: VIČIŪNAI-LAT SIA | F166: saņemšana | G166: 45.63 | H166: 9.58 | I166: 55.21
A167: 584 | B167: 2013.10.18 | C167: 2013.10.18 | D167: VLAT13/66480 | E167: VIČIŪNAI-LAT SIA | F167: saņemšana | G167: 329.8 | H167: 69.26 | I167: 399.06
A168: 609 | B168: 2013.10.23 | C168: 2013.10.23 | D168: VLAT13/67393 | E168: VIČIŪNAI-LAT SIA | F168: saņemšana | G168: 81.07 | H168: 17.02 | I168: 98.09
A169: 610 | B169: 2013.10.23 | C169: 2013.10.23 | D169: VLAT13/67435 | E169: VIČIŪNAI-LAT SIA | F169: saņemšana | G169: 75.62 | H169: 15.88 | I169: 91.5
A170: 634 | B170: 2013.10.25 | C170: 2013.10.25 | D170: VLAT13/68152 | E170: VIČIŪNAI-LAT SIA | F170: saņemšana | G170: 83.27 | H170: 17.49 | I170: 100.76
A171: 635 | B171: 2013.10.25 | C171: 2013.10.25 | D171: VLAT13/68041 | E171: VIČIŪNAI-LAT SIA | F171: saņemšana | G171: 331.92 | H171: 69.7 | I171: 401.62
A172: 643 | B172: 2013.10.26 | C172: 2013.10.26 | F172: saņemšana | I172: 0
A173: 644 | B173: 2013.10.26 | C173: 2013.10.26 | F173: saņemšana | I173: 0
A174: 645 | B174: 2013.10.26 | C174: 2013.10.26 | F174: saņemšana | I174: 0
A175: 646 | B175: 2013.10.26 | C175: 2013.10.26 | F175: saņemšana | I175: 3.79
F176: saņemšana | I176: =SUM(G176+H176) -> 0
F177: saņemšana | I177: 0
F178: saņemšana | I178: 0
F179: saņemšana | I179: 0
F180: saņemšana | I180: 0
F181: saņemšana | I181: 0
F182: saņemšana | I182: 0
F183: saņemšana | I183: 0
F184: saņemšana | I184: 0
F185: saņemšana | I185: 0
F186: saņemšana | I186: 0
F187: saņemšana | I187: 0
F188: saņemšana | I188: 0
F189: saņemšana | I189: 0
F190: saņemšana | I190: 0
F191: saņemšana | I191: 0
F192: saņemšana | I192: 0
F193: saņemšana | I193: 0
F194: saņemšana | I194: 0
F195: saņemšana | I195: 0
F196: saņemšana | I196: 0
F197: saņemšana | I197: 0
F198: saņemšana | I198: =SUM(G198+H198) -> 0
F199: saņemšana | I199: 0
F200: saņemšana | I200: 0
... 11 more rows

Sheet decembris 2013 (hidden)
B1: Datums | C1: PVZ | E1: PIEGĀDĀTĀJS | F1: Darījuma apraksts (piegāde, iegāde, izsniegšana, saņemšana, pārvietošana) | G1: PVZ norādītā preču kopējā vērtība | H1: PVN summa | I1: Summa ar PVN
C2: datums | D2: numurs | G2: (bez PVN) | H2: (ja tāda ir)
A3: 882 | B3: 2013.12.02 | C3: 2013.12.02 | D3: AAR643964 | E3: LIETAS SIA | F3: saņemšana | G3: 31.35 | H3: 6.58 | I3: =SUM(G3+H3) -> 37.93
A4: 883 | B4: 2013.12.02 | C4: 2013.12.02 | D4: SBAA373493 | E4: SANITEX SIA | F4: saņemšana | G4: 6.17 | H4: 1.3 | I4: 7.47
A5: 884 | B5: 2013.12.02 | C5: 2013.12.02 | D5: STAB284536 | E5: SANITEX SIA | F5: saņemšana | G5: 22.39 | H5: 4.7 | I5: 27.09 | M5: PICU KASTES
A6: 885 | B6: 2013.12.02 | C6: 2013.12.02 | D6: VRG133033 | E6: VIRTUVE SPICE | F6: izsniegšana | G6: -20.86 | H6: 0 | I6: -20.86 | L6: TARA(-) | M6: atgriešana
A7: 886 | B7: 2013.12.02 | C7: 2013.12.02 | D7: VRG133032 | E7: VIRTUVE SPICE | F7: izsniegšana | G7: -29.78 | H7: 0 | I7: -29.78 | L7: (-) OTDALI | M7: izsniegšana
A8: 887 | B8: 2013.12.03 | C8: 2013.12.03 | D8: GEMO751172 | E8: GEMOSS SIA | F8: saņemšana | G8: 15.94 | H8: 3.35 | I8: 19.29 | L8: PRENEMSANA | M8: pārvietošana
A9: 888 | B9: 2013.12.03 | C9: 2013.12.03 | D9: 3100192530 | E9: COCA COLA SIA | F9: atgriešana | G9: -68.22 | H9: -14.33 | I9: -82.55 | M9: saņemšana
A10: 889 | B10: 2013.12.03 | C10: 2013.12.03 | D10: AAR644610 | E10: LIETAS SIA | F10: saņemšana | G10: 42.89 | H10: 9.01 | I10: 51.9 | M10: vienreireji trauki
A11: 890 | B11: 2013.12.3 | C11: 2013.12.03 | D11: 2213176003 | E11: CIDO SIA | F11: saņemšana | G11: 49.44 | H11: 10.38 | I11: 59.82 | M11: GEMOSS SIA
A12: 891 | B12: 2013.12.03 | C12: 2013.12.03 | D12: EU12374119 | E12: EUGESTA UN PARTNERI SIA | F12: saņemšana | G12: 70.31 | H12: 14.77 | I12: 85.08 | M12: ALLFRESH PLUS SIA
A13: 892 | B13: 2013.12.03 | C13: 2013.12.03 | D13: 3100192528 | E13: COCA COLA SIA | F13: saņemšana | G13: 38.1 | H13: 8 | I13: 46.1 | M13: AS KONIG DISTRIBUTION
A14: 893 | B14: 2013.12.03 | C14: 2013.12.03 | D14: RPK1753736 | E14: RIGAS PIENA KOMBINATS SIA | F14: saņemšana | G14: 30.09 | H14: 6.32 | I14: 36.41 | M14: BARGI SIA
A15: 894 | B15: 2013.12.03 | C15: 2013.12.03 | D15: BAR005493 | E15: BARGI SIA | F15: saņemšana | G15: 20.97 | H15: 4.4 | I15: 25.37 | M15: BARGI SIA
A16: 895 | B16: 2013.12.03 | C16: 2013.12.03 | D16: BON-13P1799 | E16: BONA - BALTIJA SIA | F16: saņemšana | G16: 16.42 | H16: 3.45 | I16: 19.87 | M16: CIDO GRUPA SIA
A17: 896 | B17: 2013.12.03 | C17: 2013.12.03 | D17: VRG133034 | E17: VICI RESTAURANTS SIA | F17: izsniegšana | G17: -0.4 | H17: 0 | I17: -0.4 | M17: CIDO GRUPA SIA
A18: 897 | B18: 2013.12.03 | C18: 2013.12.03 | D18: LV3RE0081630 | E18: REATON , LTD SIA | F18: saņemšana | G18: 20.6 | H18: 4.33 | I18: =SUM(G18+H18) -> 24.93 | M18: COCA-COLA HBC LATVIA SIA
A19: 898 | B19: 2013.12.04 | C19: 2013.1204 | D19: VLAT13/77324 | E19: VIČIŪNAI-LAT SIA | F19: saņemšana | G19: 70.5 | H19: 14.81 | I19: 85.31 | M19: COCA-COLA HBC LATVIA SIA
A20: 899 | B20: 2013.12.04 | C20: 2013.12.04 | D20: VLAT13/77268 | E20: VIČIŪNAI-LAT SIA | F20: saņemšana | G20: 30.36 | H20: 6.38 | I20: 36.74 | M20: EUGESTA UN PARTNERI SIA
A21: 900 | B21: 2013.12.04 | C21: 2013.12.04 | D21: MES3756 | E21: MAŽEIKIU MESIŅE | F21: saņemšana | G21: 57.47 | H21: 0 | I21: 57.47 | M21: EUGESTA UN PARTNERI SIA
A22: 901 | B22: 2013.12.04 | C22: 2013.12.04 | D22: LIV-13PR-83455 | E22: LIVIKO SIA | F22: saņemšana | G22: 19.79 | H22: 4.16 | I22: 23.95 | M22: FAZER LATVIJA SIA
A23: 902 | B23: 2013.12.04 | C23: 2013.12.04 | D23: ALP163965 | E23: ALLFRESH PLUS SIA | F23: saņemšana | G23: 28.31 | H23: 5.95 | I23: 34.26 | M23: FAZER LATVIJA SIA
A24: 903 | B24: 2013.12.04 | C24: 2013.12.04 | D24: 3100193471 | E24: COCA COLA SIA | F24: saņemšana | G24: 47.61 | H24: 10 | I24: 57.61 | M24: FJB LATVIA SIA
A25: 904 | B25: 2013.12.05 | C25: 2013.12.05 | D25: STAB289835 | E25: SANITEX SIA | F25: saņemšana | G25: 30.09 | H25: 6.32 | I25: 36.41 | M25: FJB LATVIA SIA
A26: 905 | B26: 2013.12.05 | C26: 2013.12.05 | D26: VLAT13/77675 | E26: VIČIŪNAI-LAT SIA | F26: saņemšana | G26: 101.94 | H26: 21.41 | I26: 123.35 | M26: INTERBALTIJA AG A/S
A27: 906 | B27: 2013.12.05 | C27: 2013.12.05 | D27: VLAT13/77673 | E27: VIČIŪNAI-LAT SIA | F27: saņemšana | G27: 94.05 | H27: 19.75 | I27: 113.8 | M27: INTERBALTIJA AG A/S
A28: 907 | B28: 2013.12.05 | C28: 2013.12.05 | D28: VLAT13/77702 | E28: VIČIŪNAI-LAT SIA | F28: saņemšana | G28: 81.4 | H28: 17.09 | I28: 98.49 | M28: LIEPURIN SIA
A29: 908 | B29: 2013.12.05 | C29: 2013.12.05 | D29: AAR645934 | E29: LIETAS SIA | F29: saņemšana | G29: 3.09 | H29: 0.65 | I29: 3.74 | M29: LIEPURIN SIA
A30: 909 | B30: 2013.12.05 | C30: 2013.12.05 | D30: VRG133036 | E30: VICI RESTAURANTS SIA | F30: izsniegšana | G30: -1.09 | H30: 0 | I30: -1.09 | M30: LIETAS MD SIA
A31: 910 | B31: 2013.12.05 | C31: 2013.12.04 | D31: 3100193445 | E31: COCA COLA SIA | F31: atgriešana | G31: -37.9 | H31: -7.95 | I31: -45.85 | M31: LIETAS MD SIA
A32: 911 | B32: 2013.12.06 | C32: 2013.12.07 | D32: VNK00002779 | E32: VAINEKTA UAB | F32: saņemšana | G32: 20.25 | H32: 0 | I32: 20.25 | M32: MAŽEIKIU MESIŅE
A33: 912 | B33: 2013.12.06 | C33: 2013.12.06 | D33: ALP 164123 | E33: ALLFRESH PLUS SIA | F33: saņemšana | G33: 27.86 | H33: 5.85 | I33: 33.71 | M33: MILTINUKO RECEPTAS UAB
A34: 913 | B34: 2013.12.06 | C34: 2013.12.06 | D34: FLS520684 | E34: FAZER LATVIA SIA | F34: saņemšana | G34: 8.64 | H34: 1.81 | I34: 10.45 | M34: MILTINUKO RECEPTAS UAB
A35: 914 | B35: 2013.12.06 | C35: 2013.12.06 | D35: RPK1758506 | E35: RIGAS PIENA KOMBINATS SIA | F35: saņemšana | G35: 21.35 | H35: 4.48 | I35: 25.83 | M35: NOWACO LATVIA SIA
A36: 915 | B36: 2013.12.06 | C36: 2013.12.06 | D36: RPK1758610 | E36: RIGAS PIENA KOMBINATS SIA | F36: saņemšana | G36: 60.88 | H36: 12.78 | I36: 73.66 | M36: REATON, LTD
A37: 916 | B37: 2013.12.06 | C37: 2013.12.06 | D37: KDA606003 | E37: KONIG | F37: saņemšana | G37: 7.9 | H37: 1.66 | I37: 9.56 | M37: REATON, LTD
A38: 917 | B38: 2013.12.06 | C38: 2013.12.06 | D38: KDA606004 | E38: KONIG | F38: saņemšana | G38: 3.6 | H38: 0.76 | I38: 4.36 | M38: RIMI LATVIA SIA
A39: 918 | B39: 2013.12.06 | C39: 2013.12.06 | D39: VLAT13/77766 | E39: VIČIŪNAI-LAT SIA | F39: saņemšana | G39: 124.4 | H39: 26.12 | I39: 150.52 | M39: RIMI LATVIA SIA
A40: 919 | B40: 2013.12.07 | C40: 2013.12.07 | D40: AAR647249 | E40: LIETAS SIA | F40: saņemšana | G40: 57.08 | H40: 11.99 | I40: 69.07 | M40: RĪGAS PIENA KOMBINĀTS AS
A41: 920 | B41: 2013.12.07 | C41: 2013.12.07 | D41: ALP164230 | E41: ALLFRESH PLUS SIA | F41: saņemšana | G41: 11.85 | H41: 2.49 | I41: 14.34 | M41: RĪGAS PIENA KOMBINĀTS AS
A42: 921 | B42: 2013.12.09 | C42: 2013.12.09 | D42: RPK1761923 | E42: AS RĀGAS PIENA KOMBINĀTS | F42: saņemšana | G42: 30.95 | H42: 6.5 | I42: 37.45 | M42: SANITEX BALTIC DISTRIBUTION SIA
A43: 922 | B43: 2013.12.09 | C43: 2013.12.09 | D43: FLS523238 | E43: FAZER LATVIA SIA | F43: saņemšana | G43: 8.96 | H43: 1.88 | I43: 10.84 | M43: SANITEX BALTIC DISTRIBUTION SIA
A44: 923 | B44: 2013.12.09 | C44: 2013.12.09 | D44: AAR647946 | E44: LIETAS SIA | F44: saņemšana | G44: 50.69 | H44: 10.64 | I44: 61.33 | M44: SERVAALI LATVIA SIA
A45: 924 | B45: 2013.12.09 | C45: 2013.12.09 | D45: MES3767 | E45: MAŽEIKIU MESIŅE | F45: saņemšana | G45: 55.78 | H45: 0 | I45: 55.78 | M45: SERVAALI LATVIA SIA
A46: 925 | B46: 2013.12.09 | C46: 2013.12.09 | D46: ALP164285 | E46: ALLFRESH PLUS SIA | F46: saņemšana | G46: 34.36 | H46: 7.22 | I46: 41.58 | M46: SPI DISTRIBUTION SIA
A47: 926 | B47: 2013.12.10 | C47: 2013.12.03 | D47: C 018022 | E47: CIDO SIA | F47: atgriešana | G47: 0 | H47: 0 | I47: 0 | M47: SPILVA SIA
A48: 927 | B48: 2013.12.10 | C48: 2013.11.01 | D48: C021241 | E48: CIDO SIA | F48: atgriešana | G48: 0 | H48: 0 | I48: =SUM(G48+H48) -> 0 | M48: SPILVA SIA
A49: 928 | B49: 2013.12.10 | C49: 2013.110.18 | D49: C 021240 | E49: CIDO SIA | F49: atgriešana | G49: 0 | H49: 0 | I49: 0 | M49: VAINEKTA UAB
A50: 929 | B50: 2013.12.10 | C50: 2013.12.10 | D50: SBAA 380295 | E50: SANITEX SIA | F50: saņemšana | G50: 9.07 | H50: 1.9 | I50: 10.97 | M50: VAINEKTA UAB
A51: 930 | B51: 2013.12.10 | C51: 2013.12.10 | D51: STAB 292988 | E51: SANITEX SIA | F51: saņemšana | G51: 21.95 | H51: 4.61 | I51: 26.56 | M51: VIČIŪNAI-LAT SIA
A52: 931 | B52: 2013.12.10 | C52: 2013.12.10 | D52: IBV13 035443 | E52: INTERBALTIJA AG A/S | F52: saņemšana | G52: 11.99 | H52: 2.52 | I52: 14.51 | M52: VIČIŪNAI-LAT SIA
A53: 932 | B53: 2013.12.10 | C53: 2013.12.10 | D53: RPK 1763341 | E53: AS RĀGAS PIENA KOMBINĀTS | F53: saņemšana | G53: 43.43 | H53: 9.12 | I53: 52.55
A54: 933 | B54: 2013.12.10 | C54: 2013.12.10 | D54: GEMO 754308 | E54: GEMOSS SIA | F54: saņemšana | G54: 19.68 | H54: 4.13 | I54: 23.81
A55: 934 | B55: 2013.12.10 | C55: 2013.12.10 | D55: C 018023 | E55: CIDO SIA | F55: atgriešana | G55: 0 | H55: 0 | I55: =SUM(G55+H55) -> 0
A56: 935 | B56: 2013.12.10 | C56: 2013.12.10 | D56: 2213179393 | E56: CIDO SIA | F56: saņemšana | G56: 89.96 | H56: 18.89 | I56: 108.85
A57: 936 | B57: 2013.12.10 | C57: 2013.12.10 | D57: SER 132568 | E57: SERVAALI LATVIA SIA | F57: saņemšana | G57: 33.6 | H57: 7.06 | I57: 40.66
A58: 937 | B58: 2013.12.10 | C58: 2013.12.10 | D58: BAR 005541 | E58: BARGI SIA | F58: saņemšana | G58: 3.27 | H58: 0.69 | I58: 3.96
A59: 938 | B59: 2013.12.10 | C59: 2013.12.10 | D59: LIV-13-PR-85454 | E59: LIVIKO SIA | F59: saņemšana | G59: 12.9 | H59: 2.71 | I59: 15.61
A60: 939 | B60: 2013.12.11 | C60: 2013.12.11 | D60: MES 3779 | E60: MAŽEIKIU MESIŅE | F60: saņemšana | G60: 48.4 | H60: 0 | I60: 48.4
A61: 940 | B61: 2013.12.11 | C61: 2013.12.11 | D61: AAR 649320 | E61: LIETAS SIA | F61: saņemšana | G61: 40.65 | H61: 8.54 | I61: 49.19
A62: 941 | B62: 2013.12.11 | C62: 2013.12.11 | D62: VLAT13/78920 | E62: VIČIŪNAI-LAT SIA | F62: saņemšana | G62: 48.34 | H62: 10.15 | I62: 58.49
A63: 942 | B63: 2013.12.11 | C63: 2013.12.11 | D63: VLAT13/79067 | E63: VIČIŪNAI-LAT SIA | F63: saņemšana | G63: 22.79 | H63: 4.79 | I63: 27.58
A64: 943 | B64: 2013.12.11 | C64: 2013.12.11 | D64: MR13 01925 | E64: MILTINUKO RECEPTAS UAB | F64: saņemšana | G64: 15.6 | H64: 0 | I64: 15.6
A65: 944 | B65: 2013.12.11 | C65: 2013.12.11 | D65: CEKS 293233 | E65: RIMI LATVIA SIA | F65: saņemšana | G65: 2.91 | H65: 0.61 | I65: 3.52
A66: 945 | B66: 2013.12.11 | C66: 2013.12.11 | D66: CEKS 396941 | E66: RIMI LATVIA SIA | F66: saņemšana | G66: 4.98 | H66: 1.04 | I66: 6.02
A67: 946 | B67: 2013.12.12 | C67: 2013.12.12 | D67: VRG13 1082 | E67: VICI RESTAURANTS SIA | F67: pārvietošana | G67: 8.65 | H67: 0 | I67: 8.65
A68: 947 | B68: 2013.12.12 | C68: 2013.12.12 | D68: AAR649980 | E68: LIETAS SIA | F68: saņemšana | G68: 23.63 | H68: 4.96 | I68: 28.59
A69: 948 | B69: 2013.12.12 | C69: 2013.12.12 | D69: VRG13 1081 | E69: VICI RESTAURANTS SIA | F69: pārvietošana | G69: 15.81 | H69: 0 | I69: 15.81
A70: 949 | B70: 2013.12.12 | C70: 2013.12.12 | D70: ALP 164531 | E70: ALLFRESH PLUS SIA | F70: saņemšana | G70: 44.49 | H70: 9.34 | I70: 53.83
A71: 950 | B71: 2013.12.12 | C71: 2013.12.12 | D71: CEKS 26372 | E71: SAVEL SIA | F71: saņemšana | G71: 1.23 | H71: 0.26 | I71: 1.49
A72: 951 | B72: 2013.12.14 | C72: 2013.12.14 | D72: ALP164671 | E72: AlLFRESH PLUS SIA | F72: saņemšana | G72: 22.15 | H72: 4.65 | I72: 26.8
A73: 952 | B73: 2013.12.14 | C73: 2013.12.14 | D73: VRG13 3038 | E73: VICI RESTAURANTS SIA | F73: izsniegšana | G73: -53.4 | I73: -53.4
A74: 953 | B74: 2013.12.13 | C74: 2013.12.14 | D74: RPK1768078 | E74: AS RĀGAS PIENA KOMBINĀTS | F74: saņemšana | G74: 20.24 | H74: 4.25 | I74: 24.49
A75: 954 | B75: 2013.12.13 | C75: 2013.12.14 | D75: RPK1767937 | E75: AS RĀGAS PIENA KOMBINĀTS | F75: saņemšana | G75: 11.29 | H75: 2.37 | I75: 13.66
A76: 955 | B76: 2013.12.13 | C76: 2013.12.14 | D76: GEMO0756090 | E76: GEMOSS SIA | F76: saņemšana | G76: 10.5 | H76: 2.21 | I76: 12.71
A77: 956 | B77: 2013.12.13 | C77: 2013.12.14 | D77: 2213181571 | E77: CIDO SIA | F77: saņemšana | G77: 307.63 | H77: 64.6 | I77: 372.23
A78: 957 | B78: 2013.12.13 | C78: 2013.12.14 | D78: VNK000093012 | E78: VAINEKTA UAB | F78: saņemšana | G78: 79.45 | I78: 79.45 | L78: 113,06 EURO
A79: 958 | B79: 2013.12.13 | C79: 2013.12.13 | D79: C 018024 | E79: CIDO SIA | F79: atgriešana | G79: 0 | H79: 0 | I79: 0
A80: 959 | B80: 2013.12.13 | C80: 2013.12.14 | D80: MES NR 3789 | E80: MAŽEIKIU MESIŅE | F80: saņemšana | G80: 130.42 | I80: 130.42 | L80: 185,57 EURO
A81: 960 | B81: 2013.12.13 | C81: 2013.12.14 | D81: AVD 943462 | E81: SPI DISTRIBUTION | F81: saņemšana | G81: 8.13 | H81: 1.71 | I81: 9.84
A82: 961 | B82: 2013.12.13 | C82: 2013.12.14 | D82: FLS528520 | E82: FAZER LATVIA SIA | F82: saņemšana | G82: 9.48 | H82: 1.99 | I82: =SUM(G82+H82) -> 11.47
A83: 962 | B83: 2013.12.14 | C83: 2013.12.14 | D83: AAR651355 | E83: LIETAS SIA | F83: saņemšana | G83: 105.28 | H83: 22.11 | I83: 127.39
A84: 963 | B84: 2013.12.14 | C84: 2013.12.14 | D84: RPK1769455 | E84: RIGAS PIENA KOMBINATS SIA | F84: saņemšana | G84: 26.83 | H84: 5.63 | I84: 32.46
A85: 964 | B85: 2013.12.16 | C85: 2013.12.14 | D85: RPK1771340 | E85: RIGAS PIENA KOMBINATS SIA | F85: saņemšana | G85: 47.97 | H85: 10.07 | I85: 58.04
A86: 965 | B86: 2013.12.16 | C86: 2013.12.16 | D86: MES NR3800 | E86: MAŽEIKIU MESIŅE | F86: saņemšana | G86: 80.77 | I86: 80.77 | L86: 114,92 EUR
A87: 966 | B87: 2013.12.16 | C87: 2013.12.16 | D87: 3100199560 | E87: COCA COLA SIA | F87: saņemšana | G87: 142.85 | H87: 30 | I87: 172.85
A88: 967 | B88: 2013.12.16 | C88: 2013.12.16 | D88: 3100199573 | E88: COCA COLA SIA | F88: atgriešana | G88: -46.34 | H88: -9.73 | I88: -56.07
A89: 968 | B89: 2013.12.16 | C89: 2013.12.16 | D89: AAR652051 | E89: LIETAS SIA | F89: saņemšana | G89: 55.73 | H89: 11.7 | I89: 67.43
A90: 969 | B90: 2013.12.16 | C90: 2013.12.16 | D90: LV3RE0084326 | E90: REATON , LTD SIA | F90: saņemšana | G90: 43.55 | H90: 9.15 | I90: 52.7
A91: 970 | B91: 2013.12.16 | C91: 2013.12.16 | D91: VRG 13 1084 | E91: VICI RESTAURANTS SIA | F91: pārvietošana | G91: 4.02 | H91: 0 | I91: 4.02
A92: 971 | B92: 2013.12.16 | C92: 2013.12.14 | D92: CEKS 248399 | E92: RIMI LATVIA SIA | F92: saņemšana | G92: 11.49 | H92: 2.41 | I92: 13.9
A93: 972 | B93: 2013.12.16 | C93: 2013.12.16 | D93: CEKS 404080 | E93: RIMI LATVIA SIA | F93: saņemšana | G93: 3.69 | H93: 0.78 | I93: 4.47
A94: 973 | B94: 2013.12.17 | C94: 2013.12.17 | D94: 2213182569 | E94: CIDO SIA | F94: saņemšana | G94: 51 | H94: 10.71 | I94: 61.71
A95: 974 | B95: 2013.12.17 | C95: 2013.12.17 | D95: C 018025 | E95: CIDO SIA | F95: atgriešana | G95: 0 | H95: 0 | I95: 0
A96: 975 | B96: 2013.12.17 | C96: 2013.12.17 | D96: VRG13 3040 | E96: VICI RESTAURANTS SIA | F96: izsniegšana | G96: -3.45 | H96: 0 | I96: -3.45
A97: 976 | B97: 2013.12.17 | C97: 2013.12.17 | D97: VLAT13/80467 | E97: VIČIŪNAI-LAT SIA | F97: saņemšana | G97: 71.18 | H97: 14.95 | I97: 86.13
A98: 977 | B98: 2013.12.17 | C98: 2013.12.17 | D98: VLAT13/80442 | E98: VIČIŪNAI-LAT SIA | F98: saņemšana | G98: 49.18 | H98: 10.33 | I98: 59.51
A99: 978 | B99: 2013.12.17 | C99: 2013.12.17 | D99: VRG13 3039 | E99: VICI RESTAURANTS SIA | F99: izsniegšana | G99: -1.79 | H99: 0 | I99: -1.79
A100: 979 | B100: 2013.12.17 | C100: 2013.12.17 | D100: VRG13 3037 | E100: VICI RESTAURANTS SIA | F100: izsniegšana | G100: -0.36 | H100: 0 | I100: -0.36
A101: 980 | B101: 2013.12.17 | C101: 2013.12.17 | D101: SER 132622 | E101: SERVAALI LATVIA SIA | F101: saņemšana | G101: 108 | H101: 22.68 | I101: 130.68
A102: 981 | B102: 2013.12.17 | C102: 2013.12.17 | D102: LIV13PR 87319 | E102: LIVIKO SIA | F102: saņemšana | G102: 84.85 | H102: 17.82 | I102: 102.67
A103: 982 | B103: 2013.12.17 | C103: 2013.12.17 | D103: AAR 652780 | E103: LIETAS SIA | F103: saņemšana | G103: 28.32 | H103: 5.95 | I103: 34.27
A104: 983 | B104: 2013.12.17 | C104: 2013.12.17 | D104: EU 13292359 | E104: EUGESTA UN PARTNERI SIA | F104: saņemšana | G104: 140.62 | H104: 29.53 | I104: 170.15
A105: 984 | B105: 2013.12.17 | C105: 2013.12.17 | D105: ALP 164837 | E105: ALLFRESH PLUS SIA | F105: saņemšana | G105: 31.29 | H105: 6.57 | I105: 37.86
A106: 985 | B106: 2013.12.17 | C106: 2013.12.17 | D106: HP 106347 | E106: HENKELL | F106: saņemšana | G106: 60 | H106: 12.6 | I106: 72.6
A107: 986 | B107: 2013.12.18 | C107: 2013.12.18 | D107: HP106363 | E107: HENKELL | F107: saņemšana | G107: 27.58 | H107: 5.79 | I107: 33.37
A108: 987 | B108: 2013.12.18 | C108: 2013.12.18 | D108: KDA610805 | E108: KONIG | F108: saņemšana | G108: 23.99 | H108: 5.04 | I108: 29.03
A109: 988 | B109: 2013.12.18 | C109: 2013.12.18 | D109: KDA610804 | E109: KONIG | F109: saņemšana | G109: 16.43 | H109: 3.45 | I109: 19.88
A110: 989 | B110: 2013.12.18 | C110: 2013.12.18 | D110: VLAT13/80723 | E110: VIČIŪNAI-LAT SIA | F110: saņemšana | G110: 13.92 | H110: 2.92 | I110: 16.84
A111: 990 | B111: 2013.12.18 | C111: 2013.12.18 | D111: LV3RE0085132 | E111: REATON , LTD SIA | F111: saņemšana | G111: 20.6 | H111: 4.33 | I111: 24.93
A112: 991 | B112: 2013.12.18 | C112: 2013.12.18 | D112: STAB302597 | E112: SANITEX SIA | F112: saņemšana | G112: 46.34 | H112: 9.73 | I112: 56.07
A113: 992 | B113: 2013.12.18 | C113: 2013.12.22 | D113: FLS532144 | E113: FAZER LATVIA SIA | F113: saņemšana | G113: 10.7 | H113: 2.25 | I113: 12.95
A114: 993 | B114: 2013.12.18 | C114: 2013.12.18 | D114: AVD946913 | E114: SPI DISTRIBUTION | F114: saņemšana | G114: 9.76 | H114: 2.05 | I114: 11.81
A115: 994 | B115: 2013.12.18 | C115: 2013.12.18 | D115: AVD946914 | E115: SPI DISTRIBUTION | F115: saņemšana | G115: 13.08 | H115: 2.75 | I115: 15.83
A116: 995 | B116: 2013.12.18 | C116: 2013.12.18 | D116: SBAA386542 | E116: SANITEX SIA | F116: saņemšana | G116: 141.92 | H116: 29.8 | I116: 171.72
A117: 996 | B117: 2013.12.17 | C117: 2013.12.18 | D117: LIV-13-PR-87806 | E117: LIVIKO SIA | F117: saņemšana | G117: 67.97 | H117: 14.27 | I117: 82.24
A118: 997 | B118: 2013.12.19 | C118: 2013.12.19 | D118: RPK1775931 | E118: RIGAS PIENA KOMBINATS SIA | F118: saņemšana | G118: 37.93 | H118: 7.97 | I118: 45.9
A119: 998 | B119: 2013.12.19 | C119: 2013.12.19 | D119: RPK1775239 | E119: RIGAS PIENA KOMBINATS SIA | F119: saņemšana | G119: 10.06 | H119: 2.11 | I119: 12.17
A120: 999 | B120: 2013.12.19 | C120: 2013.12.19 | D120: AAR654203 | E120: LIETAS SIA | F120: saņemšana | G120: 42.27 | H120: 8.88 | I120: 51.15
A121: 1000 | B121: 2013.12.19 | C121: 2013.12.19 | D121: VLAT13/81348 | E121: VIČIŪNAI-LAT SIA | F121: saņemšana | G121: 67.94 | H121: 14.27 | I121: 82.21
A122: 1001 | B122: 2013.12.19 | C122: 2013.12.19 | D122: VLAT13/81254 | E122: VIČIŪNAI-LAT SIA | F122: saņemšana | G122: 86.81 | H122: 18.23 | I122: 105.04
A123: 1002 | B123: 2013.12.19 | C123: 2013.12.19 | D123: VLAT13/81358 | E123: VIČIŪNAI-LAT SIA | F123: saņemšana | G123: 6.63 | H123: 1.39 | I123: 8.02
A124: 1003 | B124: 2013.12.19 | C124: 2013.12.19 | D124: 3100202364 | E124: COCA COLA SIA | F124: saņemšana | G124: 66.66 | H124: 14 | I124: 80.66
A125: 1004 | B125: 2013.12.19 | C125: 2013.12.19 | D125: 3100202342 | E125: COCA COLA SIA | F125: atgriešana | G125: -34.11 | H125: -7.16 | I125: =SUM(G125+H125) -> -41.27
A126: 1005 | B126: 2013.12.19 | C126: 2013.12.19 | D126: 2213184064 | E126: CIDO SIA | F126: saņemšana | G126: 90.9 | H126: 19.09 | I126: =SUM(G126+H126) -> 109.99
A127: 1006 | B127: 2013.12.19 | C127: 2013.12.19 | D127: IBV13-036702 | E127: INTERBALTIJA AG A/S | F127: saņemšana | G127: 35.49 | H127: 7.45 | I127: 42.94
A128: 1007 | B128: 2013.12.20 | C128: 2013.12.20 | D128: DOR-0039150 | E128: DORENA UAB | F128: saņemšana | G128: 95.59 | I128: 95.59
A129: 1008 | B129: 2013.12.20 | C129: 2013.12.20 | D129: VNK000093273 | E129: VAINEKTA UAB | F129: saņemšana | G129: 41.68 | I129: 41.68
A130: 1009 | B130: 2013.12.20 | C130: 2013.12.20 | D130: MES 3814 | E130: MAŽEIKIU MESIŅE | F130: saņemšana | G130: 96.7 | I130: 96.7
A131: 1010 | B131: 2013.12.20 | C131: 2013.12.20 | D131: AAR655043 | E131: LIETAS SIA | F131: saņemšana | G131: 55.95 | H131: 11.75 | I131: 67.7
A132: 1011 | B132: 2013.12.20 | C132: 2013.12.20 | D132: SP 366768 | E132: SPILVA SIA | F132: saņemšana | G132: 73.49 | H132: 15.43 | I132: 88.92
A133: 1012 | B133: 2013.12.20 | C133: 2013.12.20 | D133: ALP 165056 | E133: ALLFRESH PLUS SIA | F133: saņemšana | G133: 46.44 | H133: 9.75 | I133: 56.19
A134: 1013 | B134: 2013.12.21 | C134: 2013.12.21 | D134: AAR655659 | E134: LIETAS SIA | F134: saņemšana | G134: 47.63 | H134: 10 | I134: 57.63
A135: 1014 | B135: 2013.12.22 | C135: 2013.12.22 | D135: FLS535665 | E135: FAZER LATVIA SIA | F135: saņemšana | G135: 10.7 | H135: 2.25 | I135: 12.95
A136: 1015 | B136: 2013.12.21 | C136: 2013.12.21 | D136: ceks0979149 | E136: PRISMA | F136: saņemšana | G136: 6.5 | H136: 1.37 | I136: 7.87
A137: 1016 | B137: 2013.12.22 | C137: 2013.12.22 | D137: CEKS302399 | E137: RIMI LATVIA SIA | F137: saņemšana | G137: 3.68 | H137: 0.77 | I137: 4.45
A138: 1017 | B138: 2013.12.23 | C138: 2013.12.23 | D138: CEKS406100 | E138: RIMI LATVIA SIA | F138: saņemšana | G138: 3.17 | H138: 0.67 | I138: 3.84
A139: 1018 | B139: 2013.12.23 | C139: 2013.12.24 | D139: AAR656436 | E139: LIETAS SIA | F139: saņemšana | G139: 107.55 | H139: 22.59 | I139: 130.14
A140: 1019 | B140: 2013.12.23 | C140: 2013.12.23 | D140: RPK1780017 | E140: RIGAS PIENA KOMBINATS SIA | F140: saņemšana | G140: 55.86 | H140: 11.73 | I140: 67.59
A141: 1020 | B141: 2013.12.23 | C141: 2013.12.23 | D141: MES 3817 | E141: MAŽEIKIU MESIŅE | F141: saņemšana | G141: 160.67 | I141: 160.67 | L141: 228.62
A142: 1021 | B142: 2013.12.23 | C142: 2013.12.23 | D142: RPK1779920 | E142: RIGAS PIENA KOMBINATS SIA | F142: saņemšana | G142: 16.32 | H142: 3.43 | I142: 19.75
A143: 1022 | B143: 2013.12.21 | C143: 2013.12.21 | D143: CEKS 251321 | E143: RIMI LATVIA SIA | F143: saņemšana | G143: 0.71 | H143: 0.15 | I143: 0.86
A144: 1023 | B144: 2013.12.23 | C144: 2013.12.23 | D144: CEKS244918 | E144: RIMI LATVIA SIA | F144: saņemšana | G144: 10.47 | H144: 2.2 | I144: 12.67
A145: 1024 | B145: 2013.12.23 | C145: 2013.12.23 | D145: CEKS 001651 | E145: VLADAS FIRMA | F145: saņemšana | G145: 38.24 | H145: 8.03 | I145: 46.27
A146: 1025 | B146: 2013.12.23 | C146: 2013.12.24 | D146: LV3RE0086520 | E146: REATON , LTD SIA | F146: saņemšana | G146: 32.27 | H146: 6.78 | I146: 39.05
A147: 1026 | B147: 2013.12.24 | C147: 2013.12.24 | D147: RPK1781467 | E147: RIGAS PIENA KOMBINATS SIA | F147: saņemšana | G147: 89.8 | H147: 18.86 | I147: 108.66
A148: 1027 | B148: 2013.12.24 | C148: 2013.12.24 | D148: AAR657095 | E148: LIETAS SIA | F148: saņemšana | G148: 44.42 | H148: 9.33 | I148: 53.75
A149: 1028 | B149: 2013.12.24 | C149: 2013.12.24 | D149: FLS537475 | E149: FAZER LATVIA SIA | F149: saņemšana | G149: 14.84 | H149: 3.12 | I149: 17.96
A150: 1029 | B150: 2013.12.24 | C150: 2013.12.24 | D150: RPK1781255 | E150: RIGAS PIENA KOMBINATS SIA | F150: saņemšana | G150: 11.29 | H150: 2.37 | I150: 13.66
A151: 1030 | B151: 2013.12.24 | C151: 2013.12.24 | D151: STAB308327 | E151: SANITEX SIA | F151: saņemšana | G151: 92.05 | H151: 19.33 | I151: 111.38
A152: 1031 | B152: 2013.12.24 | C152: 2013.12.24 | D152: SBAA390152 | E152: SANITEX SIA | F152: saņemšana | G152: 157.08 | H152: 32.99 | I152: 190.07
A153: 1032 | B153: 2013.12.26 | C153: 2013.12.26 | D153: VLAT13/82648 | E153: VIČIŪNAI-LAT SIA | F153: saņemšana | G153: 159.93 | H153: 33.59 | I153: 193.52
A154: 1033 | B154: 2013.12.26 | C154: 2013.12.26 | D154: VLAT13/82476 | E154: VIČIŪNAI-LAT SIA | F154: saņemšana | G154: 208.62 | H154: 43.81 | I154: 252.43
A155: 1034 | B155: 2013.12.27 | C155: 2013.12.27 | D155: 2213186801 | E155: CIDO SIA | F155: saņemšana | G155: 279.09 | H155: 58.61 | I155: 337.7
A156: 1035 | B156: 2013.12.27 | C156: 2013.12.27 | D156: C 018026 | E156: CIDO SIA | F156: atgriešana | G156: 0 | H156: 0 | I156: 0
A157: 1036 | B157: 2013.12.27 | C157: 2013.12.27 | D157: VNK000093453 | E157: VAINEKTA UAB | F157: saņemšana | G157: 120.24 | I157: 120.24
A158: 1037 | B158: 2013.12.27 | C158: 2013.12.27 | D158: SDAA064931 | E158: SANITEX SIA | F158: saņemšana | G158: 1.48 | H158: 0.31 | I158: 1.79
A159: 1038 | B159: 2013.12.27 | C159: 2013.12.27 | D159: STAB309740 | E159: SANITEX SIA | F159: saņemšana | G159: 22.94 | H159: 4.82 | I159: 27.76
A160: 1039 | B160: 2013.12.27 | C160: 2013.12.27 | D160: ALP 165261 | E160: ALLFRESH PLUS SIA | F160: saņemšana | G160: 11.2 | H160: 2.35 | I160: 13.55
A161: 1040 | B161: 2013.12.27 | C161: 2013.12.27 | D161: ALP 165232 | E161: ALLFRESH PLUS SIA | F161: saņemšana | G161: 46.58 | H161: 9.78 | I161: 56.36
A162: 1041 | B162: 2013.12.27 | C162: 2013.12.27 | D162: SBAA390602 | E162: SANITEX SIA | F162: saņemšana | G162: 118.03 | H162: 24.79 | I162: 142.82
A163: 1042 | B163: 2013.12.27 | C163: 2013.12.27 | D163: 3100204423 | E163: COCA COLA SIA | F163: saņemšana | G163: 94.75 | H163: 19.9 | I163: 114.65 | L163: TARA
A164: 1043 | B164: 2013.12.23 | C164: 2013.12.27 | D164: GEMO761207 | E164: GEMOSS SIA | F164: saņemšana | G164: 72.86 | H164: 15.3 | I164: 88.16
A165: 1044 | B165: 2013.12.23 | C165: 2013.12.27 | D165: GEMO761146 | E165: GEMOSS SIA | F165: saņemšana | G165: 36.26 | H165: 7.61 | I165: 43.87
A166: 1045 | B166: 2013.12.27 | C166: 2013.12.27 | D166: VRG13 3042 | E166: VICI RESTAURANTS SIA | F166: izsniegšana | G166: -13.74 | H166: 0 | I166: -13.74
A167: 1046 | B167: 2013.12.28 | C167: 2013.12.28 | D167: AAR658505 | E167: LIETAS SIA | F167: saņemšana | G167: 68.7 | H167: 14.43 | I167: 83.13
A168: 1047 | B168: 2013.12.28 | C168: 2013.12.28 | D168: 3100205027 | E168: COCA COLA SIA | F168: saņemšana | G168: 133.32 | H168: 27.99 | I168: 161.31
A169: 1048 | B169: 2013.12.28 | C169: 2013.12.28 | D169: 3100205045 | E169: COCA COLA SIA | F169: atgriešana | G169: -37.9 | H169: -7.96 | I169: =SUM(G169+H169) -> -45.86
A170: 1049 | B170: 2013.12.28 | C170: 2013.12.28 | D170: CEKS 409500 | E170: RIMI LATVIA SIA | F170: saņemšana | G170: 0.57 | H170: 0.12 | I170: 0.69
A171: 1050 | B171: 2013.12.29 | C171: 2013.12.29 | D171: FLS540720 | E171: FAZER LATVIA SIA | F171: saņemšana | G171: 8.16 | H171: 1.71 | I171: 9.87
A172: 1051 | B172: 2013.12.30 | C172: 2013.12.30 | D172: AAR659349 | E172: LIETAS SIA | F172: saņemšana | G172: 44.7 | H172: 9.39 | I172: 54.09
A173: 1052 | B173: 2013.12.30 | C173: 2013.12.30 | D173: MES 3822 | E173: MAŽEIKIU MESIŅE | F173: saņemšana | G173: 127.77 | H173: 0 | I173: 127.77
A174: 1053 | B174: 2013.12.30 | C174: 2013.12.30 | D174: SBAA391755 | E174: SANITEX SIA | F174: saņemšana | G174: 70.79 | H174: 14.87 | I174: 85.66
A175: 1054 | B175: 2013.12.29 | C175: 2013.12.29 | D175: CEKS 287724 | E175: RIMI LATVIA SIA | F175: saņemšana | G175: 5.93 | H175: 1.24 | I175: 7.17
A176: 1055 | B176: 2013.12.30 | C176: 2013.12.30 | D176: CEKS 410434 | E176: RIMI LATVIA SIA | F176: saņemšana | G176: 4.56 | H176: 0.96 | I176: =SUM(G176+H176) -> 5.52
A177: 1056 | B177: 2013.12.30 | C177: 2013.12.30 | D177: VRG13 1092 | E177: VICI RESTAURANTS SIA | F177: pārvietošana | G177: 3.47 | H177: 0 | I177: 3.47
A178: 1057 | B178: 2013.12.30 | C178: 2013.12.30 | D178: VRG13 3044 | E178: VICI RESTAURANTS SIA | F178: izsniegšana | G178: -6.88 | H178: 0 | I178: -6.88
A179: 1058 | B179: 2013.12.31 | C179: 2013.12.31 | D179: RPK1787463 | E179: RIGAS PIENA KOMBINATS SIA | F179: saņemšana | G179: 16.39 | H179: 3.44 | I179: 19.83
A180: 1059 | B180: 2013.12.31 | C180: 2013.12.31 | D180: LIV-13-PR-90896 | E180: LIVIKO SIA | F180: saņemšana | G180: 54.24 | H180: 11.39 | I180: 65.63
A181: 1060 | B181: 2013.12.31 | C181: 2013.12.31 | D181: RPK1787379 | E181: RIGAS PIENA KOMBINATS SIA | F181: saņemšana | G181: 11.29 | H181: 2.37 | I181: 13.66
A182: 1061 | B182: 2013.12.31 | C182: 2013.12.31 | D182: AVD 956988 | E182: SPI DISTRIBUTION | F182: saņemšana | G182: 15 | H182: 3.15 | I182: 18.15
A183: 1062 | B183: 2013.12.31 | C183: 2013.12.31 | D183: SBAA392190 | E183: SANITEX SIA | F183: saņemšana | G183: 73.41 | H183: 15.42 | I183: 88.83
E184: VICI RESTAURANTS SIA | F184: pārvietošana | G184: 76.41 | I184: 76.41
A185: 1063 | B185: 2013.12.31 | C185: 2013.12.31 | D185: AAR659889 | E185: LIETAS SIA | F185: saņemšana | G185: 35.53 | H185: 7.46 | I185: 42.99
F186: saņemšana | I186: 0
F187: saņemšana | I187: 0
F188: saņemšana | I188: 0
F189: saņemšana | I189: 0
F190: saņemšana | I190: 0
F191: saņemšana | I191: 0
F192: saņemšana | I192: 0
F193: saņemšana | I193: 0
F194: saņemšana | I194: 0
F195: saņemšana | I195: 0
F196: saņemšana | I196: 0
F197: saņemšana | I197: 0
F198: saņemšana | I198: 0
F199: saņemšana | I199: 0
F200: saņemšana | I200: 0
... 11 more rows

Sheet 12.2013.SAIM (hidden)
A1: Nr.p.k. | C1: PVZ | E1: PIEGĀDĀTĀJS | F1: Darījuma apraksts (piegāde, iegāde, izsniegšana, saņemšana, pārvietošana) | G1: PVZ norādītā preču kopējā vērtība | H1: PVN summa | I1: Summa ar PVN
C2: datums | D2: numurs | G2: (bez PVN) | H2: (ja tāda ir)
A3: S24 | B3: 2013.12.07 | C3: 2013.12.07 | D3: CEKS 0005161 | E3: TIGER | F3: saņemšana | G3: 2.48 | H3: 0.52 | I3: =SUM(G3+H3) -> 3
A4: S25 | B4: 2013.12.03 | C4: 2013.12.03 | D4: GEMO751172 | E4: GEMOSS SIA | F4: saņemšana | G4: 4.32 | H4: 0.91 | I4: =SUM(G4+H4) -> 5.23
A5: S26 | B5: 2013.12.05 | C5: 2013.12.05 | D5: VRG133035 | E5: VICI RESTAURANTS SIA | F5: izsniegšana | G5: -9.7 | H5: 0 | I5: =SUM(G5+H5) -> -9.7 | J5: X
A6: S27 | B6: 2013.12.05 | C6: 2013.12.02 | D6: VRG133031 | E6: VICI RESTAURANTS SIA | F6: izsniegšana | G6: -7.8 | H6: 0 | I6: -7.8 | J6: X
A7: S28 | B7: 2013.12.12 | C7: 2013.12.12 | D7: VRG13 1083 | E7: VICI RESTAURANTS SIA | F7: pārvietošana | G7: 8.68 | H7: 0 | I7: 8.68 | J7: X
A8: S29 | B8: 2013.12.16 | C8: 2013.12.16 | D8: GEMO756833 | E8: GEMOSS SIA | F8: saņemšana | G8: 15.12 | H8: 3.18 | I8: 18.3
A9: S30 | B9: 2013.12.16 | C9: 2013.12.16 | D9: VRG13 1085 | E9: VICI RESTAURANTS SIA | F9: pārvietošana | G9: 1.2 | I9: 1.2 | J9: X
A10: S31 | B10: 2013.12.13 | C10: 2013.12.14 | D10: PK118597 | E10: PIREKA SIA | F10: saņemšana | G10: 108.02 | H10: 22.68 | I10: =SUM(G10+H10) -> 130.7 | J10: X
A11: S32 | B11: 2013.12.13 | C11: 2013.12.14 | D11: CEKS 366/788 | E11: JUSK SIA | F11: saņemšana | G11: 2.13 | H11: 0.45 | I11: 2.58 | J11: X
A12: S33 | B12: 2013.12.11 | C12: 2013.12.14 | D12: CEKS 26372 | E12: SAVEL SIA | F12: saņemšana | G12: 1.23 | H12: 0.26 | I12: 1.49 | J12: X
A13: S34 | B13: 2013.12.13 | C13: 2013.12.14 | D13: CEKS 167/2032 | E13: DROGAS | F13: saņemšana | G13: 2.98 | H13: 0.62 | I13: 3.6 | J13: X
A14: S35 | B14: 2013.12.11 | C14: 2013.12.14 | D14: CEKS 24/415 | E14: EURO APTEKA | F14: saņemšana | G14: 9.38 | H14: 1.13 | I14: 10.51 | J14: NAV
A15: S36 | B15: 2013.12.15 | C15: 2013.12.15 | D15: CEKS 32/2034 | E15: DROGAS | F15: saņemšana | G15: 3.62 | H15: 0.76 | I15: 4.38 | J15: X
A16: S37 | B16: 2013.12.16 | C16: 2013.12.16 | D16: CEKS 1721 | E16: GRANDUS SIA | F16: saņemšana | G16: 1.02 | H16: 0.22 | I16: 1.24 | J16: X
A17: S38 | B17: 2013.12.17 | C17: 2013.12.17 | D17: TS 022846 | E17: TEHNOINFORM SERVIS SIA | F17: saņemšana | G17: 26.1 | H17: 5.48 | I17: 31.58 | J17: X
A18: S39 | B18: 2013.12.17 | C18: 2013.12.17 | D18: CEKS 299/2036 | E18: DROGAS | F18: saņemšana | G18: 1.74 | H18: 0.36 | I18: 2.1 | J18: X
A19: S40 | B19: 2013.12.18 | C19: 2013.12.18 | D19: CEKS 5558 | E19: JANIS ROZE | F19: saņemšana | G19: 1.6 | H19: 0.34 | I19: 1.94
A20: S41 | B20: 2013.12.19 | C20: 2013.12.19 | D20: VRG13 1088 | E20: VICI RESTAURANTS SIA | F20: pārvietošana | G20: 115.54 | I20: 115.54
A21: S42 | B21: 2013.12.20 | C21: 2013.12.20 | D21: ceks 120990 | E21: RIMI | F21: saņemšana | G21: 2.67 | H21: 0.56 | I21: 3.23
A22: S43 | B22: 2013.12.20 | C22: 2013.12.20 | D22: CEKS 00011536 | E22: TIGER | F22: saņemšana | G22: 2.48 | H22: 0.52 | I22: 3
A23: S44 | B23: 2013.12.21 | C23: 2013.12.21 | D23: CEKS L3012013122104041174 | E23: K-RAUTA | F23: saņemšana | G23: 1.33 | H23: 0.28 | I23: 1.61
A24: S45 | B24: 2013.12.26 | C24: 2013.12.26 | D24: 65/2045 | E24: DROGAS | F24: saņemšana | G24: 0.88 | H24: 0.18 | I24: 1.06
A25: S46 | B25: 2013.12.27 | C25: 2013.12.27 | D25: 2213186801 | E25: CIDO | F25: saņemšana | G25: 0.48 | H25: 0.1 | I25: 0.58
A26: S47 | B26: 2013.12.28 | C26: 2013.12.28 | D26: BPS 119991 | E26: BALTPAPIRS | F26: saņemšana | G26: 88.08 | H26: 18.5 | I26: 106.58
A27: S48 | B27: 2013.12.27 | C27: 2013.12.27 | D27: PK118743 | E27: PIREKA SIA | F27: saņemšana | G27: 16.8 | H27: 3.53 | I27: =SUM(G27+H27) -> 20.33
A28: S49 | B28: 2013.12.28 | C28: 2013.12.28 | D28: VRG13 3043 | E28: VICI RESTAURANTS SIA | F28: izsniegšana | G28: 4.41 | I28: 4.41
A29: S50 | B29: 2013.12.28 | C29: 2013.12.28 | D29: CEKS 124611 | E29: CENUKLUBS | F29: saņemšana | G29: 4.12 | H29: 0.87 | I29: 4.99
A30: S51 | B30: 2013.12.28 | C30: 2013.12.28 | D30: CEKS 100/815 | E30: JUSK SIA | F30: saņemšana | G30: 2.31 | H30: 0.49 | I30: =SUM(G30+H30) -> 2.8
A31: S52 | B31: 2013.12.28 | C31: 2013.12.30 | D31: GRMO762136 | E31: GEMOSS SIA | F31: saņemšana | G31: 52.34 | H31: 10.99 | I31: 63.33
A32: S53 | B32: 2013.12.29 | C32: 2013.12.29 | D32: CEKS 00015811 | E32: TIGER | F32: saņemšana | G32: 2.48 | H32: 0.52 | I32: =SUM(G32+H32) -> 3
A33: S54 | B33: 2013.12.31 | C33: 2013.12.31 | D33: ceks 12432 | E33: JANIS ROZE | F33: saņemšana | G33: 4.38 | H33: 0.92 | I33: 5.3
A34: S55 | B34: 2013.12.30 | C34: 2013.12.30 | D34: MTS124684 | E34: MODUS TETRA | F34: saņemšana | G34: 63 | H34: 13.23 | I34: 76.23

Sheet 10,2014 (hidden)
A1: SIA `VICI RESTAURANTS`
A2: Reģ.nr. 40103369245
C4: Preču kustības reģistrācijas žurnāls 01.10.2014 - 31.10.2014. struktūrvienībai CHARLIE PIZZA Lielirbes iela 29
B5: Datums | C5: PVZ | E5: PIEGĀDĀTĀJS | F5: Darījuma apraksts (piegāde, iegāde, izsniegšana, saņemšana, pārvietošana) | G5: PVZ norādītā preču kopējā vērtība | H5: PVN summa | I5: Summa ar PVN | M5: =G7*1.21 -> 23.0505
C6: datums | D6: numurs | G6: (bez PVN) | H6: (ja tāda ir)
A7: 855 | B7: 2014.10.01 | C7: 2014.09.30 | D7: SPI 159610 | E7: SPI DISTRIBUTION SIA | F7: saņemšana | G7: 19.05 | H7: 4 | I7: =G7+H7 -> 23.05 | N7: PICU KASTES
A8: 856 | B8: 2014.10.01 | C8: 2014.10.01 | D8: KDA 753380 | E8: AS KONIG DISTRIBUTION | F8: saņemšana | G8: 11.24 | H8: 2.36 | I8: =G8+H8 -> 13.6 | M8: TARA(-) | N8: atgriešana
A9: 857 | B9: 2014.10.01 | C9: 2014.09.30 | D9: 1400267124 | E9: GEMOSS SIA | F9: saņemšana | G9: 13.52 | H9: 2.84 | I9: 16.36 | M9: (-) OTDALI | N9: izsniegšana
A10: 858 | B10: 2014.10.01 | C10: 2014.10.01 | D10: MES 4657 | E10: MAŽEIKIU MESIŅE | F10: saņemšana | G10: 52.11 | H10: 0 | I10: 52.11
A11: 859 | B11: 2014.10.01 | C11: 2014.10.01 | D11: 2114136939 | E11: CIDO GRUPA SIA | F11: saņemšana | G11: 33.58 | H11: 7.05 | I11: 40.63 | M11: PIEŅEMSANA | N11: pārvietošana
A12: 860 | B12: 2014.10.01 | C12: 2014.10.01 | D12: 2114136937 | E12: CIDO GRUPA SIA | F12: saņemšana | G12: 184.01 | H12: 38.64 | I12: 222.65 | N12: saņemšana
A13: 861 | B13: 2014.10.01 | C13: 2014.10.01 | D13: IBV022721 | E13: INTERBALTIJA AG A/S | F13: saņemšana | G13: 30.89 | H13: 6.49 | I13: 37.38 | N13: vienreizeji trauki
A14: 862 | B14: 2014.10.01 | C14: 2014.09.30 | D14: LIV-14-PR-64346 | E14: LIVIKO SIA | F14: saņemšana | G14: 141.81 | H14: 29.78 | I14: 171.59
A15: 863 | B15: 2014.10.01 | C15: 2014.10.01 | D15: PVZ0223805 | E15: LIETAS MD SIA | F15: saņemšana | G15: 66.35 | H15: 13.93 | I15: 80.28
A16: 864 | B16: 2014.10.01 | C16: 2014.10.01 | D16: D 031498 | E16: CIDO GRUPA SIA | F16: atgriešana | G16: 0 | H16: 0 | I16: 0
A17: 865 | B17: 2014.10.01 | C17: 2014.10.01 | D17: GLS 008016 | E17: GAĻSAIMNIEKS SIA | F17: saņemšana | G17: 38.93 | H17: 8.18 | I17: 47.11 | N17: GEMOSS SIA
A18: 866 | B18: 2014.10.01 | C18: 2014.10.01 | D18: CEKS 638064 | E18: RIMI LATVIA SIA | F18: saņemšana | G18: 1.26 | H18: 0.26 | I18: 1.52 | N18: ALLFRESH PLUS SIA
A19: 867 | B19: 2014.10.02 | C19: 2014.10.02 | D19: RPK 2206960 | E19: RĪGAS PIENA KOMBINĀTS AS | F19: saņemšana | G19: 31.88 | H19: 6.69 | I19: 38.57 | N19: AS KONIG DISTRIBUTION
A20: 868 | B20: 2014.10.02 | C20: 2014.10.02 | D20: PVZ0224673 | E20: LIETAS MD SIA | F20: saņemšana | G20: 29.58 | H20: 6.21 | I20: 35.79 | N20: BARGI SIA
A21: 869 | B21: 2014.10.02 | C21: 2014.10.02 | D21: GLS 008096 | E21: GAĻSAIMNIEKS SIA | F21: saņemšana | G21: 14.41 | H21: 3.03 | I21: 17.44
A22: 870 | B22: 2014.10.03 | C22: 2014.10.03 | D22: MES 4666 | E22: MAŽEIKIU MESIŅE | F22: saņemšana | G22: 57.51 | H22: 0 | I22: 57.51 | N22: CIDO GRUPA SIA
A23: 871 | B23: 2014.10.03 | C23: 2014.10.03 | D23: EU14159869 | E23: EUGESTA UN PARTNERI SIA | F23: saņemšana | G23: 100.04 | H23: 21.01 | I23: 121.05 | N23: COCA-COLA HBC LATVIA SIA
A24: 872 | B24: 2014.10.03 | C24: 2014.10.03 | D24: VLAT14/68276 | E24: VIČIŪNAI-LAT SIA | F24: saņemšana | G24: 44.84 | H24: 9.42 | I24: 54.26 | N24: EUGESTA UN PARTNERI SIA
A25: 873 | B25: 2014.10.03 | C25: 2014.10.03 | D25: VLAT14/68094 | E25: VIČIŪNAI-LAT SIA | F25: saņemšana | G25: 196.68 | H25: 41.3 | I25: 237.98 | N25: GAĻSAIMNIEKS SIA
A26: 874 | B26: 2014.10.03 | C26: 2014.10.03 | D26: PVZ0225630 | E26: LIETAS MD SIA | F26: saņemšana | G26: 16.51 | H26: 3.47 | I26: 19.98 | N26: FAZER LATVIJA SIA
A27: 875 | B27: 2014.10.03 | C27: 2014.10.03 | D27: CEKS 639273 | E27: RIMI LATVIA SIA | F27: saņemšana | G27: 1.36 | H27: 0.28 | I27: 1.64 | N27: FJB LATVIA SIA
A28: 876 | B28: 2014.10.03 | C28: 2014.10.03 | D28: CEKS 93546 | E28: RIMI LATVIA SIA | F28: saņemšana | G28: 2.03 | H28: 0.43 | I28: 2.46 | N28: INTERBALTIJA AG A/S
A29: 877 | B29: 2014.10.03 | C29: 2014.10.03 | D29: VRG14 055 | E29: VICI RESTAURANTS | F29: saņemšana | G29: 6.91 | H29: 0 | I29: 6.91 | N29: LIEPURIN SIA
A30: 878 | B30: 2014.10.03 | C30: 2014.10.03 | D30: VRG 14 054 | E30: VICI RESTAURANTS | F30: saņemšana | G30: 35.4 | H30: 0 | I30: 35.4 | N30: LIETAS MD SIA
A31: 878 | B31: 2014.10.04 | C31: 2014.10.04 | D31: RPK2210053 | E31: RĪGAS PIENA KOMBINĀTS AS | F31: saņemšana | G31: 60.86 | H31: 12.78 | I31: 73.64 | N31: MAŽEIKIU MESIŅE
A32: 879 | B32: 2014.10.04 | C32: 2014.10.04 | D32: FLN357318 | E32: FAZER LATVIJA SIA | F32: saņemšana | G32: 6.79 | H32: 1.43 | I32: 8.22 | N32: MILTINUKO RECEPTAS UAB
A33: 880 | B33: 2014.10.04 | C33: 2014.10.04 | D33: PVZ0226385 | E33: LIETAS MD SIA | F33: saņemšana | G33: 74.32 | H33: 15.61 | I33: 89.93 | N33: NOWACO LATVIA SIA
A34: 881 | B34: 2014.10.04 | C34: 2014.10.04 | D34: GLS 008224 | E34: GAĻSAIMNIEKS SIA | F34: saņemšana | G34: 54.27 | H34: 11.4 | I34: 65.67 | N34: REATON, LTD
A35: 882 | B35: 2014.10.06 | C35: 2014.10.06 | D35: RPK2212758 | E35: RĪGAS PIENA KOMBINĀTS AS | F35: saņemšana | G35: 17.1 | H35: 3.59 | I35: 20.69 | N35: RIMI LATVIA SIA
A36: 883 | B36: 2014.10.06 | C36: 2014.10.06 | D36: PVZ0227425 | E36: LIETAS MD SIA | F36: saņemšana | G36: 33.59 | H36: 7.05 | I36: 40.64 | N36: RĪGAS PIENA KOMBINĀTS AS
A37: 884 | B37: 2014.10.06 | C37: 2014.10.06 | D37: MES 4669 | E37: MAŽEIKIU MESIŅE | F37: saņemšana | G37: 56.9 | H37: 0 | I37: 56.9 | N37: SANITEX BALTIC DISTRIBUTION SIA
A38: 885 | B38: 2014.10.06 | C38: 2014.10.06 | D38: CEKS 394053 | E38: RIMI LATVIA SIA | F38: saņemšana | G38: 3.75 | H38: 0.79 | I38: 4.54 | N38: SANITEX SIA
A39: 886 | B39: 2014.10.06 | C39: 2014.10.06 | D39: CEKS 611958 | E39: RIMI LATVIA SIA | F39: saņemšana | G39: 3.12 | H39: 0.66 | I39: 3.78 | N39: SERVAALI LATVIA SIA
A40: 886/A | B40: 2014.10.06 | C40: 2014.10.06 | D40: KDA 755028 | E40: AS KONIG DISTRIBUTION | F40: saņemšana | G40: 19.44 | H40: 4.08 | I40: 23.52
A41: 887 | B41: 2014.10.07 | C41: 2014.10.07 | D41: VLAT14/68834 | E41: VIČIŪNAI-LAT SIA | F41: saņemšana | G41: 70.12 | H41: 14.73 | I41: 84.85 | N41: SPI DISTRIBUTION SIA
A42: 888 | B42: 2014.10.07 | C42: 2014.10.07 | D42: VLAT14/68869 | E42: VIČIŪNAI-LAT SIA | F42: saņemšana | G42: 251.49 | H42: 52.81 | I42: 304.3 | N42: SPILVA SIA
A43: 889 | B43: 2014.10.07 | C43: 2014.10.07 | D43: GLS 008358 | E43: GAĻSAIMNIEKS SIA | F43: saņemšana | G43: 35.48 | H43: 7.45 | I43: 42.93 | N43: VAINEKTA UAB
A44: 890 | B44: 2014.10.07 | C44: 2014.10.07 | D44: RPK2213911 | E44: RĪGAS PIENA KOMBINĀTS AS | F44: saņemšana | G44: 48.39 | H44: 10.16 | I44: 58.55 | N44: VIČIŪNAI-LAT SIA
A45: =A44+1 -> 891 | B45: 2014.10.07 | C45: 2014.10.07 | D45: FLN359738 | E45: FAZER LATVIJA SIA | F45: saņemšana | G45: 6.24 | H45: 1.31 | I45: 7.55 | N45: HENKELL &CO SIA
A46: =A45+1 -> 892 | B46: 2014.10.07 | C46: 2014.10.07 | D46: PVZ0228402 | E46: LIETAS MD SIA | F46: saņemšana | G46: 17.82 | H46: 3.74 | I46: 21.56
A47: 893 | B47: 2014.10.07 | C47: 2014.10.07 | D47: CEKS 612630 | E47: RIMI LATVIA SIA | F47: saņemšana | G47: 0.69 | H47: 0.15 | I47: 0.84
A48: 894 | B48: 2014.10.07 | C48: 2014.10.07 | D48: CEKS642384 | E48: RIMI LATVIA SIA | F48: saņemšana | G48: 0.59 | H48: 0.12 | I48: 0.71
A49: 895 | B49: 2014.10.08 | C49: 2014.10.08 | D49: VLAT14/69293 | E49: VIČIŪNAI-LAT SIA | F49: saņemšana | G49: 97.11 | H49: 20.39 | I49: 117.5
A50: 896 | B50: 2014.10.08 | C50: 2014.10.08 | D50: PVZ0229209 | E50: LIETAS MD SIA | F50: saņemšana | G50: 35.78 | H50: 7.51 | I50: 43.29
A51: 897 | B51: 2014.10.08 | C51: 2014.10.08 | D51: MES 4680 | E51: MAŽEIKIU MESIŅE | F51: saņemšana | G51: 67.18 | H51: 0 | I51: 67.18
A52: 898 | B52: 2014.10.09 | C52: 2014.10.09 | D52: PVZ0229965 | E52: LIETAS MD SIA | F52: saņemšana | G52: 18.76 | H52: 3.94 | I52: 22.7
A53: 899 | B53: 2014.10.09 | C53: 2014.10.09 | D53: VNK 000103221 | E53: VAINEKTA UAB | F53: saņemšana | G53: 118.35 | H53: 0 | I53: 118.35
A54: 900 | B54: 2014.10.09 | C54: 2014.10.09 | D54: STAB 582433 | E54: SANITEX SIA | F54: saņemšana | G54: 44.54 | H54: 9.35 | I54: 53.89
A55: 901 | B55: 2014.10.10 | C55: 2014.10.10 | D55: MES 4688 | E55: MAŽEIKIU MESIŅE | F55: saņemšana | G55: 80.45 | H55: 0 | I55: 80.45
A56: 902 | B56: 2014.10.10 | C56: 2014.10.10 | D56: VLAT14/69989 | E56: VIČIŪNAI-LAT SIA | F56: saņemšana | G56: 18.04 | H56: 3.79 | I56: 21.83
A57: 903 | B57: 2014.10.10 | C57: 2014.10.10 | D57: VLAT14/69670 | E57: VIČIŪNAI-LAT SIA | F57: saņemšana | G57: 41.86 | H57: 8.79 | I57: 50.65
A58: 904 | B58: 2014.10.10 | C58: 2014.10.10 | D58: VLAT14/69745 | E58: VIČIŪNAI-LAT SIA | F58: saņemšana | G58: 9.05 | H58: 1.9 | I58: 10.95
A59: 905 | B59: 2014.10.10 | C59: 2014.10.10 | D59: PVZ0231012 | E59: LIETAS MD SIA | F59: saņemšana | G59: 28.84 | H59: 6.06 | I59: 34.9
A60: 906 | B60: 2014.10.10 | C60: 2014.10.10 | D60: GLS 008602 | E60: GAĻSAIMNIEKS SIA | F60: saņemšana | G60: 32.27 | H60: 6.78 | I60: 39.05
A61: 907 | B61: 2014.10.10 | C61: 2014.10.10 | D61: D 031499 | E61: CIDO GRUPA SIA | F61: atgriešana | G61: 0 | H61: 0 | I61: 0
A62: 908 | B62: 2014.10.10 | C62: 2014.10.10 | D62: 2114141912 | E62: CIDO GRUPA SIA | F62: saņemšana | G62: 117.13 | H62: 24.6 | I62: 141.73
A63: 909 | B63: 2014.10.10 | C63: 2014.10.10 | D63: 2114141913 | E63: CIDO GRUPA SIA | F63: saņemšana | G63: 29.45 | H63: 6.18 | I63: 35.63
A64: 910 | B64: 2014.10.10 | C64: 2014.10.10 | D64: CEKS644536 | E64: RIMI LATVIA SIA | F64: saņemšana | G64: 1.79 | H64: 0.37 | I64: 2.16
A65: 911 | B65: 2014.10.10 | C65: 2014.10.10 | D65: CEKS644657 | E65: RIMI LATVIA SIA | F65: saņemšana | G65: 1.85 | H65: 0.39 | I65: 2.24
A66: 912 | B66: 2014.10.11 | C66: 2014.10.11 | D66: RPK2220407 | E66: RĪGAS PIENA KOMBINĀTS AS | F66: saņemšana | G66: 73.55 | H66: 15.45 | I66: 89
A67: 913 | B67: 2014.10.11 | C67: 2014.10.11 | D67: FLN364083 | E67: FAZER LATVIJA SIA | F67: saņemšana | G67: 9.1 | H67: 1.91 | I67: 11.01
A68: 914 | B68: 2014.10.11 | C68: 2014.10.11 | D68: PVZ0231735 | E68: LIETAS MD SIA | F68: saņemšana | G68: 35.46 | H68: 7.45 | I68: 42.91
A69: 915 | B69: 2014.10.11 | C69: 2014.10.11 | D69: GLS008702 | E69: GAĻSAIMNIEKS SIA | F69: saņemšana | G69: 17 | H69: 3.57 | I69: 20.57
A70: 916 | B70: 2014.10.11 | C70: 2014.10.11 | D70: CEKS 402632 | E70: RIMI LATVIA SIA | F70: saņemšana | G70: 3.2 | H70: 0.67 | I70: 3.87
A71: 917 | B71: 2014.10.12 | C71: 2014.10.12 | D71: CEKS 155902 | E71: RIMI LATVIA SIA | F71: saņemšana | G71: 19.5 | H71: 4.09 | I71: 23.59
A72: 918 | B72: 2014.10.12 | C72: 2014.10.12 | D72: CEKS 398921 | E72: RIMI LATVIA SIA | F72: saņemšana | G72: 4.9 | H72: 1.03 | I72: =G72+H72 -> 5.93
A73: 919 | B73: 2014.10.13 | C73: 2014.10.13 | D73: CEKS 646610 | E73: RIMI LATVIA SIA | F73: saņemšana | G73: 1.19 | H73: 0.24 | I73: 1.43
A74: 920 | B74: 2014.10.13 | C74: 2014.10.13 | D74: GLS008741 | E74: GAĻSAIMNIEKS SIA | F74: saņemšana | G74: 50.26 | H74: 10.55 | I74: 60.81
A75: 921 | B75: 2014.10.13 | C75: 2014.10.13 | D75: RPK2222873 | E75: RĪGAS PIENA KOMBINĀTS AS | F75: saņemšana | G75: 17.1 | H75: 3.59 | I75: 20.69
A76: 922 | B76: 2014.10.13 | C76: 2014.10.13 | D76: KDA 757700 | E76: AS KONIG DISTRIBUTION | F76: saņemšana | G76: 81.86 | H76: 17.19 | I76: 99.05
A77: 923 | B77: 2014.10.13 | C77: 2014.10.13 | D77: RPK2221958 | E77: RĪGAS PIENA KOMBINĀTS AS | F77: saņemšana | G77: 30.47 | H77: 6.4 | I77: 36.87
A78: 924 | B78: 2014.10.13 | C78: 2014.10.13 | D78: PVZ0232822 | E78: LIETAS MD SIA | F78: saņemšana | G78: 48.66 | H78: 10.22 | I78: 58.88
A79: 925 | B79: 2014.10.13 | C79: 2014.10.13 | D79: 3100366077 | E79: COCA-COLA HBC LATVIA SIA | F79: saņemšana | G79: 347.04 | H79: 72.88 | I79: 419.92
A80: 926 | B80: 2014.10.13 | C80: 2014.10.13 | D80: 3100366079 | E80: COCA-COLA HBC LATVIA SIA | F80: atgriešana | G80: -108 | H80: -22.68 | I80: -130.68
A81: 927 | B81: 2014.10.13 | C81: 2014.10.13 | D81: MES 4695 | E81: MAŽEIKIU MESIŅE | F81: saņemšana | G81: 75.39 | H81: 0 | I81: 75.39
A82: 928 | B82: 2014.10.14 | C82: 2014.10.14 | D82: PVZ0233753 | E82: LIETAS MD SIA | F82: saņemšana | G82: 31.14 | H82: 6.54 | I82: 37.68
A83: 929 | B83: 2014.10.15 | C83: 2014.10.15 | D83: RPK2225991 | E83: RĪGAS PIENA KOMBINĀTS AS | F83: saņemšana | G83: 41.01 | H83: 8.61 | I83: 49.62
A84: 930 | B84: 2014.10.15 | C84: 2014.10.15 | D84: MES 4704 | E84: MAŽEIKIU MESIŅE | F84: saņemšana | G84: 65.57 | H84: 0 | I84: 65.57
A85: 931 | B85: 2014.10.15 | C85: 2014.10.15 | D85: VLAT14/70743 | E85: VIČIŪNAI-LAT SIA | F85: saņemšana | G85: 59.45 | H85: 12.48 | I85: 71.93
A86: 932 | B86: 2014.10.15 | C86: 2014.10.15 | D86: VLAT14/70773 | E86: VIČIŪNAI-LAT SIA | F86: saņemšana | G86: 369.98 | H86: 77.7 | I86: 447.68
A87: 933 | B87: 2014.10.15 | C87: 2014.10.15 | D87: PVZ0234509 | E87: LIETAS MD SIA | F87: saņemšana | G87: 12.2 | H87: 2.56 | I87: 14.76
A88: 934 | B88: 2014.10.15 | C88: 2014.10.15 | D88: GLS008952 | E88: GAĻSAIMNIEKS SIA | F88: saņemšana | G88: 34.17 | H88: 7.18 | I88: 41.35
A89: 935 | B89: 2014.10.16 | C89: 2014.10.16 | D89: PVZ0235343 | E89: LIETAS MD SIA | F89: saņemšana | G89: 44.98 | H89: 9.45 | I89: 54.43
A90: 936 | B90: 2014.10.16 | C90: 2014.10.16 | D90: FLN 368617 | E90: FAZER LATVIJA SIA | F90: saņemšana | G90: 7.59 | H90: 1.59 | I90: 9.18
A91: 937 | B91: 2014.10.16 | C91: 2014.10.16 | D91: CEKS 619211 | E91: RIMI LATVIA SIA | F91: saņemšana | G91: 1.39 | H91: 0.29 | I91: 1.68
A92: 938 | B92: 2014.10.17 | C92: 2014.10.17 | D92: D 031500 | E92: CIDO GRUPA SIA | F92: atgriešana | G92: 0 | H92: 0 | I92: 0
A93: 939 | B93: 2014.10.17 | C93: 2014.10.17 | D93: 2114145200 | E93: CIDO GRUPA SIA | F93: saņemšana | G93: 127.08 | H93: 26.69 | I93: 153.77
A94: 940 | B94: 2014.10.17 | C94: 2014.10.17 | D94: MES 4713 | E94: MAŽEIKIU MESIŅE | F94: saņemšana | G94: 115.7 | H94: 0 | I94: 115.7
A95: 941 | B95: 2014.10.17 | C95: 2014.10.17 | D95: PVZ0236260 | E95: LIETAS MD SIA | F95: saņemšana | G95: 25.46 | H95: 5.35 | I95: 30.81
A96: 942 | B96: 2014.10.17 | C96: 2014.10.17 | D96: SP 441157 | E96: SPILVA SIA | F96: saņemšana | G96: 110.42 | H96: 23.19 | I96: 133.61
A97: 943 | B97: 2014.10.17 | C97: 2014.10.17 | D97: RPK2229632 | E97: RĪGAS PIENA KOMBINĀTS AS | F97: saņemšana | G97: 48.13 | H97: 10.11 | I97: 58.24
A98: 944 | B98: 2014.10.17 | C98: 2014.10.17 | D98: RPK2229305 | E98: RĪGAS PIENA KOMBINĀTS AS | F98: saņemšana | G98: 41.82 | H98: 8.78 | I98: 50.6
A99: 945 | B99: 2014.10.17 | C99: 2014.10.17 | D99: EU 14172122 | E99: EUGESTA UN PARTNERI SIA | F99: saņemšana | G99: 200.08 | H99: 0 | I99: 200.08
A100: 946 | B100: 2014.10.17 | C100: 2014.10.17 | D100: CEKS 649808 | E100: RIMI LATVIA SIA | F100: saņemšana | G100: 4.45 | H100: 0.93 | I100: 5.38
A101: 946/A | B101: 2014.10.17 | C101: 2014.10.17 | D101: CEKS385025 | E101: RIMI LATVIA SIA | F101: saņemšana | G101: 0.79 | H101: 0.17 | I101: 0.96
A102: 946/B | B102: 2014.10.17 | C102: 2014.10.17 | D102: CEKS 650273 | E102: RIMI LATVIA SIA | F102: saņemšana | G102: 1.23 | H102: 0.26 | I102: 1.49
A103: 946/C | B103: 2014.10.17 | C103: 2014.10.17 | D103: CEKS 649694 | E103: RIMI LATVIA SIA | F103: saņemšana | G103: 13.84 | H103: 2.91 | I103: 16.75
A104: =A100+1 -> 947 | B104: 2014.10.18 | C104: 2014.10.18 | D104: PVZ0236968 | E104: LIETAS MD SIA | F104: saņemšana | G104: 48.32 | H104: 10.15 | I104: 58.47
A105: 948 | B105: 2014.10.18 | C105: 2014.10.18 | D105: FLN370747 | E105: FAZER LATVIJA SIA | F105: saņemšana | G105: 9.15 | H105: 1.92 | I105: 11.07
A106: 949 | B106: 2014.10.18 | C106: 2014.10.18 | D106: RPK2231606 | E106: RĪGAS PIENA KOMBINĀTS AS | F106: saņemšana | G106: 17.1 | H106: 3.59 | I106: 20.69
A107: 950 | B107: 2014.10.18 | C107: 2014.10.18 | D107: VLAT14/72207 | E107: VIČIŪNAI-LAT SIA | F107: saņemšana | G107: 107.63 | H107: 22.6 | I107: 130.23
A108: 951 | B108: 2014.10.18 | C108: 2014.10.18 | D108: VLAT14/72260 | E108: VIČIŪNAI-LAT SIA | F108: saņemšana | G108: 133.49 | H108: 28.03 | I108: 161.52
A109: 952 | B109: 2014.10.18 | C109: 2014.10.18 | D109: GLS009126 | E109: GAĻSAIMNIEKS SIA | F109: saņemšana | G109: 41.68 | H109: 8.75 | I109: 50.43
A110: 952/A | B110: 2014.10.18 | C110: 2014.10.18 | D110: GLA009172 | E110: GAĻSAIMNIEKS SIA | F110: saņemšana | G110: 16.43 | H110: 3.45 | I110: 19.88
A111: 953 | B111: 2014.10.19 | C111: 2014.10.19 | D111: CEKS250858 | E111: RIMI LATVIA SIA | F111: saņemšana | G111: 5.62 | H111: 1.18 | I111: 6.8
A112: 954 | B112: 2014.10.19 | C112: 2014.10.19 | D112: CEKS651420 | E112: RIMI LATVIA SIA | F112: saņemšana | G112: 2.27 | H112: 0.48 | I112: 2.75
A113: 955 | B113: 2014.10.19 | C113: 2014.10.19 | D113: CEKS621009 | E113: RIMI LATVIA SIA | F113: saņemšana | G113: 1.72 | H113: 0.36 | I113: 2.08
A114: 956 | B114: 2014.10.19 | C114: 2014.10.19 | D114: CEKS651561 | E114: RIMI LATVIA SIA | F114: saņemšana | G114: 10.31 | H114: 2.17 | I114: 12.48
A115: =A114+1 -> 957 | B115: 2014.10.20 | C115: 2014.10.20 | D115: RPK2232789 | E115: RĪGAS PIENA KOMBINĀTS AS | F115: saņemšana | G115: 38.63 | H115: 8.11 | I115: 46.74
A116: =A115+1 -> 958 | B116: 2014.10.20 | C116: 2014.10.20 | D116: PVZ0238071 | E116: LIETAS MD SIA | F116: saņemšana | G116: 57.14 | H116: 12 | I116: 69.14
A117: 959 | B117: 2014.10.20 | C117: 2014.10.20 | D117: STAB 591413 | E117: SANITEX SIA | F117: saņemšana | G117: 105.68 | H117: 22.19 | I117: 127.87
A118: 960 | B118: 2014.10.20 | C118: 2014.10.20 | D118: GLS009207 | E118: GAĻSAIMNIEKS SIA | F118: saņemšana | G118: 32.83 | H118: 6.89 | I118: 39.72
A119: 961 | B119: 2014.10.20 | C119: 2014.10.20 | D119: MES 4715 | E119: MAŽEIKIU MESIŅE | F119: saņemšana | G119: 83.23 | H119: 0 | I119: 83.23
A120: 962 | B120: 2014.10.21 | C120: 2014.10.21 | D120: RPK2234750 | E120: RĪGAS PIENA KOMBINĀTS AS | F120: saņemšana | G120: 33.03 | H120: 6.94 | I120: 39.97
A121: 963 | B121: 2014.10.21 | C121: 2014.10.21 | D121: VLAT14/72459 | E121: VIČIŪNAI-LAT SIA | F121: saņemšana | G121: 69.23 | H121: 14.54 | I121: 83.77
A122: 964 | B122: 2014.10.21 | C122: 2014.10.21 | D122: VLAT14/72552 | E122: VIČIŪNAI-LAT SIA | F122: saņemšana | G122: 72.36 | H122: 15.2 | I122: 87.56
A123: 965 | B123: 2014.10.21 | C123: 2014.10.21 | D123: PVZ0238977 | E123: LIETAS MD SIA | F123: saņemšana | G123: 37.89 | H123: 7.96 | I123: 45.85
A124: =A123+1 -> 966 | B124: 2014.10.21 | C124: 2014.10.21 | D124: STAB 592924 | E124: SANITEX SIA | F124: saņemšana | G124: 73.05 | H124: 15.34 | I124: 88.39
A125: 967 | B125: 2014.10.21 | C125: 2014.10.21 | D125: KDA 761521 | E125: AS KONIG DISTRIBUTION | F125: saņemšana | G125: 53.67 | H125: 11.27 | I125: 64.94
A126: 968 | B126: 2014.10.21 | C126: 2014.10.21 | D126: 1400287184 | E126: GEMOSS SIA | F126: saņemšana | G126: 26.2 | H126: 5.5 | I126: 31.7
A127: 969 | B127: 2014.10.21 | C127: 2014.10.21 | D127: 1400286911 | E127: GEMOSS SIA | F127: saņemšana | G127: 19.04 | H127: 4 | I127: 23.04
A128: 970 | B128: 2014.10.21 | C128: 2014.10.21 | D128: GLS009326 | E128: GAĻSAIMNIEKS SIA | F128: saņemšana | G128: 35.06 | H128: 7.36 | I128: 42.42
A129: =A128+1 -> 971 | B129: 2014.10.21 | C129: 2014.10.21 | D129: BAR006713 | E129: BARGI SIA | F129: saņemšana | G129: 36.07 | H129: 7.57 | I129: 43.64
A130: =A129+1 -> 972 | B130: 2014.10.21 | C130: 2014.10.21 | D130: LIV-14-PR-68885 | E130: LIVIKO SIA | F130: saņemšana | G130: 90.55 | H130: 19.02 | I130: 109.57
A131: =A130+1 -> 973 | B131: 2014.10.21 | C131: 2014.10.21 | D131: VRG 3063 | E131: LIVIKO SIA | F131: atgriešana | G131: -46.94 | H131: -9.86 | I131: -56.8
A132: 973/A | B132: 2014.10.21 | C132: 2014.10.21 | D132: BON14P1532 | E132: SIA BONA BALTIJA | F132: saņemšana | G132: 42.02 | H132: 8.83 | I132: 50.85
A133: =A131+1 -> 974 | B133: 2014.10.22 | C133: 2014.10.22 | D133: PVZ0239650 | E133: LIETAS MD SIA | F133: saņemšana | G133: 22.45 | H133: 4.71 | I133: 27.16
A134: =A133+1 -> 975 | B134: 2014.10.22 | C134: 2014.10.16 | D134: DOR-0043588 | E134: UAB DORENA | F134: saņemšana | G134: 91.71 | H134: 0 | I134: 91.71
A135: =A134+1 -> 976 | B135: 2014.10.23 | C135: 2014.10.23 | D135: ibv02598 | E135: AS INTERBALTIJA AG | F135: saņemšana | G135: 67.72 | H135: 14.22 | I135: 81.94
A136: =A135+1 -> 977 | B136: 2014.10.23 | C136: 2014.10.23 | D136: FLN375411 | E136: FAZER LATVIJA SIA | F136: saņemšana | G136: 6.54 | H136: 1.37 | I136: =G136+H136 -> 7.91
A137: 978 | B137: 2014.10.23 | C137: 2014.10.23 | D137: 3100371510 | E137: SIA COCA-COLA | F137: saņemšana | G137: 318.12 | H137: 66.81 | I137: 384.93
A138: 979 | B138: 2014.10.23 | C138: 2014.10.23 | D138: 3100371516 | E138: SIA COCA-COLA | F138: atgriešana | G138: -113.4 | H138: -23.81 | I138: -137.21
A139: 980 | B139: 2014.10.23 | C139: 2014.10.23 | D139: PVZ0240397 | E139: LIETAS MD SIA | F139: saņemšana | G139: 28.54 | H139: 5.99 | I139: 34.53
A140: 981 | B140: 2014.10.23 | C140: 2014.10.23 | D140: VNK000103711 | E140: VAINEKTA UAB | F140: saņemšana | G140: 166.46 | H140: 0 | I140: 166.46
A141: 982 | B141: 2014.10.23 | C141: 2014.10.23 | D141: LV4-00051040 | E141: BALT-HELLIN | F141: saņemšana | G141: 9.68 | H141: 2.03 | I141: 11.71
A142: 983 | B142: 2014.10.24 | C142: 2014.10.24 | D142: RPK2239681 | E142: RIGAS PIENA KOMBINATS | F142: saņemšana | G142: 72.93 | H142: 15.32 | I142: 88.25
A143: 984 | B143: 2014.10.24 | C143: 2014.10.24 | D143: MESNR4732 | E143: UAB MAZEIKIU MESINE | F143: saņemšana | G143: 137.94 | H143: 0 | I143: 137.94
A144: 985 | B144: 2014.10.24 | C144: 2014.10.24 | D144: VLAT14/73671 | E144: VICUNAI-LAT SIA | F144: saņemšana | G144: 95.75 | H144: 20.11 | I144: 115.86
A145: 986 | B145: 2014.10.24 | C145: 2014.10.24 | D145: VLAT14/73707 | E145: VICUNAI-LAT SIA | F145: saņemšana | G145: 44.26 | H145: 9.29 | I145: 53.55
A146: 987 | B146: 2014.10.24 | C146: 2014.10.24 | D146: GLS009534 | E146: GALSAIMNIEKS | F146: saņemšana | G146: 65.7 | H146: 13.8 | I146: 79.5
A147: 987/A | B147: 2014.10.24 | C147: 2014.10.24 | D147: CEKS46927 | E147: RIMI LATVIA SIA | F147: saņemšana | G147: 3.04 | H147: 0.64 | I147: 3.68
A148: 987/B | B148: 2014.10.24 | C148: 2014.10.24 | D148: CEKS158615 | E148: RIMI LATVIA SIA | F148: saņemšana | G148: 1.39 | H148: 0.29 | I148: 1.68
A149: 987/C | B149: 2014.10.24 | C149: 2014.10.24 | D149: PVZ0241314 | E149: LIETAS MD SIA | F149: saņemšana | G149: 99.71 | H149: 20.94 | I149: 120.65
A150: =A146+1 -> 988 | B150: 2014.10.24 | C150: 2014.10.24 | D150: SER 135358 | E150: SERVAALI LATVIA SIA | F150: saņemšana | G150: 28.08 | H150: 5.9 | I150: 33.98
A151: 989 | B151: 2014.10.25 | C151: 2014.10.25 | D151: PVZ 0242005 | E151: LIETAS MD SIA | F151: saņemšana | G151: 32.74 | H151: 6.88 | I151: 39.62
A152: 989/B | B152: 2014.10.25 | C152: 2014.10.24 | D152: VRG14060 | E152: VICI RESTAURANTS | F152: pārvietošana | G152: 6.2 | H152: 0 | I152: 6.2
A153: =A151+1 -> 990 | B153: 2014.10.25 | C153: 2014.10.25 | D153: VLAT14/73962 | E153: VIČIŪNAI-LAT SIA | F153: saņemšana | G153: 99.19 | H153: 20.83 | I153: 120.02
A154: 991 | B154: 2014.10.25 | C154: 2014.10.25 | D154: VLAT14/73841 | E154: VIČIŪNAI-LAT SIA | F154: saņemšana | G154: 83.43 | H154: 17.52 | I154: 100.95
A155: 992 | B155: 2014.10.25 | C155: 2014.10.25 | D155: FNL377535 | E155: FAZER LATVIJA SIA | F155: saņemšana | G155: 10.72 | H155: 2.25 | I155: 12.97
A156: 993 | B156: 2014.10.25 | C156: 2014.10.25 | D156: CEKS625956 | E156: RIMI LATVIA SIA | F156: saņemšana | G156: 3.02 | H156: 0.64 | I156: 3.66
A157: =A156+1 -> 994 | B157: 2014.10.27 | C157: 2014.10.27 | D157: 14/2203 | E157: MAŽEIKIU MESIŅE | F157: saņemšana | G157: 56.41 | H157: 0 | I157: 56.41
A158: =A157+1 -> 995 | B158: 2014.10.27 | C158: 2014.10.27 | D158: LV4RE00075409 | E158: REATON LTD | F158: saņemšana | G158: 18.41 | H158: 3.87 | I158: 22.28
A159: 996 | B159: 2014.10.27 | C159: 2014.10.27 | D159: STAB59786 | E159: SANITEX SIA | F159: saņemšana | G159: 64.84 | H159: 13.62 | I159: 78.46
A160: 997 | B160: 2014.10.27 | C160: 2014.10.27 | D160: PVZ0243029 | E160: LIETAS MD SIA | F160: saņemšana | G160: 34.54 | H160: 7.25 | I160: 41.79
A161: 998 | B161: 2014.10.27 | C161: 2014.10.27 | D161: RPK2242402 | E161: RIGAS PIENA KOMBINATS | F161: saņemšana | G161: 33.66 | H161: 7.07 | I161: 40.73
A162: 999 | B162: 2014.10.27 | C162: 2014.10.27 | D162: GLS009664 | E162: GALSAIMNIEKS | F162: saņemšana | G162: 50.56 | H162: 10.62 | I162: 61.18
A163: 1000 | B163: 2014.10.27 | C163: 2014.10.27 | D163: CEKS654987 | E163: RIMI LATVIA SIA | F163: saņemšana | G163: 3.45 | H163: 0.73 | I163: 4.18
A164: 1001 | B164: 2014.10.28 | C164: 2014.10.28 | D164: 2114149445 | E164: CIDO GRUPA SIA | F164: saņemšana | G164: 156.59 | H164: 32.88 | I164: 189.47
A165: 1002 | B165: 2014.10.28 | C165: 2014.10.28 | D165: RPK2244327 | E165: RIGAS PIENA KOMBINATS | F165: saņemšana | G165: 32.26 | H165: 6.77 | I165: 39.03
A166: 1003 | B166: 2014.10.28 | C166: 2014.10.28 | D166: ALK268083 | E166: A/S ALDARIS | F166: saņemšana | G166: 96.2 | H166: 20.2 | I166: 116.4
A167: 1004 | B167: 2014.10.28 | C167: 2014.10.28 | D167: ALK268083 | E167: A/S ALDARIS | F167: saņemšana | G167: 42.68 | H167: 0 | I167: 42.68
A168: 1005 | B168: 2014.10.28 | C168: 2014.10.28 | D168: SP443850 | E168: SPILVA SIA | F168: saņemšana | G168: 64.09 | H168: 13.46 | I168: 77.55
A169: 1006 | B169: 2014.10.28 | C169: 2014.10.28 | D169: PVZ0243765 | E169: LIETAS MD SIA | F169: saņemšana | G169: 14.48 | H169: 3.04 | I169: 17.52
A170: 1007 | B170: 2014.10.28 | C170: 2014.10.28 | D170: RPK2244065 | E170: RIGAS PIENA KOMBINATS | F170: saņemšana | G170: 17.1 | H170: 3.59 | I170: 20.69
A171: 1008 | B171: 2014.10.28 | C171: 2014.10.28 | D171: GLS0091758 | E171: GALSAIMNIEKS | F171: saņemšana | G171: 43.74 | H171: 9.19 | I171: 52.93
A172: 1009 | B172: 2014.10.28 | C172: 2014.10.28 | D172: VRG141091 | E172: VICI RESTAURANTS | F172: saņemšana | G172: 95.88 | H172: 0 | I172: 95.88
A173: 1010/A | B173: 2014.10.28 | C173: 2014.10.28 | D173: VRG143064 | E173: VICI RESTAURANTS | F173: pārvietošana | G173: -8.44 | H173: 0 | I173: -8.44
A174: =A172+1 -> 1010 | B174: 2014.10.29 | C174: 2014.10.28 | D174: SBA202850 | E174: SANITEX SIA | F174: saņemšana | G174: 26 | H174: 5.46 | I174: 31.46
A175: 1011 | B175: 2014.10.29 | C175: 2014.10.29 | D175: LIV14PR70850 | E175: LIVIKO SIA | F175: saņemšana | G175: 197.75 | H175: 41.53 | I175: 239.28
A176: 1012 | B176: 2014.10.29 | C176: 2014.10.29 | D176: 2114150051 | E176: CIDO GRUPA SIA | F176: saņemšana | G176: 128.96 | H176: 27.08 | I176: 156.04
A177: 1013 | B177: 2014.10.29 | C177: 2014.10.29 | D177: RPK2245767 | E177: RIGAS PIENA KOMBINATS | F177: saņemšana | G177: 40.91 | H177: 8.59 | I177: 49.5
A178: 1014 | B178: 2014.10.29 | C178: 2014.10.28 | D178: 1400294443 | E178: GEMOSS SIA | F178: saņemšana | G178: 23.8 | H178: 5 | I178: 28.8
A179: 1015 | B179: 2014.10.29 | C179: 2014.10.29 | D179: PVZ0244625 | E179: LIETAS MD SIA | F179: saņemšana | G179: 43.6 | H179: 9.16 | I179: 52.76
A180: 1016 | B180: 2014.10.29 | C180: 2014.10.29 | D180: MESNR4748 | E180: MAŽEIKIU MESIŅE | F180: saņemšana | G180: 37.69 | H180: 0 | I180: 37.69
A181: 1017 | B181: 2014.10.29 | C181: 2014.10.29 | D181: 491894 | E181: RIMI LATVIA SIA | F181: saņemšana | G181: 7.15 | H181: 1.5 | I181: 8.65
A182: 1018 | B182: 2014.10.30 | C182: 2014.10.29 | D182: SPI180894 | E182: SIA SPIA DISTRIBUTION LATVIA | F182: saņemšana | G182: 51.79 | H182: 10.88 | I182: 62.67
A183: 1019 | B183: 2014.10.30 | C183: 2014.10.29 | D183: VLAT14/74666 | E183: VICIUNAI LAT SIA | F183: saņemšana | G183: 54.27 | H183: 11.4 | I183: 65.67
A184: 1020 | B184: 2014.10.30 | C184: 2014.10.30 | D184: VLAT14/75165 | E184: VICIUNAI LAT SIA | F184: saņemšana | G184: 41.53 | H184: 8.72 | I184: 50.25
A185: 1021 | B185: 2014.10.31 | C185: 2014.10.31 | D185: 1400296362 | E185: GEMOSS SIA | F185: saņemšana | G185: 29.34 | H185: 6.16 | I185: 35.5
A186: 1022/A | B186: 2014.10.31 | C186: 2014.10.31 | D186: VRG141094 | E186: VICI RESTAURANTS | F186: pārvietošana | G186: 18.53 | H186: 0 | I186: 18.53
A187: =A185+1 -> 1022 | B187: 2014.10.31 | C187: 2014.10.30 | D187: 1400295777 | E187: GEMOSS SIA | F187: saņemšana | G187: 8.97 | H187: 1.88 | I187: 10.85
A188: 1023 | B188: 2014.10.31 | C188: 2014.10.30 | D188: STAB601950 | E188: SANITEX SIA | F188: saņemšana | G188: 54.8 | H188: 11.51 | I188: 66.31
A189: 1024 | B189: 2014.10.31 | C189: 2014.10.30 | D189: VNK000103962 | E189: VAINEKTA UAB | F189: saņemšana | G189: 52.82 | H189: 0 | I189: 52.82
A190: 1025 | B190: 2014.10.31 | C190: 2014.10.30 | D190: RPK2247180 | E190: RIGAS PIENA KOMBINATS | F190: saņemšana | G190: 37.39 | H190: 7.85 | I190: 45.24
A191: 1026 | B191: 2014.10.31 | C191: 2014.10.30 | D191: FNL381826 | E191: FAZER LATVIJA SIA | F191: saņemšana | G191: 6.6 | H191: 1.39 | I191: 7.99
A192: 1027 | B192: 2014.10.31 | C192: 2014.10.30 | D192: VLAT14/75183 | E192: VICIUNAI LAT SIA | F192: saņemšana | G192: 76.95 | H192: 16.16 | I192: 93.11
A193: 1028 | B193: 2014.10.31 | C193: 2014.10.30 | D193: VLAT14/75184 | E193: VICIUNAI LAT SIA | F193: saņemšana | G193: 71.64 | H193: 15.04 | I193: 86.68
A194: 1029 | B194: 2014.10.31 | C194: 2014.10.30 | D194: VLT14/74740 | E194: VICIUNAI LAT SIA | F194: saņemšana | G194: 23.62 | H194: 4.96 | I194: 28.58
A195: 1030 | B195: 2014.10.31 | C195: 2014.10.30 | D195: VLAT/1475169 | E195: VICIUNAI LAT SIA | F195: saņemšana | G195: 23.25 | H195: 4.88 | I195: 28.13
A196: 1031 | B196: 2014.10.31 | C196: 2014.10.30 | D196: PVZ0245384 | E196: LIETAS MD SIA | F196: saņemšana | G196: 23.07 | H196: 4.84 | I196: 27.91
A197: 1032 | B197: 2014.10.31 | C197: 2014.10.31 | D197: GLS009920 | E197: GALSAIMNIEKS | F197: saņemšana | G197: 25.49 | H197: 5.35 | I197: 30.84
A198: 1033 | B198: 2014.10.31 | C198: 2014.10.30 | D198: GLS009866 | E198: GALSAIMNIEKS | F198: saņemšana | G198: 25.29 | H198: 5.31 | I198: 30.6
A199: 1034 | B199: 2014.10.31 | C199: 2014.10.31 | D199: VLAT14/7517 | E199: VICIUNAI LAT SIA | F199: saņemšana | G199: 45.97 | H199: 9.65 | I199: 55.62
A200: 1035 | B200: 2014.10.31 | C200: 2014.10.31 | D200: VLAT14/75316 | E200: VICIUNAI LAT SIA | F200: saņemšana | G200: 44.83 | H200: 9.41 | I200: =G200+H200 -> 54.24
A201: 1036 | B201: 2014.10.31 | C201: 2014.10.31 | D201: PVZ0246285 | E201: LIETAS MD SIA | F201: saņemšana | G201: 44.48 | H201: 9.34 | I201: 53.82
... 13 more rows

Sheet S10,2014 (hidden)
A4: SIA `VICI RESTAURANTS`
A5: Reģ.nr. 40103369245
C7: Preču kustības reģistrācijas žurnāls 01.10.2014. - 31.10.2014. struktūrvienībai CHARLIE PIZZA Lielirbes iela 29
A8: Nr.p.k. | B8: Datums | C8: PVZ | E8: PIEGĀDĀTĀJS | F8: Darījuma apraksts (piegāde, iegāde, izsniegšana, saņemšana, pārvietošana) | G8: PVZ norādītā preču kopējā vērtība | H8: PVN summa | I8: Summa ar PVN
C9: datums | D9: numurs | G9: (bez PVN) | H9: (ja tāda ir)
A10: S106 | B10: 2014.10.01 | C10: 2014.10.01 | D10: CEKS 637792 | E10: RIMI LATVIA SIA | F10: saņemšana | G10: 0.69 | H10: 0.15 | I10: =SUM(G10:H10) -> 0.84
A11: S107 | B11: 2014.10.02 | C11: 2014.10.02 | D11: CEKS 638547 | E11: RIMI LATVIA SIA | F11: saņemšana | G11: 1.39 | H11: 0.29 | I11: 1.68
A12: S108 | B12: 2014.10.07 | C12: 2014.10.07 | D12: CEKS 611957 | E12: RIMI LATVIA SIA | F12: saņemšana | G12: 7.01 | H12: 1.47 | I12: 8.48
A13: S109 | B13: 2014.10.10 | C13: 2014.10.10 | D13: CEKS 57867 | E13: JĀNIS ROZE SIA | F13: saņemšana | G13: 1.04 | H13: 0.22 | I13: 1.26
A14: S110 | B14: 2014.10.17 | C14: 2014.10.17 | D14: EU 14172123 | E14: EUGESTA UN PARTNERI SIA | F14: saņemšana | G14: 0 | H14: 0 | I14: 0
A15: S111 | B15: 2014.10.17 | C15: 2014.10.17 | D15: BPS 123880 | E15: BALTPAPÍRS SIA | F15: saņemšana | G15: 287.56 | H15: 60.39 | I15: 347.95
A16: S112
A17: S113 | B17: 2014.10.22 | C17: 2014.10.22 | D17: ULTRA141065 | E17: ULTRA SERVISS SIA | F17: saņemšana | G17: 17.02 | H17: 3.57 | I17: 20.59
A18: S114 | B18: 2014.10.23 | C18: 2014.10.23 | D18: TL000314 | E18: SIA TEHNOINFORMA LATVIA | F18: saņemšana | G18: 31.21 | H18: 6.55 | I18: 37.76
A19: S115 | B19: 2014.10.23 | C19: 2014.10.23 | D19: TS027821 | E19: TEHNOINFORM SERVISS | F19: saņemšana | G19: 1.35 | H19: 0.28 | I19: 1.63
A20: S116 | B20: 2014.10.24 | C20: 2014.10.24 | D20: PK123584 | E20: PIREKA SIA | F20: saņemšana | G20: 72.71 | H20: 15.27 | I20: 87.98
A21: S117 | B21: 2014.10.27 | C21: 2014.10.24 | D21: VRG141090 | E21: VICI RESTAURANTS | F21: saņemšana | G21: 20.79 | H21: 0 | I21: =SUM(G21+H21) -> 20.79
A22: S118 | B22: 2014.10.28 | C22: 2014.10.28 | D22: D047101 | E22: CIDO GRUPA | F22: atgriešana | G22: 0 | H22: 0 | I22: 0
A23: S119
A24: S120 | B24: 2014.10.29 | C24: 2014.10.28 | D24: 1400294447 | E24: GEMOSS SIA | F24: saņemšana | G24: 7.41 | H24: 1.56 | I24: =SUM(G24+H24) -> 8.97
A25: S121 | B25: 2014.10.31 | C25: 2014.10.31 | D25: 629296 | E25: RIMI LATVIA SIA | F25: saņemšana | G25: 0.03 | H25: 0.01 | I25: 0.04
A26: S122 | F26: izsniegšana | I26: 0
A27: S123 | F27: saņemšana | I27: 0
A28: S124 | F28: saņemšana | I28: =SUM(G28:H28) -> 0
A29: S125 | F29: saņemšana | I29: 0
A30: S126 | F30: saņemšana | I30: 0
A31: S127 | F31: saņemšana | I31: 0
A32: S128 | F32: saņemšana | I32: 0
A33: S129 | F33: saņemšana | I33: 0
F34: saņemšana | I34: 0
F35: saņemšana | I35: 0
F36: saņemšana | I36: 0
F37: saņemšana | I37: 0
F38: saņemšana | I38: 0
E39: Kopā | G39: =SUM(G10:G38) -> 448.21 | H39: =SUM(H10:H38) -> 89.76 | I39: =SUM(I10:I38) -> 537.97
A43: Pārbaudīja: ________________________________ | E43: /
A46: Ar gramatvedības uzskaites datiem saskaņots: _________________________________________
G47: Datums: __________________

Sheet 11,2014 (hidden)
A1: SIA `VICI RESTAURANTS`
A2: Reģ.nr. 40103369245
C4: Preču kustības reģistrācijas žurnāls 01.11.2014 - 30.11.2014. struktūrvienībai CHARLIE PIZZA Lielirbes iela 29
B5: Datums | C5: PVZ | E5: PIEGĀDĀTĀJS | F5: Darījuma apraksts (piegāde, iegāde, izsniegšana, saņemšana, pārvietošana) | G5: PVZ norādītā preču kopējā vērtība | H5: PVN summa | I5: Summa ar PVN
C6: datums | D6: numurs | G6: (bez PVN) | H6: (ja tāda ir)
A7: 1043 | B7: 2014.11.01 | C7: 2014.11.01 | D7: GLS010006 | E7: GALSAIMNIEKS SIA | F7: saņemšana | G7: 46.22 | H7: 9.71 | I7: =G7+H7 -> 55.93 | N7: PICU KASTES
A8: 1044 | B8: 2014.11.01 | C8: 2014.11.01 | D8: VLAT14/75841 | E8: VICIUNAI - LAT SIA | F8: saņemšana | G8: 7.8 | H8: 1.64 | I8: 9.44 | M8: TARA(-) | N8: atgriešana
A9: 1045 | B9: 2014.11.01 | C9: 2014.11.01 | D9: VLAT14/75666 | E9: VICIUNAI - LAT SIA | F9: saņemšana | G9: 35.03 | H9: 7.36 | I9: 42.39 | M9: (-) OTDALI | N9: izsniegšana
A10: 1046 | B10: 2014.11.01 | C10: 2014.11.01 | D10: PVZ0247086 | E10: LIETAS MD SIA | F10: saņemšana | G10: 39.33 | H10: 8.26 | I10: 47.59
A11: 1047 | B11: 2014.11.01 | C11: 2014.11.01 | D11: PK2250107 | E11: RIGAS PIENA KOMBINATS | F11: saņemšana | G11: 57.39 | H11: 12.05 | I11: 69.44 | M11: PIEŅEMSANA | N11: pārvietošana
A12: 1048 | B12: 2014.11.01 | C12: 2014.11.01 | D12: GLS009999 | E12: GALSAIMNIEKS SIA | F12: saņemšana | G12: 33.8 | H12: 7.1 | I12: 40.9 | N12: saņemšana
A13: 1048/A | B13: 2014.11.01 | C13: 2014.11.01 | D13: CEK494049 | E13: SIA RIMMI LATVIA | F13: saņemšana | G13: 9.59 | H13: 2.01 | I13: 11.6
A14: 1048/B | B14: 2014.11.02 | C14: 2014.11.02 | D14: CEK238353 | E14: SIA RIMMI LATVIA | F14: saņemšana | G14: 1.29 | H14: 0.27 | I14: 1.56
A15: 1048/C | B15: 2014.11.02 | C15: 2014.11.02 | D15: CEK630979 | E15: SIA RIMMI LATVIA | F15: saņemšana | G15: 8.11 | H15: 1.7 | I15: 9.81
A16: 1049 | B16: 2014.11.03 | C16: 2014.11.03 | D16: GLS010081 | E16: GALSAIMNIEKS SIA | F16: saņemšana | G16: 14.69 | H16: 3.08 | I16: 17.77 | N16: vienreizeji trauki
A17: 1050 | B17: 2014.11.03 | C17: 2014.11.03 | D17: RPK2252645 | E17: RIGAS PIENA KOMBINATS | F17: saņemšana | G17: 30.75 | H17: 6.46 | I17: 37.21
A18: 1051 | B18: 2014.11.03 | C18: 2014.11.03 | D18: PVZ0248120 | E18: LIETAS MD SIA | F18: saņemšana | G18: 53.92 | H18: 11.32 | I18: 65.24
A19: 1052 | B19: 2014.11.03 | C19: 2014.11.03 | D19: FLN385499 | E19: FAZER LATVIJAS SIA | F19: saņemšana | G19: 4.12 | H19: 0.87 | I19: 4.99
A20: 1053 | B20: 2014.11.04 | C20: 2014.11.04 | D20: 1400300919 | E20: GEMOSS SIA | F20: saņemšana | G20: 8.74 | H20: 1.84 | I20: 10.58 | N20: GEMOSS SIA
A21: 1054 | F21: saņemšana | N21: ALLFRESH PLUS SIA
A22: 1055 | B22: 2014.11.04 | C22: 2014.11.04 | D22: SDVA101695 | E22: SANITEX SIA | F22: saņemšana | G22: 26.32 | H22: 5.53 | I22: =G22+H22 -> 31.85 | N22: AS KONIG DISTRIBUTION
A23: 1056 | B23: 2014.11.04 | C23: 2014.11.04 | D23: LV4RE00077537 | E23: REATON LTD | F23: saņemšana | G23: 14.99 | H23: 3.15 | I23: 18.14 | N23: BARGI SIA
A24: 1057 | B24: 2014.11.04 | C24: 2014.11.04 | D24: VLAT14/76113 | E24: VICIUNAI - LAT SIA | F24: saņemšana | G24: 272.39 | H24: 57.2 | I24: 329.59
A25: 1058 | B25: 2014.11.04 | C25: 2014.11.04 | D25: PVZ0249112 | E25: LIETAS MD SIA | F25: saņemšana | G25: 39.57 | H25: 8.31 | I25: 47.88 | N25: CIDO GRUPA SIA
A26: 1059 | B26: 2014.11.04 | C26: 2014.11.04 | D26: VLAT14/76133 | E26: VICIUNAI - LAT SIA | F26: saņemšana | G26: 219.15 | H26: 46.02 | I26: 265.17 | N26: COCA-COLA HBC LATVIA SIA
A27: 1060 | B27: 2014.11.05 | C27: 2014.11.05 | D27: PVZ0249925 | E27: LIETAS MD SIA | F27: saņemšana | G27: 19.72 | H27: 4.14 | I27: 23.86 | N27: EUGESTA UN PARTNERI SIA
A28: 1061 | B28: 2014.11.05 | C28: 2014.11.05 | D28: 2114153142 | E28: SIA CIDO GRUPS | F28: saņemšana | G28: 164.95 | H28: 34.64 | I28: 199.59 | N28: GAĻSAIMNIEKS SIA
A29: 1062 | B29: 2014.11.05 | C29: 2014.11.05 | D29: RPK2255302 | E29: RIGAS PIENA KOMBINATS | F29: saņemšana | G29: 37.05 | H29: 7.78 | I29: 44.83 | N29: FAZER LATVIJA SIA
A30: 1063 | B30: 2014.11.05 | C30: 2014.11.05 | D30: 14/2225 | E30: MAZEIKIU MESINE | F30: saņemšana | G30: 82.85 | H30: 0 | I30: 82.85 | N30: FJB LATVIA SIA
A31: 1064 | B31: 2014.11.05 | C31: 2014.11.04 | D31: GLS010157 | E31: GALSAIMNIEKS SIA | F31: saņemšana | G31: 51.08 | H31: 10.73 | I31: 61.81 | N31: INTERBALTIJA AG A/S
A32: 1065 | B32: 2014.11.06 | C32: 2014.11.06 | D32: PVZ0250686 | E32: LIETAS MD SIA | F32: saņemšana | G32: 34.04 | H32: 7.15 | I32: 41.19 | N32: LIEPURIN SIA
A33: 1066 | B33: 2014.11.06 | C33: 2014.11.06 | D33: 3100379505 | E33: SIA COCA COLA | F33: saņemšana | G33: 159.06 | H33: 33.4 | I33: 192.46 | N33: LIETAS MD SIA
A34: 1066/A | B34: 2014.11.06 | C34: 2014.11.06 | D34: 3100379503 | E34: SIA COCA COLA | F34: atgriešana | G34: -145.8 | H34: -30.62 | I34: -176.42
A35: 1067 | B35: 2014.11.06 | C35: 2014.11.06 | D35: RPK2257180 | E35: RIGAS PIENA KOMBINATS | F35: saņemšana | G35: 30.22 | H35: 6.35 | I35: 36.57 | N35: MAŽEIKIU MESIŅE
A36: 1068 | B36: 2014.11.06 | C36: 2014.11.06 | D36: GLS010321 | E36: GALSAIMNIEKS SIA | F36: saņemšana | G36: 97.44 | H36: 20.46 | I36: 117.9 | N36: MILTINUKO RECEPTAS UAB
A37: 1069 | B37: 2014.11.06 | C37: 2014.11.06 | D37: VNK000104172 | E37: VAINEKTA | F37: saņemšana | G37: 66.55 | H37: 0 | I37: 66.55 | N37: NOWACO LATVIA SIA
A38: 1070 | B38: 2014.11.06 | C38: 2014.11.06 | D38: FLN388379 | E38: FAZER LATVIJAS SIA | F38: saņemšana | G38: 5.31 | H38: 1.12 | I38: 6.43 | N38: REATON, LTD
A39: 1070/A | B39: 2014.11.06 | C39: 2014.11.06 | D39: CEK 667359 | E39: SIA RIMMI LATVIA | F39: saņemšana | G39: 3.97 | H39: 0.83 | I39: 4.8
A40: 1070/B | B40: 2014.11.06 | C40: 2014.11.06 | D40: VRG14061 | E40: SIA VICI RESTAURANT | F40: saņemšana | G40: 4.08 | H40: 0 | I40: 4.08
A41: 1071 | B41: 2014.11.07 | C41: 2014.11.07 | D41: FNL389557 | E41: FAZER LATVIJAS SIA | F41: saņemšana | G41: 8.24 | H41: 1.73 | I41: 9.97 | N41: RIMI LATVIA SIA
A42: 1072 | B42: 2014.11.07 | C42: 2014.11.07 | D42: VLAT14/77382 | E42: VICIUNAI - LAT SIA | F42: saņemšana | G42: 252.06 | H42: 52.93 | I42: 304.99 | N42: RĪGAS PIENA KOMBINĀTS AS
A43: 1073 | B43: 2014.11.07 | C43: 2014.11.07 | D43: VLAT14/77378 | E43: VICIUNAI - LAT SIA | F43: saņemšana | G43: 16.8 | H43: 3.53 | I43: 20.33 | N43: SANITEX BALTIC DISTRIBUTION SIA
A44: 1074 | B44: 2014.11.07 | C44: 2014.11.07 | D44: PVZ0251783 | E44: LIETAS MD SIA | F44: saņemšana | G44: 30.79 | H44: 6.47 | I44: =G44+H44 -> 37.26 | N44: SANITEX SIA
A45: 1075 | B45: 2014.11.07 | C45: 2014.11.07 | D45: RPK2258604 | E45: RIGAS PIENA KOMBINATS | F45: saņemšana | G45: 20.91 | H45: 4.39 | I45: =G45+H45 -> 25.3 | N45: SERVAALI LATVIA SIA
A46: 1076 | B46: 2014.11.07 | C46: 2014.11.07 | D46: RPK2258871 | E46: RIGAS PIENA KOMBINATS | F46: saņemšana | G46: 33.23 | H46: 6.98 | I46: =G46+H46 -> 40.21
A47: 1077 | N47: SPI DISTRIBUTION SIA
A48: 1078 | B48: 2014.11.07 | C48: 2014.11.07 | D48: 14/2232 | E48: MAŽEIKIU MESIŅE | F48: saņemšana | G48: 363.63 | H48: 0 | I48: =G48+H48 -> 363.63 | N48: SPILVA SIA
A49: 1078/A | B49: 2014.11.07 | C49: 2014.11.07 | D49: GLS010356 | E49: GALSAIMNIEKS SIA | F49: saņemšana | G49: 47.42 | H49: 9.96 | I49: 57.38
A50: 1079 | B50: 2014.11.08 | C50: 2014.11.08 | D50: VLAT14/77673 | E50: VICIUNAI - LAT SIA | F50: saņemšana | G50: 18.96 | H50: 3.98 | I50: 22.94 | N50: VAINEKTA UAB
A51: 1080 | B51: 2014.11.08 | C51: 2014.11.08 | D51: VLAT/-14/77582 | E51: VICIUNAI - LAT SIA | F51: saņemšana | G51: 31.8 | H51: 6.68 | I51: 38.48 | N51: VIČIŪNAI-LAT SIA
A52: 1081 | B52: 2014.11.08 | C52: 2014.11.08 | D52: PVZ025467 | E52: LIETAS MD SIA | F52: saņemšana | G52: 85.56 | H52: 17.97 | I52: 103.53 | N52: HENKELL &CO SIA
A53: 1082 | B53: 2014.11.08 | C53: 2014.11.08 | D53: PVZ025647 | E53: LIETAS MD SIA | F53: saņemšana | G53: 2.18 | H53: 0.46 | I53: 2.64
A54: 1082/B | B54: 2014.11.08 | C54: 2014.11.08 | D54: CEK636966 | E54: SIA RIMMI LATVIA | F54: saņemšana | G54: 2.96 | H54: 0.62 | I54: 3.58
A55: 1082/C | B55: 2014.11.09 | C55: 2014.11.09 | D55: CEK243166 | E55: SIA RIMMI LATVIA | F55: saņemšana | G55: 4.23 | H55: 0.89 | I55: 5.12
A56: 1083 | B56: 2014.11.10 | C56: 2014.11.10 | D56: RPK2261636 | E56: RIGAS PIENA KOMBINATS | F56: saņemšana | G56: 30.19 | H56: 6.34 | I56: 36.53
A57: 1084 | B57: 2014.11.10 | C57: 2014.11.10 | D57: FNL391999 | E57: FAZER LATVIJAS SIA | F57: saņemšana | G57: 11.95 | H57: 2.51 | I57: 14.46
A58: 1085 | B58: 2014.11.10 | C58: 2014.11.10 | D58: PVZ053633 | E58: LIETAS MD SIA | F58: saņemšana | G58: 41.42 | H58: 8.7 | I58: 50.12
A59: 1085/A | B59: 2014.11.10 | C59: 2014.11.10 | D59: VRG143065 | E59: SIA VICI RESTAURANT | F59: saņemšana | G59: -3.96 | H59: 0 | I59: -3.96
A60: 1086 | B60: 2014.11.11 | C60: 2014.11.11 | D60: RPK2263913 | E60: RIGAS PIENA KOMBINATS | F60: saņemšana | G60: 39.31 | H60: 8.26 | I60: 47.57
A61: 1087 | B61: 2014.11.11 | C61: 2014.11.11 | D61: 3100381879 | E61: SIA COCA COLA | F61: saņemšana | G61: 3.68 | H61: 0.77 | I61: 4.45
A62: 1088 | B62: 2014.11.11 | C62: 2014.11.11 | D62: EU14185280 | E62: EUGESTA UN PARTNERI SIA | F62: saņemšana | G62: 224.85 | H62: 47.22 | I62: 272.07
A63: 1089 | B63: 2014.11.11 | C63: 2014.11.11 | D63: 2114155989 | E63: SIA cido grupa | F63: saņemšana | G63: 355.99 | H63: 74.76 | I63: 430.75
A64: 1090 | B64: 2014.11.11 | C64: 2014.11.11 | D64: SBA211802 | E64: SANITEX SIA | F64: saņemšana | G64: 280.31 | H64: 58.87 | I64: 339.18
A65: 1091 | B65: 2014.11.11 | C65: 2014.11.11 | D65: STAB611127 | E65: SANITEX SIA | F65: saņemšana | G65: 48.88 | H65: 10.26 | I65: 59.14
A66: 1092 | B66: 2014.11.11 | C66: 2014.11.11 | D66: 1400308526 | E66: GEMOSS SIA | F66: saņemšana | G66: 67.96 | H66: 14.27 | I66: 82.23
A67: 1093
A68: 1094 | B68: 2014.11.11 | C68: 2014.11.11 | D68: D47103 | E68: SIA CIDO GRUPA | F68: saņemšana | G68: 0 | H68: 0 | I68: =G68+H68 -> 0
A69: 1094/A | B69: 2014.11.11 | C69: 2014.11.11 | D69: PVZ0254468 | E69: LIETAS MD SIA | F69: saņemšana | G69: 25.83 | H69: 5.42 | I69: 31.25
A70: 1095 | B70: 2014.11.11 | C70: 2014.11.11 | D70: GLS010632 | E70: GALSAIMNIEKS SIA | F70: saņemšana | G70: 22.87 | H70: 4.8 | I70: 27.67
A71: 1095/A | B71: 2014.11.11 | C71: 2014.11.11 | D71: CEK671312 | E71: SIA RIMMI LATVIA | F71: saņemšana | G71: 1.15 | H71: 0.24 | I71: 1.39
A72: 1095/B | B72: 2014.11.11 | C72: 2014.11.11 | D72: CEK671374 | E72: SIA RIMMI LATVIA | F72: saņemšana | G72: 1.08 | H72: 0.23 | I72: 1.31
A73: 1096 | B73: 2014.11.12 | C73: 2014.11.12 | D73: 3100382831 | E73: COCA COLA | F73: saņemšana | G73: -69 | H73: -14.49 | I73: -83.49
A74: 1097 | B74: 2014.11.12 | C74: 2014.11.12 | D74: 3100382841 | E74: COCA COLA | F74: saņemšana | G74: 307.34 | H74: 64.54 | I74: 371.88
A75: 1098 | B75: 2014.11.12 | C75: 2014.11.12 | D75: FLN393968 | E75: FAZER LATVIJAS SIA | F75: saņemšana | G75: 2 | H75: 0.42 | I75: 2.42
A76: 1098/A | B76: 2014.11.12 | C76: 2014.11.12 | D76: 1400311937 | E76: GEMOSS SIA | F76: saņemšana | G76: 23.4 | H76: 4.91 | I76: 28.31
A77: 1098/B | B77: 2014.11.12 | C77: 2014.11.12 | D77: 1400311668 | E77: GEMOSS SIA | F77: saņemšana | G77: 14.2 | H77: 2.98 | I77: 17.18
A78: 1099 | B78: 2014.11.12 | C78: 2014.11.12 | D78: PVZ0255360 | E78: LIETAS MD SIA | F78: saņemšana | G78: 21.6 | H78: 4.54 | I78: =G78+H78 -> 26.14
A79: 1100 | B79: 2014.11.12 | C79: 2014.11.12 | D79: GLS010706 | E79: GALSAIMNIEKS SIA | F79: saņemšana | G79: 16.7 | H79: 3.51 | I79: =G79+H79 -> 20.21
A80: 1100/A | B80: 2014.11.12 | C80: 2014.11.12 | D80: CEK258260 | E80: SIA RIMMI LATVIA | F80: saņemšana | G80: 2.17 | H80: 0.45 | I80: =G80+H80 -> 2.62
A81: 1100/B | B81: 2014.11.12 | C81: 2014.11.12 | D81: CEK25803 | E81: SIA RIMMI LATVIA | F81: saņemšana | G81: 1.55 | H81: 0.32 | I81: =G81+H81 -> 1.87
A82: 1101 | F82: saņemšana
A83: 1102 | B83: 2014.11.13 | C83: 2014.11.13 | D83: VLAT14/78888 | E83: VICIUNAI - LAT SIA | F83: saņemšana | G83: 3.93 | H83: 0.83 | I83: =G83+H83 -> 4.76
A84: 1103 | B84: 2014.11.13 | C84: 2014.11.13 | D84: VLAT14/78919 | E84: VICIUNAI - LAT SIA | F84: saņemšana | G84: 77.06 | H84: 16.18 | I84: =G84+H84 -> 93.24
A85: 1104 | B85: 2014.11.13 | C85: 2014.11.13 | D85: PVZ0256138 | E85: LIETAS MD SIA | F85: saņemšana | G85: 71.74 | H85: 15.07 | I85: =G85+H85 -> 86.81
A86: 1105 | B86: 2014.11.13 | C86: 2014.11.13 | D86: STAB614677 | E86: SANITEX SIA | F86: saņemšana | G86: 51.75 | H86: =I86-G86 -> 10.87 | I86: =G86*1.21 -> 62.62
A87: 1106 | B87: 2014.11.13 | C87: 2014.11.13 | D87: VNK000104433 | E87: VAINEKTA | F87: saņemšana | G87: 90.48 | H87: 0 | I87: =G87+H87 -> 90.48
A88: 1107 | B88: 2014.11.13 | C88: 2014.11.13 | D88: VNK000104172 | E88: VAINEKTA !ANULETS! | F88: saņemšana | G88: 0 | H88: 0 | I88: 0
A89: 1107/A | B89: 2014.11.13 | C89: 2014.11.13 | D89: CEK258707 | E89: SIA RIMMI LATVIA | F89: saņemšana | G89: 8.83 | H89: 1.85 | I89: =G89+H89 -> 10.68
A90: 1108 | B90: 2014.11.14 | C90: 2014.11.14 | D90: RPK2268609 | E90: RIGAS PIENA KOMBINATS | F90: saņemšana | G90: 38.79 | H90: 8.15 | I90: 46.94
A91: 1109 | B91: 2014.11.14 | C91: 2014.11.14 | D91: RPK2269033 | E91: RIGAS PIENA KOMBINATS | F91: saņemšana | G91: 79.55 | H91: 16.71 | I91: 96.26
A92: 1110 | B92: 2014.11.14 | C92: 2014.11.14 | D92: VLAT14/79250 | E92: VICIUNAI - LAT SIA | F92: saņemšana | G92: 116 | H92: 24.36 | I92: 140.36
A93: 1111 | B93: 2014.11.14 | C93: 2014.11.14 | D93: VLAT14/79188 | E93: VICIUNAI - LAT SIA | F93: saņemšana | G93: 30.58 | H93: 6.42 | I93: 37
A94: 1112 | B94: 2014.11.14 | C94: 2014.11.14 | D94: PVZ0257143 | E94: LIETAS MD SIA | F94: saņemšana | G94: 58.37 | H94: 12.26 | I94: 70.63
A95: 1113 | B95: 2014.11.14 | C95: 2014.11.14 | D95: FNL396021 | E95: FAZER LATVIJAS SIA | F95: saņemšana | G95: 4.79 | H95: 1.01 | I95: 5.8
A96: 1114 | B96: 2014.11.14 | C96: 2014.11.14 | D96: STAB615632 | E96: SANITEX SIA | F96: saņemšana | G96: 50.58 | H96: 10.62 | I96: 61.2
